Workbook

Sheet Sens (Tous)-T3-1. JOB
A1: SENS | B1: (Tous)
A2: LIGNE | B2: T3
C5: 1 | D5: 2 | E5: 3 | F5: 4 | G5: 5 | H5: 6 | I5: 7 | J5: 8 | K5: 9 | L5: 10 | M5: 11 | N5: 12 | O5: 13 | P5: 14 | Q5: TOTAL MONTEES | R5: TOTAL DESCENTES
C6: Château Quatrans | D6: Saint-Pierre | E6: Bernières | F6: Résistance Saint-Jean | G6: Quai de Juillet | H6: Gare SNCF | I6: Leroy | J6: Lux-Lépine | K6: Guynemer | L6: Poincaré | M6: Aviation | N6: Rostand Fresnel | O6: Grace de Dieu | P6: Collège Hawking
A7: 1 | B7: Château Quatrans | D7: 4.671247533 | E7: 11.86996846 | F7: 3.137707114 | G7: 14.10847505 | H7: 107.560831 | I7: 25.80517782 | J7: 49.79440505 | K7: 22.06473525 | L7: 35.68852745 | M7: 44.65931735 | N7: 165.3931142 | O7: 112.1222668 | P7: 39.36185075 | Q7: 636.2376238 | R7: 956.7732312
A8: 2 | B8: Saint-Pierre | C8: 57.22772277 | E8: 7.380488679 | F8: 15.17247388 | G8: 59.30495598 | H8: 172.0262237 | I8: 50.71889979 | J8: 63.24998457 | K8: 47.53653709 | L8: 43.50453654 | M8: 63.13860791 | N8: 170.9082721 | O8: 107.3572955 | P8: 63.16707079 | Q8: 920.6930693 | R8: 786.3177269
A9: 3 | B9: Bernières | C9: 32.70956891 | D9: 11.05280733 | F9: 1.912348069 | G9: 11.17882628 | H9: 79.70737178 | I9: 32.45852023 | J9: 38.42287845 | K9: 25.59288696 | L9: 41.80740284 | M9: 24.13259237 | N9: 111.2367099 | O9: 83.57320708 | P9: 14.53171145 | Q9: 508.3168317 | R9: 538.2736988
A10: 4 | B10: Résistance Saint-Jean | C10: 41.16297276 | D10: 22.61141604 | E10: 5.235512188 | G10: 5.259502949 | H10: 29.81241218 | I10: 12.48468094 | J10: 22.91282941 | K10: 18.58475551 | L10: 17.77268443 | M10: 18.62469805 | N10: 32.31466603 | O10: 29.76870443 | P10: 29.59377894 | Q10: 286.1386139 | R10: 168.7970917
A11: 5 | B11: Quai de Juillet | C11: 84.42014663 | D11: 62.09693483 | E11: 21.73360628 | F11: 1.749312257 | H11: 42.31234644 | I11: 23.81258685 | J11: 40.07853848 | K11: 42.40681651 | L11: 71.87015804 | M11: 32.22322259 | N11: 60.88596386 | O11: 89.39405224 | P11: 21.17473083 | Q11: 594.1584158 | R11: 507.258106
A12: 6 | B12: Gare SNCF | C12: 179.6220585 | D12: 185.4073305 | E12: 96.7562943 | F12: 22.75279646 | G12: 59.12488655 | I12: 33.12899408 | J12: 65.83172669 | K12: 74.90894754 | L12: 72.89921075 | M12: 40.82890196 | N12: 278.5954541 | O12: 319.6587206 | P12: 48.30646012 | Q12: 1477.821782 | R12: 1269.038229
A13: 7 | B13: Leroy | C13: 39.20503812 | D13: 35.57204213 | E13: 28.24237239 | F13: 8.746298008 | G13: 22.59796261 | H13: 10.38876198 | J13: 11.64571992 | K13: 25.74842835 | L13: 19.30147267 | M13: 4.196087876 | N13: 81.59877204 | O13: 91.46813962 | P13: 13.4671221 | Q13: 392.1782178 | R13: 337.1899758
A14: 8 | B14: Lux-Lépine | C14: 56.66107079 | D14: 56.79585509 | E14: 30.33838163 | F14: 18.80774545 | G14: 40.02977564 | H14: 60.49453798 | I14: 4.496395792 | K14: 8.228196726 | L14: 10.8313369 | M14: 4.183920136 | N14: 68.62605619 | O14: 57.84540985 | P14: 18.60191188 | Q14: 435.9405941 | R14: 423.1501361
A15: 9 | B15: Guynemer | C15: 32.1736867 | D15: 18.31488122 | E15: 33.30308677 | F15: 8.851038509 | G15: 21.99451505 | H15: 30.85472409 | I15: 5.839982496 | J15: 11.9354119 | L15: 9.88839434 | M15: 16.86600616 | N15: 57.85393899 | O15: 69.24188063 | P15: 24.56562148 | Q15: 341.6831683 | R15: 353.8552621
A16: 10 | B16: Poincaré | C16: 27.58791999 | D16: 28.45627869 | E16: 18.80127739 | F16: 15.1161901 | G16: 29.08889541 | H16: 46.65341558 | I16: 7.68246148 | J16: 8.39573958 | M16: 7.89100402 | N16: 102.6017123 | O16: 128.303579 | P16: 28.82746706 | Q16: 449.4059406 | R16: 491.0433713
A17: 11 | B17: Aviation | C17: 53.04254946 | D17: 18.68227288 | E17: 44.80338493 | F17: 5.723623038 | G17: 66.72821452 | H17: 61.28980826 | I17: 31.50985468 | J17: 4.097314329 | K17: 15.52450835 | L17: 6.618271529 | N17: 27.01567214 | O17: 57.5774208 | P17: 33.22868924 | Q17: 425.8415842 | R17: 350.1449356
A18: 12 | B18: Rostand Fresnel | C18: 159.1749906 | D18: 184.2631574 | E18: 98.30108921 | F18: 14.39091712 | G18: 47.38508356 | H18: 327.8195803 | I18: 64.57526814 | J18: 57.1886836 | K18: 12.22953483 | L18: 50.31794274 | M18: 4.353752486 | O18: 105.794833 | P18: 69.2546719 | Q18: 1195.049505 | R18: 1206.360688
A19: 13 | B19: Grace de Dieu | C19: 156.1074087 | D19: 132.7789387 | E19: 107.2009042 | F19: 43.30429843 | G19: 105.812662 | H19: 264.1023407 | I19: 34.10903845 | J19: 39.1689572 | K19: 47.09906554 | L19: 95.17003682 | M19: 75.59278846 | N19: 28.9595014 | P19: 43.76237624 | Q19: 1173.168317 | R19: 1274.944184
A20: 14 | B20: Collège Hawking | C20: 37.67809721 | D20: 25.61456451 | E20: 34.30733241 | F20: 9.132343251 | G20: 24.64435034 | H20: 36.01587526 | I20: 10.56811504 | J20: 10.42794686 | K20: 13.9308495 | L20: 15.37339623 | M20: 13.45403625 | N20: 20.37085439 | O20: 22.83867439 | Q20: 274.3564356 | R20: 447.8434628
A21: TOTAL DESCENTES | C21: 956.7732312 | D21: 786.3177269 | E21: 538.2736988 | F21: 168.7970917 | G21: 507.258106 | H21: 1269.038229 | I21: 337.1899758 | J21: 423.1501361 | K21: 353.8552621 | L21: 491.0433713 | M21: 350.1449356 | N21: 1206.360688 | O21: 1274.944184 | P21: 447.8434628 | Q21: 9110.990099 | R21: 9110.990099

Sheet Sens 2-T3-1. JOB
A1: SENS | B1: 2
A2: LIGNE | B2: T3
C5: 14 | D5: 13 | E5: 12 | F5: 11 | G5: 10 | H5: 9 | I5: 8 | J5: 7 | K5: 6 | L5: 5 | M5: 4 | N5: 3 | O5: 2 | P5: 1 | Q5: TOTAL MONTEES | R5: TOTAL DESCENTES | S5: CHARGE
C6: Colège Hawking | D6: Grace de Dieu | E6: Rostand Fresnel | F6: Aviation | G6: Poincaré | H6: Guynemer | I6: Lux-Lépine | J6: Leroy | K6: Gare SNCF | L6: Quai de Juillet | M6: Résistance Saint-Jean | N6: Bernières | O6: Saint-Pierre | P6: Château Quatrans
A7: 14 | B7: Collège Hawking | D7: 22.83867439 | E7: 20.37085439 | F7: 13.45403625 | G7: 15.37339623 | H7: 13.9308495 | I7: 10.42794686 | J7: 10.56811504 | K7: 36.01587526 | L7: 24.64435034 | M7: 9.132343251 | N7: 34.30733241 | O7: 25.61456451 | P7: 37.67809721 | Q7: 274.3564356 | S7: =S6+Q7-R7 -> 274.3564356
A8: 13 | B8: Grace de Dieu | E8: 28.9595014 | F8: 75.59278846 | G8: 95.17003682 | H8: 47.09906554 | I8: 39.1689572 | J8: 34.10903845 | K8: 264.1023407 | L8: 105.812662 | M8: 43.30429843 | N8: 107.2009042 | O8: 132.7789387 | P8: 156.1074087 | Q8: 1129.405941 | R8: 22.83867439 | S8: 1380.923702
A9: 12 | B9: Rostand Fresnel | F9: 4.353752486 | G9: 50.31794274 | H9: 12.22953483 | I9: 57.1886836 | J9: 64.57526814 | K9: 327.8195803 | L9: 47.38508356 | M9: 14.39091712 | N9: 98.30108921 | O9: 184.2631574 | P9: 159.1749906 | Q9: 1020 | R9: 49.33035579 | S9: 2351.593346
A10: 11 | B10: Aviation | G10: 6.618271529 | H10: 15.52450835 | I10: 4.097314329 | J10: 31.50985468 | K10: 61.28980826 | L10: 66.72821452 | M10: 5.723623038 | N10: 44.80338493 | O10: 18.68227288 | P10: 53.04254946 | Q10: 308.019802 | R10: 93.4005772 | S10: 2566.212571
A11: 10 | B11: Poincaré | I11: 8.39573958 | J11: 7.68246148 | K11: 46.65341558 | L11: 29.08889541 | M11: 15.1161901 | N11: 18.80127739 | O11: 28.45627869 | P11: 27.58791999 | Q11: 181.7821782 | R11: 167.4796473 | S11: 2580.515102
A12: 9 | B12: Guynemer | I12: 11.9354119 | J12: 5.839982496 | K12: 30.85472409 | L12: 21.99451505 | M12: 8.851038509 | N12: 33.30308677 | O12: 18.31488122 | P12: 32.1736867 | Q12: 163.2673267 | R12: 88.78395821 | S12: 2654.99847
A13: 8 | B13: Lux-Lépine | J13: 4.496395792 | K13: 60.49453798 | L13: 40.02977564 | M13: 18.80774545 | N13: 30.33838163 | O13: 56.79585509 | P13: 56.66107079 | Q13: 267.6237624 | R13: 131.2140535 | S13: 2791.408179
A14: 7 | B14: Leroy | K14: 10.38876198 | L14: 22.59796261 | M14: 8.746298008 | N14: 28.24237239 | O14: 35.57204213 | P14: 39.20503812 | Q14: 144.7524752 | R14: 158.7811161 | S14: 2777.379538
A15: 6 | B15: Gare SNCF | L15: 59.12488655 | M15: 22.75279646 | N15: 96.7562943 | O15: 185.4073305 | P15: 179.6220585 | Q15: 543.6633663 | R15: 837.6190441 | S15: 2483.423861
A16: 5 | B16: Quai de Juillet | M16: 1.749312257 | N16: 21.73360628 | O16: 62.09693483 | P16: 84.42014663 | Q16: 170 | R16: 417.4063457 | S16: 2236.017515
A17: 4 | B17: Résistance Saint-Jean | N17: 5.235512188 | O17: 22.61141604 | P17: 41.16297276 | Q17: 69.00990099 | R17: 148.5745626 | S17: 2156.452853
A18: 3 | B18: Bernières | O18: 11.05280733 | P18: 32.70956891 | Q18: 43.76237624 | R18: 519.0232417 | S18: 1681.191988
A19: 2 | B19: Saint-Pierre | P19: 57.22772277 | Q19: 57.22772277 | R19: 781.6464794 | S19: 956.7732312
A20: 1 | B20: Château Quatrans | R20: 956.7732312 | S20: 0
A21: TOTAL DESCENTES | D21: 22.83867439 | E21: 49.33035579 | F21: 93.4005772 | G21: 167.4796473 | H21: 88.78395821 | I21: 131.2140535 | J21: 158.7811161 | K21: 837.6190441 | L21: 417.4063457 | M21: 148.5745626 | N21: 519.0232417 | O21: 781.6464794 | P21: 956.7732312 | Q21: 4372.871287 | R21: 4372.871287

Sheet Sens 1-T3-1. JOB
A1: SENS | B1: 1
A2: LIGNE | B2: T3
C5: 1 | D5: 2 | E5: 3 | F5: 4 | G5: 5 | H5: 6 | I5: 7 | J5: 8 | K5: 9 | L5: 10 | M5: 11 | N5: 12 | O5: 13 | P5: 14 | Q5: TOTAL MONTEES | R5: TOTAL DESCENTES | S5: CHARGE
C6: Château Quatrans | D6: Saint-Pierre | E6: Bernières | F6: Résistance Saint-Jean | G6: Quai de Juillet | H6: Gare SNCF | I6: Leroy | J6: Lux-Lépine | K6: Guynemer | L6: Poincaré | M6: Aviation | N6: Rostand Fresnel | O6: Grace de Dieu | P6: Collège Hawking
A7: 1 | B7: Château Quatrans | D7: 4.671247533 | E7: 11.86996846 | F7: 3.137707114 | G7: 14.10847505 | H7: 107.560831 | I7: 25.80517782 | J7: 49.79440505 | K7: 22.06473525 | L7: 35.68852745 | M7: 44.65931735 | N7: 165.3931142 | O7: 112.1222668 | P7: 39.36185075 | Q7: 636.2376238 | S7: =S6+Q7-R7 -> 636.2376238
A8: 2 | B8: Saint-Pierre | E8: 7.380488679 | F8: 15.17247388 | G8: 59.30495598 | H8: 172.0262237 | I8: 50.71889979 | J8: 63.24998457 | K8: 47.53653709 | L8: 43.50453654 | M8: 63.13860791 | N8: 170.9082721 | O8: 107.3572955 | P8: 63.16707079 | Q8: 863.4653465 | R8: 4.671247533 | S8: =S7+Q8-R8 -> 1495.031723
A9: 3 | B9: Bernières | F9: 1.912348069 | G9: 11.17882628 | H9: 79.70737178 | I9: 32.45852023 | J9: 38.42287845 | K9: 25.59288696 | L9: 41.80740284 | M9: 24.13259237 | N9: 111.2367099 | O9: 83.57320708 | P9: 14.53171145 | Q9: 464.5544554 | R9: 19.25045714 | S9: 1940.335721
A10: 4 | B10: Résistance Saint-Jean | G10: 5.259502949 | H10: 29.81241218 | I10: 12.48468094 | J10: 22.91282941 | K10: 18.58475551 | L10: 17.77268443 | M10: 18.62469805 | N10: 32.31466603 | O10: 29.76870443 | P10: 29.59377894 | Q10: 217.1287129 | R10: 20.22252906 | S10: 2137.241905
A11: 5 | B11: Quai de Juillet | H11: 42.31234644 | I11: 23.81258685 | J11: 40.07853848 | K11: 42.40681651 | L11: 71.87015804 | M11: 32.22322259 | N11: 60.88596386 | O11: 89.39405224 | P11: 21.17473083 | Q11: 424.1584158 | R11: 89.85176026 | S11: 2471.54856
A12: 6 | B12: Gare SNCF | I12: 33.12899408 | J12: 65.83172669 | K12: 74.90894754 | L12: 72.89921075 | M12: 40.82890196 | N12: 278.5954541 | O12: 319.6587206 | P12: 48.30646012 | Q12: 934.1584158 | R12: 431.4191851 | S12: 2974.287791
A13: 7 | B13: Leroy | J13: 11.64571992 | K13: 25.74842835 | L13: 19.30147267 | M13: 4.196087876 | N13: 81.59877204 | O13: 91.46813962 | P13: 13.4671221 | Q13: 247.4257426 | R13: 178.4088597 | S13: 3043.304674
A14: 8 | B14: Lux-Lépine | K14: 8.228196726 | L14: 10.8313369 | M14: 4.183920136 | N14: 68.62605619 | O14: 57.84540985 | P14: 18.60191188 | Q14: 168.3168317 | R14: 291.9360826 | S14: 2919.685423
A15: 9 | B15: Guynemer | L15: 9.88839434 | M15: 16.86600616 | N15: 57.85393899 | O15: 69.24188063 | P15: 24.56562148 | Q15: 178.4158416 | R15: 265.0713039 | S15: 2833.029961
A16: 10 | B16: Poincaré | M16: 7.89100402 | N16: 102.6017123 | O16: 128.303579 | P16: 28.82746706 | Q16: 267.6237624 | R16: 323.563724 | S16: 2777.089999
A17: 11 | B17: Aviation | N17: 27.01567214 | O17: 57.5774208 | P17: 33.22868924 | Q17: 117.8217822 | R17: 256.7443584 | S17: 2638.167423
A18: 12 | B18: Rostand Fresnel | O18: 105.794833 | P18: 69.2546719 | Q18: 175.049505 | R18: 1157.030332 | S18: 1656.186596
A19: 13 | B19: Grace de Dieu | P19: 43.76237624 | Q19: 43.76237624 | R19: 1252.10551 | S19: 447.8434628
A20: 14 | B20: Collège Hawking | R20: 447.8434628 | S20: 0
A21: TOTAL DESCENTES | D21: 4.671247533 | E21: 19.25045714 | F21: 20.22252906 | G21: 89.85176026 | H21: 431.4191851 | I21: 178.4088597 | J21: 291.9360826 | K21: 265.0713039 | L21: 323.563724 | M21: 256.7443584 | N21: 1157.030332 | O21: 1252.10551 | P21: 447.8434628 | Q21: 4738.118812 | R21: 4738.118812

Sheet Sens (Tous)-T2-1. JOB
A1: SENS | B1: (Tous)
A2: LIGNE | B2: T2
C5: 1 | D5: 2 | E5: 3 | F5: 4 | G5: 5 | H5: 6 | I5: 7 | J5: 8 | K5: 9 | L5: 10 | M5: 11 | N5: 12 | O5: 13 | P5: 14 | Q5: 15 | R5: 16 | S5: 17 | T5: TOTAL MONTEES | U5: TOTAL DESCENTES
C6: Campus 2 | D6: Cote de Nacre | E6: CITIS | F6: Campus 4 | G6: CHU | H6: Copernic | I6: Calvaire St-Pierre | J6: CROUS SUAPS | K6: Université | L6: Place de la Mare | M6: Château Quatrans | N6: Saint-Pierre | O6: Bernières | P6: Résistance Saint-Jean | Q6: Quai de Juillet | R6: Gare Rives de l'Orne | S6: Caen-Presqu'Ile
A7: 1 | B7: Campus 2 | D7: 14.56477223 | E7: 56.44511773 | F7: 107.298796 | G7: 18.95169007 | H7: 394.7078232 | I7: 64.34154981 | J7: 239.2347507 | K7: 252.1399013 | L7: 102.9588205 | M7: 173.853684 | N7: 177.9798398 | O7: 65.51780954 | P7: 29.14004232 | Q7: 65.39716223 | R7: 151.0033748 | S7: 38.77255806 | T7: 1952.307692 | U7: 2432.981142
A8: 2 | B8: Cote de Nacre | C8: 49.45054945 | E8: 8.078027419 | F8: 13.04057829 | G8: 13.51812808 | H8: 131.524307 | I8: 26.16211833 | J8: 63.65716641 | K8: 74.39270656 | L8: 17.73763905 | M8: 33.00099848 | N8: 77.43300281 | O8: 60.80458268 | P8: 19.57109208 | Q8: 18.16318328 | R8: 41.04287583 | S8: 5.170297001 | T8: 652.7472527 | U8: 620.5134979
A9: 3 | B9: CITIS | C9: 56.1580468 | D9: 78.3474477 | F9: 7.060730316 | G9: 6.609659099 | H9: 61.56107169 | I9: 20.24675191 | J9: 36.07935824 | K9: 103.8727837 | L9: 24.82140639 | M9: 51.64559808 | N9: 28.19641121 | O9: 24.95688256 | P9: 9.473776816 | Q9: 39.53318927 | R9: 49.11145355 | S9: 5.622135917 | T9: 603.2967033 | U9: 336.7543153
A10: 4 | B10: Campus 4 | C10: 81.57514318 | D10: 48.15509827 | E10: 4.775253057 | G10: 2.386135949 | H10: 131.8167897 | I10: 42.63580796 | J10: 84.38641065 | K10: 284.5119637 | L10: 98.44934463 | M10: 209.4587789 | N10: 175.9840752 | O10: 76.87468494 | P10: 38.33264968 | Q10: 97.48080553 | R10: 180.8262677 | S10: 30.70243937 | T10: 1588.351648 | U10: 1447.168583
A11: 5 | B11: CHU | C11: 102.593378 | D11: 36.34337416 | F11: 19.30500613 | H11: 41.90844228 | I11: 12.75343753 | J11: 11.77791385 | K11: 35.4266828 | L11: 31.44606484 | M11: 64.45938952 | N11: 94.69257268 | O11: 60.48046458 | P11: 10.10340668 | Q11: 56.68700482 | R11: 87.4764322 | S11: 3.117858556 | T11: 668.5714286 | U11: 541.8324295
A12: 6 | B12: Copernic | C12: 429.2870889 | D12: 82.69280593 | E12: 47.47902754 | F12: 120.7343953 | G12: 35.85063836 | I12: 9.924375839 | J12: 28.31719182 | K12: 52.9051035 | L12: 27.67004965 | M12: 56.13794298 | N12: 28.23191936 | O12: 26.14883068 | P12: 3.875109494 | Q12: 28.2591623 | R12: 39.18965505 | T12: 1016.703297 | U12: 1349.814042
A13: 7 | B13: Calvaire St-Pierre | C13: 113.5761458 | D13: 31.07179588 | E13: 11.17733938 | F13: 104.2629944 | G13: 30.78824813 | H13: 21.65094895 | J13: 11.15884288 | K13: 50.59258256 | L13: 20.36362547 | M13: 39.38697962 | N13: 81.82601798 | O13: 26.74493075 | P13: 13.55867095 | Q13: 26.87868607 | R13: 21.28710107 | S13: 8.861903303 | T13: 613.1868132 | U13: 650.6379044
A14: 8 | B14: CROUS SUAPS | C14: 177.5187285 | D14: 33.34728407 | E14: 6.727291118 | F14: 91.3996412 | G14: 20.47374724 | H14: 30.38346432 | I14: 10.03995341 | K14: 30.64742265 | L14: 8.068838678 | M14: 61.1282607 | N14: 91.07002378 | O14: 15.7217143 | P14: 5.717086944 | Q14: 57.36180458 | R14: 76.67695497 | S14: 9.651849436 | T14: 725.9340659 | U14: 1068.304266
A15: 9 | B15: Université | C15: 241.1711255 | D15: 45.14528742 | E15: 25.20715596 | F15: 158.8043682 | G15: 42.57279389 | H15: 134.9438786 | I15: 85.13136011 | J15: 105.7053489 | L15: 12.07773772 | M15: 63.39899386 | N15: 102.7911368 | O15: 32.52173616 | P15: 34.79989884 | Q15: 44.50795983 | R15: 116.1789459 | S15: 28.88842611 | T15: 1273.846154 | U15: 1417.700419
A16: 10 | B16: Place de la Mare | C16: 174.7146621 | D16: 20.3305105 | E16: 18.72224094 | F16: 107.0765142 | G16: 36.36985457 | H16: 49.97977697 | I16: 25.27616787 | J16: 81.42124425 | K16: 26.1090286 | M16: 8.024454879 | N16: 21.29505691 | P16: 28.11020224 | Q16: 17.83769269 | R16: 61.93835427 | S16: 13.12390933 | T16: 690.3296703 | U16: 477.6938952
A17: 11 | B17: Château Quatrans | C17: 199.2694793 | D17: 60.26814437 | E17: 32.24612634 | F17: 153.4636239 | G17: 74.41913959 | H17: 87.31170336 | I17: 92.52361836 | J17: 94.0549356 | K17: 99.93600361 | L17: 12.4412916 | N17: 3.783035407 | O17: 3.117680558 | P17: 14.04799565 | Q17: 4.689958609 | R17: 82.36461434 | S17: 38.37034181 | T17: 1052.307692 | U17: 844.7254478
A18: 12 | B18: Saint-Pierre | C18: 205.3775662 | D18: 17.19515018 | E18: 37.90448141 | F18: 135.8624873 | G18: 49.38795718 | H18: 118.1183715 | I18: 71.23576488 | J18: 113.7668982 | K18: 102.8420536 | L18: 31.91127137 | M18: 14.41997627 | O18: 25.83669517 | P18: 24.51724384 | Q18: 50.39543811 | R18: 240.0040293 | S18: 31.11472549 | T18: 1269.89011 | U18: 1093.937773
A19: 13 | B19: Bernières | C19: 75.78642372 | D19: 27.24074795 | E19: 26.30425299 | F19: 54.61524696 | G19: 61.92101332 | H19: 25.35881776 | I19: 42.24255423 | J19: 39.87606541 | K19: 39.63790351 | L19: 19.2100393 | M19: 18.11689986 | N19: 2.876848188 | P19: 8.81789957 | Q19: 58.9117979 | R19: 56.75454484 | S19: 41.66960385 | T19: 599.3406593 | U19: 494.7327711
A20: 14 | B20: Résistance Saint-Jean | C20: 63.68273947 | D20: 15.643312 | E20: 7.653931556 | F20: 55.81085416 | G20: 14.26560231 | H20: 20.91062172 | I20: 51.76332661 | J20: 49.16683144 | K20: 66.70063538 | L20: 11.39573964 | M20: 11.85105665 | N20: 30.65194685 | O20: 4.019885736 | Q20: 9.902476893 | R20: 45.82306499 | S20: 13.50522735 | T20: 472.7472527 | U20: 266.9871005
A21: 15 | B21: Quai de Juillet | C21: 248.9661242 | D21: 44.20726788 | E21: 33.39463094 | F21: 99.71133242 | G21: 73.56153115 | H21: 52.75360357 | I21: 43.62961632 | J21: 56.94149615 | K21: 86.49085752 | L21: 35.9349711 | M21: 9.807464242 | N21: 53.12466404 | O21: 7.216797566 | P21: 2.831071431 | R21: 25.30811633 | S21: 43.9226529 | T21: 917.8021978 | U21: 601.8982606
A22: 16 | B22: Gare Rives de l'Orne | C22: 193.6554427 | D22: 64.38126605 | E22: 16.06426153 | F22: 202.0950891 | G22: 55.35614133 | H22: 38.14591799 | I22: 46.27524461 | J22: 46.0001379 | K22: 92.32127258 | L22: 19.93455348 | M22: 18.87259383 | N22: 105.3688363 | O22: 53.84343452 | P22: 20.27374288 | Q22: 6.532944356 | S22: 5.934065934 | T22: 985.0549451 | U22: 1278.527522
A23: 17 | B23: Caen-Presqu'Ile | C23: 20.19849829 | D23: 1.579233308 | E23: 4.575177391 | F23: 16.6269247 | G23: 5.400149284 | H23: 8.738502997 | I23: 6.456256687 | J23: 6.75967379 | K23: 19.17351722 | L23: 3.272501815 | M23: 11.16237592 | N23: 18.63238584 | O23: 10.9266413 | P23: 3.817211069 | Q23: 19.35899412 | R23: 3.541736502 | T23: 160.2197802 | U23: 318.4279944
A24: TOTAL DESCENTES | C24: 2432.981142 | D24: 620.5134979 | E24: 336.7543153 | F24: 1447.168583 | G24: 541.8324295 | H24: 1349.814042 | I24: 650.6379044 | J24: 1068.304266 | K24: 1417.700419 | L24: 477.6938952 | M24: 844.7254478 | N24: 1093.937773 | O24: 494.7327711 | P24: 266.9871005 | Q24: 601.8982606 | R24: 1278.527522 | S24: 318.4279944 | T24: 15242.63736 | U24: 15242.63736

Sheet Sens 2-T2-1. JOB
A1: SENS | B1: 2
A2: LIGNE | B2: T2
C5: 17 | D5: 16 | E5: 15 | F5: 14 | G5: 13 | H5: 12 | I5: 11 | J5: 10 | K5: 9 | L5: 8 | M5: 7 | N5: 6 | O5: 5 | P5: 4 | Q5: 3 | R5: 2 | S5: 1 | T5: TOTAL MONTEES | U5: TOTAL DESCENTES | V5: CHARGE
C6: Caen-Presqu'Ile | D6: Gare Rives de l'Orne | E6: Quai de Juillet | F6: Résistance Saint-Jean | G6: Bernières | H6: Saint-Pierre | I6: Château Quatrans | J6: Place de la Mare | K6: Université | L6: CROUS SUAPS | M6: Calvaire St-Pierre | N6: Copernic | O6: CHU | P6: Campus 4 | Q6: CITIS | R6: Cote de Nacre | S6: Campus 2
A7: 17 | B7: Caen-Presqu'Ile | D7: 3.541736502 | E7: 19.35899412 | F7: 3.817211069 | G7: 10.9266413 | H7: 18.63238584 | I7: 11.16237592 | J7: 3.272501815 | K7: 19.17351722 | L7: 6.75967379 | M7: 6.456256687 | N7: 8.738502997 | O7: 5.400149284 | P7: 16.6269247 | Q7: 4.575177391 | R7: 1.579233308 | S7: 20.19849829 | T7: 160.2197802 | V7: =V6+T7-U7 -> 160.2197802
A8: 16 | B8: Gare Rives de l'Orne | E8: 6.532944356 | F8: 20.27374288 | G8: 53.84343452 | H8: 105.3688363 | I8: 18.87259383 | J8: 19.93455348 | K8: 92.32127258 | L8: 46.0001379 | M8: 46.27524461 | N8: 38.14591799 | O8: 55.35614133 | P8: 202.0950891 | Q8: 16.06426153 | R8: 64.38126605 | S8: 193.6554427 | T8: 979.1208791 | U8: 3.541736502 | V8: 1135.798923
A9: 15 | B9: Quai de Juillet | F9: 2.831071431 | G9: 7.216797566 | H9: 53.12466404 | I9: 9.807464242 | J9: 35.9349711 | K9: 86.49085752 | L9: 56.94149615 | M9: 43.62961632 | N9: 52.75360357 | O9: 73.56153115 | P9: 99.71133242 | Q9: 33.39463094 | R9: 44.20726788 | S9: 248.9661242 | T9: 848.5714286 | U9: 25.89193847 | V9: 1958.478413
A10: 14 | B10: Résistance Saint-Jean | G10: 4.019885736 | H10: 30.65194685 | I10: 11.85105665 | J10: 11.39573964 | K10: 66.70063538 | L10: 49.16683144 | M10: 51.76332661 | N10: 20.91062172 | O10: 14.26560231 | P10: 55.81085416 | Q10: 7.653931556 | R10: 15.643312 | S10: 63.68273947 | T10: 403.5164835 | U10: 26.92202538 | V10: 2335.072871
A11: 13 | B11: Bernières | H11: 2.876848188 | I11: 18.11689986 | J11: 19.2100393 | K11: 39.63790351 | L11: 39.87606541 | M11: 42.24255423 | N11: 25.35881776 | O11: 61.92101332 | P11: 54.61524696 | Q11: 26.30425299 | R11: 27.24074795 | S11: 75.78642372 | T11: 433.1868132 | U11: 76.00675912 | V11: 2692.252925
A12: 12 | B12: Saint-Pierre | I12: 14.41997627 | J12: 31.91127137 | K12: 102.8420536 | L12: 113.7668982 | M12: 71.23576488 | N12: 118.1183715 | O12: 49.38795718 | P12: 135.8624873 | Q12: 37.90448141 | R12: 17.19515018 | S12: 205.3775662 | T12: 898.021978 | U12: 210.6546812 | V12: 3379.620222
A13: 11 | B13: Château Quatrans | J13: 12.4412916 | K13: 99.93600361 | L13: 94.0549356 | M13: 92.52361836 | N13: 87.31170336 | O13: 74.41913959 | P13: 153.4636239 | Q13: 32.24612634 | R13: 60.26814437 | S13: 199.2694793 | T13: 905.9340659 | U13: 84.23036676 | V13: 4201.323921
A14: 10 | B14: Place de la Mare | K14: 26.1090286 | L14: 81.42124425 | M14: 25.27616787 | N14: 49.97977697 | O14: 36.36985457 | P14: 107.0765142 | Q14: 18.72224094 | R14: 20.3305105 | S14: 174.7146621 | T14: 540 | U14: 134.1003683 | V14: 4607.223553
A15: 9 | B15: Université | L15: 105.7053489 | M15: 85.13136011 | N15: 134.9438786 | O15: 42.57279389 | P15: 158.8043682 | Q15: 25.20715596 | R15: 45.14528742 | S15: 241.1711255 | T15: 838.6813187 | U15: 533.211272 | V15: 4912.6936
A16: 8 | B16: CROUS SUAPS | M16: 10.03995341 | N16: 30.38346432 | O16: 20.47374724 | P16: 91.3996412 | Q16: 6.727291118 | R16: 33.34728407 | S16: 177.5187285 | T16: 369.8901099 | U16: 593.6926317 | V16: 4688.891078
A17: 7 | B17: Calvaire St-Pierre | N17: 21.65094895 | O17: 30.78824813 | P17: 104.2629944 | Q17: 11.17733938 | R17: 31.07179588 | S17: 113.5761458 | T17: 312.5274725 | U17: 474.5738631 | V17: 4526.844687
A18: 6 | B18: Copernic | O18: 35.85063836 | P18: 120.7343953 | Q18: 47.47902754 | R18: 82.69280593 | S18: 429.2870889 | T18: 716.043956 | U18: 588.2956078 | V18: 4654.593035
A19: 5 | B19: CHU | P19: 19.30500613 | R19: 36.34337416 | S19: 102.593378 | T19: 158.2417582 | U19: 500.3668163 | V19: 4312.467977
A20: 4 | B20: Campus 4 | Q20: 4.775253057 | R20: 48.15509827 | S20: 81.57514318 | T20: 134.5054945 | U20: 1319.768478 | V20: 3127.204994
A21: 3 | B21: CITIS | R21: 78.3474477 | S21: 56.1580468 | T21: 134.5054945 | U21: 272.2311701 | V21: 2989.479318
A22: 2 | B22: Cote de Nacre | S22: 49.45054945 | T22: 49.45054945 | U22: 605.9487257 | V22: 2432.981142
A23: 1 | B23: Campus 2 | U23: 2432.981142 | V23: 0
A24: TOTAL DESCENTES | D24: 3.541736502 | E24: 25.89193847 | F24: 26.92202538 | G24: 76.00675912 | H24: 210.6546812 | I24: 84.23036676 | J24: 134.1003683 | K24: 533.211272 | L24: 593.6926317 | M24: 474.5738631 | N24: 588.2956078 | O24: 500.3668163 | P24: 1319.768478 | Q24: 272.2311701 | R24: 605.9487257 | S24: 2432.981142 | T24: 7882.417582 | U24: 7882.417582

Sheet Sens 1-T2-1. JOB
A1: SENS | B1: 1
A2: LIGNE | B2: T2
C5: 1 | D5: 2 | E5: 3 | F5: 4 | G5: 5 | H5: 6 | I5: 7 | J5: 8 | K5: 9 | L5: 10 | M5: 11 | N5: 12 | O5: 13 | P5: 14 | Q5: 15 | R5: 16 | S5: 17 | T5: TOTAL MONTEES | U5: TOTAL DESCENTES | V5: CHARGE
C6: Campus 2 | D6: Cote de Nacre | E6: CITIS | F6: Campus 4 | G6: CHU | H6: Copernic | I6: Calvaire St-Pierre | J6: CROUS SUAPS | K6: Université | L6: Place de la Mare | M6: Château Quatrans | N6: Saint-Pierre | O6: Bernières | P6: Résistance Saint-Jean | Q6: Quai de Juillet | R6: Gare Rives de l'Orne | S6: Caen-Presqu'Ile
A7: 1 | B7: Campus 2 | D7: 14.56477223 | E7: 56.44511773 | F7: 107.298796 | G7: 18.95169007 | H7: 394.7078232 | I7: 64.34154981 | J7: 239.2347507 | K7: 252.1399013 | L7: 102.9588205 | M7: 173.853684 | N7: 177.9798398 | O7: 65.51780954 | P7: 29.14004232 | Q7: 65.39716223 | R7: 151.0033748 | S7: 38.77255806 | T7: 1952.307692 | V7: =V6+T7-U7 -> 1952.307692
A8: 2 | B8: Cote de Nacre | E8: 8.078027419 | F8: 13.04057829 | G8: 13.51812808 | H8: 131.524307 | I8: 26.16211833 | J8: 63.65716641 | K8: 74.39270656 | L8: 17.73763905 | M8: 33.00099848 | N8: 77.43300281 | O8: 60.80458268 | P8: 19.57109208 | Q8: 18.16318328 | R8: 41.04287583 | S8: 5.170297001 | T8: 603.2967033 | U8: 14.56477223 | V8: 2541.039623
A9: 3 | B9: CITIS | F9: 7.060730316 | G9: 6.609659099 | H9: 61.56107169 | I9: 20.24675191 | J9: 36.07935824 | K9: 103.8727837 | L9: 24.82140639 | M9: 51.64559808 | N9: 28.19641121 | O9: 24.95688256 | P9: 9.473776816 | Q9: 39.53318927 | R9: 49.11145355 | S9: 5.622135917 | T9: 468.7912088 | U9: 64.52314515 | V9: 2945.307687
A10: 4 | B10: Campus 4 | G10: 2.386135949 | H10: 131.8167897 | I10: 42.63580796 | J10: 84.38641065 | K10: 284.5119637 | L10: 98.44934463 | M10: 209.4587789 | N10: 175.9840752 | O10: 76.87468494 | P10: 38.33264968 | Q10: 97.48080553 | R10: 180.8262677 | S10: 30.70243937 | T10: 1453.846154 | U10: 127.4001046 | V10: 4271.753736
A11: 5 | B11: CHU | H11: 41.90844228 | I11: 12.75343753 | J11: 11.77791385 | K11: 35.4266828 | L11: 31.44606484 | M11: 64.45938952 | N11: 94.69257268 | O11: 60.48046458 | P11: 10.10340668 | Q11: 56.68700482 | R11: 87.4764322 | S11: 3.117858556 | T11: 510.3296703 | U11: 41.4656132 | V11: 4740.617793
A12: 6 | B12: Copernic | I12: 9.924375839 | J12: 28.31719182 | K12: 52.9051035 | L12: 27.67004965 | M12: 56.13794298 | N12: 28.23191936 | O12: 26.14883068 | P12: 3.875109494 | Q12: 28.2591623 | R12: 39.18965505 | T12: 300.6593407 | U12: 761.5184338 | V12: 4279.7587
A13: 7 | B13: Calvaire St-Pierre | J13: 11.15884288 | K13: 50.59258256 | L13: 20.36362547 | M13: 39.38697962 | N13: 81.82601798 | O13: 26.74493075 | P13: 13.55867095 | Q13: 26.87868607 | R13: 21.28710107 | S13: 8.861903303 | T13: 300.6593407 | U13: 176.0640414 | V13: 4404.354
A14: 8 | B14: CROUS SUAPS | K14: 30.64742265 | L14: 8.068838678 | M14: 61.1282607 | N14: 91.07002378 | O14: 15.7217143 | P14: 5.717086944 | Q14: 57.36180458 | R14: 76.67695497 | S14: 9.651849436 | T14: 356.043956 | U14: 474.6116345 | V14: 4285.786321
A15: 9 | B15: Université | L15: 12.07773772 | M15: 63.39899386 | N15: 102.7911368 | O15: 32.52173616 | P15: 34.79989884 | Q15: 44.50795983 | R15: 116.1789459 | S15: 28.88842611 | T15: 435.1648352 | U15: 884.4891468 | V15: 3836.462009
A16: 10 | B16: Place de la Mare | M16: 8.024454879 | N16: 21.29505691 | P16: 28.11020224 | Q16: 17.83769269 | R16: 61.93835427 | S16: 13.12390933 | T16: 150.3296703 | U16: 343.5935269 | V16: 3643.198153
A17: 11 | B17: Château Quatrans | N17: 3.783035407 | O17: 3.117680558 | P17: 14.04799565 | Q17: 4.689958609 | R17: 82.36461434 | S17: 38.37034181 | T17: 146.3736264 | U17: 760.4950811 | V17: 3029.076698
A18: 12 | B18: Saint-Pierre | O18: 25.83669517 | P18: 24.51724384 | Q18: 50.39543811 | R18: 240.0040293 | S18: 31.11472549 | T18: 371.8681319 | U18: 883.2830919 | V18: 2517.661738
A19: 13 | B19: Bernières | P19: 8.81789957 | Q19: 58.9117979 | R19: 56.75454484 | S19: 41.66960385 | T19: 166.1538462 | U19: 418.7260119 | V19: 2265.089572
A20: 14 | B20: Résistance Saint-Jean | Q20: 9.902476893 | R20: 45.82306499 | S20: 13.50522735 | T20: 69.23076923 | U20: 240.0650751 | V20: 2094.255266
A21: 15 | B21: Quai de Juillet | R21: 25.30811633 | S21: 43.9226529 | T21: 69.23076923 | U21: 576.0063221 | V21: 1587.479714
A22: 16 | B22: Gare Rives de l'Orne | S22: 5.934065934 | T22: 5.934065934 | U22: 1274.985785 | V22: 318.4279944
A23: 17 | B23: Caen-Presqu'Ile | U23: 318.4279944 | V23: 6.821210263e-13
A24: TOTAL DESCENTES | D24: 14.56477223 | E24: 64.52314515 | F24: 127.4001046 | G24: 41.4656132 | H24: 761.5184338 | I24: 176.0640414 | J24: 474.6116345 | K24: 884.4891468 | L24: 343.5935269 | M24: 760.4950811 | N24: 883.2830919 | O24: 418.7260119 | P24: 240.0650751 | Q24: 576.0063221 | R24: 1274.985785 | S24: 318.4279944 | T24: 7360.21978 | U24: 7360.21978

Sheet Sens (Tous)-T1-1. JOB
A1: SENS | B1: (Tous)
A2: LIGNE | B2: T1
C5: 1 | D5: 2 | E5: 3 | F5: 4 | G5: 5 | H5: 6 | I5: 7 | J5: 8 | K5: 9 | L5: 10 | M5: 11 | N5: 12 | O5: 13 | P5: 14 | Q5: 15 | R5: 16 | S5: 17 | T5: 18 | U5: 19 | V5: 20 | W5: 21 | X5: 22 | Y5: 23 | Z5: 24 | AA5: 25 | AB5: TOTAL MONTEES | AC5: TOTAL DESCENTES
C6: Herouville Saint-Clair | D6: Café des Images | E6: Place de l'Europe | F6: Château d'Eau | G6: Pierre Heuzé | H6: Cité U Lebisey | I6: Copernic | J6: Calvaire St-Pierre | K6: CROUS SUAPS | L6: Université | M6: Place de la Mare | N6: Château Quatrans | O6: Saint-Pierre | P6: Bernières | Q6: Résistance Saint-Jean | R6: Quai de Juillet | S6: Gare SNCF | T6: Leroy | U6: Lux-Lépine | V6: Guynemer | W6: Poincaré | X6: Liberté | Y6: Concorde | Z6: Modigliani | AA6: Jean Vilar
A7: 1 | B7: Herouville Saint-Clair | D7: 31.36446295 | E7: 56.29126176 | F7: 143.2048165 | G7: 107.3206403 | H7: 107.7903894 | I7: 86.05504653 | J7: 92.39951517 | K7: 33.86317583 | L7: 112.1641496 | M7: 52.49466485 | N7: 55.57345207 | O7: 50.32859281 | P7: 36.17149616 | Q7: 26.50237122 | R7: 49.05848174 | S7: 93.8552253 | T7: 12.83062301 | U7: 14.78737512 | V7: 16.97762109 | W7: 13.38648909 | X7: 38.34670944 | Y7: 16.26234998 | Z7: 1.149687364 | AA7: 64.76257931 | AB7: 1312.941176 | AC7: 1941.635487
A8: 2 | B8: Café des Images | C8: 44.11764706 | E8: 6.901492331 | F8: 43.04577296 | G8: 23.25302085 | H8: 33.3047511 | I8: 71.70560051 | J8: 26.77160067 | K8: 9.244232627 | L8: 48.76930484 | M8: 25.42275827 | N8: 50.19582389 | O8: 99.88254177 | P8: 22.0767462 | Q8: 4.503475016 | R8: 29.73275756 | S8: 37.37054081 | T8: 11.96556375 | U8: 14.54351318 | W8: 2.129878772 | X8: 2.594001609 | Y8: 6.542621175 | Z8: 3.512710513 | AA8: 19.47246807 | AB8: 637.0588235 | AC8: 711.2158535
A9: 3 | B9: Place de l'Europe | C9: 105.9347623 | D9: 26.41817889 | F9: 6.996335474 | G9: 45.16710185 | H9: 61.51419423 | I9: 97.66986138 | J9: 63.44099523 | K9: 59.84857162 | L9: 93.981119 | M9: 24.63261043 | N9: 98.80498652 | O9: 58.07657673 | P9: 21.6556968 | Q9: 34.53327303 | R9: 57.36757344 | S9: 96.22627679 | T9: 15.24395532 | U9: 17.46281688 | V9: 10.10004902 | W9: 16.47167148 | X9: 16.13603415 | Y9: 4.087783184 | AA9: 25.2883998 | AB9: 1057.058824 | AC9: 823.1807754
A10: 4 | B10: Château d'Eau | C10: 193.6100187 | D10: 52.26009627 | E10: 8.247532116 | G10: 19.39179948 | H10: 22.51239847 | I10: 90.9907282 | J10: 48.610387 | K10: 97.52740138 | L10: 202.4027558 | M10: 42.51700006 | N10: 88.78031425 | O10: 123.633015 | P10: 37.72119766 | Q10: 23.56484121 | R10: 32.87529564 | S10: 135.6930725 | T10: 24.10287453 | U10: 22.71056886 | V10: 5.714869523 | W10: 59.9624324 | X10: 24.42612648 | Y10: 6.58848257 | Z10: 2.219096999 | AA10: 52.76122436 | AB10: 1418.823529 | AC10: 1615.65742
A11: 5 | B11: Pierre Heuzé | C11: 189.409095 | D11: 49.79403655 | E11: 25.22645329 | F11: 47.92335638 | H11: 13.42584649 | I11: 50.37774341 | J11: 34.36863346 | K11: 13.92170164 | L11: 69.49183847 | M11: 49.27622818 | N11: 55.76245171 | O11: 104.8052982 | P11: 19.50108643 | Q11: 41.56960287 | R11: 72.08943806 | S11: 105.3806965 | T11: 12.10454429 | U11: 26.97646114 | V11: 10.15798274 | W11: 15.98629638 | X11: 3.501468308 | Y11: 6.850820644 | Z11: 2.605080903 | AA11: 3.023250759 | AB11: 1023.529412 | AC11: 878.4805982
A12: 6 | B12: Cité U Lebisey | C12: 169.1772735 | D12: 95.17352788 | E12: 56.65638014 | F12: 71.21469621 | G12: 3.072239936 | I12: 77.77929483 | J12: 93.79033045 | K12: 102.8792193 | L12: 192.3872888 | M12: 28.27105189 | N12: 58.82449575 | O12: 50.83529297 | P12: 18.05644301 | Q12: 21.12160981 | R12: 20.27920275 | S12: 105.951867 | T12: 17.15424357 | U12: 20.78912996 | V12: 10.13257911 | W12: 38.98336294 | X12: 10.83651571 | Y12: 38.66656219 | Z12: 5.890371801 | AA12: 73.84172632 | AB12: 1381.764706 | AC12: 1020.284191
A13: 7 | B13: Copernic | C13: 216.3958312 | D13: 80.77321889 | E13: 84.12909001 | F13: 274.2845799 | G13: 73.03860256 | H13: 63.73161866 | J13: 7.5427178 | K13: 24.04895568 | L13: 90.16554334 | M13: 49.00037217 | N13: 67.93832724 | O13: 37.26757272 | P13: 24.55708666 | Q13: 7.859849581 | R13: 29.96516407 | S13: 123.539672 | T13: 10.04249838 | U13: 3.839620173 | V13: 6.608608574 | W13: 20.85738845 | X13: 28.47164376 | Y13: 17.44083833 | Z13: 3.052177683 | AA13: 54.86078687 | AB13: 1399.411765 | AC13: 1025.675355
A14: 8 | B14: Calvaire St-Pierre | C14: 105.110794 | D14: 39.4616577 | E14: 66.43108683 | F14: 53.92654515 | G14: 36.43499973 | H14: 71.41605425 | I14: 15.45415647 | K14: 39.84674143 | L14: 81.40396993 | M14: 22.00296953 | N14: 100.7096411 | O14: 74.03616088 | P14: 47.69817775 | Q14: 22.84549385 | R14: 62.60433556 | S14: 74.57000245 | T14: 28.84820064 | U14: 8.703577697 | V14: 9.368132794 | W14: 7.149275561 | X14: 43.29560591 | Y14: 28.45643376 | Z14: 1.683058622 | AA14: 24.42528134 | AB14: 1065.882353 | AC14: 831.3737878
A15: 9 | B15: CROUS SUAPS | C15: 65.99271211 | D15: 7.473482081 | E15: 58.28173393 | F15: 130.9561972 | G15: 33.43733143 | H15: 32.09140299 | I15: 23.9911678 | J15: 11.30538422 | L15: 43.84415412 | M15: 25.42065413 | N15: 51.54726421 | O15: 97.49581032 | P15: 21.77205516 | Q15: 40.41502547 | R15: 65.49757166 | S15: 132.3700811 | T15: 10.20202231 | U15: 35.98200929 | V15: 13.51296081 | W15: 12.08123687 | X15: 27.7335683 | Y15: 18.21681477 | Z15: 6.855638436 | AA15: 87.05313302 | AB15: 1053.529412 | AC15: 931.3480601
A16: 10 | B16: Université | C16: 83.21073025 | D16: 55.01844426 | E16: 98.52695161 | F16: 206.3876234 | G16: 92.92373189 | H16: 132.0586595 | I16: 73.6561636 | J16: 52.56304941 | K16: 56.24288134 | N16: 50.32641638 | O16: 87.39724841 | P16: 45.02061556 | Q16: 37.67929829 | R16: 100.2750135 | S16: 286.4398971 | T16: 34.81593764 | U16: 56.83927203 | V16: 14.70323769 | W16: 17.84680671 | X16: 69.0750521 | Y16: 41.19411222 | Z16: 80.2433215 | AA16: 193.4378885 | AB16: 1965.882353 | AC16: 2223.870635
A17: 11 | B17: Place de la Mare | C17: 72.30061982 | D17: 28.76466649 | E17: 30.67792813 | F17: 51.40829316 | G17: 47.35609856 | H17: 61.09712198 | I17: 15.13807627 | J17: 38.7059182 | K17: 46.55250227 | L17: 70.35171629 | N17: 4.518856775 | O17: 14.30789058 | P17: 14.16152767 | Q17: 7.788268879 | R17: 60.48046463 | S17: 101.1446704 | T17: 7.605117585 | U17: 22.4961398 | W17: 21.59927802 | X17: 19.93465424 | Y17: 8.788970531 | Z17: 12.47585478 | AA17: 38.22771783 | AB17: 795.8823529 | AC17: 560.4222223
A18: 12 | B18: Château Quatrans | C18: 97.20552178 | D18: 53.62282252 | E18: 76.39411741 | F18: 56.95960136 | G18: 28.22831331 | H18: 60.75038903 | I18: 37.44293574 | J18: 43.80295437 | K18: 45.73925785 | L18: 80.72696439 | M18: 6.774181078 | O18: 7.285394174 | P18: 12.71816465 | Q18: 16.37647926 | R18: 42.20394161 | S18: 73.79927214 | T18: 30.41437631 | U18: 18.99436 | V18: 10.18955553 | W18: 16.65060575 | X18: 28.71223235 | Z18: 5.804639691 | AA18: 58.02744911 | AB18: 908.8235294 | AC18: 1070.009528
A19: 13 | B19: Saint-Pierre | C19: 131.6277462 | D19: 50.84417598 | E19: 60.40104796 | F19: 148.5968619 | G19: 75.28330664 | H19: 58.12678391 | I19: 61.0527321 | J19: 64.09238925 | K19: 123.5879845 | L19: 127.665237 | M19: 11.52037613 | N19: 13.67194662 | P19: 3.675325065 | Q19: 21.76254809 | R19: 46.42524509 | S19: 152.7594036 | T19: 59.26422559 | U19: 24.13447521 | V19: 44.01373165 | W19: 51.90284596 | X19: 58.38191232 | Y19: 41.56476022 | Z19: 42.54487951 | AA19: 201.8059418 | AB19: 1674.705882 | AC19: 1449.32
A20: 14 | B20: Bernières | C20: 45.49797882 | D20: 23.98588013 | E20: 27.74719373 | F20: 40.12741883 | G20: 34.08255999 | H20: 25.85935641 | I20: 11.63868319 | J20: 39.22309652 | K20: 6.433662632 | L20: 58.88273962 | M20: 15.01974047 | N20: 2.312975261 | O20: 9.776949699 | Q20: 3.437272161 | R20: 47.06579266 | S20: 100.1998963 | T20: 30.1157295 | U20: 18.88203609 | V20: 30.35762532 | W20: 22.16163426 | X20: 67.32480402 | Y20: 25.34934907 | Z20: 22.23703314 | AA20: 123.4570628 | AB20: 831.1764706 | AC20: 855.324537
A21: 15 | B21: Résistance Saint-Jean | C21: 18.30482788 | D21: 18.91748366 | E21: 5.59727271 | F21: 30.64961889 | G21: 20.57632382 | H21: 11.36161796 | I21: 2.339980628 | J21: 27.74153325 | K21: 33.89146504 | L21: 61.72991527 | M21: 3.108106638 | O21: 6.822099942 | P21: 2.489166072 | R21: 6.011518847 | S21: 78.49468352 | T21: 11.6600008 | U21: 20.00628725 | V21: 12.48204439 | W21: 23.77562977 | X21: 7.93208695 | Y21: 3.307902836 | Z21: 12.44920551 | AA21: 56.82181658 | AB21: 476.4705882 | AC21: 514.0099476
A22: 16 | B22: Quai de Juillet | C22: 66.14235177 | D22: 37.98783127 | E22: 28.80556752 | F22: 45.13410762 | G22: 42.35482893 | H22: 28.8435719 | I22: 21.09179894 | J22: 14.42491172 | K22: 30.41460957 | L22: 83.34386324 | M22: 46.95792919 | N22: 26.68226241 | O22: 54.86926819 | P22: 32.35886243 | S22: 20.68957628 | T22: 5.630463781 | U22: 31.76337377 | V22: 15.06331809 | W22: 20.26904863 | X22: 51.89191853 | Y22: 34.21496105 | Z22: 23.77997132 | AA22: 135.520898 | AB22: 898.2352941 | AC22: 1006.997023
A23: 17 | B23: Gare SNCF | C23: 136.3966543 | D23: 17.94279786 | E23: 50.59258755 | F23: 119.1506077 | G23: 77.43386815 | H23: 106.7185378 | I23: 123.1287918 | J23: 70.62442459 | K23: 82.14295398 | L23: 321.3550829 | M23: 59.22114068 | N23: 101.454818 | O23: 90.53419785 | P23: 138.2106876 | Q23: 48.66971898 | R23: 14.65842445 | T23: 31.10677997 | U23: 99.57885148 | V23: 70.27806357 | W23: 77.20734636 | X23: 117.0479371 | Y23: 72.16647941 | Z23: 70.86604807 | AA23: 314.1014352 | AB23: 2410.588235 | AC23: 2475.50423
A24: 18 | B24: Leroy | C24: 12.06176736 | D24: 3.319402346 | E24: 4.511194399 | F24: 26.48384246 | G24: 3.908618752 | H24: 24.79018973 | I24: 28.57613933 | J24: 17.7119404 | K24: 17.51669009 | L24: 59.53354372 | M24: 20.83529199 | N24: 29.41885544 | O24: 49.03209572 | P24: 43.27674175 | Q24: 9.302701459 | R24: 41.40588874 | S24: 21.25627278 | U24: 6.573633448 | V24: 23.60012463 | W24: 14.4903755 | X24: 27.87902518 | Y24: 5.19368366 | Z24: 35.55701476 | AA24: 96.70614283 | AB24: 622.9411765 | AC24: 437.9124279
A25: 19 | B25: Lux-Lépine | C25: 33.16014936 | D25: 3.487075558 | E25: 21.27656503 | F25: 39.61444012 | G25: 21.97478719 | H25: 34.10339716 | I25: 25.02860089 | J25: 6.202347138 | K25: 9.254579874 | L25: 59.65162772 | M25: 16.37269567 | N25: 36.41071418 | O25: 95.08223135 | P25: 27.40481137 | Q25: 16.95325466 | R25: 11.05536195 | S25: 86.49677254 | W25: 6.820998071 | X25: 8.350414243 | Y25: 27.1109109 | Z25: 36.09944001 | AA25: 69.85353089 | AB25: 691.7647059 | AC25: 569.7390599
A26: 20 | B26: Guynemer | C26: 15.70183543 | D26: 4.843886565 | F26: 9.882747168 | G26: 6.428736416 | I26: 1.836714666 | J26: 7.570445917 | K26: 9.343652889 | L26: 45.2177784 | M26: 9.099564057 | N26: 13.74568885 | O26: 29.88252489 | P26: 24.85204643 | Q26: 23.66599525 | R26: 23.11938826 | S26: 49.88204682 | T26: 13.44576736 | U26: 4.422357104 | X26: 68.52372733 | Y26: 24.17679951 | Z26: 24.96614776 | AA26: 92.33332541 | AB26: 502.9411765 | AC26: 454.0941564
A27: 21 | B27: Poincaré | C27: 21.97071094 | D27: 7.267998459 | E27: 18.43210597 | F27: 17.52722078 | G27: 22.99134116 | H27: 25.31431035 | I27: 8.637765548 | J27: 19.92359037 | K27: 20.54255783 | L27: 52.47100409 | M27: 5.985486696 | N27: 27.20629013 | O27: 23.13408547 | P27: 29.67165466 | Q27: 28.58706805 | R27: 11.08947486 | S27: 81.40634148 | T27: 29.52929014 | U27: 13.1841707 | V27: 8.068708774 | X27: 52.83715201 | Y27: 19.0328955 | Z27: 13.53593516 | AA27: 135.1822526 | AB27: 693.5294118 | AC27: 624.0495526
A28: 22 | B28: Liberté | C28: 57.11833733 | D28: 9.168142477 | E28: 10.5521855 | F28: 10.0536787 | G28: 36.37991074 | H28: 16.17593464 | I28: 29.36604474 | J28: 11.58069268 | K28: 24.9932019 | L28: 49.4247991 | M28: 22.27576073 | N28: 70.91205657 | O28: 73.12020973 | P28: 86.33808453 | Q28: 26.22513748 | R28: 45.21534002 | S28: 183.2296752 | T28: 2.241101494 | U28: 26.86071118 | V28: 68.48721363 | W28: 33.22295812 | Y28: 43.8898386 | Z28: 31.09177519 | AA28: 150.9007392 | AB28: 1118.823529 | AC28: 880.0126548
A29: 23 | B29: Concorde | C29: 31.00727666 | D29: 3.202683928 | E29: 5.142134779 | F29: 11.32717813 | G29: 1.902225971 | H29: 5.484711634 | I29: 11.55869339 | J29: 7.371741112 | K29: 7.204953569 | L29: 40.28618619 | M29: 6.357928481 | N29: 19.84930999 | O29: 64.19667572 | P29: 23.66354142 | Q29: 5.980168682 | R29: 49.01249564 | S29: 94.70320335 | T29: 11.93799707 | U29: 19.26156389 | V29: 20.82138753 | W29: 13.41989073 | X29: 12.19040506 | Z29: 30.74230197 | AA29: 91.02240391 | AB29: 587.6470588 | AC29: 518.7243477
A30: 24 | B30: Modigliani | C30: 9.156584845 | D30: 5.416194355 | E30: 10.9767985 | F30: 6.34004226 | G30: 1.652524711 | I30: 14.33161652 | J30: 5.478232603 | K30: 3.500950626 | L30: 62.07329385 | M30: 5.572886736 | N30: 5.133160921 | O30: 14.47701597 | P30: 27.45222268 | Q30: 20.3534995 | R30: 17.48035487 | S30: 49.23730346 | T30: 15.02748481 | U30: 17.09838445 | V30: 17.57060502 | W30: 35.98314873 | X30: 15.11988244 | Y30: 5.861929792 | AA30: 60 | AB30: 425.2941176 | AC30: 497.0942263
A31: 25 | B31: Jean Vilar | C31: 21.02426047 | D31: 4.707706382 | E31: 11.3820942 | F31: 24.46183803 | G31: 23.88768588 | H31: 23.8129533 | I31: 46.8270186 | J31: 26.12695625 | K31: 32.80615662 | L31: 116.5467591 | M31: 12.28282424 | N31: 40.22941939 | O31: 133.0412505 | P31: 94.82109924 | Q31: 24.3129948 | R31: 72.02849694 | S31: 190.8077804 | T31: 12.62363002 | U31: 23.84837122 | V31: 35.88573693 | W31: 81.690954 | X31: 79.46977724 | Y31: 23.75904778 | Z31: 27.73283555 | AB31: 1184.117647 | AC31: 2222.887454
A32: TOTAL DESCENTES | C32: 1941.635487 | D32: 711.2158535 | E32: 823.1807754 | F32: 1615.65742 | G32: 878.4805982 | H32: 1020.284191 | I32: 1025.675355 | J32: 831.3737878 | K32: 931.3480601 | L32: 2223.870635 | M32: 560.4222223 | N32: 1070.009528 | O32: 1449.32 | P32: 855.324537 | Q32: 514.0099476 | R32: 1006.997023 | S32: 2475.50423 | T32: 437.9124279 | U32: 569.7390599 | V32: 454.0941564 | W32: 624.0495526 | X32: 880.0126548 | Y32: 518.7243477 | Z32: 497.0942263 | AA32: 2222.887454 | AB32: 26138.82353 | AC32: 26138.82353

Sheet Sens 2-T1-1. JOB
A1: SENS | B1: 2
A2: LIGNE | B2: T1
C5: 25 | D5: 24 | E5: 23 | F5: 22 | G5: 21 | H5: 20 | I5: 19 | J5: 18 | K5: 17 | L5: 16 | M5: 15 | N5: 14 | O5: 13 | P5: 12 | Q5: 11 | R5: 10 | S5: 9 | T5: 8 | U5: 7 | V5: 6 | W5: 5 | X5: 4 | Y5: 3 | Z5: 2 | AA5: 1 | AB5: TOTAL MONTEES | AC5: TOTAL DESCENTES | AD5: CHARGE
C6: Jean Vilar | D6: Modigliani | E6: Concorde | F6: Liberté | G6: Poincaré | H6: Guynemer | I6: Lux-Lépine | J6: Leroy | K6: Gare SNCF | L6: Quai de Juillet | M6: Résistance Saint-Jean | N6: Bernières | O6: Saint-Pierre | P6: Château Quatrans | Q6: Place de la Mare | R6: Université | S6: CROUS SUAPS | T6: Calvaire St-Pierre | U6: Copernic | V6: Cité U Lebisey | W6: Pierre Heuzé | X6: Château d'Eau | Y6: Place de l'Europe | Z6: Café des Images | AA6: Herouville Saint-Clair
A7: 25 | B7: Jean Vilar | D7: 27.73283555 | E7: 23.75904778 | F7: 79.46977724 | G7: 81.690954 | H7: 35.88573693 | I7: 23.84837122 | J7: 12.62363002 | K7: 190.8077804 | L7: 72.02849694 | M7: 24.3129948 | N7: 94.82109924 | O7: 133.0412505 | P7: 40.22941939 | Q7: 12.28282424 | R7: 116.5467591 | S7: 32.80615662 | T7: 26.12695625 | U7: 46.8270186 | V7: 23.8129533 | W7: 23.88768588 | X7: 24.46183803 | Y7: 11.3820942 | Z7: 4.707706382 | AA7: 21.02426047 | AB7: 1184.117647 | AD7: =AD6+AB7-AC7 -> 1184.117647
A8: 24 | B8: Modigliani | E8: 5.861929792 | F8: 15.11988244 | G8: 35.98314873 | H8: 17.57060502 | I8: 17.09838445 | J8: 15.02748481 | K8: 49.23730346 | L8: 17.48035487 | M8: 20.3534995 | N8: 27.45222268 | O8: 14.47701597 | P8: 5.133160921 | Q8: 5.572886736 | R8: 62.07329385 | S8: 3.500950626 | T8: 5.478232603 | U8: 14.33161652 | W8: 1.652524711 | X8: 6.34004226 | Y8: 10.9767985 | Z8: 5.416194355 | AA8: 9.156584845 | AB8: 365.2941176 | AC8: 27.73283555 | AD8: 1521.678929
A9: 23 | B9: Concorde | F9: 12.19040506 | G9: 13.41989073 | H9: 20.82138753 | I9: 19.26156389 | J9: 11.93799707 | K9: 94.70320335 | L9: 49.01249564 | M9: 5.980168682 | N9: 23.66354142 | O9: 64.19667572 | P9: 19.84930999 | Q9: 6.357928481 | R9: 40.28618619 | S9: 7.204953569 | T9: 7.371741112 | U9: 11.55869339 | V9: 5.484711634 | W9: 1.902225971 | X9: 11.32717813 | Y9: 5.142134779 | Z9: 3.202683928 | AA9: 31.00727666 | AB9: 465.8823529 | AC9: 29.62097757 | AD9: 1957.940305
A10: 22 | B10: Liberté | G10: 33.22295812 | H10: 68.48721363 | I10: 26.86071118 | J10: 2.241101494 | K10: 183.2296752 | L10: 45.21534002 | M10: 26.22513748 | N10: 86.33808453 | O10: 73.12020973 | P10: 70.91205657 | Q10: 22.27576073 | R10: 49.4247991 | S10: 24.9932019 | T10: 11.58069268 | U10: 29.36604474 | V10: 16.17593464 | W10: 36.37991074 | X10: 10.0536787 | Y10: 10.5521855 | Z10: 9.168142477 | AA10: 57.11833733 | AB10: 892.9411765 | AC10: 106.7800647 | AD10: 2744.101416
A11: 21 | B11: Poincaré | H11: 8.068708774 | I11: 13.1841707 | J11: 29.52929014 | K11: 81.40634148 | L11: 11.08947486 | M11: 28.58706805 | N11: 29.67165466 | O11: 23.13408547 | P11: 27.20629013 | Q11: 5.985486696 | R11: 52.47100409 | S11: 20.54255783 | T11: 19.92359037 | U11: 8.637765548 | V11: 25.31431035 | W11: 22.99134116 | X11: 17.52722078 | Y11: 18.43210597 | Z11: 7.267998459 | AA11: 21.97071094 | AB11: 472.9411765 | AC11: 164.3169516 | AD11: 3052.725641
A12: 20 | B12: Guynemer | I12: 4.422357104 | J12: 13.44576736 | K12: 49.88204682 | L12: 23.11938826 | M12: 23.66599525 | N12: 24.85204643 | O12: 29.88252489 | P12: 13.74568885 | Q12: 9.099564057 | R12: 45.2177784 | S12: 9.343652889 | T12: 7.570445917 | U12: 1.836714666 | W12: 6.428736416 | X12: 9.882747168 | Z12: 4.843886565 | AA12: 15.70183543 | AB12: 292.9411765 | AC12: 150.8336519 | AD12: 3194.833166
A13: 19 | B13: Lux-Lépine | K13: 86.49677254 | L13: 11.05536195 | M13: 16.95325466 | N13: 27.40481137 | O13: 95.08223135 | P13: 36.41071418 | Q13: 16.37269567 | R13: 59.65162772 | S13: 9.254579874 | T13: 6.202347138 | U13: 25.02860089 | V13: 34.10339716 | W13: 21.97478719 | X13: 39.61444012 | Y13: 21.27656503 | Z13: 3.487075558 | AA13: 33.16014936 | AB13: 543.5294118 | AC13: 104.6755585 | AD13: 3633.687019
A14: 18 | B14: Leroy | K14: 21.25627278 | L14: 41.40588874 | M14: 9.302701459 | N14: 43.27674175 | O14: 49.03209572 | P14: 29.41885544 | Q14: 20.83529199 | R14: 59.53354372 | S14: 17.51669009 | T14: 17.7119404 | U14: 28.57613933 | V14: 24.79018973 | W14: 3.908618752 | X14: 26.48384246 | Y14: 4.511194399 | Z14: 3.319402346 | AA14: 12.06176736 | AB14: 412.9411765 | AC14: 84.80527089 | AD14: 3961.822925
A15: 17 | B15: Gare SNCF | L15: 14.65842445 | M15: 48.66971898 | N15: 138.2106876 | O15: 90.53419785 | P15: 101.454818 | Q15: 59.22114068 | R15: 321.3550829 | S15: 82.14295398 | T15: 70.62442459 | U15: 123.1287918 | V15: 106.7185378 | W15: 77.43386815 | X15: 119.1506077 | Y15: 50.59258755 | Z15: 17.94279786 | AA15: 136.3966543 | AB15: 1558.235294 | AC15: 757.019396 | AD15: 4763.038823
A16: 16 | B16: Quai de Juillet | N16: 32.35886243 | O16: 54.86926819 | P16: 26.68226241 | Q16: 46.95792919 | R16: 83.34386324 | S16: 30.41460957 | T16: 14.42491172 | U16: 21.09179894 | V16: 28.8435719 | W16: 42.35482893 | X16: 45.13410762 | Y16: 28.80556752 | Z16: 37.98783127 | AA16: 66.14235177 | AB16: 559.4117647 | AC16: 285.0652257 | AD16: 5037.385362
A17: 15 | B17: Résistance Saint-Jean | N17: 2.489166072 | O17: 6.822099942 | Q17: 3.108106638 | R17: 61.72991527 | S17: 33.89146504 | T17: 27.74153325 | U17: 2.339980628 | V17: 11.36161796 | W17: 20.57632382 | X17: 30.64961889 | Y17: 5.59727271 | Z17: 18.91748366 | AA17: 18.30482788 | AB17: 243.5294118 | AC17: 204.0505389 | AD17: 5076.864235
A18: 14 | B18: Bernières | O18: 9.776949699 | P18: 2.312975261 | Q18: 15.01974047 | R18: 58.88273962 | S18: 6.433662632 | T18: 39.22309652 | U18: 11.63868319 | V18: 25.85935641 | W18: 34.08255999 | X18: 40.12741883 | Y18: 27.74719373 | Z18: 23.98588013 | AA18: 45.49797882 | AB18: 340.5882353 | AC18: 530.5389182 | AD18: 4886.913552
A19: 13 | B19: Saint-Pierre | P19: 13.67194662 | Q19: 11.52037613 | R19: 127.665237 | S19: 123.5879845 | T19: 64.09238925 | U19: 61.0527321 | V19: 58.12678391 | W19: 75.28330664 | X19: 148.5968619 | Y19: 60.40104796 | Z19: 50.84417598 | AA19: 131.6277462 | AB19: 926.4705882 | AC19: 643.9686051 | AD19: 5169.415535
A20: 12 | B20: Château Quatrans | Q20: 6.774181078 | R20: 80.72696439 | S20: 45.73925785 | T20: 43.80295437 | U20: 37.44293574 | V20: 60.75038903 | W20: 28.22831331 | X20: 56.95960136 | Y20: 76.39411741 | Z20: 53.62282252 | AA20: 97.20552178 | AB20: 587.6470588 | AC20: 387.0274977 | AD20: 5370.035096
A21: 11 | B21: Place de la Mare | R21: 70.35171629 | S21: 46.55250227 | T21: 38.7059182 | U21: 15.13807627 | V21: 61.09712198 | W21: 47.35609856 | X21: 51.40829316 | Y21: 30.67792813 | Z21: 28.76466649 | AA21: 72.30061982 | AB21: 462.3529412 | AC21: 241.3839128 | AD21: 5591.004124
A22: 10 | B22: Université | S22: 56.24288134 | T22: 52.56304941 | U22: 73.6561636 | V22: 132.0586595 | W22: 92.92373189 | X22: 206.3876234 | Y22: 98.52695161 | Z22: 55.01844426 | AA22: 83.21073025 | AB22: 850.5882353 | AC22: 1289.260511 | AD22: 5152.331849
A23: 9 | B23: CROUS SUAPS | T23: 11.30538422 | U23: 23.9911678 | V23: 32.09140299 | W23: 33.43733143 | X23: 130.9561972 | Y23: 58.28173393 | Z23: 7.473482081 | AA23: 65.99271211 | AB23: 363.5294118 | AC23: 550.1680605 | AD23: 4965.6932
A24: 8 | B24: Calvaire St-Pierre | U24: 15.45415647 | V24: 71.41605425 | W24: 36.43499973 | X24: 53.92654515 | Y24: 66.43108683 | Z24: 39.4616577 | AA24: 105.110794 | AB24: 388.2352941 | AC24: 464.449608 | AD24: 4889.478886
A25: 7 | B25: Copernic | V25: 63.73161866 | W25: 73.03860256 | X25: 274.2845799 | Y25: 84.12909001 | Z25: 80.77321889 | AA25: 216.3958312 | AB25: 792.3529412 | AC25: 551.0970802 | AD25: 5130.734747
A26: 6 | B26: Cité U Lebisey | W26: 3.072239936 | X26: 71.21469621 | Y26: 56.65638014 | Z26: 95.17352788 | AA26: 169.1772735 | AB26: 395.2941176 | AC26: 781.7366112 | AD26: 4744.292253
A27: 5 | B27: Pierre Heuzé | X27: 47.92335638 | Y27: 25.22645329 | Z27: 49.79403655 | AA27: 189.409095 | AB27: 312.3529412 | AC27: 683.3480358 | AD27: 4373.297159
A28: 4 | B28: Château d'Eau | Y28: 8.247532116 | Z28: 52.26009627 | AA28: 193.6100187 | AB28: 254.1176471 | AC28: 1422.410495 | AD28: 3205.004311
A29: 3 | B29: Place de l'Europe | Z29: 26.41817889 | AA29: 105.9347623 | AB29: 132.3529412 | AC29: 759.9880213 | AD29: 2577.36923
A30: 2 | B30: Café des Images | AA30: 44.11764706 | AB30: 44.11764706 | AC30: 679.8513905 | AD30: 1941.635487
A31: 1 | B31: Herouville Saint-Clair | AC31: 1941.635487 | AD31: -1.818989404e-12
A32: TOTAL DESCENTES | D32: 27.73283555 | E32: 29.62097757 | F32: 106.7800647 | G32: 164.3169516 | H32: 150.8336519 | I32: 104.6755585 | J32: 84.80527089 | K32: 757.019396 | L32: 285.0652257 | M32: 204.0505389 | N32: 530.5389182 | O32: 643.9686051 | P32: 387.0274977 | Q32: 241.3839128 | R32: 1289.260511 | S32: 550.1680605 | T32: 464.449608 | U32: 551.0970802 | V32: 781.7366112 | W32: 683.3480358 | X32: 1422.410495 | Y32: 759.9880213 | Z32: 679.8513905 | AA32: 1941.635487 | AB32: 12841.76471 | AC32: 12841.76471

Sheet Sens 1-T1-1. JOB
A1: SENS | B1: 1
A2: LIGNE | B2: T1
C5: 1 | D5: 2 | E5: 3 | F5: 4 | G5: 5 | H5: 6 | I5: 7 | J5: 8 | K5: 9 | L5: 10 | M5: 11 | N5: 12 | O5: 13 | P5: 14 | Q5: 15 | R5: 16 | S5: 17 | T5: 18 | U5: 19 | V5: 20 | W5: 21 | X5: 22 | Y5: 23 | Z5: 24 | AA5: 25 | AB5: TOTAL MONTEES | AC5: TOTAL DESCENTES | AD5: CHARGE
C6: Herouville Saint-Clair | D6: Café des Images | E6: Place de l'Europe | F6: Château d'Eau | G6: Pierre Heuzé | H6: Cité U Lebisey | I6: Copernic | J6: Calvaire St-Pierre | K6: CROUS SUAPS | L6: Université | M6: Place de la Mare | N6: Château Quatrans | O6: Saint-Pierre | P6: Bernières | Q6: Résistance Saint-Jean | R6: Quai de Juillet | S6: Gare SNCF | T6: Leroy | U6: Lux-Lépine | V6: Guynemer | W6: Poincaré | X6: Liberté | Y6: Concorde | Z6: Modigliani | AA6: Jean Vilar
A7: 1 | B7: Herouville Saint-Clair | D7: 31.36446295 | E7: 56.29126176 | F7: 143.2048165 | G7: 107.3206403 | H7: 107.7903894 | I7: 86.05504653 | J7: 92.39951517 | K7: 33.86317583 | L7: 112.1641496 | M7: 52.49466485 | N7: 55.57345207 | O7: 50.32859281 | P7: 36.17149616 | Q7: 26.50237122 | R7: 49.05848174 | S7: 93.8552253 | T7: 12.83062301 | U7: 14.78737512 | V7: 16.97762109 | W7: 13.38648909 | X7: 38.34670944 | Y7: 16.26234998 | Z7: 1.149687364 | AA7: 64.76257931 | AB7: 1312.941176 | AD7: =AD6+AB7-AC7 -> 1312.941176
A8: 2 | B8: Café des Images | E8: 6.901492331 | F8: 43.04577296 | G8: 23.25302085 | H8: 33.3047511 | I8: 71.70560051 | J8: 26.77160067 | K8: 9.244232627 | L8: 48.76930484 | M8: 25.42275827 | N8: 50.19582389 | O8: 99.88254177 | P8: 22.0767462 | Q8: 4.503475016 | R8: 29.73275756 | S8: 37.37054081 | T8: 11.96556375 | U8: 14.54351318 | W8: 2.129878772 | X8: 2.594001609 | Y8: 6.542621175 | Z8: 3.512710513 | AA8: 19.47246807 | AB8: 592.9411765 | AC8: 31.36446295 | AD8: 1874.51789
A9: 3 | B9: Place de l'Europe | F9: 6.996335474 | G9: 45.16710185 | H9: 61.51419423 | I9: 97.66986138 | J9: 63.44099523 | K9: 59.84857162 | L9: 93.981119 | M9: 24.63261043 | N9: 98.80498652 | O9: 58.07657673 | P9: 21.6556968 | Q9: 34.53327303 | R9: 57.36757344 | S9: 96.22627679 | T9: 15.24395532 | U9: 17.46281688 | V9: 10.10004902 | W9: 16.47167148 | X9: 16.13603415 | Y9: 4.087783184 | AA9: 25.2883998 | AB9: 924.7058824 | AC9: 63.19275409 | AD9: 2736.031018
A10: 4 | B10: Château d'Eau | G10: 19.39179948 | H10: 22.51239847 | I10: 90.9907282 | J10: 48.610387 | K10: 97.52740138 | L10: 202.4027558 | M10: 42.51700006 | N10: 88.78031425 | O10: 123.633015 | P10: 37.72119766 | Q10: 23.56484121 | R10: 32.87529564 | S10: 135.6930725 | T10: 24.10287453 | U10: 22.71056886 | V10: 5.714869523 | W10: 59.9624324 | X10: 24.42612648 | Y10: 6.58848257 | Z10: 2.219096999 | AA10: 52.76122436 | AB10: 1164.705882 | AC10: 193.2469249 | AD10: 3707.489976
A11: 5 | B11: Pierre Heuzé | H11: 13.42584649 | I11: 50.37774341 | J11: 34.36863346 | K11: 13.92170164 | L11: 69.49183847 | M11: 49.27622818 | N11: 55.76245171 | O11: 104.8052982 | P11: 19.50108643 | Q11: 41.56960287 | R11: 72.08943806 | S11: 105.3806965 | T11: 12.10454429 | U11: 26.97646114 | V11: 10.15798274 | W11: 15.98629638 | X11: 3.501468308 | Y11: 6.850820644 | Z11: 2.605080903 | AA11: 3.023250759 | AB11: 711.1764706 | AC11: 195.1325625 | AD11: 4223.533884
A12: 6 | B12: Cité U Lebisey | I12: 77.77929483 | J12: 93.79033045 | K12: 102.8792193 | L12: 192.3872888 | M12: 28.27105189 | N12: 58.82449575 | O12: 50.83529297 | P12: 18.05644301 | Q12: 21.12160981 | R12: 20.27920275 | S12: 105.951867 | T12: 17.15424357 | U12: 20.78912996 | V12: 10.13257911 | W12: 38.98336294 | X12: 10.83651571 | Y12: 38.66656219 | Z12: 5.890371801 | AA12: 73.84172632 | AB12: 986.4705882 | AC12: 238.5475796 | AD12: 4971.456892
A13: 7 | B13: Copernic | J13: 7.5427178 | K13: 24.04895568 | L13: 90.16554334 | M13: 49.00037217 | N13: 67.93832724 | O13: 37.26757272 | P13: 24.55708666 | Q13: 7.859849581 | R13: 29.96516407 | S13: 123.539672 | T13: 10.04249838 | U13: 3.839620173 | V13: 6.608608574 | W13: 20.85738845 | X13: 28.47164376 | Y13: 17.44083833 | Z13: 3.052177683 | AA13: 54.86078687 | AB13: 607.0588235 | AC13: 474.5782749 | AD13: 5103.937441
A14: 8 | B14: Calvaire St-Pierre | K14: 39.84674143 | L14: 81.40396993 | M14: 22.00296953 | N14: 100.7096411 | O14: 74.03616088 | P14: 47.69817775 | Q14: 22.84549385 | R14: 62.60433556 | S14: 74.57000245 | T14: 28.84820064 | U14: 8.703577697 | V14: 9.368132794 | W14: 7.149275561 | X14: 43.29560591 | Y14: 28.45643376 | Z14: 1.683058622 | AA14: 24.42528134 | AB14: 677.6470588 | AC14: 366.9241798 | AD14: 5414.66032
A15: 9 | B15: CROUS SUAPS | L15: 43.84415412 | M15: 25.42065413 | N15: 51.54726421 | O15: 97.49581032 | P15: 21.77205516 | Q15: 40.41502547 | R15: 65.49757166 | S15: 132.3700811 | T15: 10.20202231 | U15: 35.98200929 | V15: 13.51296081 | W15: 12.08123687 | X15: 27.7335683 | Y15: 18.21681477 | Z15: 6.855638436 | AA15: 87.05313302 | AB15: 690 | AC15: 381.1799995 | AD15: 5723.480321
A16: 10 | B16: Université | N16: 50.32641638 | O16: 87.39724841 | P16: 45.02061556 | Q16: 37.67929829 | R16: 100.2750135 | S16: 286.4398971 | T16: 34.81593764 | U16: 56.83927203 | V16: 14.70323769 | W16: 17.84680671 | X16: 69.0750521 | Y16: 41.19411222 | Z16: 80.2433215 | AA16: 193.4378885 | AB16: 1115.294118 | AC16: 934.6101238 | AD16: 5904.164314
A17: 11 | B17: Place de la Mare | N17: 4.518856775 | O17: 14.30789058 | P17: 14.16152767 | Q17: 7.788268879 | R17: 60.48046463 | S17: 101.1446704 | T17: 7.605117585 | U17: 22.4961398 | W17: 21.59927802 | X17: 19.93465424 | Y17: 8.788970531 | Z17: 12.47585478 | AA17: 38.22771783 | AB17: 333.5294118 | AC17: 319.0383095 | AD17: 5918.655417
A18: 12 | B18: Château Quatrans | O18: 7.285394174 | P18: 12.71816465 | Q18: 16.37647926 | R18: 42.20394161 | S18: 73.79927214 | T18: 30.41437631 | U18: 18.99436 | V18: 10.18955553 | W18: 16.65060575 | X18: 28.71223235 | Z18: 5.804639691 | AA18: 58.02744911 | AB18: 321.1764706 | AC18: 682.9820299 | AD18: 5556.849857
A19: 13 | B19: Saint-Pierre | P19: 3.675325065 | Q19: 21.76254809 | R19: 46.42524509 | S19: 152.7594036 | T19: 59.26422559 | U19: 24.13447521 | V19: 44.01373165 | W19: 51.90284596 | X19: 58.38191232 | Y19: 41.56476022 | Z19: 42.54487951 | AA19: 201.8059418 | AB19: 748.2352941 | AC19: 805.3513946 | AD19: 5499.733757
A20: 14 | B20: Bernières | Q20: 3.437272161 | R20: 47.06579266 | S20: 100.1998963 | T20: 30.1157295 | U20: 18.88203609 | V20: 30.35762532 | W20: 22.16163426 | X20: 67.32480402 | Y20: 25.34934907 | Z20: 22.23703314 | AA20: 123.4570628 | AB20: 490.5882353 | AC20: 324.7856188 | AD20: 5665.536373
A21: 15 | B21: Résistance Saint-Jean | R21: 6.011518847 | S21: 78.49468352 | T21: 11.6600008 | U21: 20.00628725 | V21: 12.48204439 | W21: 23.77562977 | X21: 7.93208695 | Y21: 3.307902836 | Z21: 12.44920551 | AA21: 56.82181658 | AB21: 232.9411765 | AC21: 309.9594087 | AD21: 5588.518141
A22: 16 | B22: Quai de Juillet | S22: 20.68957628 | T22: 5.630463781 | U22: 31.76337377 | V22: 15.06331809 | W22: 20.26904863 | X22: 51.89191853 | Y22: 34.21496105 | Z22: 23.77997132 | AA22: 135.520898 | AB22: 338.8235294 | AC22: 721.9317968 | AD22: 5205.409874
A23: 17 | B23: Gare SNCF | T23: 31.10677997 | U23: 99.57885148 | V23: 70.27806357 | W23: 77.20734636 | X23: 117.0479371 | Y23: 72.16647941 | Z23: 70.86604807 | AA23: 314.1014352 | AB23: 852.3529412 | AC23: 1718.484834 | AD23: 4339.277981
A24: 18 | B24: Leroy | U24: 6.573633448 | V24: 23.60012463 | W24: 14.4903755 | X24: 27.87902518 | Y24: 5.19368366 | Z24: 35.55701476 | AA24: 96.70614283 | AB24: 210 | AC24: 353.107157 | AD24: 4196.170824
A25: 19 | B25: Lux-Lépine | W25: 6.820998071 | X25: 8.350414243 | Y25: 27.1109109 | Z25: 36.09944001 | AA25: 69.85353089 | AB25: 148.2352941 | AC25: 465.0635014 | AD25: 3879.342617
A26: 20 | B26: Guynemer | X26: 68.52372733 | Y26: 24.17679951 | Z26: 24.96614776 | AA26: 92.33332541 | AB26: 210 | AC26: 303.2605045 | AD26: 3786.082112
A27: 21 | B27: Poincaré | X27: 52.83715201 | Y27: 19.0328955 | Z27: 13.53593516 | AA27: 135.1822526 | AB27: 220.5882353 | AC27: 459.732601 | AD27: 3546.937747
A28: 22 | B28: Liberté | Y28: 43.8898386 | Z28: 31.09177519 | AA28: 150.9007392 | AB28: 225.8823529 | AC28: 773.2325901 | AD28: 2999.587509
A29: 23 | B29: Concorde | Z29: 30.74230197 | AA29: 91.02240391 | AB29: 121.7647059 | AC29: 489.1033701 | AD29: 2632.248845
A30: 24 | B30: Modigliani | AA30: 60 | AB30: 60 | AC30: 469.3613907 | AD30: 2222.887454
A31: 25 | B31: Jean Vilar | AC31: 2222.887454 | AD31: 0
A32: TOTAL DESCENTES | D32: 31.36446295 | E32: 63.19275409 | F32: 193.2469249 | G32: 195.1325625 | H32: 238.5475796 | I32: 474.5782749 | J32: 366.9241798 | K32: 381.1799995 | L32: 934.6101238 | M32: 319.0383095 | N32: 682.9820299 | O32: 805.3513946 | P32: 324.7856188 | Q32: 309.9594087 | R32: 721.9317968 | S32: 1718.484834 | T32: 353.107157 | U32: 465.0635014 | V32: 303.2605045 | W32: 459.732601 | X32: 773.2325901 | Y32: 489.1033701 | Z32: 469.3613907 | AA32: 2222.887454 | AB32: 13297.05882 | AC32: 13297.05882

Sheet Sens (Tous)-NVCV-1. JOB
A1: SENS | B1: CIRCULAIRE
A2: LIGNE | B2: NVCV
C5: 1 | D5: 2 | E5: 3 | F5: 4 | G5: 5 | H5: 6 | I5: 7 | J5: 8 | K5: 9 | L5: 10 | M5: 11 | N5: 12 | O5: 13 | P5: 14 | Q5: 15 | R5: 16 | S5: 17 | T5: 18 | U5: 19 | V5: 20 | W5: TOTAL MONTEES | X5: TOTAL DESCENTES | Y5: CHARGE
C6: Prairie | D6: Parc Expo | E6: Lycée Malherbe | F6: Hôtel de Ville | G6: Place de la République | H6: Château | I6: Tour Leroy | J6: Place Courtonne | K6: Quai de la Londe | L6: Presqu'Île | M6: Gare Rives de l'Orne | N6: Quai Hameliln | O6: Place du 36ème | P6: St Jean Eglise | Q6: Théâtre | R6: Ecuyère | S6: Hôtel de Ville | T6: Lycée Malherbe | U6: Parc Expo | V6: Prairie
A7: 1 | B7: Prairie | E7: 5.787346003 | F7: 11.84051643 | G7: 2.314938401 | I7: 1.157469201 | L7: 2.314938401 | M7: 1.157469201 | R7: 2.954914758 | S7: 1.157469201 | V7: 2.314938401 | W7: 31 | X7: 0 | Y7: =Y6+W7-X7 -> 31
A8: 2 | B8: Parc Expo | E8: 8.120903849 | F8: 8.97009481 | G8: 25.17277351 | H8: 5.606309256 | J8: 1.121261851 | L8: 1.121261851 | M8: 1.201351984 | R8: 4.443519188 | V8: 2.242523703 | W8: 58 | X8: 9 | Y8: 80
A9: 3 | B9: Lycée Malherbe | F9: 30.81055074 | G9: 99.65406679 | H9: 22.47989106 | I9: 8.147368818 | J9: 1.928815985 | L9: 5.374058004 | M9: 13.61517166 | N9: 1.052081446 | O9: 2.893223977 | P9: 3.151547546 | R9: 2.893223977 | W9: 192 | X9: 17.55319073 | Y9: 254.4468093
A10: 4 | B10: Hôtel de Ville | E10: 3.644940877 | I10: 1.266581772 | J10: 5.995153721 | L10: 12.63767146 | M10: 7.54566733 | O10: 2.643403069 | U10: 1.266581772 | W10: 35 | X10: 54.75835029 | Y10: 234.688459
A11: 5 | B11: Place de la République | H11: 2.899155132 | K11: 4.036167536 | L11: 8.177170591 | M11: 13.92953442 | N11: 1.956929714 | T11: 1.956929714 | V11: 3.044112889 | W11: 36 | X11: 131.2190206 | Y11: 139.4694384
A12: 6 | B12: Château | D12: 1 | K12: 0.8974128548 | L12: 4.487064274 | M12: 12.05367419 | U12: 1.79482571 | V12: 1.79482571 | W12: 22 | X12: 31.46868878 | Y12: 130.0007496
A13: 7 | B13: Tour Leroy | L13: 3.2 | M13: 1.6 | N13: 1.6 | S13: 1.6 | W13: 8 | X13: 11.90220163 | Y13: 126.098548
A14: 8 | B14: Place Courtonne | K14: 1.652731217 | M14: 6.805363834 | O14: 2.722145533 | Q14: 5.819759416 | W14: 17 | X14: 10.00352481 | Y14: 133.0950232
A15: 9 | B15: Quai de la Londe | L15: 0.8900255754 | M15: 1.854219949 | Q15: 5.414322251 | R15: 0.8900255754 | S15: 0.9514066496 | W15: 10 | X15: 6.586311607 | Y15: 136.5087116
A16: 10 | B16: Presqu'Île | D16: 2 | F16: 0.9430890905 | M16: 1.820227895 | O16: 0.8705437758 | Q16: 8.004166383 | R16: 7.178217563 | S16: 4.540677194 | T16: 3.015812366 | U16: 1.741087552 | W16: 30 | X16: 38.20219016 | Y16: 128.3065214
A17: 11 | B17: Gare Rives de l'Orne | F17: 2.194099217 | N17: 2.047825936 | O17: 2.133152017 | P17: 6.636472941 | Q17: 22.37537949 | R17: 24.12831948 | S17: 15.72746011 | T17: 12.10768678 | U17: 4.188734869 | V17: 5.460869163 | W17: 97 | X17: 69.41533658 | Y17: 155.8911849
A18: 12 | B18: Quai Hameliln | O18: 1.114754098 | Q18: 3.672131148 | R18: 2.754098361 | T18: 4.459016393 | W18: 12 | X18: 6.656837096 | Y18: 161.2343478
A19: 13 | B19: Place du 36ème | P19: 1.972915633 | Q19: 5.725323798 | R19: 2.088969494 | S19: 3.205297107 | T19: 4.96983592 | U19: 1.037658049 | W19: 19 | X19: 12.37722247 | Y19: 167.8571253
A20: 14 | B20: St Jean Eglise | Q20: 2.911397447 | R20: 0.9682348599 | S20: 2.91286785 | T20: 6.289402701 | V20: 1.918097142 | W20: 15 | X20: 11.76093612 | Y20: 171.0961892
A21: 15 | B21: Théâtre | D21: 2.938809902 | I21: 1.330781842 | M21: 1.487344412 | S21: 9.938616776 | T21: 21.92758086 | U21: 17.66268085 | V21: 12.71418535 | W21: 68 | X21: 56.49562796 | Y21: 182.6005612
A22: 16 | B22: Ecuyère | D22: 2.619826713 | Q22: 0.873275571 | S22: 2.740278516 | T22: 24.25902895 | U22: 4.634314678 | V22: 0.873275571 | W22: 36 | X22: 48.29952325 | Y22: 170.3010379
A23: 17 | B23: Hôtel de Ville | J23: 0.9582932533 | M23: 5.74975952 | T23: 23.47782158 | U23: 11.39123371 | V23: 4.422891938 | W23: 46 | X23: 42.7740734 | Y23: 173.5269645
A24: 18 | B24: Lycée Malherbe | G24: 4.07724186 | M24: 0.5955521819 | Q24: 1.183205794 | U24: 1.649221427 | V24: 3.494778737 | W24: 11 | X24: 102.4631153 | Y24: 82.06384928
A25: 19 | B25: Parc Expo | H25: 0.4833333333 | Q25: 0.5166666667 | W25: 1 | X25: 45.36633862 | Y25: 37.69751066
A26: 20 | B26: Prairie | S26: 0 | W26: 0 | X26: 38.2804986 | Y26: -0.5829879446
A27: TOTAL DESCENTES | C27: 0 | D27: 9 | E27: 17.55319073 | F27: 54.75835029 | G27: 131.2190206 | H27: 31.46868878 | I27: 11.90220163 | J27: 10.00352481 | K27: 6.586311607 | L27: 38.20219016 | M27: 69.41533658 | N27: 6.656837096 | O27: 12.37722247 | P27: 11.76093612 | Q27: 56.49562796 | R27: 48.29952325 | S27: 42.7740734 | T27: 102.4631153 | U27: 45.36633862 | V27: 38.2804986 | W27: 744 | X27: 744

Sheet Sens (Tous)-12 EXPRESS-1. JOB
A1: SENS | B1: (Tous)
A2: LIGNE | B2: 12 EXPRESS
C5: 1 | D5: 2 | E5: 3 | F5: 4 | G5: 5 | H5: 6 | I5: 7 | J5: 8 | K5: 9 | L5: 10 | M5: 11 | N5: 12 | O5: 13 | P5: 14 | Q5: 15 | R5: 16 | S5: 17 | T5: TOTAL MONTEES | U5: TOTAL DESCENTES
C6: LION - Haut Lion | D6: Bas Lion | E6: Hermanville Plage | F6: Isaville | G6: Colleville Plage | H6: Riva Charmettes | I6: Colonel Dawson | J6: Avenue du Bois | K6: OUISTREHAM Riva Centre | L6: General Leclerc | M6: Ouistreham Port | N6: OUISTREHAM Eglise | O6: Petit Bonheur | P6: Pèlerins | Q6: CHR | R6: Tour Leroy | S6: CAEN - Gare SNCF
A7: 1 | B7: LION - Haut Lion | K7: 1.475884244 | M7: 1.475884244 | R7: 6.310712472 | S7: 8.737519039 | T7: 18 | U7: 22.35274817
A8: 2 | B8: Bas Lion | H8: 1.299983938 | J8: 1.988210729 | K8: 3.976421458 | L8: 1.299983938 | Q8: 5.834227433 | R8: 4.012993897 | S8: 4.588178606 | T8: 23 | U8: 25.99309252
A9: 3 | B9: Hermanville Plage | K9: 5.47578418 | Q9: 1.437863237 | R9: 6.736655538 | S9: 5.349697045 | T9: 19 | U9: 22.69253797
A10: 4 | B10: Isaville | D10: 3 | K10: 0.2238372093 | R10: 0.1046511628 | S10: 0.6715116279 | T10: 4 | U10: 4.171374767
A11: 5 | B11: Colleville Plage | R11: 6.291588785 | S11: 2.708411215 | T11: 9 | U11: 12.64374227
A12: 6 | B12: Riva Charmettes | M12: 1.755986317 | R12: 4.01368301 | S12: 4.230330673 | T12: 10 | U12: 19.00186772
A13: 7 | B13: Colonel Dawson | R13: 2.8 | S13: 4.2 | T13: 7 | U13: 11.1758611
A14: 8 | B14: Avenue du Bois | K14: 1.590111619 | L14: 1.40796261 | R14: 7.734373148 | S14: 6.267552622 | T14: 17 | U14: 25.70437615
A15: 9 | B15: OUISTREHAM Riva Centre | E15: 15.11111111 | G15: 1.888888889 | N15: 2.840189116 | P15: 4.394065248 | Q15: 8.519143693 | R15: 40.93548703 | S15: 23.31111491 | T15: 97 | U15: 119.1989166
A16: 10 | B16: General Leclerc | D16: 2.429840142 | H16: 2.500888099 | I16: 3.069271758 | Q16: 2.795665763 | R16: 10.15942271 | S16: 2.04491153 | T16: 23 | U16: 21.9972488
A17: 11 | B17: Ouistreham Port | C17: 0.5870471602 | G17: 0.6971185027 | J17: 0.6937830075 | K17: 0.5870471602 | L17: 1.435004169 | O17: 1.720919645 | P17: 1.802868199 | Q17: 1.577509674 | R17: 14.89870248 | T17: 24 | U17: 57.40157613
A18: 12 | B18: OUISTREHAM Eglise | H18: 0.09924550203 | K18: 0.6128845038 | L18: 0.2878699942 | Q18: 3.658136025 | R18: 25.96387742 | S18: 6.377986551 | T18: 37 | U18: 52.20059252
A19: 13 | B19: Petit Bonheur | Q19: 3.334455087 | R19: 13.29018897 | S19: 1.375355941 | T19: 18 | U19: 21.59064944
A20: 14 | B20: Pèlerins | K20: 3.661670236 | M20: 3.254817987 | O20: 3.083511777 | Q20: 5.152862382 | R20: 5.432626375 | S20: 1.414511242 | T20: 22 | U20: 28.64950956
A21: 15 | B21: CHR | C21: 1.85882594 | D21: 5.57647782 | G21: 0.92941297 | H21: 4.098453027 | J21: 2.994775125 | K21: 18.69798176 | L21: 1.135949186 | M21: 3.014137896 | N21: 10.70761193 | O21: 2.994775125 | P21: 1.991599221 | R21: 2.215002943 | S21: 10.78499706 | T21: 67 | U21: 45.72619317
A22: 16 | B22: Tour Leroy | C22: 10.39558623 | D22: 8.117510394 | E22: 4.665578891 | F22: 3.34250428 | G22: 8.144038205 | H22: 9.990233225 | I22: 6.298144638 | J22: 13.46728576 | K22: 47.58050421 | L22: 10.47768177 | M22: 24.22541875 | N22: 33.98463895 | O22: 11.14941821 | P22: 17.81895221 | Q22: 5.570840466 | T22: 215.2283362 | U22: 155.6659712
A23: 17 | B23: CAEN - Gare SNCF | C23: 9.511288842 | D23: 6.869264164 | E23: 2.915847964 | F23: 0.8288704873 | G23: 0.9842837037 | H23: 1.013063929 | I23: 1.8084447 | J23: 6.560321528 | K23: 35.31679001 | L23: 5.952797136 | M23: 23.67533093 | N23: 4.668152536 | O23: 2.642024678 | P23: 2.642024678 | Q23: 7.845489404 | R23: 4.766005302 | T23: 118 | U23: 82.06207806
A24: TOTAL DESCENTES | C24: 22.35274817 | D24: 25.99309252 | E24: 22.69253797 | F24: 4.171374767 | G24: 12.64374227 | H24: 19.00186772 | I24: 11.1758611 | J24: 25.70437615 | K24: 119.1989166 | L24: 21.9972488 | M24: 57.40157613 | N24: 52.20059252 | O24: 21.59064944 | P24: 28.64950956 | Q24: 45.72619317 | R24: 155.6659712 | S24: 82.06207806 | T24: 728.2283362 | U24: 728.2283362

Sheet Sens 2-12 EXPRESS-1. JOB
A1: SENS | B1: 2
A2: LIGNE | B2: 12 EXPRESS
C5: 17 | D5: 16 | E5: 15 | F5: 14 | G5: 13 | H5: 12 | I5: 11 | J5: 10 | K5: 9 | L5: 8 | M5: 7 | N5: 6 | O5: 5 | P5: 4 | Q5: 3 | R5: 2 | S5: 1 | T5: TOTAL MONTEES | U5: TOTAL DESCENTES | V5: CHARGE
C6: CAEN - Gare SNCF | D6: Tour Leroy | E6: CHR | F6: Pèlerins | G6: Petit Bonheur | H6: OUISTREHAM Eglise | I6: Ouistreham Port | J6: General Leclerc | K6: OUISTREHAM Riva Centre | L6: Avenue du Bois | M6: Colonel Dawson | N6: Riva Charmettes | O6: Colleville Plage | P6: Isaville | Q6: Hermanville Plage | R6: Bas Lion | S6: LION - Haut Lion
A7: 17 | B7: CAEN - Gare SNCF | D7: 4.766005302 | E7: 7.845489404 | F7: 2.642024678 | G7: 2.642024678 | H7: 4.668152536 | I7: 23.67533093 | J7: 5.952797136 | K7: 35.31679001 | L7: 6.560321528 | M7: 1.8084447 | N7: 1.013063929 | O7: 0.9842837037 | P7: 0.8288704873 | Q7: 2.915847964 | R7: 6.869264164 | S7: 9.511288842 | T7: 118 | V7: =V6+T7-U7 -> 118
A8: 16 | B8: Tour Leroy | E8: 5.570840466 | F8: 17.81895221 | G8: 11.14941821 | H8: 33.98463895 | I8: 24.22541875 | J8: 10.47768177 | K8: 47.58050421 | L8: 13.46728576 | M8: 6.298144638 | N8: 9.990233225 | O8: 8.144038205 | P8: 3.34250428 | Q8: 4.665578891 | R8: 8.117510394 | S8: 10.39558623 | T8: 215.2283362 | U8: 4.766005302 | V8: 328.4623309
A9: 15 | B9: CHR | F9: 1.991599221 | G9: 2.994775125 | H9: 10.70761193 | I9: 3.014137896 | J9: 1.135949186 | K9: 18.69798176 | L9: 2.994775125 | N9: 4.098453027 | O9: 0.92941297 | R9: 5.57647782 | S9: 1.85882594 | T9: 54 | U9: 13.41632987 | V9: 369.046001
A10: 14 | B10: Pèlerins | G10: 3.083511777 | I10: 3.254817987 | K10: 3.661670236 | T10: 10 | U10: 22.45257611 | V10: 356.5934249
A11: 13 | B11: Petit Bonheur | U11: 19.86972979 | V11: 336.7236951
A12: 12 | B12: OUISTREHAM Eglise | J12: 0.2878699942 | K12: 0.6128845038 | N12: 0.09924550203 | T12: 1 | U12: 49.36040341 | V12: 288.3632917
A13: 11 | B13: Ouistreham Port | J13: 1.435004169 | K13: 0.5870471602 | L13: 0.6937830075 | O13: 0.6971185027 | S13: 0.5870471602 | T13: 4 | U13: 54.16970556 | V13: 238.1935861
A14: 10 | B14: General Leclerc | M14: 3.069271758 | N14: 2.500888099 | R14: 2.429840142 | T14: 8 | U14: 19.28930225 | V14: 226.9042839
A15: 9 | B15: OUISTREHAM Riva Centre | O15: 1.888888889 | Q15: 15.11111111 | T15: 17 | U15: 106.4568779 | V15: 137.447406
A16: 8 | B16: Avenue du Bois | U16: 23.71616542 | V16: 113.7312406
A17: 7 | B17: Colonel Dawson | U17: 11.1758611 | V17: 102.5553795
A18: 6 | B18: Riva Charmettes | U18: 17.70188378 | V18: 84.85349569
A19: 5 | B19: Colleville Plage | U19: 12.64374227 | V19: 72.20975342
A20: 4 | B20: Isaville | R20: 3 | T20: 3 | U20: 4.171374767 | V20: 71.03837866
A21: 3 | B21: Hermanville Plage | U21: 22.69253797 | V21: 48.34584069
A22: 2 | B22: Bas Lion | U22: 25.99309252 | V22: 22.35274817
A23: 1 | B23: LION - Haut Lion | U23: 22.35274817 | V23: -3.907985047e-14
A24: TOTAL DESCENTES | D24: 4.766005302 | E24: 13.41632987 | F24: 22.45257611 | G24: 19.86972979 | H24: 49.36040341 | I24: 54.16970556 | J24: 19.28930225 | K24: 106.4568779 | L24: 23.71616542 | M24: 11.1758611 | N24: 17.70188378 | O24: 12.64374227 | P24: 4.171374767 | Q24: 22.69253797 | R24: 25.99309252 | S24: 22.35274817 | T24: 430.2283362 | U24: 430.2283362

Sheet Sens 1-12 EXPRESS-1. JOB
A1: SENS | B1: 1
A2: LIGNE | B2: 12 EXPRESS
C5: 1 | D5: 2 | E5: 3 | F5: 4 | G5: 5 | H5: 6 | I5: 7 | J5: 8 | K5: 9 | L5: 10 | M5: 11 | N5: 12 | O5: 13 | P5: 14 | Q5: 15 | R5: 16 | S5: 17 | T5: TOTAL MONTEES | U5: TOTAL DESCENTES | V5: CHARGE
C6: LION - Haut Lion | D6: Bas Lion | E6: Hermanville Plage | F6: Isaville | G6: Colleville Plage | H6: Riva Charmettes | I6: Colonel Dawson | J6: Avenue du Bois | K6: OUISTREHAM Riva Centre | L6: General Leclerc | M6: Ouistreham Port | N6: OUISTREHAM Eglise | O6: Petit Bonheur | P6: Pèlerins | Q6: CHR | R6: Tour Leroy | S6: CAEN - Gare SNCF
A7: 1 | B7: LION - Haut Lion | K7: 1.475884244 | M7: 1.475884244 | R7: 6.310712472 | S7: 8.737519039 | T7: 18 | V7: =V6+T7-U7 -> 18
A8: 2 | B8: Bas Lion | H8: 1.299983938 | J8: 1.988210729 | K8: 3.976421458 | L8: 1.299983938 | Q8: 5.834227433 | R8: 4.012993897 | S8: 4.588178606 | T8: 23 | V8: 41
A9: 3 | B9: Hermanville Plage | K9: 5.47578418 | Q9: 1.437863237 | R9: 6.736655538 | S9: 5.349697045 | T9: 19 | V9: 60
A10: 4 | B10: Isaville | K10: 0.2238372093 | R10: 0.1046511628 | S10: 0.6715116279 | T10: 1 | V10: 61
A11: 5 | B11: Colleville Plage | R11: 6.291588785 | S11: 2.708411215 | T11: 9 | V11: 70
A12: 6 | B12: Riva Charmettes | M12: 1.755986317 | R12: 4.01368301 | S12: 4.230330673 | T12: 10 | U12: 1.299983938 | V12: 78.70001606
A13: 7 | B13: Colonel Dawson | R13: 2.8 | S13: 4.2 | T13: 7 | V13: 85.70001606
A14: 8 | B14: Avenue du Bois | K14: 1.590111619 | L14: 1.40796261 | R14: 7.734373148 | S14: 6.267552622 | T14: 17 | U14: 1.988210729 | V14: 100.7118053
A15: 9 | B15: OUISTREHAM Riva Centre | N15: 2.840189116 | P15: 4.394065248 | Q15: 8.519143693 | R15: 40.93548703 | S15: 23.31111491 | T15: 80 | U15: 12.74203871 | V15: 167.9697666
A16: 10 | B16: General Leclerc | Q16: 2.795665763 | R16: 10.15942271 | S16: 2.04491153 | T16: 15 | U16: 2.707946548 | V16: 180.2618201
A17: 11 | B17: Ouistreham Port | O17: 1.720919645 | P17: 1.802868199 | Q17: 1.577509674 | R17: 14.89870248 | T17: 20 | U17: 3.231870561 | V17: 197.0299495
A18: 12 | B18: OUISTREHAM Eglise | Q18: 3.658136025 | R18: 25.96387742 | S18: 6.377986551 | T18: 36 | U18: 2.840189116 | V18: 230.1897604
A19: 13 | B19: Petit Bonheur | Q19: 3.334455087 | R19: 13.29018897 | S19: 1.375355941 | T19: 18 | U19: 1.720919645 | V19: 246.4688408
A20: 14 | B20: Pèlerins | Q20: 5.152862382 | R20: 5.432626375 | S20: 1.414511242 | T20: 12 | U20: 6.196933448 | V20: 252.2719073
A21: 15 | B21: CHR | R21: 2.215002943 | S21: 10.78499706 | T21: 13 | U21: 32.3098633 | V21: 232.962044
A22: 16 | B22: Tour Leroy | U22: 150.8999659 | V22: 82.06207806
A23: 17 | B23: CAEN - Gare SNCF | U23: 82.06207806 | V23: 0
A24: TOTAL DESCENTES | H24: 1.299983938 | J24: 1.988210729 | K24: 12.74203871 | L24: 2.707946548 | M24: 3.231870561 | N24: 2.840189116 | O24: 1.720919645 | P24: 6.196933448 | Q24: 32.3098633 | R24: 150.8999659 | S24: 82.06207806 | T24: 298 | U24: 298

Sheet Sens (Tous)-11 EXPRESS-1. JOB
A1: SENS | B1: (Tous)
A2: LIGNE | B2: 11 EXPRESS
C5: 1 | D5: 2 | E5: 3 | F5: 4 | G5: 5 | H5: 6 | I5: 7 | J5: 8 | K5: 9 | L5: 10 | M5: 11 | N5: 12 | O5: 13 | P5: 14 | Q5: 15 | R5: 16 | S5: 17 | T5: 18 | U5: 19 | V5: TOTAL MONTEES | W5: TOTAL DESCENTES
C6: CUVERVILLE - Champ Picot | D6: Les Semeurs | E6: Cuverville Mairie | F6: Cuverville Eglise | G6: Petit Vallon | H6: Rue des Jardins | I6: Demouville Mairie | J6: Barentins | K6: Rue des Carrieres | L6: Civisme | M6: Pierre de Coubertin | N6: Carrefour de la Liberté | O6: Jean Effel | P6: Rue des Cités | Q6: Grands Bureaux | R6: Port de Plaisance | S6: Vendeuvre | T6: Bernières | U6: Théâtre
A7: 1 | B7: CUVERVILLE - Champ Picot | M7: 0.7508598745 | N7: 0.7508598745 | T7: 6.576553118 | U7: 3.921727133 | V7: 12 | W7: 14.10126218
A8: 2 | B8: Les Semeurs | N8: 3.556497799 | T8: 2.891523707 | U8: 0.5519784943 | V8: 7 | W8: 8.978088335
A9: 3 | B9: Cuverville Mairie | H9: 0.8604671977 | K9: 0.4302335989 | N9: 5.866821803 | R9: 0.4302335989 | T9: 7.01637877 | U9: 4.395865032 | V9: 19 | W9: 11.1015282
A10: 4 | B10: Cuverville Eglise | D10: 1 | N10: 0.5062070847 | P10: 0.5062070847 | R10: 1.012414169 | S10: 1.012414169 | T10: 32.75339912 | U10: 8.209358374 | V10: 45 | W10: 18.30746851
A11: 5 | B11: Petit Vallon | Q11: 2.857808748 | T11: 9.15673996 | U11: 0.9854512924 | V11: 13 | W11: 12.62114825
A12: 6 | B12: Rue des Jardins | E12: 1 | R12: 0.8101761252 | S12: 0.5988258317 | T12: 0.5401174168 | U12: 4.050880626 | V12: 7 | W12: 11.45357786
A13: 7 | B13: Demouville Mairie | S13: 1.310489455 | T13: 7.764175207 | U13: 6.925335338 | V13: 16 | W13: 10.00168144
A14: 8 | B14: Barentins | O14: 0.4825174825 | T14: 2.517482517 | U14: 3 | V14: 6 | W14: 3.742907367
A15: 9 | B15: Rue des Carrieres | R15: 0.5019050918 | T15: 7.135781088 | U15: 1.362313821 | V15: 9 | W15: 6.775120141
A16: 10 | B16: Civisme | Q16: 3.930498774 | S16: 1.584627964 | T16: 10.6263287 | U16: 2.858544563 | V16: 19 | W16: 24.67542804
A17: 11 | B17: Pierre de Coubertin | O17: 1.672351885 | R17: 0.7432675045 | S17: 0.7432675045 | T17: 2.868043088 | U17: 2.973070018 | V17: 9 | W17: 13.12395667
A18: 12 | B18: Carrefour de la Liberté | F18: 1 | O18: 3.754941667 | Q18: 1.12893671 | S18: 1.451490056 | T18: 13.79266155 | U18: 10.20530335 | V18: 31.33333333 | W18: 41.58610917
A19: 13 | B19: Jean Effel | T19: 2.620985011 | U19: 3.379014989 | V19: 6 | W19: 21.55201247
A20: 14 | B20: Rue des Cités | R20: 1.165962583 | T20: 6.083283042 | U20: 4.750754375 | V20: 12 | W20: 16.87982371
A21: 15 | B21: Grands Bureaux | F21: 0.9902551188 | G21: 2.177816709 | L21: 4.922150443 | M21: 0.9195226103 | N21: 0.9902551188 | R21: 2.837559973 | S21: 2.317340644 | T21: 7.635081212 | U21: 9.129540781 | V21: 31.91952261 | W21: 28.86663184
A22: 16 | B22: Port de Plaisance | C22: 1.383849867 | D22: 1.526305 | F22: 1.383849867 | J22: 1.383849867 | K22: 2.767699734 | L22: 1.383849867 | M22: 1.729812333 | N22: 1.383849867 | O22: 2.767699734 | P22: 1.29735925 | Q22: 3.991874616 | V22: 21 | W22: 8.54220263
A23: 17 | B23: Vendeuvre | M23: 1.707317073 | O23: 1.707317073 | Q23: 1.585365854 | V23: 5 | W23: 9.018455625
A24: 18 | B24: Bernières | C24: 5.859686454 | D24: 2.007360206 | E24: 2.074272213 | F24: 5.500030718 | G24: 3.735057225 | H24: 5.742417431 | I24: 1.254600129 | J24: 1.07059211 | L24: 9.762362319 | M24: 3.557937207 | N24: 14.80772751 | O24: 4.663349489 | P24: 7.424205069 | Q24: 10.54040192 | U24: 3 | V24: 81 | W24: 121.2669989
A25: 19 | B25: Théâtre | C25: 6.857725864 | D25: 4.444423129 | E25: 8.027255988 | F25: 9.433332805 | G25: 6.708274311 | H25: 4.850693236 | I25: 8.747081312 | J25: 1.288465391 | K25: 3.577186809 | L25: 8.607065414 | M25: 4.458507569 | N25: 13.72389012 | O25: 6.503835143 | P25: 7.652052306 | Q25: 4.831745215 | R25: 1.040683585 | T25: 1.288465391 | V25: 102.0406836 | W25: 69.69913819
A26: TOTAL DESCENTES | C26: 14.10126218 | D26: 8.978088335 | E26: 11.1015282 | F26: 18.30746851 | G26: 12.62114825 | H26: 11.45357786 | I26: 10.00168144 | J26: 3.742907367 | K26: 6.775120141 | L26: 24.67542804 | M26: 13.12395667 | N26: 41.58610917 | O26: 21.55201247 | P26: 16.87982371 | Q26: 28.86663184 | R26: 8.54220263 | S26: 9.018455625 | T26: 121.2669989 | U26: 69.69913819 | V26: 452.2935395 | W26: 452.2935395

Sheet Sens 2-11 EXPRESS-1. JOB
A1: SENS | B1: 2
A2: LIGNE | B2: 11 EXPRESS
C5: 19 | D5: 18 | E5: 17 | F5: 16 | G5: 15 | H5: 14 | I5: 13 | J5: 12 | K5: 11 | L5: 10 | M5: 9 | N5: 8 | O5: 7 | P5: 6 | Q5: 5 | R5: 4 | S5: 3 | T5: 2 | U5: 1 | V5: TOTAL MONTEES | W5: TOTAL DESCENTES | X5: CHARGE
C6: Théâtre | D6: Bernières | E6: Vendeuvre | F6: Port de Plaisance | G6: Grands Bureaux | H6: Rue des Cités | I6: Jean Effel | J6: Carrefour de la Liberté | K6: Pierre de Coubertin | L6: Civisme | M6: Rue des Carrieres | N6: Barentins | O6: Demouville Mairie | P6: Rue des Jardins | Q6: Petit Vallon | R6: Cuverville Eglise | S6: Cuverville Mairie | T6: Les Semeurs | U6: CUVERVILLE - Champ Picot
A7: 19 | B7: Théâtre | D7: 1.288465391 | F7: 1.040683585 | G7: 4.831745215 | H7: 7.652052306 | I7: 6.503835143 | J7: 13.72389012 | K7: 4.458507569 | L7: 8.607065414 | M7: 3.577186809 | N7: 1.288465391 | O7: 8.747081312 | P7: 4.850693236 | Q7: 6.708274311 | R7: 9.433332805 | S7: 8.027255988 | T7: 4.444423129 | U7: 6.857725864 | V7: 102.0406836 | W7: 0 | X7: =X6+V7-W7 -> 102.0406836
A8: 18 | B8: Bernières | G8: 10.54040192 | H8: 7.424205069 | I8: 4.663349489 | J8: 14.80772751 | K8: 3.557937207 | L8: 9.762362319 | N8: 1.07059211 | O8: 1.254600129 | P8: 5.742417431 | Q8: 3.735057225 | R8: 5.500030718 | S8: 2.074272213 | T8: 2.007360206 | U8: 5.859686454 | V8: 78 | W8: 2.207988001 | X8: =X7+V8-W8 -> 177.8326956
A9: 17 | B9: Vendeuvre | G9: 1.585365854 | I9: 1.707317073 | K9: 1.707317073 | V9: 5 | X9: 182.8326956
A10: 16 | B10: Port de Plaisance | G10: 3.991874616 | H10: 1.29735925 | I10: 2.767699734 | J10: 1.383849867 | K10: 1.729812333 | L10: 1.383849867 | M10: 2.767699734 | N10: 1.383849867 | R10: 1.383849867 | T10: 1.526305 | U10: 1.383849867 | V10: 21 | W10: 1.040683585 | X10: 202.792012
A11: 15 | B11: Grands Bureaux | D11: 0.9195226103 | J11: 0.9902551188 | K11: 0.9195226103 | L11: 4.922150443 | Q11: 2.177816709 | R11: 0.9902551188 | V11: 10.91952261 | W11: 20.94938761 | X11: 192.762147
A12: 14 | B12: Rue des Cités | W12: 16.37361662 | X12: 176.3885304
A13: 13 | B13: Jean Effel | W13: 15.64220144 | X13: 160.7463289
A14: 12 | B14: Carrefour de la Liberté | R14: 1 | V14: 1 | W14: 30.90572261 | X14: 130.8406063
A15: 11 | B15: Pierre de Coubertin | W15: 12.37309679 | X15: 118.4675095
A16: 10 | B16: Civisme | W16: 24.67542804 | X16: 93.79208149
A17: 9 | B17: Rue des Carrieres | W17: 6.344886542 | X17: 87.44719495
A18: 8 | B18: Barentins | W18: 3.742907367 | X18: 83.70428758
A19: 7 | B19: Demouville Mairie | W19: 10.00168144 | X19: 73.70260614
A20: 6 | B20: Rue des Jardins | S20: 1 | V20: 1 | W20: 10.59311067 | X20: 64.10949547
A21: 5 | B21: Petit Vallon | W21: 12.62114825 | X21: 51.48834723
A22: 4 | B22: Cuverville Eglise | T22: 1 | V22: 1 | W22: 18.30746851 | X22: 34.18087872
A23: 3 | B23: Cuverville Mairie | W23: 11.1015282 | X23: 23.07935052
A24: 2 | B24: Les Semeurs | W24: 8.978088335 | X24: 14.10126218
A25: 1 | B25: CUVERVILLE - Champ Picot | W25: 14.10126218 | X25: 0
A26: TOTAL DESCENTES | C26: 0 | D26: 2.207988001 | F26: 1.040683585 | G26: 20.94938761 | H26: 16.37361662 | I26: 15.64220144 | J26: 30.90572261 | K26: 12.37309679 | L26: 24.67542804 | M26: 6.344886542 | N26: 3.742907367 | O26: 10.00168144 | P26: 10.59311067 | Q26: 12.62114825 | R26: 18.30746851 | S26: 11.1015282 | T26: 8.978088335 | U26: 14.10126218 | V26: 221.2935395 | W26: 221.2935395

Sheet Sens 1-11 EXPRESS-1. JOB
A1: SENS | B1: 1
A2: LIGNE | B2: 11 EXPRESS
C5: 1 | D5: 2 | E5: 3 | F5: 4 | G5: 5 | H5: 6 | I5: 7 | J5: 8 | K5: 9 | L5: 10 | M5: 11 | N5: 12 | O5: 13 | P5: 14 | Q5: 15 | R5: 16 | S5: 17 | T5: 18 | U5: 19 | V5: TOTAL MONTEES | W5: TOTAL DESCENTES | X5: CHARGE
C6: CUVERVILLE - Champ Picot | D6: Les Semeurs | E6: Cuverville Mairie | F6: Cuverville Eglise | G6: Petit Vallon | H6: Rue des Jardins | I6: Demouville Mairie | J6: Barentins | K6: Rue des Carrieres | L6: Civisme | M6: Pierre de Coubertin | N6: Carrefour de la Liberté | O6: Jean Effel | P6: Rue des Cités | Q6: Grands Bureaux | R6: Port de Plaisance | S6: Vendeuvre | T6: Bernières | U6: Théâtre
A7: 1 | B7: CUVERVILLE - Champ Picot | M7: 0.7508598745 | N7: 0.7508598745 | T7: 6.576553118 | U7: 3.921727133 | V7: 12 | X7: =X6+V7-W7 -> 12
A8: 2 | B8: Les Semeurs | N8: 3.556497799 | T8: 2.891523707 | U8: 0.5519784943 | V8: 7 | X8: 19
A9: 3 | B9: Cuverville Mairie | H9: 0.8604671977 | K9: 0.4302335989 | N9: 5.866821803 | R9: 0.4302335989 | T9: 7.01637877 | U9: 4.395865032 | V9: 19 | X9: 38
A10: 4 | B10: Cuverville Eglise | N10: 0.5062070847 | P10: 0.5062070847 | R10: 1.012414169 | S10: 1.012414169 | T10: 32.75339912 | U10: 8.209358374 | V10: 44 | X10: 82
A11: 5 | B11: Petit Vallon | Q11: 2.857808748 | T11: 9.15673996 | U11: 0.9854512924 | V11: 13 | X11: 95
A12: 6 | B12: Rue des Jardins | R12: 0.8101761252 | S12: 0.5988258317 | T12: 0.5401174168 | U12: 4.050880626 | V12: 6 | W12: 0.8604671977 | X12: 100.1395328
A13: 7 | B13: Demouville Mairie | S13: 1.310489455 | T13: 7.764175207 | U13: 6.925335338 | V13: 16 | X13: 116.1395328
A14: 8 | B14: Barentins | O14: 0.4825174825 | T14: 2.517482517 | U14: 3 | V14: 6 | X14: 122.1395328
A15: 9 | B15: Rue des Carrieres | R15: 0.5019050918 | T15: 7.135781088 | U15: 1.362313821 | V15: 9 | W15: 0.4302335989 | X15: 130.7092992
A16: 10 | B16: Civisme | Q16: 3.930498774 | S16: 1.584627964 | T16: 10.6263287 | U16: 2.858544563 | V16: 19 | X16: 149.7092992
A17: 11 | B17: Pierre de Coubertin | O17: 1.672351885 | R17: 0.7432675045 | S17: 0.7432675045 | T17: 2.868043088 | U17: 2.973070018 | V17: 9 | W17: 0.7508598745 | X17: 157.9584393
A18: 12 | B18: Carrefour de la Liberté | O18: 3.754941667 | Q18: 1.12893671 | S18: 1.451490056 | T18: 13.79266155 | U18: 8.871970018 | V18: 29 | W18: 10.68038656 | X18: 176.2780528
A19: 13 | B19: Jean Effel | T19: 2.620985011 | U19: 3.379014989 | V19: 6 | W19: 5.909811035 | X19: 176.3682417
A20: 14 | B20: Rue des Cités | R20: 1.165962583 | T20: 6.083283042 | U20: 4.750754375 | V20: 12 | W20: 0.5062070847 | X20: 187.8620346
A21: 15 | B21: Grands Bureaux | R21: 2.837559973 | S21: 2.317340644 | T21: 6.715558602 | U21: 9.129540781 | V21: 21 | W21: 7.917244232 | X21: 200.9447904
A22: 16 | B22: Port de Plaisance | W22: 7.501519045 | X22: 193.4432714
A23: 17 | B23: Vendeuvre | W23: 9.018455625 | X23: 184.4248157
A24: 18 | B24: Bernières | U24: 3 | V24: 3 | W24: 119.0590109 | X24: 68.36580485
A25: 19 | B25: Théâtre | W25: 68.36580485 | X25: 0
A26: TOTAL DESCENTES | H26: 0.8604671977 | K26: 0.4302335989 | M26: 0.7508598745 | N26: 10.68038656 | O26: 5.909811035 | P26: 0.5062070847 | Q26: 7.917244232 | R26: 7.501519045 | S26: 9.018455625 | T26: 119.0590109 | U26: 68.36580485 | V26: 231 | W26: 231

Sheet Sens (Tous)-10 EXPRESS-1. JOB
A2: LIGNE | B2: 10 EXPRESS
A4: SENS | B4: BLAINVILLE-Les Palmiers-> Caen Bellivet Caen BellivetBLAINVILLE->Les Palmiers
C6: 1 | D6: 2 | E6: 3 | F6: 4 | G6: 5 | H6: 6 | I6: 7 | J6: 8 | K6: 9 | L6: 10 | M6: 11 | N6: 12 | O6: 13 | P6: 14 | Q6: 16 | R6: TOTAL MONTEES
A7: LES ARRETS | C7: BLAINVILLE - Les Palmiers | D7: Terre de Nacre | E7: Joliot Curie | F7: Blainville Mairie | G7: Colbert | H7: Langevin Wallon | I7: Feuillantines | J7: Victor Hugo | K7: CHR | L7: Parc d’Ornano | M7: Clos Beaumois | N7: Reine Mathilde | O7: Université | P7: Place de la Mare | Q7: CAEN - Bellivet
A8: 1 | B8: BLAINVILLE - Les Palmiers | K8: 1.203084833 | M8: 1.203084833 | N8: 4.411311054 | O8: 2.59125964 | Q8: 2.59125964 | R8: 12
A9: 2 | B9: Terre de Nacre | K9: 1.086075949 | Q9: 1.913924051 | R9: 3
A10: 3 | B10: Joliot Curie | O10: 7.571942446 | Q10: 2.428057554 | R10: 10
A11: 4 | B11: Blainville Mairie | N11: 5.351796407 | O11: 4.648203593 | R11: 10
A12: 5 | B12: Colbert
A13: 6 | B13: Langevin Wallon | M13: 1.384987893 | N13: 2.615012107 | R13: 4
A14: 7 | B14: Feuillantines | O14: 1.392857143 | Q14: 1.607142857 | R14: 3
A15: 8 | B15: Victor Hugo | O15: 3 | R15: 3
A16: 9 | B16: CHR
A17: 10 | B17: Parc d’Ornano | C17: 1 | R17: 1
A18: 11 | B18: Clos Beaumois | G18: 1 | O18: 1 | R18: 2
A19: 12 | B19: Reine Mathilde | C19: 1 | E19: 1 | I19: 1 | P19: 2 | R19: 5
A20: 13 | B20: Université | F20: 1 | G20: 2 | H20: 2 | N20: 1 | R20: 6
A21: 14 | B21: Place de la Mare | F21: 1 | G21: 1 | H21: 1 | R21: 3
A22: 16 | B22: CAEN - Bellivet | C22: 1 | F22: 2 | R22: 3
A23: TOTAL DESCENTES | C23: 3 | E23: 1 | F23: 4 | G23: 4 | H23: 3 | I23: 1 | K23: 2.289160782 | M23: 2.588072726 | N23: 13.37811957 | O23: 20.20426282 | P23: 2 | Q23: 8.540384102 | R23: 65

Sheet Sens 2-10 EXPRESS-1. JOB
A1: SENS | B1: 2
A2: LIGNE | B2: 10 EXPRESS
C5: 16 | D5: 14 | E5: 13 | F5: 12 | G5: 11 | H5: 10 | I5: 9 | J5: 8 | K5: 7 | L5: 6 | M5: 5 | N5: 4 | O5: 3 | P5: 2 | Q5: 1 | R5: TOTAL MONTEES | S5: TOTAL DESCENTES | T5: CHARGE
C6: CAEN - Bellivet | D6: Place de la Mare | E6: Université | F6: Reine Mathilde | G6: Clos Beaumois | H6: Parc d’Ornano | I6: CHR | J6: Victor Hugo | K6: Feuillantines | L6: Langevin Wallon | M6: Colbert | N6: Blainville Mairie | O6: Joliot Curie | P6: Terre de Nacre | Q6: BLAINVILLE - Les Palmiers
A7: 16 | B7: CAEN - Bellivet | N7: 2 | Q7: 1 | R7: 3 | T7: =T6+R7-S7 -> 3
A8: 14 | B8: Place de la Mare | L8: 1 | M8: 1 | N8: 1 | R8: 3 | T8: 6
A9: 13 | B9: Université | F9: 1 | L9: 2 | M9: 2 | N9: 1 | R9: 6 | T9: 12
A10: 12 | B10: Reine Mathilde | K10: 1 | O10: 1 | Q10: 1 | R10: 3 | S10: 1 | T10: 14
A11: 11 | B11: Clos Beaumois | M11: 1 | R11: 1 | T11: 15
A12: 10 | B12: Parc d’Ornano | Q12: 1 | R12: 1 | T12: 16
A13: 9 | B13: CHR | T13: 16
A14: 8 | B14: Victor Hugo | T14: 16
A15: 7 | B15: Feuillantines | S15: 1 | T15: 15
A16: 6 | B16: Langevin Wallon | S16: 3 | T16: 12
A17: 5 | B17: Colbert | S17: 4 | T17: 8
A18: 4 | B18: Blainville Mairie | S18: 4 | T18: 4
A19: 3 | B19: Joliot Curie | S19: 1 | T19: 3
A20: 2 | B20: Terre de Nacre | T20: 3
A21: 1 | B21: BLAINVILLE - Les Palmiers | S21: 3 | T21: 0
A22: TOTAL DESCENTES | F22: 1 | K22: 1 | L22: 3 | M22: 4 | N22: 4 | O22: 1 | Q22: 3 | R22: 17 | S22: 17

Sheet Sens 1-10 EXPRESS-1. JOB
A1: SENS | B1: 1
A2: LIGNE | B2: 10 EXPRESS
C5: 1 | D5: 2 | E5: 3 | F5: 4 | G5: 5 | H5: 6 | I5: 7 | J5: 8 | K5: 9 | L5: 10 | M5: 11 | N5: 12 | O5: 13 | P5: 14 | Q5: 16 | R5: TOTAL MONTEES | S5: TOTAL DESCENTES | T5: CHARGE
C6: BLAINVILLE - Les Palmiers | D6: Terre de Nacre | E6: Joliot Curie | F6: Blainville Mairie | G6: Colbert | H6: Langevin Wallon | I6: Feuillantines | J6: Victor Hugo | K6: CHR | L6: Parc d’Ornano | M6: Clos Beaumois | N6: Reine Mathilde | O6: Université | P6: Place de la Mare | Q6: CAEN - Bellivet
A7: 1 | B7: BLAINVILLE - Les Palmiers | K7: 1.203084833 | M7: 1.203084833 | N7: 4.411311054 | O7: 2.59125964 | Q7: 2.59125964 | R7: 12 | T7: =T6+R7-S7 -> 12
A8: 2 | B8: Terre de Nacre | K8: 1.086075949 | Q8: 1.913924051 | R8: 3 | T8: 15
A9: 3 | B9: Joliot Curie | O9: 7.571942446 | Q9: 2.428057554 | R9: 10 | T9: 25
A10: 4 | B10: Blainville Mairie | N10: 5.351796407 | O10: 4.648203593 | R10: 10 | T10: 35
A11: 5 | B11: Colbert | T11: 35
A12: 6 | B12: Langevin Wallon | M12: 1.384987893 | N12: 2.615012107 | R12: 4 | T12: 39
A13: 7 | B13: Feuillantines | O13: 1.392857143 | Q13: 1.607142857 | R13: 3 | T13: 42
A14: 8 | B14: Victor Hugo | O14: 3 | R14: 3 | T14: 45
A15: 9 | B15: CHR | S15: 2.289160782 | T15: 42.71083922
A16: 10 | B16: Parc d’Ornano | T16: 42.71083922
A17: 11 | B17: Clos Beaumois | O17: 1 | R17: 1 | S17: 2.588072726 | T17: 41.12276649
A18: 12 | B18: Reine Mathilde | P18: 2 | R18: 2 | S18: 12.37811957 | T18: 30.74464692
A19: 13 | B19: Université | S19: 20.20426282 | T19: 10.5403841
A20: 14 | B20: Place de la Mare | S20: 2 | T20: 8.540384102
A21: 16 | B21: CAEN - Bellivet | S21: 8.540384102 | T21: 0
A22: TOTAL DESCENTES | K22: 2.289160782 | M22: 2.588072726 | N22: 12.37811957 | O22: 20.20426282 | P22: 2 | Q22: 8.540384102 | R22: 48 | S22: 48

Sheet Sens (Tous)-40-1. JOB
A1: SENS | B1: (Tous)
A2: LIGNE | B2: 40
C5: 1 | D5: 3 | E5: 4 | F5: 5 | G5: 6 | H5: 7 | I5: 8 | J5: 9 | K5: 10 | L5: 11 | M5: 12 | N5: 13 | O5: TOTAL MONTEES | P5: TOTAL DESCENTES
C6: Poincaré | D6: Coudriers | E6: Labrador | F6: Pommier Gris | G6: Vert Vallon | H6: Ampère | I6: Cormelles ZI | J6: PSA | K6: Chappe | L6: Newton | M6: Niepce | N6: Lumière
A7: 1 | B7: Poincaré | G7: 1.464 | H7: 3.2208 | I7: 0.976 | K7: 6.344 | L7: 1.2688 | M7: 3.416 | N7: 44.3104 | O7: 61 | P7: 47.80487805
A8: 3 | B8: Coudriers | M8: 1 | O8: 1 | P8: 1.048780488
A9: 4 | B9: Labrador | M9: 2 | O9: 2
A10: 5 | B10: Pommier Gris | M10: 1 | N10: 1 | O10: 2
A11: 6 | B11: Vert Vallon | C11: 1 | N11: 1 | O11: 2 | P11: 1.464
A12: 7 | B12: Ampère | P12: 3.2208
A13: 8 | B13: Cormelles ZI | C13: 1 | O13: 1 | P13: 2.024780488
A14: 9 | B14: PSA | C14: 2 | N14: 1 | O14: 3
A15: 10 | B15: Chappe | C15: 4 | O15: 4 | P15: 8.441560976
A16: 11 | B16: Newton | P16: 1.2688
A17: 12 | B17: Niepce | C17: 1 | O17: 1 | P17: 7.416
A18: 13 | B18: Lumière | C18: 38.80487805 | D18: 1.048780488 | I18: 1.048780488 | K18: 2.097560976 | O18: 43 | P18: 47.3104
A19: TOTAL DESCENTES | C19: 47.80487805 | D19: 1.048780488 | G19: 1.464 | H19: 3.2208 | I19: 2.024780488 | K19: 8.441560976 | L19: 1.2688 | M19: 7.416 | N19: 47.3104 | O19: 120 | P19: 120

Sheet Sens 2-40-1. JOB
A1: SENS | B1: 2
A2: LIGNE | B2: 40
C5: 13 | D5: 12 | E5: 10 | F5: 9 | G5: 8 | H5: 6 | I5: 5 | J5: 4 | K5: 3 | L5: 1 | M5: TOTAL MONTEES | N5: TOTAL DESCENTES | O5: CHARGE
C6: Lumière | D6: Niepce | E6: Chappe | F6: PSA | G6: Cormelles ZI | H6: Vert Vallon | I6: Pommier Gris | J6: Labrador | K6: Coudriers | L6: Poincaré
A7: 13 | B7: Lumière | E7: 2.097560976 | G7: 1.048780488 | K7: 1.048780488 | L7: 38.80487805 | M7: 43 | O7: =O6+M7-N7 -> 43
A8: 12 | B8: Niepce | L8: 1 | M8: 1 | O8: 44
A9: 10 | B9: Chappe | L9: 4 | M9: 4 | N9: 2.097560976 | O9: 45.90243902
A10: 9 | B10: PSA | L10: 2 | M10: 2 | O10: 47.90243902
A11: 8 | B11: Cormelles ZI | L11: 1 | M11: 1 | N11: 1.048780488 | O11: 47.85365854
A12: 6 | B12: Vert Vallon | L12: 1 | M12: 1 | O12: 48.85365854
A13: 5 | B13: Pommier Gris | O13: 48.85365854
A14: 4 | B14: Labrador | O14: 48.85365854
A15: 3 | B15: Coudriers | N15: 1.048780488 | O15: 47.80487805
A16: 1 | B16: Poincaré | N16: 47.80487805 | O16: 0
A17: TOTAL DESCENTES | E17: 2.097560976 | G17: 1.048780488 | K17: 1.048780488 | L17: 47.80487805 | M17: 52 | N17: 52

Sheet Sens 1-40-1. JOB
A1: SENS | B1: 1
A2: LIGNE | B2: 40
C5: 1 | D5: 3 | E5: 4 | F5: 5 | G5: 6 | H5: 7 | I5: 8 | J5: 9 | K5: 10 | L5: 11 | M5: 12 | N5: 13 | O5: TOTAL MONTEES | P5: TOTAL DESCENTES | Q5: CHARGE
C6: Poincaré | D6: Coudriers | E6: Labrador | F6: Pommier Gris | G6: Vert Vallon | H6: Ampère | I6: Cormelles ZI | J6: PSA | K6: Chappe | L6: Newton | M6: Niepce | N6: Lumière
A7: 1 | B7: Poincaré | G7: 1.464 | H7: 3.2208 | I7: 0.976 | K7: 6.344 | L7: 1.2688 | M7: 3.416 | N7: 44.3104 | O7: 61 | Q7: =Q6+O7-P7 -> 61
A8: 3 | B8: Coudriers | M8: 1 | O8: 1 | Q8: =Q7+O8-P8 -> 62
A9: 4 | B9: Labrador | M9: 2 | O9: 2 | Q9: 64
A10: 5 | B10: Pommier Gris | M10: 1 | N10: 1 | O10: 2 | Q10: 66
A11: 6 | B11: Vert Vallon | N11: 1 | O11: 1 | P11: 1.464 | Q11: 65.536
A12: 7 | B12: Ampère | P12: 3.2208 | Q12: 62.3152
A13: 8 | B13: Cormelles ZI | P13: 0.976 | Q13: 61.3392
A14: 9 | B14: PSA | N14: 1 | O14: 1 | Q14: 62.3392
A15: 10 | B15: Chappe | P15: 6.344 | Q15: 55.9952
A16: 11 | B16: Newton | P16: 1.2688 | Q16: 54.7264
A17: 12 | B17: Niepce | P17: 7.416 | Q17: 47.3104
A18: 13 | B18: Lumière | P18: 47.3104 | Q18: 0
A19: TOTAL DESCENTES | G19: 1.464 | H19: 3.2208 | I19: 0.976 | K19: 6.344 | L19: 1.2688 | M19: 7.416 | N19: 47.3104 | O19: 68 | P19: 68

Sheet Sens (Tous)-37-1. JOB
A1: SENS | B1: (Tous)
A2: LIGNE | B2: 37
C5: 1 | D5: 2 | E5: 3 | F5: 4 | G5: 5 | H5: 6 | I5: 7 | J5: 8 | K5: 9 | L5: 11 | M5: TOTAL MONTEES | N5: TOTAL DESCENTES
C6: ETERVILLE - Route d’Aunay | D6: Eterville Centre | E6: Moulin | F6: Louvigny Mesnil | G6: Route d’Evrecy | H6: Long Cours | I6: Zenith | J6: Lycée Malherbe | K6: Hôtel de Ville | L6: Théâtre
A7: 1 | B7: ETERVILLE - Route d’Aunay | N7: 5
A8: 2 | B8: Eterville Centre | J8: 4 | K8: 2 | L8: 6 | M8: 12 | N8: 2
A9: 3 | B9: Moulin | J9: 2 | M9: 2 | N9: 6
A10: 4 | B10: Louvigny Mesnil
A11: 5 | B11: Route d’Evrecy | N11: 1
A12: 6 | B12: Long Cours | L12: 3 | M12: 3
A13: 7 | B13: Zenith | E13: 3 | M13: 3
A14: 8 | B14: Lycée Malherbe | C14: 2 | E14: 3 | K14: 1 | M14: 6 | N14: 6
A15: 9 | B15: Hôtel de Ville | C15: 2 | M15: 2 | N15: 3
A16: 11 | B16: Théâtre | C16: 1 | D16: 2 | G16: 1 | M16: 4 | N16: 9
A17: TOTAL DESCENTES | C17: 5 | D17: 2 | E17: 6 | G17: 1 | J17: 6 | K17: 3 | L17: 9 | M17: 32 | N17: 32

Sheet Sens 2-37-1. JOB
A1: SENS | B1: 2
A2: LIGNE | B2: 37
C5: 11 | D5: 9 | E5: 8 | F5: 7 | G5: 6 | H5: 5 | I5: 4 | J5: 3 | K5: 2 | L5: 1 | M5: TOTAL MONTEES | N5: TOTAL DESCENTES | O5: CHARGE
C6: Théâtre | D6: Hôtel de Ville | E6: Lycée Malherbe | F6: Zenith | G6: Long Cours | H6: Route d’Evrecy | I6: Louvigny Mesnil | J6: Moulin | K6: Eterville Centre | L6: ETERVILLE - Route d’Aunay
A7: 11 | B7: Théâtre | H7: 1 | K7: 2 | L7: 1 | M7: 4 | O7: =O6+M7-N7 -> 4
A8: 9 | B8: Hôtel de Ville | L8: 2 | M8: 2 | O8: =O7+M8-N8 -> 6
A9: 8 | B9: Lycée Malherbe | J9: 3 | L9: 2 | M9: 5 | O9: 11
A10: 7 | B10: Zenith | J10: 3 | M10: 3 | O10: 14
A11: 6 | B11: Long Cours | O11: 14
A12: 5 | B12: Route d’Evrecy | N12: 1 | O12: 13
A13: 4 | B13: Louvigny Mesnil | O13: 13
A14: 3 | B14: Moulin | N14: 6 | O14: 7
A15: 2 | B15: Eterville Centre | N15: 2 | O15: 5
A16: 1 | B16: ETERVILLE - Route d’Aunay | N16: 5 | O16: 0
A17: TOTAL DESCENTES | H17: 1 | J17: 6 | K17: 2 | L17: 5 | M17: 14 | N17: 14

Sheet Sens 1-37-1. JOB
A1: SENS | B1: 1
A2: LIGNE | B2: 37
C5: 2 | D5: 3 | E5: 4 | F5: 6 | G5: 7 | H5: 8 | I5: 9 | J5: 11 | K5: TOTAL MONTEES | L5: TOTAL DESCENTES | M5: CHARGE
C6: Eterville Centre | D6: Moulin | E6: Louvigny Mesnil | F6: Long Cours | G6: Zenith | H6: Lycée Malherbe | I6: Hôtel de Ville | J6: Théâtre
A7: 2 | B7: Eterville Centre | H7: 4 | I7: 2 | J7: 6 | K7: 12 | M7: =M6+K7-L7 -> 12
A8: 3 | B8: Moulin | H8: 2 | K8: 2 | M8: =M7+K8-L8 -> 14
A9: 4 | B9: Louvigny Mesnil | M9: 14
A10: 6 | B10: Long Cours | J10: 3 | K10: 3 | M10: 17
A11: 7 | B11: Zenith | M11: 17
A12: 8 | B12: Lycée Malherbe | I12: 1 | K12: 1 | L12: 6 | M12: 12
A13: 9 | B13: Hôtel de Ville | L13: 3 | M13: 9
A14: 11 | B14: Théâtre | L14: 9 | M14: 0
A15: TOTAL DESCENTES | H15: 6 | I15: 3 | J15: 9 | K15: 18 | L15: 18

Sheet Sens (Tous)-36-1. JOB
A1: SENS | B1: (Tous)
A2: LIGNE | B2: 36
C5: 1 | D5: 2 | E5: 3 | F5: 4 | G5: 5 | H5: 6 | I5: 7 | J5: 8 | K5: 9 | L5: 10 | M5: 11 | N5: 12 | O5: 14 | P5: 15 | Q5: 17 | R5: 18 | S5: 19 | T5: 20 | U5: 21 | V5: 22 | W5: 23 | X5: 24 | Y5: 25 | Z5: 26 | AA5: 27 | AB5: 28 | AC5: 29 | AD5: TOTAL MONTEES | AE5: TOTAL DESCENTES
C6: THUE ET MUE Le Bosq | D6: THUE ET MUE Cheux Bourg | E6: La Pommeraie | F6: La Bouille | G6: THUE ET MUE Norrey Calvaire | H6: Mesnil Patry | I6: Norrey Église | J6: THUE ET MUE Norrey Calvaire | K6: Bouliesse | L6: Saint-Manvieu Église | M6: Le Mareschet | N6: Le Marcelet | O6: Carpiquet Mairie | P6: Festyland | Q6: Collège Moulin | R6: Collège Saint-Paul | S6: Séminaire | T6: Poilus d’Orient | U6: Lycée de Gaulle | V6: Hôtel de Ville | W6: Lanfranc | X6: Hôtel de Ville | Y6: CAEN Lycée Malherbe | Z6: Théâtre | AA6: Hippodrome | AB6: Théâtre | AC6: CAEN - Gare SNCF
A7: 1 | B7: THUE ET MUE Le Bosq | U7: 8 | V7: 1 | W7: 2 | Z7: 1 | AC7: 1 | AD7: 13 | AE7: 4
A8: 2 | B8: THUE ET MUE Cheux Bourg | R8: 8.834269663 | T8: 1.957865169 | U8: 13.89606742 | V8: 0.9789325843 | X8: 3.271067416 | Z8: 2.936797753 | AC8: 2.125 | AD8: 34 | AE8: 52
A9: 3 | B9: La Pommeraie | R9: 1.258426966 | U9: 4.483146067 | Z9: 1.258426966 | AD9: 7 | AE9: 17
A10: 4 | B10: La Bouille | U10: 4 | AC10: 1 | AD10: 5 | AE10: 3
A11: 5 | B11: THUE ET MUE Norrey Calvaire | Q11: 5.090529789 | R11: 3.583033843 | V11: 1.108812122 | Y11: 2.217624245 | AD11: 12 | AE11: 3
A12: 6 | B12: Mesnil Patry | Q12: 9.464048197 | R12: 1.352006885 | Y12: 4.183944918 | AD12: 15 | AE12: 7
A13: 7 | B13: Norrey Église | Q13: 4.660153193 | R13: 2.769076535 | V13: 0.8569234242 | Y13: 1.713846848 | AD13: 10 | AE13: 5
A14: 8 | B14: THUE ET MUE Norrey Calvaire | AE14: 2
A15: 9 | B15: Bouliesse | Q15: 0.9164607361 | T15: 4.356509006 | U15: 0.9164607361 | V15: 0.6740865715 | Y15: 9.437212001 | Z15: 1.699270948 | AD15: 18 | AE15: 7
A16: 10 | B16: Saint-Manvieu Église | Q16: 10.26850496 | R16: 4.576181556 | V16: 5.980724634 | Y16: 7.552818171 | Z16: 2.621770683 | AD16: 31 | AE16: 20
A17: 11 | B17: Le Mareschet | AC17: 1 | AD17: 1 | AE17: 3
A18: 12 | B18: Le Marcelet | Q18: 3.607515658 | R18: 1.027139875 | U18: 1.027139875 | V18: 1.202505219 | X18: 3.081419624 | Z18: 1.027139875 | AC18: 1.027139875 | AD18: 12 | AE18: 9
A19: 14 | B19: Carpiquet Mairie | Q19: 1 | X19: 1 | AD19: 2 | AE19: 4
A20: 15 | B20: Festyland | AE20: 3
A21: 17 | B21: Collège Moulin | AE21: 35.00721253
A22: 18 | B22: Collège Saint-Paul | G22: 1 | H22: 2 | J22: 1 | K22: 1 | L22: 8 | M22: 2 | N22: 5 | P22: 1 | AD22: 21 | AE22: 23.40013532
A23: 19 | B23: Séminaire | E23: 6 | H23: 1 | I23: 3 | K23: 2 | L23: 5 | M23: 1 | N23: 2 | O23: 2 | P23: 2 | AD23: 24
A24: 20 | B24: Poilus d’Orient | H24: 2 | N24: 1 | AD24: 3 | AE24: 6.314374175
A25: 21 | B25: Lycée de Gaulle | I25: 1 | AD25: 1 | AE25: 32.32281409
A26: 22 | B26: Hôtel de Ville | AE26: 11.80198456
A27: 23 | B27: Lanfranc | D27: 2 | K27: 1 | L27: 1 | AD27: 4 | AE27: 3
A28: 24 | B28: Hôtel de Ville | C28: 2 | D28: 45 | E28: 11 | F28: 3 | I28: 1 | K28: 1 | O28: 1 | AD28: 64 | AE28: 7.35248704
A29: 25 | B29: CAEN Lycée Malherbe | C29: 2 | D29: 1 | AD29: 3 | AE29: 25.10544618
A30: 26 | B30: Théâtre | H30: 1 | J30: 1 | K30: 2 | L30: 1 | AD30: 5 | AE30: 10.54340623
A31: 27 | B31: Hippodrome | D31: 3 | H31: 1 | L31: 5 | N31: 1 | O31: 1 | AD31: 11
A32: 28 | B32: Théâtre | W32: 1 | AD32: 1
A33: 29 | B33: CAEN - Gare SNCF | D33: 1 | G33: 2 | AD33: 3 | AE33: 6.152139875
A34: TOTAL DESCENTES | C34: 4 | D34: 52 | E34: 17 | F34: 3 | G34: 3 | H34: 7 | I34: 5 | J34: 2 | K34: 7 | L34: 20 | M34: 3 | N34: 9 | O34: 4 | P34: 3 | Q34: 35.00721253 | R34: 23.40013532 | T34: 6.314374175 | U34: 32.32281409 | V34: 11.80198456 | W34: 3 | X34: 7.35248704 | Y34: 25.10544618 | Z34: 10.54340623 | AC34: 6.152139875 | AD34: 300 | AE34: 300

Sheet Sens 2-36-1. JOB
A1: SENS | B1: 2
A2: LIGNE | B2: 36
C5: 29 | D5: 28 | E5: 27 | F5: 26 | G5: 24 | H5: 23 | I5: 22 | J5: 20 | K5: 19 | L5: 18 | M5: 17 | N5: 15 | O5: 14 | P5: 12 | Q5: 11 | R5: 10 | S5: 9 | T5: 8 | U5: 7 | V5: 6 | W5: 5 | X5: 4 | Y5: 3 | Z5: 2 | AA5: 1 | AB5: TOTAL MONTEES | AC5: TOTAL DESCENTES | AD5: CHARGE
C6: CAEN - Gare SNCF | D6: Théâtre | E6: Hippodrome | F6: Théâtre | G6: Hôtel de Ville | H6: Lanfranc | I6: Hôtel de Ville | J6: Poilus d’Orient | K6: Séminaire | L6: Collège Saint-Paul | M6: Collège Moulin | N6: Festyland | O6: Carpiquet Mairie | P6: Le Marcelet | Q6: Le Mareschet | R6: Saint-Manvieu Église | S6: Bouliesse | T6: THUE ET MUE Norrey Calvaire | U6: Norrey Église | V6: Mesnil Patry | W6: THUE ET MUE Norrey Calvaire | X6: La Bouille | Y6: La Pommeraie | Z6: THUE ET MUE Cheux Bourg | AA6: THUE ET MUE Le Bosq
A7: 29 | B7: CAEN - Gare SNCF | W7: 2 | Z7: 1 | AB7: 3 | AD7: =AD6+AB7-AC7 -> 3
A8: 28 | B8: Théâtre | H8: 1 | AB8: 1 | AD8: =AD7+AB8-AC8 -> 4
A9: 27 | B9: Hippodrome | O9: 1 | P9: 1 | R9: 5 | V9: 1 | Z9: 3 | AB9: 11 | AD9: 15
A10: 26 | B10: Théâtre | R10: 1 | S10: 2 | T10: 1 | V10: 1 | AB10: 5 | AD10: 20
A11: 24 | B11: Hôtel de Ville | Z11: 1 | AA11: 2 | AB11: 3 | AD11: 23
A12: 23 | B12: Lanfranc | O12: 1 | S12: 1 | U12: 1 | X12: 3 | Y12: 11 | Z12: 45 | AA12: 2 | AB12: 64 | AC12: 1 | AD12: 86
A13: 22 | B13: Hôtel de Ville | R13: 1 | S13: 1 | Z13: 2 | AB13: 4 | AD13: 90
A14: 20 | B14: Poilus d’Orient | U14: 1 | AB14: 1 | AD14: 91
A15: 19 | B15: Séminaire | P15: 1 | V15: 2 | AB15: 3 | AD15: 94
A16: 18 | B16: Collège Saint-Paul | N16: 2 | O16: 2 | P16: 2 | Q16: 1 | R16: 5 | S16: 2 | U16: 3 | V16: 1 | Y16: 6 | AB16: 24 | AD16: 118
A17: 17 | B17: Collège Moulin | N17: 1 | P17: 5 | Q17: 2 | R17: 8 | S17: 1 | T17: 1 | V17: 2 | W17: 1 | AB17: 21 | AD17: 139
A18: 15 | B18: Festyland | AC18: 3 | AD18: 136
A19: 14 | B19: Carpiquet Mairie | AC19: 4 | AD19: 132
A20: 12 | B20: Le Marcelet | AC20: 9 | AD20: 123
A21: 11 | B21: Le Mareschet | AC21: 3 | AD21: 120
A22: 10 | B22: Saint-Manvieu Église | AC22: 20 | AD22: 100
A23: 9 | B23: Bouliesse | AC23: 7 | AD23: 93
A24: 8 | B24: THUE ET MUE Norrey Calvaire | AC24: 2 | AD24: 91
A25: 7 | B25: Norrey Église | AC25: 5 | AD25: 86
A26: 6 | B26: Mesnil Patry | AC26: 7 | AD26: 79
A27: 5 | B27: THUE ET MUE Norrey Calvaire | AC27: 3 | AD27: 76
A28: 4 | B28: La Bouille | AC28: 3 | AD28: 73
A29: 3 | B29: La Pommeraie | AC29: 17 | AD29: 56
A30: 2 | B30: THUE ET MUE Cheux Bourg | AC30: 52 | AD30: 4
A31: 1 | B31: THUE ET MUE Le Bosq | AC31: 4 | AD31: 0
A32: TOTAL DESCENTES | H32: 1 | N32: 3 | O32: 4 | P32: 9 | Q32: 3 | R32: 20 | S32: 7 | T32: 2 | U32: 5 | V32: 7 | W32: 3 | X32: 3 | Y32: 17 | Z32: 52 | AA32: 4 | AB32: 140 | AC32: 140

Sheet Sens 1-36-1. JOB
A1: SENS | B1: 1
A2: LIGNE | B2: 36
C5: 1 | D5: 2 | E5: 3 | F5: 4 | G5: 5 | H5: 6 | I5: 7 | J5: 9 | K5: 10 | L5: 11 | M5: 12 | N5: 14 | O5: 17 | P5: 18 | Q5: 19 | R5: 20 | S5: 21 | T5: 22 | U5: 23 | V5: 24 | W5: 25 | X5: 26 | Y5: 27 | Z5: 28 | AA5: 29 | AB5: TOTAL MONTEES | AC5: TOTAL DESCENTES | AD5: CHARGE
C6: THUE ET MUE Le Bosq | D6: THUE ET MUE Cheux Bourg | E6: La Pommeraie | F6: La Bouille | G6: THUE ET MUE Norrey Calvaire | H6: Mesnil Patry | I6: Norrey Église | J6: Bouliesse | K6: Saint-Manvieu Église | L6: Le Mareschet | M6: Le Marcelet | N6: Carpiquet Mairie | O6: Collège Moulin | P6: Collège Saint-Paul | Q6: Séminaire | R6: Poilus d’Orient | S6: Lycée de Gaulle | T6: Hôtel de Ville | U6: Lanfranc | V6: Hôtel de Ville | W6: CAEN Lycée Malherbe | X6: Théâtre | Y6: Hippodrome | Z6: Théâtre | AA6: CAEN - Gare SNCF
A7: 1 | B7: THUE ET MUE Le Bosq | S7: 8 | T7: 1 | U7: 2 | X7: 1 | AA7: 1 | AB7: 13 | AD7: =AD6+AB7-AC7 -> 13
A8: 2 | B8: THUE ET MUE Cheux Bourg | P8: 8.834269663 | R8: 1.957865169 | S8: 13.89606742 | T8: 0.9789325843 | V8: 3.271067416 | X8: 2.936797753 | AA8: 2.125 | AB8: 34 | AD8: =AD7+AB8-AC8 -> 47
A9: 3 | B9: La Pommeraie | P9: 1.258426966 | S9: 4.483146067 | X9: 1.258426966 | AB9: 7 | AD9: 54
A10: 4 | B10: La Bouille | S10: 4 | AA10: 1 | AB10: 5 | AD10: 59
A11: 5 | B11: THUE ET MUE Norrey Calvaire | O11: 5.090529789 | P11: 3.583033843 | T11: 1.108812122 | W11: 2.217624245 | AB11: 12 | AD11: 71
A12: 6 | B12: Mesnil Patry | O12: 9.464048197 | P12: 1.352006885 | W12: 4.183944918 | AB12: 15 | AD12: 86
A13: 7 | B13: Norrey Église | O13: 4.660153193 | P13: 2.769076535 | T13: 0.8569234242 | W13: 1.713846848 | AB13: 10 | AD13: 96
A14: 9 | B14: Bouliesse | O14: 0.9164607361 | R14: 4.356509006 | S14: 0.9164607361 | T14: 0.6740865715 | W14: 9.437212001 | X14: 1.699270948 | AB14: 18 | AD14: 114
A15: 10 | B15: Saint-Manvieu Église | O15: 10.26850496 | P15: 4.576181556 | T15: 5.980724634 | W15: 7.552818171 | X15: 2.621770683 | AB15: 31 | AD15: 145
A16: 11 | B16: Le Mareschet | AA16: 1 | AB16: 1 | AD16: 146
A17: 12 | B17: Le Marcelet | O17: 3.607515658 | P17: 1.027139875 | S17: 1.027139875 | T17: 1.202505219 | V17: 3.081419624 | X17: 1.027139875 | AA17: 1.027139875 | AB17: 12 | AD17: 158
A18: 14 | B18: Carpiquet Mairie | O18: 1 | V18: 1 | AB18: 2 | AD18: 160
A19: 17 | B19: Collège Moulin | AC19: 35.00721253 | AD19: 124.9927875
A20: 18 | B20: Collège Saint-Paul | AC20: 23.40013532 | AD20: 101.5926521
A21: 19 | B21: Séminaire | AD21: 101.5926521
A22: 20 | B22: Poilus d’Orient | AC22: 6.314374175 | AD22: 95.27827797
A23: 21 | B23: Lycée de Gaulle | AC23: 32.32281409 | AD23: 62.95546388
A24: 22 | B24: Hôtel de Ville | AC24: 11.80198456 | AD24: 51.15347932
A25: 23 | B25: Lanfranc | AC25: 2 | AD25: 49.15347932
A26: 24 | B26: Hôtel de Ville | AC26: 7.35248704 | AD26: 41.80099228
A27: 25 | B27: CAEN Lycée Malherbe | AC27: 25.10544618 | AD27: 16.6955461
A28: 26 | B28: Théâtre | AC28: 10.54340623 | AD28: 6.152139875
A29: 27 | B29: Hippodrome | AD29: 6.152139875
A30: 28 | B30: Théâtre | AD30: 6.152139875
A31: 29 | B31: CAEN - Gare SNCF | AC31: 6.152139875 | AD31: -2.398081733e-14
A32: TOTAL DESCENTES | O32: 35.00721253 | P32: 23.40013532 | R32: 6.314374175 | S32: 32.32281409 | T32: 11.80198456 | U32: 2 | V32: 7.35248704 | W32: 25.10544618 | X32: 10.54340623 | AA32: 6.152139875 | AB32: 160 | AC32: 160

Sheet Sens (Tous)-35-1. JOB
A1: SENS | B1: (Tous)
A2: LIGNE | B2: 35
C5: 1 | D5: 3 | E5: 4 | F5: 5 | G5: 8 | H5: 11 | I5: 12 | J5: 13 | K5: 14 | L5: 15 | M5: 16 | N5: 17 | O5: 18 | P5: 19 | Q5: 20 | R5: 21 | S5: 23 | T5: 24 | U5: 25 | V5: 26 | W5: TOTAL MONTEES | X5: TOTAL DESCENTES
C6: LE CASTELET - Saint-Aignan Mairie | D6: Secqueville Hameau | E6: Les Greens | F6: Garcelles Bourg | G6: BOURGUÉBUS - Centre | H6: Musique en Plaine | I6: HUBERT - Centre | J6: Zone Industrielle | K6: Tageret | L6: Soliers Mairie | M6: Clos Neuf | N6: Le Clos | O6: Le Hameau | P6: Centre Commercial | Q6: Route de Paris | R6: Maurice Fouques | S6: Pasteur | T6: Aviation | U6: Demi Lune | V6: CAEN - Gare SNCF
A7: 1 | B7: LE CASTELET - Saint-Aignan Mairie | U7: 1.301204819 | V7: 7.698795181 | W7: 9 | X7: 2.793367347
A8: 3 | B8: Secqueville Hameau | V8: 3 | W8: 3 | X8: 1.855867347
A9: 4 | B9: Les Greens | V9: 2 | W9: 2 | X9: 4.100765306
A10: 5 | B10: Garcelles Bourg | V10: 2 | W10: 2 | X10: 2.06420068
A11: 8 | B11: BOURGUÉBUS - Centre | T11: 56.18509615 | U11: 1.362980769 | V11: 5.451923077 | W11: 63 | X11: 32.66836735
A12: 11 | B12: Musique en Plaine | Q12: 1.256410256 | V12: 5.743589744 | W12: 7 | X12: 1.875
A13: 12 | B13: HUBERT - Centre | R13: 1.166666667 | T13: 1.166666667 | V13: 2.666666667 | W13: 5 | X13: 1
A14: 13 | B14: Zone Industrielle | V14: 2 | W14: 2
A15: 14 | B15: Tageret | T15: 19 | W15: 19 | X15: 1.9375
A16: 15 | B16: Soliers Mairie | T16: 35.63636364 | V16: 16.36363636 | W16: 52 | X16: 18.8295068
A17: 16 | B17: Clos Neuf | T17: 12.75 | V17: 4.25 | W17: 17 | X17: 13.71428571
A18: 17 | B18: Le Clos | T18: 9.882352941 | U18: 2.117647059 | W18: 12 | X18: 9.303571429
A19: 18 | B19: Le Hameau | X19: 3.920068027
A20: 19 | B20: Centre Commercial | V20: 1 | W20: 1 | X20: 0.9375
A21: 20 | B21: Route de Paris | M21: 1 | N21: 1 | W21: 2 | X21: 1.256410256
A22: 21 | B22: Maurice Fouques | I22: 1 | W22: 1 | X22: 1.166666667
A23: 23 | B23: Pasteur | G23: 3 | K23: 1 | L23: 1 | M23: 2 | W23: 7
A24: 24 | B24: Aviation | C24: 0.9183673469 | D24: 0.9183673469 | E24: 3.163265306 | F24: 0.9183673469 | G24: 25.91836735 | L24: 9.183673469 | M24: 10.71428571 | N24: 6.428571429 | O24: 1.836734694 | W24: 60 | X24: 134.6204794
A25: 25 | B25: Demi Lune | X25: 4.781832647
A26: 26 | B26: CAEN - Gare SNCF | C26: 1.875 | D26: 0.9375 | E26: 0.9375 | F26: 1.145833333 | G26: 3.75 | H26: 1.875 | K26: 0.9375 | L26: 8.645833333 | N26: 1.875 | O26: 2.083333333 | P26: 0.9375 | W26: 25 | X26: 52.17461103
A27: TOTAL DESCENTES | C27: 2.793367347 | D27: 1.855867347 | E27: 4.100765306 | F27: 2.06420068 | G27: 32.66836735 | H27: 1.875 | I27: 1 | K27: 1.9375 | L27: 18.8295068 | M27: 13.71428571 | N27: 9.303571429 | O27: 3.920068027 | P27: 0.9375 | Q27: 1.256410256 | R27: 1.166666667 | T27: 134.6204794 | U27: 4.781832647 | V27: 52.17461103 | W27: 289 | X27: 289

Sheet Sens 2-35-1. JOB
A1: SENS | B1: 2
A2: LIGNE | B2: 35
C5: 26 | D5: 24 | E5: 23 | F5: 21 | G5: 20 | H5: 19 | I5: 18 | J5: 17 | K5: 16 | L5: 15 | M5: 14 | N5: 13 | O5: 12 | P5: 11 | Q5: 8 | R5: 5 | S5: 4 | T5: 3 | U5: 1 | V5: TOTAL MONTEES | W5: TOTAL DESCENTES | X5: CHARGE
C6: CAEN - Gare SNCF | D6: Aviation | E6: Pasteur | F6: Maurice Fouques | G6: Route de Paris | H6: Centre Commercial | I6: Le Hameau | J6: Le Clos | K6: Clos Neuf | L6: Soliers Mairie | M6: Tageret | N6: Zone Industrielle | O6: HUBERT - Centre | P6: Musique en Plaine | Q6: BOURGUÉBUS - Centre | R6: Garcelles Bourg | S6: Les Greens | T6: Secqueville Hameau | U6: LE CASTELET - Saint-Aignan Mairie
A7: 26 | B7: CAEN - Gare SNCF | H7: 0.9375 | I7: 2.083333333 | J7: 1.875 | L7: 8.645833333 | M7: 0.9375 | P7: 1.875 | Q7: 3.75 | R7: 1.145833333 | S7: 0.9375 | T7: 0.9375 | U7: 1.875 | V7: 25 | X7: =X6+V7-W7 -> 25
A8: 24 | B8: Aviation | I8: 1.836734694 | J8: 6.428571429 | K8: 10.71428571 | L8: 9.183673469 | Q8: 25.91836735 | R8: 0.9183673469 | S8: 3.163265306 | T8: 0.9183673469 | U8: 0.9183673469 | V8: 60 | X8: 85
A9: 23 | B9: Pasteur | K9: 2 | L9: 1 | M9: 1 | Q9: 3 | V9: 7 | X9: 92
A10: 21 | B10: Maurice Fouques | O10: 1 | V10: 1 | X10: 93
A11: 20 | B11: Route de Paris | J11: 1 | K11: 1 | V11: 2 | X11: 95
A12: 19 | B12: Centre Commercial | W12: 0.9375 | X12: 94.0625
A13: 18 | B13: Le Hameau | W13: 3.920068027 | X13: 90.14243197
A14: 17 | B14: Le Clos | W14: 9.303571429 | X14: 80.83886054
A15: 16 | B15: Clos Neuf | W15: 13.71428571 | X15: 67.12457483
A16: 15 | B16: Soliers Mairie | W16: 18.8295068 | X16: 48.29506803
A17: 14 | B17: Tageret | W17: 1.9375 | X17: 46.35756803
A18: 13 | B18: Zone Industrielle | X18: 46.35756803
A19: 12 | B19: HUBERT - Centre | W19: 1 | X19: 45.35756803
A20: 11 | B20: Musique en Plaine | W20: 1.875 | X20: 43.48256803
A21: 8 | B21: BOURGUÉBUS - Centre | W21: 32.66836735 | X21: 10.81420068
A22: 5 | B22: Garcelles Bourg | W22: 2.06420068 | X22: 8.75
A23: 4 | B23: Les Greens | W23: 4.100765306 | X23: 4.649234694
A24: 3 | B24: Secqueville Hameau | W24: 1.855867347 | X24: 2.793367347
A25: 1 | B25: LE CASTELET - Saint-Aignan Mairie | W25: 2.793367347 | X25: -2.886579864e-14
A26: TOTAL DESCENTES | H26: 0.9375 | I26: 3.920068027 | J26: 9.303571429 | K26: 13.71428571 | L26: 18.8295068 | M26: 1.9375 | O26: 1 | P26: 1.875 | Q26: 32.66836735 | R26: 2.06420068 | S26: 4.100765306 | T26: 1.855867347 | U26: 2.793367347 | V26: 95 | W26: 95

Sheet Sens 1-35-1. JOB
A1: SENS | B1: 1
A2: LIGNE | B2: 35
C5: 1 | D5: 3 | E5: 4 | F5: 5 | G5: 8 | H5: 11 | I5: 12 | J5: 13 | K5: 14 | L5: 15 | M5: 16 | N5: 17 | O5: 19 | P5: 20 | Q5: 21 | R5: 23 | S5: 24 | T5: 25 | U5: 26 | V5: TOTAL MONTEES | W5: TOTAL DESCENTES | X5: CHARGE
C6: LE CASTELET - Saint-Aignan Mairie | D6: Secqueville Hameau | E6: Les Greens | F6: Garcelles Bourg | G6: BOURGUÉBUS - Centre | H6: Musique en Plaine | I6: HUBERT - Centre | J6: Zone Industrielle | K6: Tageret | L6: Soliers Mairie | M6: Clos Neuf | N6: Le Clos | O6: Centre Commercial | P6: Route de Paris | Q6: Maurice Fouques | R6: Pasteur | S6: Aviation | T6: Demi Lune | U6: CAEN - Gare SNCF
A7: 1 | B7: LE CASTELET - Saint-Aignan Mairie | T7: 1.301204819 | U7: 7.698795181 | V7: 9 | X7: =X6+V7-W7 -> 9
A8: 3 | B8: Secqueville Hameau | U8: 3 | V8: 3 | X8: 12
A9: 4 | B9: Les Greens | U9: 2 | V9: 2 | X9: 14
A10: 5 | B10: Garcelles Bourg | U10: 2 | V10: 2 | X10: 16
A11: 8 | B11: BOURGUÉBUS - Centre | S11: 56.18509615 | T11: 1.362980769 | U11: 5.451923077 | V11: 63 | X11: 79
A12: 11 | B12: Musique en Plaine | P12: 1.256410256 | U12: 5.743589744 | V12: 7 | X12: 86
A13: 12 | B13: HUBERT - Centre | Q13: 1.166666667 | S13: 1.166666667 | U13: 2.666666667 | V13: 5 | X13: 91
A14: 13 | B14: Zone Industrielle | U14: 2 | V14: 2 | X14: 93
A15: 14 | B15: Tageret | S15: 19 | V15: 19 | X15: 112
A16: 15 | B16: Soliers Mairie | S16: 35.63636364 | U16: 16.36363636 | V16: 52 | X16: 164
A17: 16 | B17: Clos Neuf | S17: 12.75 | U17: 4.25 | V17: 17 | X17: 181
A18: 17 | B18: Le Clos | S18: 9.882352941 | T18: 2.117647059 | V18: 12 | X18: 193
A19: 19 | B19: Centre Commercial | U19: 1 | V19: 1 | X19: 194
A20: 20 | B20: Route de Paris | W20: 1.256410256 | X20: 192.7435897
A21: 21 | B21: Maurice Fouques | W21: 1.166666667 | X21: 191.5769231
A22: 23 | B22: Pasteur | X22: 191.5769231
A23: 24 | B23: Aviation | W23: 134.6204794 | X23: 56.95644368
A24: 25 | B24: Demi Lune | W24: 4.781832647 | X24: 52.17461103
A25: 26 | B25: CAEN - Gare SNCF | W25: 52.17461103 | X25: 0
A26: TOTAL DESCENTES | P26: 1.256410256 | Q26: 1.166666667 | S26: 134.6204794 | T26: 4.781832647 | U26: 52.17461103 | V26: 194 | W26: 194

Sheet Sens (Tous)-34-1. JOB
A1: SENS | B1: (Tous)
A2: LIGNE | B2: 34
C5: 1 | D5: 2 | E5: 3 | F5: 4 | G5: 5 | H5: 8 | I5: 9 | J5: 10 | K5: 11 | L5: 12 | M5: 13 | N5: 14 | O5: 15 | P5: 16 | Q5: 17 | R5: 18 | S5: 20 | T5: 21 | U5: 22 | V5: 23 | W5: TOTAL MONTEES | X5: TOTAL DESCENTES
C6: SAINT-ANDRÉ - Luxembourg | D6: Clos du Hamel | E6: René Goscinny | F6: Prévert | G6: Paitis Blancs | H6: Basse Allemagne | I6: Fleury Château d’Eau | J6: Route d’Harcourt | K6: Brasserie | L6: Lavigerie | M6: Charles de Foucauld | N6: Grâce de Dieu | O6: Lycée Fresnel | P6: Armand Marie | Q6: Lyautey | R6: Branville | S6: Lycée Malherbe | T6: Hôtel de Ville | U6: Espace Gardin | V6: Théâtre
A7: 1 | B7: SAINT-ANDRÉ - Luxembourg | I7: 0.7142857143 | N7: 0.5714285714 | O7: 0.7142857143 | W7: 2 | X7: 5.515151515
A8: 2 | B8: Clos du Hamel | N8: 3.98490566 | O8: 2.532075472 | T8: 1.079245283 | V8: 3.403773585 | W8: 11 | X8: 5.303030303
A9: 3 | B9: René Goscinny | X9: 3
A10: 4 | B10: Prévert | V10: 2 | W10: 2 | X10: 1.666666667
A11: 5 | B11: Paitis Blancs | S11: 0.8 | T11: 1.2 | W11: 2
A12: 8 | B12: Basse Allemagne | X12: 2
A13: 9 | B13: Fleury Château d’Eau | N13: 1.037037037 | U13: 0.962962963 | W13: 2 | X13: 3.714285714
A14: 10 | B14: Route d’Harcourt | S14: 1 | W14: 1 | X14: 1
A15: 11 | B15: Brasserie | O15: 1 | U15: 1 | W15: 2 | X15: 0.8333333333
A16: 12 | B16: Lavigerie | T16: 1 | W16: 1 | X16: 0.6666666667
A17: 13 | B17: Charles de Foucauld | J17: 1 | N17: 1 | V17: 1 | W17: 3
A18: 14 | B18: Grâce de Dieu | C18: 1 | I18: 2 | Q18: 0.8888888889 | T18: 1.111111111 | W18: 5 | X18: 9.93428036
A19: 15 | B19: Lycée Fresnel | D19: 2 | E19: 3 | H19: 2 | W19: 7 | X19: 6.496361186
A20: 16 | B20: Armand Marie | V20: 1 | W20: 1
A21: 17 | B21: Lyautey | N21: 1 | O21: 1 | V21: 1 | W21: 3 | X21: 2.555555556
A22: 18 | B22: Branville | X22: 0.6666666667
A23: 20 | B23: Lycée Malherbe | K23: 0.8333333333 | N23: 1.25 | O23: 1.25 | Q23: 1.666666667 | T23: 1 | W23: 6 | X23: 1.8
A24: 21 | B24: Hôtel de Ville | C24: 1.666666667 | D24: 1.666666667 | F24: 1.666666667 | W24: 5 | X24: 6.481265485
A25: 22 | B25: Espace Gardin | C25: 0.6666666667 | I25: 1 | L25: 0.6666666667 | R25: 0.6666666667 | W25: 3 | X25: 1.962962963
A26: 23 | B26: Théâtre | C26: 2.181818182 | D26: 1.636363636 | N26: 1.090909091 | T26: 1.090909091 | W26: 6 | X26: 8.403773585
A27: TOTAL DESCENTES | C27: 5.515151515 | D27: 5.303030303 | E27: 3 | F27: 1.666666667 | H27: 2 | I27: 3.714285714 | J27: 1 | K27: 0.8333333333 | L27: 0.6666666667 | N27: 9.93428036 | O27: 6.496361186 | Q27: 2.555555556 | R27: 0.6666666667 | S27: 1.8 | T27: 6.481265485 | U27: 1.962962963 | V27: 8.403773585 | W27: 62 | X27: 62

Sheet Sens 2-34-1. JOB
A1: SENS | B1: 2
A2: LIGNE | B2: 34
C5: 23 | D5: 22 | E5: 21 | F5: 20 | G5: 18 | H5: 17 | I5: 16 | J5: 15 | K5: 14 | L5: 13 | M5: 12 | N5: 11 | O5: 10 | P5: 9 | Q5: 8 | R5: 5 | S5: 4 | T5: 3 | U5: 2 | V5: 1 | W5: TOTAL MONTEES | X5: TOTAL DESCENTES | Y5: CHARGE
C6: Théâtre | D6: Espace Gardin | E6: Hôtel de Ville | F6: Lycée Malherbe | G6: Branville | H6: Lyautey | I6: Armand Marie | J6: Lycée Fresnel | K6: Grâce de Dieu | L6: Charles de Foucauld | M6: Lavigerie | N6: Brasserie | O6: Route d’Harcourt | P6: Fleury Château d’Eau | Q6: Basse Allemagne | R6: Paitis Blancs | S6: Prévert | T6: René Goscinny | U6: Clos du Hamel | V6: SAINT-ANDRÉ - Luxembourg
A7: 23 | B7: Théâtre | E7: 1.090909091 | K7: 1.090909091 | U7: 1.636363636 | V7: 2.181818182 | W7: 6 | Y7: =Y6+W7-X7 -> 6
A8: 22 | B8: Espace Gardin | G8: 0.6666666667 | M8: 0.6666666667 | P8: 1 | V8: 0.6666666667 | W8: 3 | Y8: 9
A9: 21 | B9: Hôtel de Ville | S9: 1.666666667 | U9: 1.666666667 | V9: 1.666666667 | W9: 5 | X9: 1.090909091 | Y9: 12.90909091
A10: 20 | B10: Lycée Malherbe | H10: 1.666666667 | J10: 1.25 | K10: 1.25 | N10: 0.8333333333 | W10: 5 | Y10: 17.90909091
A11: 18 | B11: Branville | X11: 0.6666666667 | Y11: 17.24242424
A12: 17 | B12: Lyautey | J12: 1 | K12: 1 | W12: 2 | X12: 1.666666667 | Y12: 17.57575758
A13: 16 | B13: Armand Marie | Y13: 17.57575758
A14: 15 | B14: Lycée Fresnel | Q14: 2 | T14: 3 | U14: 2 | W14: 7 | X14: 2.25 | Y14: 22.32575758
A15: 14 | B15: Grâce de Dieu | P15: 2 | V15: 1 | W15: 3 | X15: 3.340909091 | Y15: 21.98484848
A16: 13 | B16: Charles de Foucauld | O16: 1 | W16: 1 | Y16: 22.98484848
A17: 12 | B17: Lavigerie | X17: 0.6666666667 | Y17: 22.31818182
A18: 11 | B18: Brasserie | X18: 0.8333333333 | Y18: 21.48484848
A19: 10 | B19: Route d’Harcourt | X19: 1 | Y19: 20.48484848
A20: 9 | B20: Fleury Château d’Eau | X20: 3 | Y20: 17.48484848
A21: 8 | B21: Basse Allemagne | X21: 2 | Y21: 15.48484848
A22: 5 | B22: Paitis Blancs | Y22: 15.48484848
A23: 4 | B23: Prévert | X23: 1.666666667 | Y23: 13.81818182
A24: 3 | B24: René Goscinny | X24: 3 | Y24: 10.81818182
A25: 2 | B25: Clos du Hamel | X25: 5.303030303 | Y25: 5.515151515
A26: 1 | B26: SAINT-ANDRÉ - Luxembourg | X26: 5.515151515 | Y26: 0
A27: TOTAL DESCENTES | E27: 1.090909091 | G27: 0.6666666667 | H27: 1.666666667 | J27: 2.25 | K27: 3.340909091 | M27: 0.6666666667 | N27: 0.8333333333 | O27: 1 | P27: 3 | Q27: 2 | S27: 1.666666667 | T27: 3 | U27: 5.303030303 | V27: 5.515151515 | W27: 32 | X27: 32

Sheet Sens 1-34-1. JOB
A1: SENS | B1: 1
A2: LIGNE | B2: 34
C5: 1 | D5: 2 | E5: 4 | F5: 5 | G5: 9 | H5: 10 | I5: 11 | J5: 12 | K5: 13 | L5: 14 | M5: 15 | N5: 16 | O5: 17 | P5: 20 | Q5: 21 | R5: 22 | S5: 23 | T5: TOTAL MONTEES | U5: TOTAL DESCENTES | V5: CHARGE
C6: SAINT-ANDRÉ - Luxembourg | D6: Clos du Hamel | E6: Prévert | F6: Paitis Blancs | G6: Fleury Château d’Eau | H6: Route d’Harcourt | I6: Brasserie | J6: Lavigerie | K6: Charles de Foucauld | L6: Grâce de Dieu | M6: Lycée Fresnel | N6: Armand Marie | O6: Lyautey | P6: Lycée Malherbe | Q6: Hôtel de Ville | R6: Espace Gardin | S6: Théâtre
A7: 1 | B7: SAINT-ANDRÉ - Luxembourg | G7: 0.7142857143 | L7: 0.5714285714 | M7: 0.7142857143 | T7: 2 | V7: =V6+T7-U7 -> 2
A8: 2 | B8: Clos du Hamel | L8: 3.98490566 | M8: 2.532075472 | Q8: 1.079245283 | S8: 3.403773585 | T8: 11 | V8: 13
A9: 4 | B9: Prévert | S9: 2 | T9: 2 | V9: 15
A10: 5 | B10: Paitis Blancs | P10: 0.8 | Q10: 1.2 | T10: 2 | V10: 17
A11: 9 | B11: Fleury Château d’Eau | L11: 1.037037037 | R11: 0.962962963 | T11: 2 | U11: 0.7142857143 | V11: 18.28571429
A12: 10 | B12: Route d’Harcourt | P12: 1 | T12: 1 | V12: 19.28571429
A13: 11 | B13: Brasserie | M13: 1 | R13: 1 | T13: 2 | V13: 21.28571429
A14: 12 | B14: Lavigerie | Q14: 1 | T14: 1 | V14: 22.28571429
A15: 13 | B15: Charles de Foucauld | L15: 1 | S15: 1 | T15: 2 | V15: 24.28571429
A16: 14 | B16: Grâce de Dieu | O16: 0.8888888889 | Q16: 1.111111111 | T16: 2 | U16: 6.593371269 | V16: 19.69234302
A17: 15 | B17: Lycée Fresnel | U17: 4.246361186 | V17: 15.44598183
A18: 16 | B18: Armand Marie | S18: 1 | T18: 1 | V18: 16.44598183
A19: 17 | B19: Lyautey | S19: 1 | T19: 1 | U19: 0.8888888889 | V19: 16.55709294
A20: 20 | B20: Lycée Malherbe | Q20: 1 | T20: 1 | U20: 1.8 | V20: 15.75709294
A21: 21 | B21: Hôtel de Ville | U21: 5.390356394 | V21: 10.36673655
A22: 22 | B22: Espace Gardin | U22: 1.962962963 | V22: 8.403773585
A23: 23 | B23: Théâtre | U23: 8.403773585 | V23: 0
A24: TOTAL DESCENTES | G24: 0.7142857143 | L24: 6.593371269 | M24: 4.246361186 | O24: 0.8888888889 | P24: 1.8 | Q24: 5.390356394 | R24: 1.962962963 | S24: 8.403773585 | T24: 30 | U24: 30

Sheet Sens (Tous)-33-1. JOB
A1: SENS | B1: (Tous)
A2: LIGNE | B2: 33
C5: 1 | D5: 2 | E5: 3 | F5: 4 | G5: 5 | H5: 6 | I5: 7 | J5: 8 | K5: 9 | L5: 10 | M5: 11 | N5: 12 | O5: 13 | P5: 14 | Q5: 15 | R5: 16 | S5: 17 | T5: 18 | U5: 19 | V5: 21 | W5: TOTAL MONTEES | X5: TOTAL DESCENTES
C6: BIÉVILLE - Le Londel | D6: MATHIEU - Sureaux | E6: Mathieu Église | F6: Manoir Saint-Jean | G6: Anguerny | H6: Cayrière | I6: Mathieu Bourg | J6: Mathieu Mairie | K6: Burrator | L6: Les Vikings | M6: La Bijude | N6: Germes de Blé | O6: Maréchal Juin | P6: Campus 2 C. Commercial | Q6: Girafe | R6: Institut Camille Blaisot | S6: Père Sanson | T6: Horatio Smith | U6: CAEN - Calvaire Saint-Pierre | V6: CAEN Cité U Lébisey
A7: 1 | B7: BIÉVILLE - Le Londel | U7: 1 | W7: 1 | X7: 8.940828402
A8: 2 | B8: MATHIEU - Sureaux | O8: 1 | U8: 5 | W8: 6 | X8: 2.020749507
A9: 3 | B9: Mathieu Église | O9: 1 | W9: 1 | X9: 1.091715976
A10: 4 | B10: Manoir Saint-Jean | O10: 1 | U10: 2 | W10: 3 | X10: 0.8076923077
A11: 5 | B11: Anguerny | O11: 1 | W11: 1
A12: 6 | B12: Cayrière | U12: 2 | W12: 2 | X12: 0.5133333333
A13: 7 | B13: Mathieu Bourg | O13: 1 | U13: 1 | W13: 2 | X13: 4.119487179
A14: 8 | B14: Mathieu Mairie | O14: 1 | U14: 1 | W14: 2
A15: 9 | B15: Burrator | C15: 1 | W15: 1 | X15: 10.46003945
A16: 10 | B16: Les Vikings | U16: 2 | W16: 2 | X16: 1.287416174
A17: 11 | B17: La Bijude | U17: 1 | W17: 1 | X17: 1.586666667
A18: 12 | B18: Germes de Blé | X18: 1.32
A19: 13 | B19: Maréchal Juin | C19: 1.384615385 | E19: 0.8076923077 | F19: 0.8076923077 | W19: 3 | X19: 7
A20: 14 | B20: Campus 2 C. Commercial | C20: 3 | K20: 1 | T20: 1 | U20: 3 | W20: 8 | X20: 1.852071006
A21: 15 | B21: Girafe | C21: 1 | U21: 1 | W21: 2
A22: 16 | B22: Institut Camille Blaisot | M22: 1 | U22: 1 | W22: 2
A23: 17 | B23: Père Sanson | O23: 1 | W23: 1
A24: 18 | B24: Horatio Smith | P24: 1 | W24: 1 | X24: 1
A25: 19 | B25: CAEN - Calvaire Saint-Pierre | C25: 2.556213018 | D25: 0.9940828402 | E25: 0.2840236686 | I25: 1.846153846 | K25: 4.473372781 | L25: 0.9940828402 | P25: 0.8520710059 | W25: 12 | X25: 20
A26: 21 | B26: CAEN Cité U Lébisey | D26: 1.026666667 | H26: 0.5133333333 | I26: 2.273333333 | K26: 4.986666667 | L26: 0.2933333333 | M26: 0.5866666667 | N26: 1.32 | W26: 11
A27: TOTAL DESCENTES | C27: 8.940828402 | D27: 2.020749507 | E27: 1.091715976 | F27: 0.8076923077 | H27: 0.5133333333 | I27: 4.119487179 | K27: 10.46003945 | L27: 1.287416174 | M27: 1.586666667 | N27: 1.32 | O27: 7 | P27: 1.852071006 | T27: 1 | U27: 20 | W27: 62 | X27: 62

Sheet Sens 2-33-1. JOB
A1: SENS | B1: 2
A2: LIGNE | B2: 33
C5: 21 | D5: 19 | E5: 18 | F5: 17 | G5: 16 | H5: 15 | I5: 14 | J5: 13 | K5: 12 | L5: 11 | M5: 10 | N5: 9 | O5: 8 | P5: 7 | Q5: 6 | R5: 5 | S5: 4 | T5: 3 | U5: 2 | V5: 1 | W5: TOTAL MONTEES | X5: TOTAL DESCENTES | Y5: CHARGE
C6: CAEN Cité U Lébisey | D6: CAEN - Calvaire Saint-Pierre | E6: Horatio Smith | F6: Père Sanson | G6: Institut Camille Blaisot | H6: Girafe | I6: Campus 2 C. Commercial | J6: Maréchal Juin | K6: Germes de Blé | L6: La Bijude | M6: Les Vikings | N6: Burrator | O6: Mathieu Mairie | P6: Mathieu Bourg | Q6: Cayrière | R6: Anguerny | S6: Manoir Saint-Jean | T6: Mathieu Église | U6: MATHIEU - Sureaux | V6: BIÉVILLE - Le Londel
A7: 21 | B7: CAEN Cité U Lébisey | K7: 1.32 | L7: 0.5866666667 | M7: 0.2933333333 | N7: 4.986666667 | P7: 2.273333333 | Q7: 0.5133333333 | U7: 1.026666667 | W7: 11 | Y7: =Y6+W7-X7 -> 11
A8: 19 | B8: CAEN - Calvaire Saint-Pierre | I8: 0.8520710059 | M8: 0.9940828402 | N8: 4.473372781 | P8: 1.846153846 | T8: 0.2840236686 | U8: 0.9940828402 | V8: 2.556213018 | W8: 12 | Y8: 23
A9: 18 | B9: Horatio Smith | I9: 1 | W9: 1 | Y9: 24
A10: 17 | B10: Père Sanson | J10: 1 | W10: 1 | Y10: 25
A11: 16 | B11: Institut Camille Blaisot | L11: 1 | W11: 1 | Y11: 26
A12: 15 | B12: Girafe | V12: 1 | W12: 1 | Y12: 27
A13: 14 | B13: Campus 2 C. Commercial | N13: 1 | V13: 3 | W13: 4 | X13: 1.852071006 | Y13: 29.14792899
A14: 13 | B14: Maréchal Juin | S14: 0.8076923077 | T14: 0.8076923077 | V14: 1.384615385 | W14: 3 | X14: 1 | Y14: 31.14792899
A15: 12 | B15: Germes de Blé | X15: 1.32 | Y15: 29.82792899
A16: 11 | B16: La Bijude | X16: 1.586666667 | Y16: 28.24126233
A17: 10 | B17: Les Vikings | X17: 1.287416174 | Y17: 26.95384615
A18: 9 | B18: Burrator | V18: 1 | W18: 1 | X18: 10.46003945 | Y18: 17.49380671
A19: 8 | B19: Mathieu Mairie | Y19: 17.49380671
A20: 7 | B20: Mathieu Bourg | X20: 4.119487179 | Y20: 13.37431953
A21: 6 | B21: Cayrière | X21: 0.5133333333 | Y21: 12.86098619
A22: 5 | B22: Anguerny | Y22: 12.86098619
A23: 4 | B23: Manoir Saint-Jean | X23: 0.8076923077 | Y23: 12.05329389
A24: 3 | B24: Mathieu Église | X24: 1.091715976 | Y24: 10.96157791
A25: 2 | B25: MATHIEU - Sureaux | X25: 2.020749507 | Y25: 8.940828402
A26: 1 | B26: BIÉVILLE - Le Londel | X26: 8.940828402 | Y26: 0
A27: TOTAL DESCENTES | I27: 1.852071006 | J27: 1 | K27: 1.32 | L27: 1.586666667 | M27: 1.287416174 | N27: 10.46003945 | P27: 4.119487179 | Q27: 0.5133333333 | S27: 0.8076923077 | T27: 1.091715976 | U27: 2.020749507 | V27: 8.940828402 | W27: 35 | X27: 35

Sheet Sens 1-33-1. JOB
A1: SENS | B1: 1
A2: LIGNE | B2: 33
C5: 1 | D5: 2 | E5: 3 | F5: 4 | G5: 5 | H5: 6 | I5: 7 | J5: 8 | K5: 9 | L5: 10 | M5: 11 | N5: 13 | O5: 14 | P5: 15 | Q5: 16 | R5: 17 | S5: 18 | T5: 19 | U5: 21 | V5: TOTAL MONTEES | W5: TOTAL DESCENTES | X5: CHARGE
C6: BIÉVILLE - Le Londel | D6: MATHIEU - Sureaux | E6: Mathieu Église | F6: Manoir Saint-Jean | G6: Anguerny | H6: Cayrière | I6: Mathieu Bourg | J6: Mathieu Mairie | K6: Burrator | L6: Les Vikings | M6: La Bijude | N6: Maréchal Juin | O6: Campus 2 C. Commercial | P6: Girafe | Q6: Institut Camille Blaisot | R6: Père Sanson | S6: Horatio Smith | T6: CAEN - Calvaire Saint-Pierre | U6: CAEN Cité U Lébisey
A7: 1 | B7: BIÉVILLE - Le Londel | T7: 1 | V7: 1 | X7: =X6+V7-W7 -> 1
A8: 2 | B8: MATHIEU - Sureaux | N8: 1 | T8: 5 | V8: 6 | X8: 7
A9: 3 | B9: Mathieu Église | N9: 1 | V9: 1 | X9: 8
A10: 4 | B10: Manoir Saint-Jean | N10: 1 | T10: 2 | V10: 3 | X10: 11
A11: 5 | B11: Anguerny | N11: 1 | V11: 1 | X11: 12
A12: 6 | B12: Cayrière | T12: 2 | V12: 2 | X12: 14
A13: 7 | B13: Mathieu Bourg | N13: 1 | T13: 1 | V13: 2 | X13: 16
A14: 8 | B14: Mathieu Mairie | N14: 1 | T14: 1 | V14: 2 | X14: 18
A15: 9 | B15: Burrator | X15: 18
A16: 10 | B16: Les Vikings | T16: 2 | V16: 2 | X16: 20
A17: 11 | B17: La Bijude | T17: 1 | V17: 1 | X17: 21
A18: 13 | B18: Maréchal Juin | W18: 6 | X18: 15
A19: 14 | B19: Campus 2 C. Commercial | S19: 1 | T19: 3 | V19: 4 | X19: 19
A20: 15 | B20: Girafe | T20: 1 | V20: 1 | X20: 20
A21: 16 | B21: Institut Camille Blaisot | T21: 1 | V21: 1 | X21: 21
A22: 17 | B22: Père Sanson | X22: 21
A23: 18 | B23: Horatio Smith | W23: 1 | X23: 20
A24: 19 | B24: CAEN - Calvaire Saint-Pierre | W24: 20 | X24: 0
A25: 21 | B25: CAEN Cité U Lébisey | X25: 0
A26: TOTAL DESCENTES | N26: 6 | S26: 1 | T26: 20 | V26: 27 | W26: 27

Sheet Sens (Tous)-32-1. JOB
A1: SENS | B1: (Tous)
A2: LIGNE | B2: 32
C5: 1 | D5: 2 | E5: 3 | F5: 4 | G5: 5 | H5: 7 | I5: 8 | J5: 9 | K5: 10 | L5: 11 | M5: 12 | N5: 13 | O5: 14 | P5: 15 | Q5: 16 | R5: 17 | S5: 18 | T5: 19 | U5: 20 | V5: 21 | W5: 22 | X5: 23 | Y5: 24 | Z5: 25 | AA5: 26 | AB5: 27 | AC5: 28 | AD5: 29 | AE5: TOTAL MONTEES
C6: TOURVILLE - Val d’Odon | D6: Chemin Foulon | E6: Tourville Centre | F6: La Bruyère | G6: Mouen Mairie | H6: VERSON - Grand Bois | I6: Hameau Foulon | J6: Saint-Manvieu | K6: Loup Pendu | L6: Verson Centre | M6: Les Pommiers | N6: Bas Manoir | O6: Bretagne | P6: Bretteville Église | Q6: 50 Acres | R6: Terrasses | S6: Creux au Renard | T6: Henry Chéron | U6: Venoix Église | V6: Parc des Sports | W6: Québec | X6: Zenith | Y6: Lycée Malherbe | Z6: Hôtel de Ville | AA6: Espace Gardin | AB6: Théâtre | AC6: Bernières | AD6: CAEN Tour Leroy
A7: 1 | B7: TOURVILLE - Val d’Odon | Y7: 2 | AE7: 2
A8: 2 | B8: Chemin Foulon | Z8: 1 | AE8: 1
A9: 3 | B9: Tourville Centre | Y9: 1 | Z9: 1 | AC9: 1 | AE9: 3
A10: 4 | B10: La Bruyère | AC10: 3 | AE10: 3
A11: 5 | B11: Mouen Mairie | AC11: 1.636363636 | AD11: 1.363636364 | AE11: 3
A12: 7 | B12: VERSON - Grand Bois | V12: 1.866666667 | AC12: 4.2 | AD12: 0.9333333333 | AE12: 7
A13: 8 | B13: Hameau Foulon | V13: 0.7142857143 | Z13: 1.428571429 | AB13: 0.7142857143 | AD13: 1.142857143 | AE13: 4
A14: 9 | B14: Saint-Manvieu | V14: 2.350515464 | Y14: 4.505154639 | Z14: 2.154639175 | AA14: 0.9793814433 | AC14: 9.010309278 | AE14: 19
A15: 10 | B15: Loup Pendu | Y15: 1.157894737 | AB15: 2.315789474 | AD15: 0.5263157895 | AE15: 4
A16: 11 | B16: Verson Centre | U16: 1.058823529 | W16: 1.058823529 | X16: 1.058823529 | Y16: 5.294117647 | Z16: 3.176470588 | AA16: 1.058823529 | AB16: 4.235294118 | AC16: 1.058823529 | AE16: 18
A17: 12 | B17: Les Pommiers | Y17: 4.449438202 | Z17: 1.011235955 | AA17: 1.011235955 | AC17: 1.264044944 | AD17: 1.264044944 | AE17: 9
A18: 13 | B18: Bas Manoir | Z18: 2 | AE18: 2
A19: 14 | B19: Bretagne | T19: 3.684210526 | Y19: 1.473684211 | Z19: 0.9210526316 | AC19: 0.9210526316 | AE19: 7
A20: 15 | B20: Bretteville Église | E20: 0.3333333333 | I20: 0.3333333333 | M20: 0.3333333333 | Y20: 1 | Z20: 1 | AA20: 1 | AB20: 1 | AD20: 1 | AE20: 6
A21: 16 | B21: 50 Acres | AB21: 5 | AE21: 5
A22: 17 | B22: Terrasses | E22: 1 | Z22: 1 | AB22: 1 | AE22: 3
A23: 18 | B23: Creux au Renard | L23: 1 | AD23: 1 | AE23: 2
A24: 19 | B24: Henry Chéron | G24: 1.115044248 | J24: 2.389380531 | K24: 0.796460177 | L24: 0.796460177 | M24: 0.9026548673 | AB24: 1 | AE24: 7
A25: 20 | B25: Venoix Église | O25: 1 | P25: 1 | W25: 3 | AE25: 5
A26: 21 | B26: Parc des Sports | H26: 1.612295488 | I26: 0.7139315816 | J26: 0.6742687159 | L26: 0.9995042142 | AE26: 4
A27: 23 | B27: Zenith | E27: 3 | AE27: 3
A28: 24 | B28: Lycée Malherbe | C28: 1.082611003 | E28: 1.082611003 | H28: 3.74456041 | I28: 1.299133204 | K28: 2.598266407 | L28: 4.610649213 | M28: 1.289580754 | Q28: 2.292588006 | AB28: 4 | AE28: 22
A29: 25 | B29: Hôtel de Ville | E29: 1.28 | H29: 1.28 | Q29: 1.44 | AB29: 1 | AE29: 5
A30: 26 | B30: Espace Gardin | F30: 0.5730337079 | H30: 0.606741573 | L30: 0.606741573 | O30: 0.606741573 | Z30: 0.606741573 | AE30: 3
A31: 27 | B31: Théâtre | E31: 1.125485123 | H31: 3.526520052 | I31: 1.125485123 | J31: 4.43941354 | K31: 1.062958172 | L31: 3.614057784 | O31: 1.125485123 | P31: 1.275549806 | T31: 2.250970246 | U31: 2.701164295 | X31: 1.125485123 | Y31: 5.627425614 | AE31: 29
A32: 28 | B32: Bernières | E32: 1.210762332 | J32: 2.421524664 | K32: 1.210762332 | X32: 1.143497758 | Y32: 6.591928251 | Z32: 1.210762332 | AB32: 1.210762332 | AE32: 15
A33: 29 | B33: CAEN Tour Leroy | C33: 1.621676545 | G33: 1.093988146 | H33: 2.252328535 | J33: 3.629466554 | L33: 6.847078747 | O33: 2.461473328 | X33: 1.093988146 | AE33: 19
A34: TOTAL DESCENTES | C34: 2.704287548 | E34: 9.032191791 | F34: 0.5730337079 | G34: 2.209032393 | H34: 13.02244606 | I34: 3.471883241 | J34: 13.554054 | K34: 5.668447088 | L34: 18.47449171 | M34: 2.525568954 | O34: 5.193700024 | P34: 2.275549806 | Q34: 3.732588006 | T34: 5.935180772 | U34: 3.759987824 | V34: 4.931467845 | W34: 4.058823529 | X34: 4.421794556 | Y34: 33.0996433 | Z34: 16.50947368 | AA34: 4.049440928 | AB34: 21.47613164 | AC34: 22.09059402 | AD34: 7.230187573 | AE34: 210

Sheet Sens 2-32-1. JOB
A1: SENS | B1: 2
A2: LIGNE | B2: 32
C5: 29 | D5: 28 | E5: 27 | F5: 26 | G5: 25 | H5: 24 | I5: 23 | J5: 21 | K5: 20 | L5: 19 | M5: 18 | N5: 17 | O5: 16 | P5: 15 | Q5: 14 | R5: 13 | S5: 12 | T5: 11 | U5: 10 | V5: 9 | W5: 8 | X5: 7 | Y5: 5 | Z5: 4 | AA5: 3 | AB5: 2 | AC5: 1 | AD5: TOTAL MONTEES | AE5: TOTAL DESCENTES | AF5: CHARGE
C6: CAEN Tour Leroy | D6: Bernières | E6: Théâtre | F6: Espace Gardin | G6: Hôtel de Ville | H6: Lycée Malherbe | I6: Zenith | J6: Parc des Sports | K6: Venoix Église | L6: Henry Chéron | M6: Creux au Renard | N6: Terrasses | O6: 50 Acres | P6: Bretteville Église | Q6: Bretagne | R6: Bas Manoir | S6: Les Pommiers | T6: Verson Centre | U6: Loup Pendu | V6: Saint-Manvieu | W6: Hameau Foulon | X6: VERSON - Grand Bois | Y6: Mouen Mairie | Z6: La Bruyère | AA6: Tourville Centre | AB6: Chemin Foulon | AC6: TOURVILLE - Val d’Odon
A7: 29 | B7: CAEN Tour Leroy | I7: 1.093988146 | Q7: 2.461473328 | T7: 6.847078747 | V7: 3.629466554 | X7: 2.252328535 | Y7: 1.093988146 | AC7: 1.621676545 | AD7: 19 | AF7: =AF6+AD7-AE7 -> 19
A8: 28 | B8: Bernières | E8: 1.210762332 | G8: 1.210762332 | H8: 6.591928251 | I8: 1.143497758 | U8: 1.210762332 | V8: 2.421524664 | AA8: 1.210762332 | AD8: 15 | AF8: 34
A9: 27 | B9: Théâtre | H9: 5.627425614 | I9: 1.125485123 | K9: 2.701164295 | L9: 2.250970246 | P9: 1.275549806 | Q9: 1.125485123 | T9: 3.614057784 | U9: 1.062958172 | V9: 4.43941354 | W9: 1.125485123 | X9: 3.526520052 | AA9: 1.125485123 | AD9: 29 | AE9: 1.210762332 | AF9: 61.78923767
A10: 26 | B10: Espace Gardin | G10: 0.606741573 | Q10: 0.606741573 | T10: 0.606741573 | X10: 0.606741573 | Z10: 0.5730337079 | AD10: 3 | AF10: 64.78923767
A11: 25 | B11: Hôtel de Ville | O11: 1.44 | X11: 1.28 | AA11: 1.28 | AD11: 4 | AE11: 1.817503905 | AF11: 66.97173376
A12: 24 | B12: Lycée Malherbe | O12: 2.292588006 | S12: 1.289580754 | T12: 4.610649213 | U12: 2.598266407 | W12: 1.299133204 | X12: 3.74456041 | AA12: 1.082611003 | AC12: 1.082611003 | AD12: 18 | AE12: 12.21935387 | AF12: 72.7523799
A13: 23 | B13: Zenith | AA13: 3 | AD13: 3 | AE13: 3.362971026 | AF13: 72.38940887
A14: 21 | B14: Parc des Sports | T14: 0.9995042142 | V14: 0.6742687159 | W14: 0.7139315816 | X14: 1.612295488 | AD14: 4 | AF14: 76.38940887
A15: 20 | B15: Venoix Église | P15: 1 | Q15: 1 | AD15: 2 | AE15: 2.701164295 | AF15: 75.68824458
A16: 19 | B16: Henry Chéron | S16: 0.9026548673 | T16: 0.796460177 | U16: 0.796460177 | V16: 2.389380531 | Y16: 1.115044248 | AD16: 6 | AE16: 2.250970246 | AF16: 79.43727433
A17: 18 | B17: Creux au Renard | T17: 1 | AD17: 1 | AF17: 80.43727433
A18: 17 | B18: Terrasses | AA18: 1 | AD18: 1 | AF18: 81.43727433
A19: 16 | B19: 50 Acres | AE19: 3.732588006 | AF19: 77.70468632
A20: 15 | B20: Bretteville Église | S20: 0.3333333333 | W20: 0.3333333333 | AA20: 0.3333333333 | AD20: 1 | AE20: 2.275549806 | AF20: 76.42913652
A21: 14 | B21: Bretagne | AE21: 5.193700024 | AF21: 71.23543649
A22: 13 | B22: Bas Manoir | AF22: 71.23543649
A23: 12 | B23: Les Pommiers | AE23: 2.525568954 | AF23: 68.70986754
A24: 11 | B24: Verson Centre | AE24: 18.47449171 | AF24: 50.23537583
A25: 10 | B25: Loup Pendu | AE25: 5.668447088 | AF25: 44.56692875
A26: 9 | B26: Saint-Manvieu | AE26: 13.554054 | AF26: 31.01287474
A27: 8 | B27: Hameau Foulon | AE27: 3.471883241 | AF27: 27.5409915
A28: 7 | B28: VERSON - Grand Bois | AE28: 13.02244606 | AF28: 14.51854544
A29: 5 | B29: Mouen Mairie | AE29: 2.209032393 | AF29: 12.30951305
A30: 4 | B30: La Bruyère | AE30: 0.5730337079 | AF30: 11.73647934
A31: 3 | B31: Tourville Centre | AE31: 9.032191791 | AF31: 2.704287548
A32: 2 | B32: Chemin Foulon | AF32: 2.704287548
A33: 1 | B33: TOURVILLE - Val d’Odon | AE33: 2.704287548 | AF33: 6.217248938e-15
A34: TOTAL DESCENTES | E34: 1.210762332 | G34: 1.817503905 | H34: 12.21935387 | I34: 3.362971026 | K34: 2.701164295 | L34: 2.250970246 | O34: 3.732588006 | P34: 2.275549806 | Q34: 5.193700024 | S34: 2.525568954 | T34: 18.47449171 | U34: 5.668447088 | V34: 13.554054 | W34: 3.471883241 | X34: 13.02244606 | Y34: 2.209032393 | Z34: 0.5730337079 | AA34: 9.032191791 | AC34: 2.704287548 | AD34: 106 | AE34: 106

Sheet Sens 1-32-1. JOB
A1: SENS | B1: 1
A2: LIGNE | B2: 32
C5: 1 | D5: 2 | E5: 3 | F5: 4 | G5: 5 | H5: 7 | I5: 8 | J5: 9 | K5: 10 | L5: 11 | M5: 12 | N5: 13 | O5: 14 | P5: 15 | Q5: 16 | R5: 17 | S5: 18 | T5: 19 | U5: 20 | V5: 21 | W5: 22 | X5: 23 | Y5: 24 | Z5: 25 | AA5: 26 | AB5: 27 | AC5: 28 | AD5: 29 | AE5: TOTAL MONTEES | AF5: TOTAL DESCENTES | AG5: CHARGE
C6: TOURVILLE - Val d’Odon | D6: Chemin Foulon | E6: Tourville Centre | F6: La Bruyère | G6: Mouen Mairie | H6: VERSON - Grand Bois | I6: Hameau Foulon | J6: Saint-Manvieu | K6: Loup Pendu | L6: Verson Centre | M6: Les Pommiers | N6: Bas Manoir | O6: Bretagne | P6: Bretteville Église | Q6: 50 Acres | R6: Terrasses | S6: Creux au Renard | T6: Henry Chéron | U6: Venoix Église | V6: Parc des Sports | W6: Québec | X6: Zenith | Y6: Lycée Malherbe | Z6: Hôtel de Ville | AA6: Espace Gardin | AB6: Théâtre | AC6: Bernières | AD6: CAEN Tour Leroy
A7: 1 | B7: TOURVILLE - Val d’Odon | Y7: 2 | AE7: 2 | AG7: =AG6+AE7-AF7 -> 2
A8: 2 | B8: Chemin Foulon | Z8: 1 | AE8: 1 | AG8: 3
A9: 3 | B9: Tourville Centre | Y9: 1 | Z9: 1 | AC9: 1 | AE9: 3 | AG9: 6
A10: 4 | B10: La Bruyère | AC10: 3 | AE10: 3 | AG10: 9
A11: 5 | B11: Mouen Mairie | AC11: 1.636363636 | AD11: 1.363636364 | AE11: 3 | AG11: 12
A12: 7 | B12: VERSON - Grand Bois | V12: 1.866666667 | AC12: 4.2 | AD12: 0.9333333333 | AE12: 7 | AG12: 19
A13: 8 | B13: Hameau Foulon | V13: 0.7142857143 | Z13: 1.428571429 | AB13: 0.7142857143 | AD13: 1.142857143 | AE13: 4 | AG13: 23
A14: 9 | B14: Saint-Manvieu | V14: 2.350515464 | Y14: 4.505154639 | Z14: 2.154639175 | AA14: 0.9793814433 | AC14: 9.010309278 | AE14: 19 | AG14: 42
A15: 10 | B15: Loup Pendu | Y15: 1.157894737 | AB15: 2.315789474 | AD15: 0.5263157895 | AE15: 4 | AG15: 46
A16: 11 | B16: Verson Centre | U16: 1.058823529 | W16: 1.058823529 | X16: 1.058823529 | Y16: 5.294117647 | Z16: 3.176470588 | AA16: 1.058823529 | AB16: 4.235294118 | AC16: 1.058823529 | AE16: 18 | AG16: 64
A17: 12 | B17: Les Pommiers | Y17: 4.449438202 | Z17: 1.011235955 | AA17: 1.011235955 | AC17: 1.264044944 | AD17: 1.264044944 | AE17: 9 | AG17: 73
A18: 13 | B18: Bas Manoir | Z18: 2 | AE18: 2 | AG18: 75
A19: 14 | B19: Bretagne | T19: 3.684210526 | Y19: 1.473684211 | Z19: 0.9210526316 | AC19: 0.9210526316 | AE19: 7 | AG19: 82
A20: 15 | B20: Bretteville Église | Y20: 1 | Z20: 1 | AA20: 1 | AB20: 1 | AD20: 1 | AE20: 5 | AG20: 87
A21: 16 | B21: 50 Acres | AB21: 5 | AE21: 5 | AG21: 92
A22: 17 | B22: Terrasses | Z22: 1 | AB22: 1 | AE22: 2 | AG22: 94
A23: 18 | B23: Creux au Renard | AD23: 1 | AE23: 1 | AG23: 95
A24: 19 | B24: Henry Chéron | AB24: 1 | AE24: 1 | AF24: 3.684210526 | AG24: 92.31578947
A25: 20 | B25: Venoix Église | W25: 3 | AE25: 3 | AF25: 1.058823529 | AG25: 94.25696594
A26: 21 | B26: Parc des Sports | AF26: 4.931467845 | AG26: 89.3254981
A27: 22 | B27: Québec | AF27: 4.058823529 | AG27: 85.26667457
A28: 23 | B28: Zenith | AF28: 1.058823529 | AG28: 84.20785104
A29: 24 | B29: Lycée Malherbe | AB29: 4 | AE29: 4 | AF29: 20.88028944 | AG29: 67.3275616
A30: 25 | B30: Hôtel de Ville | AB30: 1 | AE30: 1 | AF30: 14.69196978 | AG30: 53.63559183
A31: 26 | B31: Espace Gardin | AF31: 4.049440928 | AG31: 49.5861509
A32: 27 | B32: Théâtre | AF32: 20.26536931 | AG32: 29.32078159
A33: 28 | B33: Bernières | AF33: 22.09059402 | AG33: 7.230187573
A34: 29 | B34: CAEN Tour Leroy | AF34: 7.230187573 | AG34: -2.220446049e-14
A35: TOTAL DESCENTES | T35: 3.684210526 | U35: 1.058823529 | V35: 4.931467845 | W35: 4.058823529 | X35: 1.058823529 | Y35: 20.88028944 | Z35: 14.69196978 | AA35: 4.049440928 | AB35: 20.26536931 | AC35: 22.09059402 | AD35: 7.230187573 | AE35: 104 | AF35: 104

Sheet Sens (Tous)-31-1. JOB
A1: SENS | B1: (Tous)
A2: LIGNE | B2: 31
C5: 1 | D5: 2 | E5: 3 | F5: 4 | G5: 5 | H5: 6 | I5: 7 | J5: 8 | K5: 9 | L5: 10 | M5: 11 | N5: 12 | O5: 13 | P5: 14 | Q5: 15 | R5: 16 | S5: 17 | T5: 18 | U5: 20 | V5: 21 | W5: 22 | X5: 24 | Y5: TOTAL MONTEES | Z5: TOTAL DESCENTES
C6: TROARN - Bures | D6: Troarn Stade | E6: Acacia | F6: Plains Champs | G6: Sannerville Bourg | H6: Rue du Stade | I6: Mont du Saule | J6: Libération | K6: Rue du Stade | L6: Mont du Saule | M6: Libération | N6: ZA Clos Neuf | O6: Martray | P6: ZAC Vallée Barrey | Q6: Vallée Barrey | R6: Collège Guillemot | S6: Clair Soleil | T6: Charmettes | U6: Edmond Rostand | V6: Pasteur | W6: Demi Lune | X6: CAEN Gare SNCF
A7: 1 | B7: TROARN - Bures | X7: 2 | Y7: 2
A8: 2 | B8: Troarn Stade | H8: 1 | V8: 1 | W8: 2 | X8: 8 | Y8: 12 | Z8: 7.6
A9: 3 | B9: Acacia | U9: 1 | V9: 1 | X9: 3 | Y9: 5 | Z9: 3.568571429
A10: 4 | B10: Plains Champs | L10: 1 | X10: 4 | Y10: 5 | Z10: 6.742857143
A11: 5 | B11: Sannerville Bourg | X11: 2 | Y11: 2 | Z11: 0.1428571429
A12: 6 | B12: Rue du Stade | X12: 1 | Y12: 1 | Z12: 1
A13: 7 | B13: Mont du Saule | D13: 1 | T13: 1 | V13: 1 | X13: 1 | Y13: 4 | Z13: 3.76
A14: 8 | B14: Libération | K14: 1 | V14: 1 | X14: 2 | Y14: 4 | Z14: 3.52
A15: 9 | B15: Rue du Stade | Z15: 4.96
A16: 10 | B16: Mont du Saule | Z16: 5.102857143
A17: 11 | B17: Libération | Z17: 3.96
A18: 12 | B18: ZA Clos Neuf | P18: 0.5 | X18: 0.5 | Y18: 1 | Z18: 0.1428571429
A19: 13 | B19: Martray | X19: 6 | Y19: 6
A20: 14 | B20: ZAC Vallée Barrey | Z20: 0.5
A21: 15 | B21: Vallée Barrey
A22: 16 | B22: Collège Guillemot
A23: 17 | B23: Clair Soleil | Z23: 0.5
A24: 18 | B24: Charmettes | I24: 2 | X24: 1 | Y24: 3 | Z24: 1
A25: 20 | B25: Edmond Rostand | X25: 1 | Y25: 1 | Z25: 1
A26: 21 | B26: Pasteur | E26: 0.4285714286 | F26: 0.1428571429 | G26: 0.1428571429 | L26: 0.1428571429 | N26: 0.1428571429 | Y26: 1 | Z26: 4
A27: 22 | B27: Demi Lune | E27: 0.5 | S27: 0.5 | Y27: 1 | Z27: 2
A28: 24 | B28: CAEN Gare SNCF | D28: 6.6 | E28: 2.64 | F28: 6.6 | I28: 1.76 | J28: 3.52 | K28: 3.96 | L28: 3.96 | M28: 3.96 | Y28: 33 | Z28: 31.5
A29: TOTAL DESCENTES | D29: 7.6 | E29: 3.568571429 | F29: 6.742857143 | G29: 0.1428571429 | H29: 1 | I29: 3.76 | J29: 3.52 | K29: 4.96 | L29: 5.102857143 | M29: 3.96 | N29: 0.1428571429 | P29: 0.5 | S29: 0.5 | T29: 1 | U29: 1 | V29: 4 | W29: 2 | X29: 31.5 | Y29: 81 | Z29: 81

Sheet Sens 2-31-1. JOB
A1: SENS | B1: 2
A2: LIGNE | B2: 31
C5: 24 | D5: 22 | E5: 21 | F5: 20 | G5: 18 | H5: 17 | I5: 16 | J5: 15 | K5: 13 | L5: 12 | M5: 11 | N5: 10 | O5: 9 | P5: 8 | Q5: 7 | R5: 6 | S5: 5 | T5: 4 | U5: 3 | V5: 2 | W5: 1 | X5: TOTAL MONTEES | Y5: TOTAL DESCENTES | Z5: CHARGE
C6: CAEN Gare SNCF | D6: Demi Lune | E6: Pasteur | F6: Edmond Rostand | G6: Charmettes | H6: Clair Soleil | I6: Collège Guillemot | J6: Vallée Barrey | K6: Martray | L6: ZA Clos Neuf | M6: Libération | N6: Mont du Saule | O6: Rue du Stade | P6: Libération | Q6: Mont du Saule | R6: Rue du Stade | S6: Sannerville Bourg | T6: Plains Champs | U6: Acacia | V6: Troarn Stade | W6: TROARN - Bures
A7: 24 | B7: CAEN Gare SNCF | M7: 3.96 | N7: 3.96 | O7: 3.96 | P7: 3.52 | Q7: 1.76 | T7: 6.6 | U7: 2.64 | V7: 6.6 | X7: 33 | Z7: =Z6+X7-Y7 -> 33
A8: 22 | B8: Demi Lune | H8: 0.5 | U8: 0.5 | X8: 1 | Z8: 34
A9: 21 | B9: Pasteur | L9: 0.1428571429 | N9: 0.1428571429 | S9: 0.1428571429 | T9: 0.1428571429 | U9: 0.4285714286 | X9: 1 | Z9: 35
A10: 20 | B10: Edmond Rostand | Z10: 35
A11: 18 | B11: Charmettes | Q11: 2 | X11: 2 | Z11: 37
A12: 17 | B12: Clair Soleil | Y12: 0.5 | Z12: 36.5
A13: 16 | B13: Collège Guillemot | Z13: 36.5
A14: 15 | B14: Vallée Barrey | Z14: 36.5
A15: 13 | B15: Martray | Z15: 36.5
A16: 12 | B16: ZA Clos Neuf | Y16: 0.1428571429 | Z16: 36.35714286
A17: 11 | B17: Libération | Y17: 3.96 | Z17: 32.39714286
A18: 10 | B18: Mont du Saule | Y18: 4.102857143 | Z18: 28.29428571
A19: 9 | B19: Rue du Stade | Y19: 3.96 | Z19: 24.33428571
A20: 8 | B20: Libération | Y20: 3.52 | Z20: 20.81428571
A21: 7 | B21: Mont du Saule | V21: 1 | X21: 1 | Y21: 3.76 | Z21: 18.05428571
A22: 6 | B22: Rue du Stade | Z22: 18.05428571
A23: 5 | B23: Sannerville Bourg | Y23: 0.1428571429 | Z23: 17.91142857
A24: 4 | B24: Plains Champs | Y24: 6.742857143 | Z24: 11.16857143
A25: 3 | B25: Acacia | Y25: 3.568571429 | Z25: 7.6
A26: 2 | B26: Troarn Stade | Y26: 7.6 | Z26: 0
A27: 1 | B27: TROARN - Bures | Z27: 0
A28: TOTAL DESCENTES | H28: 0.5 | L28: 0.1428571429 | M28: 3.96 | N28: 4.102857143 | O28: 3.96 | P28: 3.52 | Q28: 3.76 | S28: 0.1428571429 | T28: 6.742857143 | U28: 3.568571429 | V28: 7.6 | X28: 38 | Y28: 38

Sheet Sens 1-31-1. JOB
A1: SENS | B1: 1
A2: LIGNE | B2: 31
C5: 1 | D5: 2 | E5: 3 | F5: 4 | G5: 5 | H5: 6 | I5: 7 | J5: 8 | K5: 9 | L5: 10 | M5: 11 | N5: 12 | O5: 13 | P5: 14 | Q5: 15 | R5: 16 | S5: 18 | T5: 20 | U5: 21 | V5: 22 | W5: 24 | X5: TOTAL MONTEES | Y5: TOTAL DESCENTES | Z5: CHARGE
C6: TROARN - Bures | D6: Troarn Stade | E6: Acacia | F6: Plains Champs | G6: Sannerville Bourg | H6: Rue du Stade | I6: Mont du Saule | J6: Libération | K6: Rue du Stade | L6: Mont du Saule | M6: Libération | N6: ZA Clos Neuf | O6: Martray | P6: ZAC Vallée Barrey | Q6: Vallée Barrey | R6: Collège Guillemot | S6: Charmettes | T6: Edmond Rostand | U6: Pasteur | V6: Demi Lune | W6: CAEN Gare SNCF
A7: 1 | B7: TROARN - Bures | W7: 2 | X7: 2 | Z7: =Z6+X7-Y7 -> 2
A8: 2 | B8: Troarn Stade | H8: 1 | U8: 1 | V8: 2 | W8: 8 | X8: 12 | Z8: 14
A9: 3 | B9: Acacia | T9: 1 | U9: 1 | W9: 3 | X9: 5 | Z9: 19
A10: 4 | B10: Plains Champs | L10: 1 | W10: 4 | X10: 5 | Z10: 24
A11: 5 | B11: Sannerville Bourg | W11: 2 | X11: 2 | Z11: 26
A12: 6 | B12: Rue du Stade | W12: 1 | X12: 1 | Y12: 1 | Z12: 26
A13: 7 | B13: Mont du Saule | S13: 1 | U13: 1 | W13: 1 | X13: 3 | Z13: 29
A14: 8 | B14: Libération | K14: 1 | U14: 1 | W14: 2 | X14: 4 | Z14: 33
A15: 9 | B15: Rue du Stade | Y15: 1 | Z15: 32
A16: 10 | B16: Mont du Saule | Y16: 1 | Z16: 31
A17: 11 | B17: Libération | Z17: 31
A18: 12 | B18: ZA Clos Neuf | P18: 0.5 | W18: 0.5 | X18: 1 | Z18: 32
A19: 13 | B19: Martray | W19: 6 | X19: 6 | Z19: 38
A20: 14 | B20: ZAC Vallée Barrey | Y20: 0.5 | Z20: 37.5
A21: 15 | B21: Vallée Barrey | Z21: 37.5
A22: 16 | B22: Collège Guillemot | Z22: 37.5
A23: 18 | B23: Charmettes | W23: 1 | X23: 1 | Y23: 1 | Z23: 37.5
A24: 20 | B24: Edmond Rostand | W24: 1 | X24: 1 | Y24: 1 | Z24: 37.5
A25: 21 | B25: Pasteur | Y25: 4 | Z25: 33.5
A26: 22 | B26: Demi Lune | Y26: 2 | Z26: 31.5
A27: 24 | B27: CAEN Gare SNCF | Y27: 31.5 | Z27: 0
A28: TOTAL DESCENTES | H28: 1 | K28: 1 | L28: 1 | P28: 0.5 | S28: 1 | T28: 1 | U28: 4 | V28: 2 | W28: 31.5 | X28: 43 | Y28: 43

Sheet Sens (Tous)-30-1. JOB
A1: SENS | B1: (Tous)
A2: LIGNE | B2: 30
C5: 1 | D5: 2 | E5: 3 | F5: 4 | G5: 5 | H5: 7 | I5: 8 | J5: 9 | K5: 10 | L5: 11 | M5: 12 | N5: 13 | O5: 14 | P5: 15 | Q5: 16 | R5: 17 | S5: 18 | T5: 19 | U5: 20 | V5: 21 | W5: 22 | X5: 23 | Y5: 24 | Z5: 25 | AA5: 26 | AB5: 27 | AC5: 28 | AD5: 29 | AE5: 30 | AF5: 31 | AG5: 32 | AH5: 34 | AI5: 35 | AJ5: 36 | AK5: 37 | AL5: 38 | AM5: 39 | AN5: 40 | AO5: 41 | AP5: 42 | AQ5: 43 | AR5: TOTAL MONTEES | AS5: TOTAL DESCENTES
C6: Mondeville C. Commercial | D6: Tampleu | E6: Mondevillage | F6: Philippe Lebon | G6: Leroy Merlin | H6: Le Hameau | I6: Le Clos | J6: Clos Neuf | K6: Soliers Mairie | L6: Tageret | M6: Les Tourelles | N6: Bourguébus Centre | O6: Musique en Plaine | P6: Les Tilleuls | Q6: Hubert centre | R6: Ifs Bras | S6: Clément Ader | T6: Charles Cros | U6: Paul Boucherot | V6: Object’Ifs Sud | W6: La Dronnière | X6: Ifs ZA | Y6: Madrid | Z6: Jean Vilar | AA6: Chemin de Fleury | AB6: Modigliani | AC6: Jules Verne | AD6: Chemin aux bœufs | AE6: Lycée Rostand | AF6: Aviation | AG6: Decaen | AH6: Maréchal Joffre | AI6: Collège Desmeserets | AJ6: Union | AK6: Porte Millet | AL6: Lefrançois | AM6: Lechesne | AN6: Carrières | AO6: Barbeux | AP6: Vaucelles | AQ6: CAEN Gare SNCF
A7: 1 | B7: Mondeville C. Commercial | E7: 0.8070652174 | I7: 1.711956522 | J7: 1.956521739 | L7: 1.630434783 | N7: 8.714673913 | X7: 1.467391304 | AQ7: 1.711956522 | AR7: 18 | AS7: 10.88672218
A8: 2 | B8: Tampleu | AQ8: 1 | AR8: 1
A9: 3 | B9: Mondevillage | C9: 1 | AR9: 1 | AS9: 2.081593638
A10: 4 | B10: Philippe Lebon | C10: 1 | AR10: 1
A11: 5 | B11: Leroy Merlin | X11: 1 | AR11: 1
A12: 7 | B12: Le Hameau | C12: 1 | M12: 1 | AR12: 2
A13: 8 | B13: Le Clos | Y13: 1.135135135 | Z13: 2.27027027 | AE13: 2.27027027 | AQ13: 1.324324324 | AR13: 7 | AS13: 2.509713622
A14: 9 | B14: Clos Neuf | AS14: 2.455569962
A15: 10 | B15: Soliers Mairie | C15: 1 | Z15: 1.538461538 | AP15: 3.461538462 | AR15: 6 | AS15: 3.229766086
A16: 11 | B16: Tageret | AE16: 1 | AR16: 1 | AS16: 3.979988606
A17: 12 | B17: Les Tourelles | X17: 1 | Z17: 5 | AE17: 2 | AR17: 8 | AS17: 1.499048223
A18: 13 | B18: Bourguébus Centre | C18: 3 | Z18: 1.565217391 | AE18: 3.130434783 | AI18: 1.739130435 | AQ18: 1.565217391 | AR18: 11 | AS18: 19.6634994
A19: 14 | B19: Musique en Plaine | C19: 2 | S19: 0.3561151079 | Y19: 0.6474820144 | Z19: 0.7553956835 | AE19: 0.6474820144 | AQ19: 3.59352518 | AR19: 8 | AS19: 7.182171894
A20: 15 | B20: Les Tilleuls | Z20: 3.076923077 | AE20: 0.9230769231 | AR20: 4
A21: 16 | B21: Hubert centre | AS21: 1.498995531
A22: 17 | B22: Ifs Bras | Z22: 3.120879121 | AQ22: 0.8791208791 | AR22: 4 | AS22: 3.237943821
A23: 18 | B23: Clément Ader | AG23: 0.5454545455 | AQ23: 0.4545454545 | AR23: 1 | AS23: 1.630643528
A24: 19 | B24: Charles Cros | AS24: 4.843786773
A25: 20 | B25: Paul Boucherot | AE25: 1.5 | AQ25: 1.5 | AR25: 3 | AS25: 1.833078239
A26: 21 | B26: Object’Ifs Sud | AS26: 1.591918902
A27: 22 | B27: La Dronnière | AS27: 0.9527284264
A28: 23 | B28: Ifs ZA | I28: 0.2987088774 | Q28: 0.2294842804 | T28: 0.4718068422 | Y28: 1.102791014 | Z28: 1.225323349 | AB28: 3.675970048 | AE28: 1.286589517 | AQ28: 1.709326072 | AR28: 10 | AS28: 8.721659677
A29: 24 | B29: Madrid | Z29: 2.2 | AE29: 1.6 | AL29: 0.6 | AQ29: 0.6 | AR29: 5 | AS29: 2.885408164
A30: 25 | B30: Jean Vilar | E30: 1.27452842 | K30: 0.8069254608 | N30: 0.6199236874 | Q30: 0.6199236874 | R30: 1.239847375 | S30: 1.27452842 | T30: 0.8069254608 | U30: 1.183490676 | X30: 3.173906813 | AK30: 0.3548387097 | AL30: 0.6451612903 | AR30: 12 | AS30: 20.75247043
A31: 26 | B31: Chemin de Fleury | T31: 2 | AE31: 1 | AR31: 3 | AS31: 0.7366101542
A32: 27 | B32: Modigliani | C32: 0.3876739563 | T32: 0.6123260437 | AF32: 2 | AR32: 3 | AS32: 3.675970048
A33: 28 | B33: Jules Verne | C33: 1 | R33: 1 | AJ33: 1 | AR33: 3
A34: 29 | B34: Chemin aux bœufs | N34: 3.290192022 | O34: 2.32693259 | V34: 0.5659036741 | X34: 1.08036156 | AA34: 0.7366101542 | AR34: 8
A35: 30 | B35: Lycée Rostand | AS35: 15.35785351
A36: 31 | B36: Aviation | K36: 1.396825397 | L36: 1.396825397 | N36: 2.349206349 | O36: 2.857142857 | AR36: 8 | AS36: 2
A37: 32 | B37: Decaen | X37: 1 | AR37: 1 | AS37: 0.5454545455
A38: 34 | B38: Maréchal Joffre | AS38: 3.259259259
A39: 35 | B39: Collège Desmeserets | AS39: 1.739130435
A40: 36 | B40: Union | O40: 1 | AR40: 1 | AS40: 1
A41: 37 | B41: Porte Millet | AS41: 0.3548387097
A42: 38 | B42: Lefrançois | AS42: 1.24516129
A43: 39 | B43: Lechesne | AQ43: 1 | AR43: 1
A44: 40 | B44: Carrières
A45: 41 | B45: Barbeux | AS45: 0.4990482234
A46: 42 | B46: Vaucelles | N46: 2.740740741 | AH46: 3.259259259 | AR46: 6 | AS46: 3.461538462
A47: 43 | B47: CAEN Gare SNCF | C47: 0.4990482234 | I47: 0.4990482234 | J47: 0.4990482234 | K47: 1.026015228 | L47: 0.9527284264 | M47: 0.4990482234 | N47: 1.94876269 | O47: 0.9980964467 | Q47: 0.6495875635 | R47: 0.9980964467 | T47: 0.9527284264 | U47: 0.6495875635 | V47: 1.026015228 | W47: 0.9527284264 | AO47: 0.4990482234 | AR47: 12.64958756 | AS47: 15.33801582
A48: TOTAL DESCENTES | C48: 10.88672218 | E48: 2.081593638 | I48: 2.509713622 | J48: 2.455569962 | K48: 3.229766086 | L48: 3.979988606 | M48: 1.499048223 | N48: 19.6634994 | O48: 7.182171894 | Q48: 1.498995531 | R48: 3.237943821 | S48: 1.630643528 | T48: 4.843786773 | U48: 1.833078239 | V48: 1.591918902 | W48: 0.9527284264 | X48: 8.721659677 | Y48: 2.885408164 | Z48: 20.75247043 | AA48: 0.7366101542 | AB48: 3.675970048 | AE48: 15.35785351 | AF48: 2 | AG48: 0.5454545455 | AH48: 3.259259259 | AI48: 1.739130435 | AJ48: 1 | AK48: 0.3548387097 | AL48: 1.24516129 | AO48: 0.4990482234 | AP48: 3.461538462 | AQ48: 15.33801582 | AR48: 150.6495876 | AS48: 150.6495876

Sheet Sens 2-30-1. JOB
A1: SENS | B1: 2
A2: LIGNE | B2: 30
C5: 43 | D5: 42 | E5: 41 | F5: 39 | G5: 37 | H5: 36 | I5: 34 | J5: 32 | K5: 31 | L5: 29 | M5: 28 | N5: 27 | O5: 26 | P5: 25 | Q5: 24 | R5: 23 | S5: 22 | T5: 21 | U5: 20 | V5: 19 | W5: 18 | X5: 17 | Y5: 16 | Z5: 15 | AA5: 14 | AB5: 13 | AC5: 12 | AD5: 11 | AE5: 10 | AF5: 9 | AG5: 8 | AH5: 7 | AI5: 5 | AJ5: 4 | AK5: 3 | AL5: 2 | AM5: 1 | AN5: TOTAL MONTEES | AO5: TOTAL DESCENTES | AP5: CHARGE
C6: CAEN Gare SNCF | D6: Vaucelles | E6: Barbeux | F6: Lechesne | G6: Porte Millet | H6: Union | I6: Maréchal Joffre | J6: Decaen | K6: Aviation | L6: Chemin aux bœufs | M6: Jules Verne | N6: Modigliani | O6: Chemin de Fleury | P6: Jean Vilar | Q6: Madrid | R6: Ifs ZA | S6: La Dronnière | T6: Object’Ifs Sud | U6: Paul Boucherot | V6: Charles Cros | W6: Clément Ader | X6: Ifs Bras | Y6: Hubert centre | Z6: Les Tilleuls | AA6: Musique en Plaine | AB6: Bourguébus Centre | AC6: Les Tourelles | AD6: Tageret | AE6: Soliers Mairie | AF6: Clos Neuf | AG6: Le Clos | AH6: Le Hameau | AI6: Leroy Merlin | AJ6: Philippe Lebon | AK6: Mondevillage | AL6: Tampleu | AM6: Mondeville C. Commercial
A7: 43 | B7: CAEN Gare SNCF | E7: 0.4990482234 | S7: 0.9527284264 | T7: 1.026015228 | U7: 0.6495875635 | V7: 0.9527284264 | X7: 0.9980964467 | Y7: 0.6495875635 | AA7: 0.9980964467 | AB7: 1.94876269 | AC7: 0.4990482234 | AD7: 0.9527284264 | AE7: 1.026015228 | AF7: 0.4990482234 | AG7: 0.4990482234 | AM7: 0.4990482234 | AN7: 12.64958756 | AP7: =AP6+AN7-AO7 -> 12.64958756
A8: 42 | B8: Vaucelles | I8: 3.259259259 | AB8: 2.740740741 | AN8: 6 | AP8: 18.64958756
A9: 41 | B9: Barbeux | AO9: 0.4990482234 | AP9: 18.15053934
A10: 39 | B10: Lechesne | AP10: 18.15053934
A11: 37 | B11: Porte Millet | AP11: 18.15053934
A12: 36 | B12: Union | AA12: 1 | AN12: 1 | AP12: 19.15053934
A13: 34 | B13: Maréchal Joffre | AO13: 3.259259259 | AP13: 15.89128008
A14: 32 | B14: Decaen | R14: 1 | AN14: 1 | AP14: 16.89128008
A15: 31 | B15: Aviation | AA15: 2.857142857 | AB15: 2.349206349 | AD15: 1.396825397 | AE15: 1.396825397 | AN15: 8 | AP15: 24.89128008
A16: 29 | B16: Chemin aux bœufs | O16: 0.7366101542 | R16: 1.08036156 | T16: 0.5659036741 | AA16: 2.32693259 | AB16: 3.290192022 | AN16: 8 | AP16: 32.89128008
A17: 28 | B17: Jules Verne | X17: 1 | AM17: 1 | AN17: 2 | AP17: 34.89128008
A18: 27 | B18: Modigliani | V18: 0.6123260437 | AM18: 0.3876739563 | AN18: 1 | AP18: 35.89128008
A19: 26 | B19: Chemin de Fleury | V19: 2 | AN19: 2 | AO19: 0.7366101542 | AP19: 37.15466993
A20: 25 | B20: Jean Vilar | R20: 3.173906813 | U20: 1.183490676 | V20: 0.8069254608 | W20: 1.27452842 | X20: 1.239847375 | Y20: 0.6199236874 | AB20: 0.6199236874 | AE20: 0.8069254608 | AK20: 1.27452842 | AN20: 11 | AP20: 48.15466993
A21: 24 | B21: Madrid | AP21: 48.15466993
A22: 23 | B22: Ifs ZA | V22: 0.4718068422 | Y22: 0.2294842804 | AG22: 0.2987088774 | AN22: 1 | AO22: 5.254268372 | AP22: 43.90040155
A23: 22 | B23: La Dronnière | AO23: 0.9527284264 | AP23: 42.94767313
A24: 21 | B24: Object’Ifs Sud | AO24: 1.591918902 | AP24: 41.35575423
A25: 20 | B25: Paul Boucherot | AO25: 1.833078239 | AP25: 39.52267599
A26: 19 | B26: Charles Cros | AO26: 4.843786773 | AP26: 34.67888921
A27: 18 | B27: Clément Ader | AO27: 1.27452842 | AP27: 33.40436079
A28: 17 | B28: Ifs Bras | AO28: 3.237943821 | AP28: 30.16641697
A29: 16 | B29: Hubert centre | AO29: 1.498995531 | AP29: 28.66742144
A30: 15 | B30: Les Tilleuls | AP30: 28.66742144
A31: 14 | B31: Musique en Plaine | AM31: 2 | AN31: 2 | AO31: 7.182171894 | AP31: 23.48524955
A32: 13 | B32: Bourguébus Centre | AM32: 3 | AN32: 3 | AO32: 10.94882549 | AP32: 15.53642406
A33: 12 | B33: Les Tourelles | AO33: 0.4990482234 | AP33: 15.03737583
A34: 11 | B34: Tageret | AO34: 2.349553823 | AP34: 12.68782201
A35: 10 | B35: Soliers Mairie | AM35: 1 | AN35: 1 | AO35: 3.229766086 | AP35: 10.45805592
A36: 9 | B36: Clos Neuf | AO36: 0.4990482234 | AP36: 9.959007701
A37: 8 | B37: Le Clos | AO37: 0.7977571007 | AP37: 9.1612506
A38: 7 | B38: Le Hameau | AM38: 1 | AN38: 1 | AP38: 10.1612506
A39: 5 | B39: Leroy Merlin | AP39: 10.1612506
A40: 4 | B40: Philippe Lebon | AM40: 1 | AN40: 1 | AP40: 11.1612506
A41: 3 | B41: Mondevillage | AM41: 1 | AN41: 1 | AO41: 1.27452842 | AP41: 10.88672218
A42: 2 | B42: Tampleu | AP42: 10.88672218
A43: 1 | B43: Mondeville C. Commercial | AO43: 10.88672218 | AP43: 0
A44: TOTAL DESCENTES | E44: 0.4990482234 | I44: 3.259259259 | O44: 0.7366101542 | R44: 5.254268372 | S44: 0.9527284264 | T44: 1.591918902 | U44: 1.833078239 | V44: 4.843786773 | W44: 1.27452842 | X44: 3.237943821 | Y44: 1.498995531 | AA44: 7.182171894 | AB44: 10.94882549 | AC44: 0.4990482234 | AD44: 2.349553823 | AE44: 3.229766086 | AF44: 0.4990482234 | AG44: 0.7977571007 | AK44: 1.27452842 | AM44: 10.88672218 | AN44: 62.64958756 | AO44: 62.64958756

Sheet Sens 1-30-1. JOB
A1: SENS | B1: 1
A2: LIGNE | B2: 30
C5: 1 | D5: 2 | E5: 3 | F5: 4 | G5: 5 | H5: 7 | I5: 8 | J5: 9 | K5: 10 | L5: 11 | M5: 12 | N5: 13 | O5: 14 | P5: 15 | Q5: 16 | R5: 17 | S5: 18 | T5: 19 | U5: 20 | V5: 23 | W5: 24 | X5: 25 | Y5: 26 | Z5: 27 | AA5: 28 | AB5: 29 | AC5: 30 | AD5: 31 | AE5: 32 | AF5: 34 | AG5: 35 | AH5: 36 | AI5: 37 | AJ5: 38 | AK5: 39 | AL5: 40 | AM5: 42 | AN5: 43 | AO5: TOTAL MONTEES | AP5: TOTAL DESCENTES | AQ5: CHARGE
C6: Mondeville C. Commercial | D6: Tampleu | E6: Mondevillage | F6: Philippe Lebon | G6: Leroy Merlin | H6: Le Hameau | I6: Le Clos | J6: Clos Neuf | K6: Soliers Mairie | L6: Tageret | M6: Les Tourelles | N6: Bourguébus Centre | O6: Musique en Plaine | P6: Les Tilleuls | Q6: Hubert centre | R6: Ifs Bras | S6: Clément Ader | T6: Charles Cros | U6: Paul Boucherot | V6: Ifs ZA | W6: Madrid | X6: Jean Vilar | Y6: Chemin de Fleury | Z6: Modigliani | AA6: Jules Verne | AB6: Chemin aux bœufs | AC6: Lycée Rostand | AD6: Aviation | AE6: Decaen | AF6: Maréchal Joffre | AG6: Collège Desmeserets | AH6: Union | AI6: Porte Millet | AJ6: Lefrançois | AK6: Lechesne | AL6: Carrières | AM6: Vaucelles | AN6: CAEN Gare SNCF
A7: 1 | B7: Mondeville C. Commercial | E7: 0.8070652174 | I7: 1.711956522 | J7: 1.956521739 | L7: 1.630434783 | N7: 8.714673913 | V7: 1.467391304 | AN7: 1.711956522 | AO7: 18 | AQ7: =AQ6+AO7-AP7 -> 18
A8: 2 | B8: Tampleu | AN8: 1 | AO8: 1 | AQ8: =AQ7+AO8-AP8 -> 19
A9: 3 | B9: Mondevillage | AP9: 0.8070652174 | AQ9: 18.19293478
A10: 4 | B10: Philippe Lebon | AQ10: 18.19293478
A11: 5 | B11: Leroy Merlin | V11: 1 | AO11: 1 | AQ11: 19.19293478
A12: 7 | B12: Le Hameau | M12: 1 | AO12: 1 | AQ12: 20.19293478
A13: 8 | B13: Le Clos | W13: 1.135135135 | X13: 2.27027027 | AC13: 2.27027027 | AN13: 1.324324324 | AO13: 7 | AP13: 1.711956522 | AQ13: 25.48097826
A14: 9 | B14: Clos Neuf | AP14: 1.956521739 | AQ14: 23.52445652
A15: 10 | B15: Soliers Mairie | X15: 1.538461538 | AM15: 3.461538462 | AO15: 5 | AQ15: 28.52445652
A16: 11 | B16: Tageret | AC16: 1 | AO16: 1 | AP16: 1.630434783 | AQ16: 27.89402174
A17: 12 | B17: Les Tourelles | V17: 1 | X17: 5 | AC17: 2 | AO17: 8 | AP17: 1 | AQ17: 34.89402174
A18: 13 | B18: Bourguébus Centre | X18: 1.565217391 | AC18: 3.130434783 | AG18: 1.739130435 | AN18: 1.565217391 | AO18: 8 | AP18: 8.714673913 | AQ18: 34.17934783
A19: 14 | B19: Musique en Plaine | S19: 0.3561151079 | W19: 0.6474820144 | X19: 0.7553956835 | AC19: 0.6474820144 | AN19: 3.59352518 | AO19: 6 | AQ19: 40.17934783
A20: 15 | B20: Les Tilleuls | X20: 3.076923077 | AC20: 0.9230769231 | AO20: 4 | AQ20: 44.17934783
A21: 16 | B21: Hubert centre | AQ21: 44.17934783
A22: 17 | B22: Ifs Bras | X22: 3.120879121 | AN22: 0.8791208791 | AO22: 4 | AQ22: 48.17934783
A23: 18 | B23: Clément Ader | AE23: 0.5454545455 | AN23: 0.4545454545 | AO23: 1 | AP23: 0.3561151079 | AQ23: 48.82323272
A24: 19 | B24: Charles Cros | AQ24: 48.82323272
A25: 20 | B25: Paul Boucherot | AC25: 1.5 | AN25: 1.5 | AO25: 3 | AQ25: 51.82323272
A26: 23 | B26: Ifs ZA | W26: 1.102791014 | X26: 1.225323349 | Z26: 3.675970048 | AC26: 1.286589517 | AN26: 1.709326072 | AO26: 9 | AP26: 3.467391304 | AQ26: 57.35584141
A27: 24 | B27: Madrid | X27: 2.2 | AC27: 1.6 | AJ27: 0.6 | AN27: 0.6 | AO27: 5 | AP27: 2.885408164 | AQ27: 59.47043325
A28: 25 | B28: Jean Vilar | AI28: 0.3548387097 | AJ28: 0.6451612903 | AO28: 1 | AP28: 20.75247043 | AQ28: 39.71796282
A29: 26 | B29: Chemin de Fleury | AC29: 1 | AO29: 1 | AQ29: 40.71796282
A30: 27 | B30: Modigliani | AD30: 2 | AO30: 2 | AP30: 3.675970048 | AQ30: 39.04199277
A31: 28 | B31: Jules Verne | AH31: 1 | AO31: 1 | AQ31: 40.04199277
A32: 29 | B32: Chemin aux bœufs | AQ32: 40.04199277
A33: 30 | B33: Lycée Rostand | AP33: 15.35785351 | AQ33: 24.68413926
A34: 31 | B34: Aviation | AP34: 2 | AQ34: 22.68413926
A35: 32 | B35: Decaen | AP35: 0.5454545455 | AQ35: 22.13868472
A36: 34 | B36: Maréchal Joffre | AQ36: 22.13868472
A37: 35 | B37: Collège Desmeserets | AP37: 1.739130435 | AQ37: 20.39955428
A38: 36 | B38: Union | AP38: 1 | AQ38: 19.39955428
A39: 37 | B39: Porte Millet | AP39: 0.3548387097 | AQ39: 19.04471557
A40: 38 | B40: Lefrançois | AP40: 1.24516129 | AQ40: 17.79955428
A41: 39 | B41: Lechesne | AN41: 1 | AO41: 1 | AQ41: 18.79955428
A42: 40 | B42: Carrières | AQ42: 18.79955428
A43: 42 | B43: Vaucelles | AP43: 3.461538462 | AQ43: 15.33801582
A44: 43 | B44: CAEN Gare SNCF | AP44: 15.33801582 | AQ44: 0
A45: TOTAL DESCENTES | E45: 0.8070652174 | I45: 1.711956522 | J45: 1.956521739 | L45: 1.630434783 | M45: 1 | N45: 8.714673913 | S45: 0.3561151079 | V45: 3.467391304 | W45: 2.885408164 | X45: 20.75247043 | Z45: 3.675970048 | AC45: 15.35785351 | AD45: 2 | AE45: 0.5454545455 | AG45: 1.739130435 | AH45: 1 | AI45: 0.3548387097 | AJ45: 1.24516129 | AM45: 3.461538462 | AN45: 15.33801582 | AO45: 88 | AP45: 88

Sheet Sens (Tous)-23-1. JOB
A1: SENS | B1: (Tous)
A2: LIGNE | B2: 23
C5: 1 | D5: 2 | E5: 3 | F5: 4 | G5: 5 | H5: 6 | I5: 7 | J5: 8 | K5: 9 | L5: 10 | M5: 11 | N5: 12 | O5: 13 | P5: 14 | Q5: 15 | R5: 16 | S5: 17 | T5: 18 | U5: 19 | V5: 20 | W5: 21 | X5: 22 | Y5: 23 | Z5: 24 | AA5: 25 | AB5: 26 | AC5: 27 | AD5: 28 | AE5: 29 | AF5: 30 | AG5: 31 | AH5: 32 | AI5: 33 | AJ5: 34 | AK5: 35 | AL5: 36 | AM5: 37 | AN5: 38 | AO5: 39 | AP5: 40 | AQ5: 41 | AR5: 42 | AS5: TOTAL MONTEES | AT5: TOTAL DESCENTES
C6: CAIRON Château | D6: Cairon Commerces | E6: Haut Meslier | F6: Buron Canadiens | G6: VILLONS Cerisiers | H6: Coopérative | I6: Arromanches | J6: Champs Bailly | K6: Estapi | L6: Saint-Contest Église | M6: Grand Clos | N6: Bitot | O6: Parc Athéna | P6: Montgomery | Q6: Tassigny | R6: Lycée Claudel | S6: Acadiens | T6: Collège Monod | U6: Métiers | V6: Creully | W6: Jardin des plantes | X6: Place de la Mare | Y6: Château Quatrans | Z6: Bellivet | AA6: Théâtre | AB6: Université | AC6: Vaugueux | AD6: Tour Leroy | AE6: Bernières | AF6: Théâtre | AG6: Espace Gardin | AH6: Hôtel de Ville | AI6: Lycée Malherbe | AJ6: Zenith | AK6: Long Cours | AL6: Louvigny Église | AM6: Louvigny Mairie | AN6: Louvigny Centre | AO6: Louvigny École | AP6: Chardonnerets | AQ6: Maison Moisson | AR6: LOUVIGNY Michelet
A7: 1 | B7: CAIRON Château | E7: 0.7666527018 | O7: 0.7666527018 | S7: 0.7527135617 | T7: 1.129070343 | X7: 7.156320431 | Y7: 5.115480982 | AA7: 6.31310928 | AS7: 22 | AT7: 45.84536482
A8: 2 | B8: Cairon Commerces | O8: 0.869040037 | P8: 0.885176059 | R8: 0.8298525553 | T8: 0.7325241692 | U8: 0.869040037 | X8: 3.965345057 | Y8: 0.8298525553 | Z8: 0.8298525553 | AA8: 3.17649117 | AH8: 0.869040037 | AI8: 0.885176059 | AK8: 1.258609709 | AS8: 16 | AT8: 26.50084221
A9: 3 | B9: Haut Meslier | S9: 0.9751801441 | T9: 0.9583666934 | Y9: 1.066453163 | AS9: 3 | AT9: 13.47490374
A10: 4 | B10: Buron Canadiens | T10: 1.332467532 | X10: 1.355844156 | Y10: 2.711688312 | Z10: 1.355844156 | AA10: 1.122077922 | AG10: 1.122077922 | AS10: 9 | AT10: 12.93243525
A11: 5 | B11: VILLONS Cerisiers | P11: 1.402898551 | U11: 1.147826087 | X11: 2.168115942 | AF11: 1.28115942 | AS11: 6 | AT11: 13.34460537
A12: 6 | B12: Coopérative | T12: 3.771462645 | W12: 1.407580494 | X12: 4.017055251 | Y12: 3.716225774 | AI12: 1.087675836 | AS12: 14 | AT12: 5.001455981
A13: 7 | B13: Arromanches | D13: 2.109375 | H13: 1.890625 | P13: 0.9181509072 | R13: 2.322981805 | S13: 3.086619317 | T13: 8.332751389 | X13: 6.145610092 | Y13: 3.357724952 | AA13: 2.862137087 | AI13: 1.974024451 | AS13: 33 | AT13: 57.22753863
A14: 8 | B14: Champs Bailly | M14: 1.142259414 | X14: 3.273535565 | Y14: 1.449790795 | Z14: 2.134414226 | AS14: 8 | AT14: 20.40249422
A15: 9 | B15: Estapi | T15: 1.551420176 | X15: 1.448579824 | AS15: 3 | AT15: 4.793411371
A16: 10 | B16: Saint-Contest Église | O16: 1.339708063 | R16: 1.567458433 | T16: 2.481550016 | V16: 1.315286301 | X16: 5.125081104 | Y16: 5.215790504 | Z16: 1.088512801 | AH16: 2.778099978 | AK16: 1.088512801 | AS16: 22 | AT16: 26.90147624
A17: 11 | B17: Grand Clos | O17: 2.301859515 | P17: 2.877324394 | T17: 7.44719255 | V17: 1.48943851 | X17: 1.390706791 | Y17: 2.623845817 | Z17: 2.478925632 | AG17: 1.390706791 | AS17: 22 | AT17: 53.13920874
A18: 12 | B18: Bitot | P18: 2.297783334 | T18: 1.097084881 | X18: 4.719795397 | Y18: 2.915807817 | Z18: 0.9508068968 | AA18: 1.018721675 | AS18: 13 | AT18: 4.778113915
A19: 13 | B19: Parc Athéna | G19: 5.6 | I19: 2.4 | U19: 2.5569658 | V19: 1.143894491 | X19: 6.482825326 | Y19: 13.05805037 | Z19: 4.121445248 | AA19: 8.406375989 | AF19: 0.7943711742 | AM19: 2.436071601 | AS19: 47 | AT19: 31.26532996
A20: 14 | B20: Montgomery | D20: 0.4281185794 | E20: 0.927208688 | I20: 0.8136190197 | L20: 0.4155268565 | M20: 0.4155268565 | T20: 1.145129033 | U20: 1.212489565 | W20: 1.561539591 | X20: 4.996307032 | Y20: 13.08515463 | Z20: 4.20350442 | AA20: 7.02345807 | AC20: 2.772417659 | AS20: 39 | AT20: 40.31053963
A21: 15 | B21: Tassigny | T21: 1.521801054 | W21: 1.549982555 | X21: 9.058060888 | Y21: 7.867895712 | Z21: 3.422968467 | AA21: 9.327200143 | AH21: 2.282701581 | AK21: 1.969389599 | AS21: 37 | AT21: 32.96304398
A22: 16 | B22: Lycée Claudel | C22: 7.173124244 | D22: 1.502940318 | E22: 1.610293198 | N22: 1.461191976 | P22: 1.252450265 | U22: 0.7879849386 | V22: 0.9357321146 | X22: 9.946071953 | Y22: 17.80621865 | AA22: 4.1075052 | AB22: 2.416487145 | AS22: 49 | AT22: 71.11414577
A23: 17 | B23: Acadiens | F23: 2.362520651 | G23: 2.544253009 | I23: 3.911966014 | M23: 1.181260326 | U23: 1.425412553 | X23: 6.316258865 | Y23: 16.589344 | Z23: 12.41916307 | AA23: 11.01052008 | AE23: 7.172560782 | AG23: 4.040428669 | AH23: 5.434869294 | AJ23: 1.520440056 | AK23: 5.410232534 | AR23: 2.660770099 | AS23: 84 | AT23: 30.66245039
A24: 18 | B24: Collège Monod | C24: 13.33180272 | D24: 5.491568098 | I24: 8.32681269 | J24: 3.476804478 | M24: 12.65975767 | N24: 2.297608554 | Q24: 2.415645791 | U24: 1.909365386 | V24: 1.874649652 | W24: 1.213008598 | X24: 3.857603643 | Y24: 15.0467036 | Z24: 0.9373248259 | AA24: 10.17220609 | AB24: 2.477215611 | AE24: 3.818730772 | AF24: 2.175932632 | AH24: 2.175932632 | AK24: 2.254043034 | AN24: 1.132600831 | AQ24: 0.9546826931 | AS24: 98 | AT24: 57.90923918
A25: 19 | B25: Métiers | H25: 1 | X25: 7.137194091 | Y25: 3.816568388 | Z25: 5.053296123 | AA25: 12.10053216 | AF25: 1.117044406 | AI25: 1.349761991 | AN25: 3.425602846 | AS25: 35 | AT25: 43.09653996
A26: 20 | B26: Creully | I26: 2.342602892 | M26: 8.589543938 | S26: 2.06785317 | X26: 6.253235084 | Y26: 1.472042157 | Z26: 1.366896289 | AA26: 5.90782647 | AS26: 28 | AT26: 24.86550707
A27: 21 | B27: Jardin des plantes | I27: 6.307902771 | J27: 4.670274167 | M27: 1.721760061 | O27: 8.386701497 | P27: 1.445561052 | T27: 1.467800452 | AF27: 1.682242991 | AG27: 1.962616822 | AI27: 1.355140187 | AS27: 29 | AT27: 10.0269419
A28: 22 | B28: Place de la Mare | AF28: 1.205774764 | AI28: 1.205774764 | AJ28: 2.99364769 | AK28: 1.140437215 | AL28: 1.496823845 | AM28: 7.118228953 | AN28: 1.436950891 | AO28: 4.94801917 | AQ28: 1.069159889 | AR28: 4.385182816 | AS28: 27 | AT28: 96.02759091
A29: 23 | B29: Château Quatrans | Z29: 1.11667088 | AA29: 2.033130567 | AF29: 1.098576676 | AI29: 3.874098337 | AJ29: 0.8947683335 | AK29: 4.879090819 | AM29: 1.877443731 | AN29: 0.8308563097 | AO29: 3.040934093 | AR29: 8.354430252 | AS29: 28 | AT29: 120.0473654
A30: 24 | B30: Bellivet | AA30: 1.515752638 | AG30: 1.413853301 | AH30: 1.515752638 | AI30: 3.660537721 | AJ30: 2.591894098 | AK30: 11.28613284 | AM30: 1.089756798 | AO30: 2.598433093 | AP30: 2.560220842 | AQ30: 3.922614977 | AR30: 16.84505105 | AS30: 49 | AT30: 46.11386304
A31: 25 | B31: Théâtre | AF31: 1.469661666 | AH31: 4.541259124 | AI31: 14.6824853 | AJ31: 7.695472751 | AK31: 20.54575737 | AL31: 5.714453693 | AN31: 4.300874843 | AO31: 4.32198014 | AP31: 1.695763461 | AQ31: 11.73459911 | AR31: 13.29769255 | AS31: 90 | AT31: 96.15811292
A32: 26 | B32: Université | C32: 2.626510005 | D32: 12.41441564 | E32: 2.507770854 | F32: 1.346501964 | G32: 1.59585418 | I32: 16.90699949 | J32: 5.907510206 | K32: 3.766880804 | L32: 17.44909351 | M32: 8.799703627 | O32: 10.39762493 | P32: 9.045390152 | Q32: 15.9865336 | R32: 9.089719434 | S32: 10.94110027 | T32: 3.719691568 | U32: 12.05534845 | V32: 7.443351322 | AS32: 152 | AT32: 36.96735273
A33: 27 | B33: Vaugueux | C33: 4.807888652 | H33: 1.044472362 | J33: 2.136420741 | O33: 1.131511726 | P33: 2.901312117 | Q33: 5.620122344 | R33: 5.048283084 | U33: 1.186900412 | V33: 1.123088562 | AS33: 25 | AT33: 9.812839997
A34: 28 | B34: Tour Leroy | C34: 5.492476613 | D34: 2.068482756 | F34: 2.068482756 | I34: 2.407757705 | L34: 2.170865415 | M34: 5.982194326 | O34: 2.380300819 | P34: 2.124932578 | Q34: 1.741611407 | R34: 0.8427151969 | S34: 3.908410936 | T34: 1.087374448 | U34: 6.460322249 | AB34: 1.264072795 | AS34: 40 | AT34: 2.160519003
A35: 29 | B35: Bernières | C35: 4.106122267 | E35: 1.29049557 | F35: 4.319427319 | I35: 4.766987029 | K35: 1.026530567 | L35: 3.654999282 | M35: 3.791878216 | P35: 4.936012238 | Q35: 5.279300057 | R35: 22.71698812 | S35: 1.972019246 | T35: 3.196909479 | U35: 3.707944643 | V35: 3.215573671 | AB35: 1.018812292 | AS35: 69 | AT35: 40.42294923
A36: 30 | B36: Théâtre | C36: 5.331793093 | E36: 1.045449626 | G36: 2.751026016 | H36: 1.066358619 | I36: 8.008687227 | J36: 2.026563891 | L36: 2.309493265 | M36: 6.950882287 | N36: 1.019313385 | O36: 3.69193068 | P36: 6.233493396 | Q36: 1.066358619 | R36: 19.24577721 | S36: 1.881809327 | T36: 6.340469211 | U36: 6.465155529 | V36: 3.085081637 | W36: 3.293166322 | Z36: 1.089468558 | AE36: 1.097722107 | AS36: 84 | AT36: 58.35851136
A37: 31 | B37: Espace Gardin | F37: 2.835502561 | G37: 0.8534721639 | M37: 1.904442019 | Q37: 0.8534721639 | T37: 0.7758837854 | U37: 0.7758837854 | AB37: 2.216810815 | AC37: 0.9051977496 | AE37: 0.8793349568 | AH37: 0.7028631952 | AJ37: 0.4706127481 | AK37: 0.7028631952 | AN37: 0.6952233778 | AR37: 5.428437484 | AS37: 20 | AT37: 18.31928351
A38: 32 | B38: Hôtel de Ville | C38: 1.502496517 | E38: 5.327033105 | J38: 2.184920741 | L38: 0.9014979101 | P38: 1.081797492 | R38: 2.846157688 | S38: 3.982981676 | T38: 1.051747562 | U38: 0.9615977708 | W38: 1.001664345 | AB38: 1.311269687 | AE38: 2.846835506 | AI38: 2.531263697 | AJ38: 1.047419461 | AK38: 15.08994402 | AL38: 2.710968016 | AM38: 2.535857642 | AN38: 9.874776663 | AO38: 2.936583288 | AP38: 5.408493215 | AQ38: 7.20170153 | AR38: 5.662992465 | AS38: 80 | AT38: 47.33651176
A39: 33 | B39: Lycée Malherbe | I39: 1.034203788 | R39: 3.142308075 | V39: 3.239410807 | Y39: 0.995899944 | AA39: 4.412602829 | AB39: 1.707257047 | AF39: 4.468317511 | AJ39: 2.013199206 | AK39: 16.22276745 | AL39: 2.159209331 | AO39: 3.254768745 | AP39: 8.840477934 | AQ39: 13.98849803 | AR39: 7.521079304 | AS39: 73 | AT39: 59.38226914
A40: 34 | B40: Zenith | S40: 1.093762745 | T40: 1.134272476 | AA40: 2.268544953 | AB40: 4.911562637 | AC40: 1.125744112 | AD40: 2.160519003 | AF40: 0.9722335512 | AI40: 2.333360523 | AK40: 4.648181085 | AL40: 2.844069768 | AN40: 1.093872988 | AO40: 4.223501177 | AP40: 2.844069768 | AQ40: 1.346305215 | AS40: 33 | AT40: 28.69179723
A41: 35 | B41: Long Cours | C41: 1.473150708 | D41: 2.485941819 | R41: 3.461904163 | T41: 2.430698668 | Y41: 1.306827241 | Z41: 3.54476889 | AA41: 2.396938964 | AB41: 2.357041132 | AC41: 2.903657579 | AE41: 8.622881743 | AF41: 12.62615167 | AG41: 2.228140445 | AH41: 12.80298822 | AI41: 2.160621038 | AJ41: 3.19828772 | AN41: 2 | AS41: 66 | AT41: 87.37193155
A42: 36 | B42: Louvigny Église | AB42: 1.112426036 | AJ42: 0.8875739645 | AR42: 4 | AS42: 6 | AT42: 14.92552465
A43: 37 | B43: Louvigny Mairie | P43: 2.908257096 | AB43: 1.347287223 | AE43: 1.122739352 | AG43: 3.282676011 | AI43: 2.339040317 | AS43: 11 | AT43: 16.12857439
A44: 38 | B44: Louvigny Centre | AB44: 2.009577953 | AE44: 0.9017336969 | AF44: 2.486208621 | AG44: 1.664739133 | AH44: 1.667868342 | AI44: 2.641962624 | AJ44: 1.751939754 | AK44: 0.875969877 | AR44: 2 | AS44: 16 | AT44: 24.79075875
A45: 39 | B45: Louvigny École | U45: 1.574302756 | AB45: 4.951897761 | AF45: 1.949136746 | AH45: 1.049535171 | AI45: 2.215685361 | AJ45: 1.259442205 | AR45: 1 | AS45: 14 | AT45: 25.32421971
A46: 40 | B46: Chardonnerets | AA46: 0.9829816483 | AB46: 1.493337777 | AE46: 0.8737614651 | AF46: 3.693115542 | AH46: 3.378823044 | AI46: 2.210881283 | AJ46: 2.367099242 | AS46: 15 | AT46: 22.73123898
A47: 41 | B47: Maison Moisson | T47: 2.823091801 | AB47: 2.710686921 | AC47: 2.105822897 | AE47: 2.731222428 | AF47: 6.623634431 | AH47: 1.584167681 | AI47: 5.421373841 | AS47: 24 | AT47: 40.21756144
A48: 42 | B48: LOUVIGNY Michelet | T48: 2.380479247 | X48: 1.214044416 | AB48: 3.661609897 | AE48: 10.35542642 | AF48: 14.71494955 | AG48: 1.214044416 | AH48: 6.552610823 | AI48: 7.453405811 | AM48: 1.071215661 | AP48: 1.382213756 | AS48: 50 | AT48: 71.15563602
A49: TOTAL DESCENTES | C49: 45.84536482 | D49: 26.50084221 | E49: 13.47490374 | F49: 12.93243525 | G49: 13.34460537 | H49: 5.001455981 | I49: 57.22753863 | J49: 20.40249422 | K49: 4.793411371 | L49: 26.90147624 | M49: 53.13920874 | N49: 4.778113915 | O49: 31.26532996 | P49: 40.31053963 | Q49: 32.96304398 | R49: 71.11414577 | S49: 30.66245039 | T49: 57.90923918 | U49: 43.09653996 | V49: 24.86550707 | W49: 10.0269419 | X49: 96.02759091 | Y49: 120.0473654 | Z49: 46.11386304 | AA49: 96.15811292 | AB49: 36.96735273 | AC49: 9.812839997 | AD49: 2.160519003 | AE49: 40.42294923 | AF49: 58.35851136 | AG49: 18.31928351 | AH49: 47.33651176 | AI49: 59.38226914 | AJ49: 28.69179723 | AK49: 87.37193155 | AL49: 14.92552465 | AM49: 16.12857439 | AN49: 24.79075875 | AO49: 25.32421971 | AP49: 22.73123898 | AQ49: 40.21756144 | AR49: 71.15563602 | AS49: 1589 | AT49: 1589

Sheet Sens 2-23-1. JOB
A1: SENS | B1: 2
A2: LIGNE | B2: 23
C5: 42 | D5: 41 | E5: 40 | F5: 39 | G5: 38 | H5: 37 | I5: 36 | J5: 35 | K5: 34 | L5: 33 | M5: 32 | N5: 31 | O5: 30 | P5: 29 | Q5: 28 | R5: 27 | S5: 26 | T5: 25 | U5: 24 | V5: 23 | W5: 22 | X5: 21 | Y5: 20 | Z5: 19 | AA5: 18 | AB5: 17 | AC5: 16 | AD5: 15 | AE5: 14 | AF5: 13 | AG5: 12 | AH5: 11 | AI5: 10 | AJ5: 9 | AK5: 8 | AL5: 7 | AM5: 6 | AN5: 5 | AO5: 4 | AP5: 3 | AQ5: 2 | AR5: 1 | AS5: TOTAL MONTEES | AT5: TOTAL DESCENTES | AU5: CHARGE
C6: LOUVIGNY Michelet | D6: Maison Moisson | E6: Chardonnerets | F6: Louvigny École | G6: Louvigny Centre | H6: Louvigny Mairie | I6: Louvigny Église | J6: Long Cours | K6: Zenith | L6: Lycée Malherbe | M6: Hôtel de Ville | N6: Espace Gardin | O6: Théâtre | P6: Bernières | Q6: Tour Leroy | R6: Vaugueux | S6: Université | T6: Théâtre | U6: Bellivet | V6: Château Quatrans | W6: Place de la Mare | X6: Jardin des plantes | Y6: Creully | Z6: Métiers | AA6: Collège Monod | AB6: Acadiens | AC6: Lycée Claudel | AD6: Tassigny | AE6: Montgomery | AF6: Parc Athéna | AG6: Bitot | AH6: Grand Clos | AI6: Saint-Contest Église | AJ6: Estapi | AK6: Champs Bailly | AL6: Arromanches | AM6: Coopérative | AN6: VILLONS Cerisiers | AO6: Buron Canadiens | AP6: Haut Meslier | AQ6: Cairon Commerces | AR6: CAIRON Château
A7: 42 | B7: LOUVIGNY Michelet | E7: 1.382213756 | H7: 1.071215661 | L7: 7.453405811 | M7: 6.552610823 | N7: 1.214044416 | O7: 14.71494955 | P7: 10.35542642 | S7: 3.661609897 | W7: 1.214044416 | AA7: 2.380479247 | AS7: 50 | AU7: =AU6+AS7-AT7 -> 50
A8: 41 | B8: Maison Moisson | L8: 5.421373841 | M8: 1.584167681 | O8: 6.623634431 | P8: 2.731222428 | R8: 2.105822897 | S8: 2.710686921 | AA8: 2.823091801 | AS8: 24 | AU8: =AU7+AS8-AT8 -> 74
A9: 40 | B9: Chardonnerets | K9: 2.367099242 | L9: 2.210881283 | M9: 3.378823044 | O9: 3.693115542 | P9: 0.8737614651 | S9: 1.493337777 | T9: 0.9829816483 | AS9: 15 | AT9: 1.382213756 | AU9: 87.61778624
A10: 39 | B10: Louvigny École | K10: 1.259442205 | L10: 2.215685361 | M10: 1.049535171 | O10: 1.949136746 | S10: 4.951897761 | Z10: 1.574302756 | AS10: 13 | AU10: 100.6177862
A11: 38 | B11: Louvigny Centre | J11: 0.875969877 | K11: 1.751939754 | L11: 2.641962624 | M11: 1.667868342 | N11: 1.664739133 | O11: 2.486208621 | P11: 0.9017336969 | S11: 2.009577953 | AS11: 14 | AU11: 114.6177862
A12: 37 | B12: Louvigny Mairie | L12: 2.339040317 | N12: 3.282676011 | P12: 1.122739352 | S12: 1.347287223 | AE12: 2.908257096 | AS12: 11 | AT12: 1.071215661 | AU12: 124.5465706
A13: 36 | B13: Louvigny Église | K13: 0.8875739645 | S13: 1.112426036 | AS13: 2 | AU13: 126.5465706
A14: 35 | B14: Long Cours | K14: 3.19828772 | L14: 2.160621038 | M14: 12.80298822 | N14: 2.228140445 | O14: 12.62615167 | P14: 8.622881743 | R14: 2.903657579 | S14: 2.357041132 | T14: 2.396938964 | U14: 3.54476889 | V14: 1.306827241 | AA14: 2.430698668 | AC14: 3.461904163 | AQ14: 2.485941819 | AR14: 1.473150708 | AS14: 64 | AT14: 0.875969877 | AU14: 189.6706007
A15: 34 | B15: Zenith | L15: 2.333360523 | O15: 0.9722335512 | Q15: 2.160519003 | R15: 1.125744112 | S15: 4.911562637 | T15: 2.268544953 | AA15: 1.134272476 | AB15: 1.093762745 | AS15: 16 | AT15: 9.464342886 | AU15: 196.2062578
A16: 33 | B16: Lycée Malherbe | O16: 4.468317511 | S16: 1.707257047 | T16: 4.412602829 | V16: 0.995899944 | Y16: 3.239410807 | AC16: 3.142308075 | AL16: 1.034203788 | AS16: 19 | AT16: 26.7763308 | AU16: 188.429927
A17: 32 | B17: Hôtel de Ville | P17: 2.846835506 | S17: 1.311269687 | X17: 1.001664345 | Z17: 0.9615977708 | AA17: 1.051747562 | AB17: 3.982981676 | AC17: 2.846157688 | AE17: 1.081797492 | AI17: 0.9014979101 | AK17: 2.184920741 | AP17: 5.327033105 | AR17: 1.502496517 | AS17: 25 | AT17: 27.03599328 | AU17: 186.3939337
A18: 31 | B18: Espace Gardin | P18: 0.8793349568 | R18: 0.9051977496 | S18: 2.216810815 | Z18: 0.7758837854 | AA18: 0.7758837854 | AD18: 0.8534721639 | AH18: 1.904442019 | AN18: 0.8534721639 | AO18: 2.835502561 | AS18: 12 | AT18: 8.389600005 | AU18: 190.0043337
A19: 30 | B19: Théâtre | P19: 1.097722107 | U19: 1.089468558 | X19: 3.293166322 | Y19: 3.085081637 | Z19: 6.465155529 | AA19: 6.340469211 | AB19: 1.881809327 | AC19: 19.24577721 | AD19: 1.066358619 | AE19: 6.233493396 | AF19: 3.69193068 | AG19: 1.019313385 | AH19: 6.950882287 | AI19: 2.309493265 | AK19: 2.026563891 | AL19: 8.008687227 | AM19: 1.066358619 | AN19: 2.751026016 | AP19: 1.045449626 | AR19: 5.331793093 | AS19: 84 | AT19: 47.53374763 | AU19: 226.4705861
A20: 29 | B20: Bernières | S20: 1.018812292 | Y20: 3.215573671 | Z20: 3.707944643 | AA20: 3.196909479 | AB20: 1.972019246 | AC20: 22.71698812 | AD20: 5.279300057 | AE20: 4.936012238 | AH20: 3.791878216 | AI20: 3.654999282 | AJ20: 1.026530567 | AL20: 4.766987029 | AO20: 4.319427319 | AP20: 1.29049557 | AR20: 4.106122267 | AS20: 69 | AT20: 29.43165768 | AU20: 266.0389284
A21: 28 | B21: Tour Leroy | S21: 1.264072795 | Z21: 6.460322249 | AA21: 1.087374448 | AB21: 3.908410936 | AC21: 0.8427151969 | AD21: 1.741611407 | AE21: 2.124932578 | AF21: 2.380300819 | AH21: 5.982194326 | AI21: 2.170865415 | AL21: 2.407757705 | AO21: 2.068482756 | AQ21: 2.068482756 | AR21: 5.492476613 | AS21: 40 | AT21: 2.160519003 | AU21: 303.8784094
A22: 27 | B22: Vaugueux | Y22: 1.123088562 | Z22: 1.186900412 | AC22: 5.048283084 | AD22: 5.620122344 | AE22: 2.901312117 | AF22: 1.131511726 | AK22: 2.136420741 | AM22: 1.044472362 | AR22: 4.807888652 | AS22: 25 | AT22: 7.040422338 | AU22: 321.8379871
A23: 26 | B23: Université | Y23: 7.443351322 | Z23: 12.05534845 | AA23: 3.719691568 | AB23: 10.94110027 | AC23: 9.089719434 | AD23: 15.9865336 | AE23: 9.045390152 | AF23: 10.39762493 | AH23: 8.799703627 | AI23: 17.44909351 | AJ23: 3.766880804 | AK23: 5.907510206 | AL23: 16.90699949 | AN23: 1.59585418 | AO23: 1.346501964 | AP23: 2.507770854 | AQ23: 12.41441564 | AR23: 2.626510005 | AS23: 152 | AT23: 32.07364997 | AU23: 441.7643371
A24: 25 | B24: Théâtre | AT24: 10.06106839 | AU24: 431.7032687
A25: 24 | B25: Bellivet | AT25: 4.634237448 | AU25: 427.0690313
A26: 23 | B26: Château Quatrans | AT26: 2.302727185 | AU26: 424.7663041
A27: 22 | B27: Place de la Mare | AT27: 1.214044416 | AU27: 423.5522597
A28: 21 | B28: Jardin des plantes | AA28: 1.467800452 | AE28: 1.445561052 | AF28: 8.386701497 | AH28: 1.721760061 | AK28: 4.670274167 | AL28: 6.307902771 | AS28: 24 | AT28: 4.294830667 | AU28: 443.257429
A29: 20 | B29: Creully | AB29: 2.06785317 | AH29: 8.589543938 | AL29: 2.342602892 | AS29: 13 | AT29: 18.106506 | AU29: 438.150923
A30: 19 | B30: Métiers | AM30: 1 | AS30: 1 | AT30: 33.1874556 | AU30: 405.9634674
A31: 18 | B31: Collège Monod | AD31: 2.415645791 | AG31: 2.297608554 | AH31: 12.65975767 | AK31: 3.476804478 | AL31: 8.32681269 | AQ31: 5.491568098 | AR31: 13.33180272 | AS31: 48 | AT31: 26.4084187 | AU31: 427.5550487
A32: 17 | B32: Acadiens | AH32: 1.181260326 | AL32: 3.911966014 | AN32: 2.544253009 | AO32: 2.362520651 | AS32: 10 | AT32: 25.84793737 | AU32: 411.7071114
A33: 16 | B33: Lycée Claudel | AE33: 1.252450265 | AG33: 1.461191976 | AP33: 1.610293198 | AQ33: 1.502940318 | AR33: 7.173124244 | AS33: 13 | AT33: 66.39385297 | AU33: 358.3132584
A34: 15 | B34: Tassigny | AT34: 32.96304398 | AU34: 325.3502144
A35: 14 | B35: Montgomery | AH35: 0.4155268565 | AI35: 0.4155268565 | AL35: 0.8136190197 | AP35: 0.927208688 | AQ35: 0.4281185794 | AS35: 3 | AT35: 31.92920639 | AU35: 296.421008
A36: 13 | B36: Parc Athéna | AL36: 2.4 | AN36: 5.6 | AS36: 8 | AT36: 25.98806965 | AU36: 278.4329384
A37: 12 | B37: Bitot | AT37: 4.778113915 | AU37: 273.6548245
A38: 11 | B38: Grand Clos | AT38: 51.99694933 | AU38: 221.6578751
A39: 10 | B39: Saint-Contest Église | AT39: 26.90147624 | AU39: 194.7563989
A40: 9 | B40: Estapi | AT40: 4.793411371 | AU40: 189.9629875
A41: 8 | B41: Champs Bailly | AT41: 20.40249422 | AU41: 169.5604933
A42: 7 | B42: Arromanches | AM42: 1.890625 | AQ42: 2.109375 | AS42: 4 | AT42: 57.22753863 | AU42: 116.3329547
A43: 6 | B43: Coopérative | AT43: 5.001455981 | AU43: 111.3314987
A44: 5 | B44: VILLONS Cerisiers | AT44: 13.34460537 | AU44: 97.98689332
A45: 4 | B45: Buron Canadiens | AT45: 12.93243525 | AU45: 85.05445807
A46: 3 | B46: Haut Meslier | AT46: 12.70825104 | AU46: 72.34620703
A47: 2 | B47: Cairon Commerces | AT47: 26.50084221 | AU47: 45.84536482
A48: 1 | B48: CAIRON Château | AT48: 45.84536482 | AU48: -1.136868377e-13
A49: TOTAL DESCENTES | E49: 1.382213756 | H49: 1.071215661 | J49: 0.875969877 | K49: 9.464342886 | L49: 26.7763308 | M49: 27.03599328 | N49: 8.389600005 | O49: 47.53374763 | P49: 29.43165768 | Q49: 2.160519003 | R49: 7.040422338 | S49: 32.07364997 | T49: 10.06106839 | U49: 4.634237448 | V49: 2.302727185 | W49: 1.214044416 | X49: 4.294830667 | Y49: 18.106506 | Z49: 33.1874556 | AA49: 26.4084187 | AB49: 25.84793737 | AC49: 66.39385297 | AD49: 32.96304398 | AE49: 31.92920639 | AF49: 25.98806965 | AG49: 4.778113915 | AH49: 51.99694933 | AI49: 26.90147624 | AJ49: 4.793411371 | AK49: 20.40249422 | AL49: 57.22753863 | AM49: 5.001455981 | AN49: 13.34460537 | AO49: 12.93243525 | AP49: 12.70825104 | AQ49: 26.50084221 | AR49: 45.84536482 | AS49: 759 | AT49: 759

Sheet Sens 1-23-1. JOB
A1: SENS | B1: 1
A2: LIGNE | B2: 23
C5: 1 | D5: 2 | E5: 3 | F5: 4 | G5: 5 | H5: 6 | I5: 7 | J5: 8 | K5: 9 | L5: 10 | M5: 11 | N5: 12 | O5: 13 | P5: 14 | Q5: 15 | R5: 16 | S5: 17 | T5: 18 | U5: 19 | V5: 20 | W5: 21 | X5: 22 | Y5: 23 | Z5: 24 | AA5: 25 | AB5: 26 | AC5: 27 | AD5: 28 | AE5: 29 | AF5: 30 | AG5: 31 | AH5: 32 | AI5: 33 | AJ5: 34 | AK5: 35 | AL5: 36 | AM5: 37 | AN5: 38 | AO5: 39 | AP5: 40 | AQ5: 41 | AR5: 42 | AS5: TOTAL MONTEES | AT5: TOTAL DESCENTES | AU5: CHARGE
C6: CAIRON Château | D6: Cairon Commerces | E6: Haut Meslier | F6: Buron Canadiens | G6: VILLONS Cerisiers | H6: Coopérative | I6: Arromanches | J6: Champs Bailly | K6: Estapi | L6: Saint-Contest Église | M6: Grand Clos | N6: Bitot | O6: Parc Athéna | P6: Montgomery | Q6: Tassigny | R6: Lycée Claudel | S6: Acadiens | T6: Collège Monod | U6: Métiers | V6: Creully | W6: Jardin des plantes | X6: Place de la Mare | Y6: Château Quatrans | Z6: Bellivet | AA6: Théâtre | AB6: Université | AC6: Vaugueux | AD6: Tour Leroy | AE6: Bernières | AF6: Théâtre | AG6: Espace Gardin | AH6: Hôtel de Ville | AI6: Lycée Malherbe | AJ6: Zenith | AK6: Long Cours | AL6: Louvigny Église | AM6: Louvigny Mairie | AN6: Louvigny Centre | AO6: Louvigny École | AP6: Chardonnerets | AQ6: Maison Moisson | AR6: LOUVIGNY Michelet
A7: 1 | B7: CAIRON Château | E7: 0.7666527018 | O7: 0.7666527018 | S7: 0.7527135617 | T7: 1.129070343 | X7: 7.156320431 | Y7: 5.115480982 | AA7: 6.31310928 | AS7: 22 | AU7: =AU6+AS7-AT7 -> 22
A8: 2 | B8: Cairon Commerces | O8: 0.869040037 | P8: 0.885176059 | R8: 0.8298525553 | T8: 0.7325241692 | U8: 0.869040037 | X8: 3.965345057 | Y8: 0.8298525553 | Z8: 0.8298525553 | AA8: 3.17649117 | AH8: 0.869040037 | AI8: 0.885176059 | AK8: 1.258609709 | AS8: 16 | AU8: =AU7+AS8-AT8 -> 38
A9: 3 | B9: Haut Meslier | S9: 0.9751801441 | T9: 0.9583666934 | Y9: 1.066453163 | AS9: 3 | AT9: 0.7666527018 | AU9: 40.2333473
A10: 4 | B10: Buron Canadiens | T10: 1.332467532 | X10: 1.355844156 | Y10: 2.711688312 | Z10: 1.355844156 | AA10: 1.122077922 | AG10: 1.122077922 | AS10: 9 | AU10: 49.2333473
A11: 5 | B11: VILLONS Cerisiers | P11: 1.402898551 | U11: 1.147826087 | X11: 2.168115942 | AF11: 1.28115942 | AS11: 6 | AU11: 55.2333473
A12: 6 | B12: Coopérative | T12: 3.771462645 | W12: 1.407580494 | X12: 4.017055251 | Y12: 3.716225774 | AI12: 1.087675836 | AS12: 14 | AU12: 69.2333473
A13: 7 | B13: Arromanches | P13: 0.9181509072 | R13: 2.322981805 | S13: 3.086619317 | T13: 8.332751389 | X13: 6.145610092 | Y13: 3.357724952 | AA13: 2.862137087 | AI13: 1.974024451 | AS13: 29 | AU13: 98.2333473
A14: 8 | B14: Champs Bailly | M14: 1.142259414 | X14: 3.273535565 | Y14: 1.449790795 | Z14: 2.134414226 | AS14: 8 | AU14: 106.2333473
A15: 9 | B15: Estapi | T15: 1.551420176 | X15: 1.448579824 | AS15: 3 | AU15: 109.2333473
A16: 10 | B16: Saint-Contest Église | O16: 1.339708063 | R16: 1.567458433 | T16: 2.481550016 | V16: 1.315286301 | X16: 5.125081104 | Y16: 5.215790504 | Z16: 1.088512801 | AH16: 2.778099978 | AK16: 1.088512801 | AS16: 22 | AU16: 131.2333473
A17: 11 | B17: Grand Clos | O17: 2.301859515 | P17: 2.877324394 | T17: 7.44719255 | V17: 1.48943851 | X17: 1.390706791 | Y17: 2.623845817 | Z17: 2.478925632 | AG17: 1.390706791 | AS17: 22 | AT17: 1.142259414 | AU17: 152.0910879
A18: 12 | B18: Bitot | P18: 2.297783334 | T18: 1.097084881 | X18: 4.719795397 | Y18: 2.915807817 | Z18: 0.9508068968 | AA18: 1.018721675 | AS18: 13 | AU18: 165.0910879
A19: 13 | B19: Parc Athéna | U19: 2.5569658 | V19: 1.143894491 | X19: 6.482825326 | Y19: 13.05805037 | Z19: 4.121445248 | AA19: 8.406375989 | AF19: 0.7943711742 | AM19: 2.436071601 | AS19: 39 | AT19: 5.277260317 | AU19: 198.8138276
A20: 14 | B20: Montgomery | T20: 1.145129033 | U20: 1.212489565 | W20: 1.561539591 | X20: 4.996307032 | Y20: 13.08515463 | Z20: 4.20350442 | AA20: 7.02345807 | AC20: 2.772417659 | AS20: 36 | AT20: 8.381333245 | AU20: 226.4324943
A21: 15 | B21: Tassigny | T21: 1.521801054 | W21: 1.549982555 | X21: 9.058060888 | Y21: 7.867895712 | Z21: 3.422968467 | AA21: 9.327200143 | AH21: 2.282701581 | AK21: 1.969389599 | AS21: 37 | AU21: 263.4324943
A22: 16 | B22: Lycée Claudel | U22: 0.7879849386 | V22: 0.9357321146 | X22: 9.946071953 | Y22: 17.80621865 | AA22: 4.1075052 | AB22: 2.416487145 | AS22: 36 | AT22: 4.720292794 | AU22: 294.7122015
A23: 17 | B23: Acadiens | U23: 1.425412553 | X23: 6.316258865 | Y23: 16.589344 | Z23: 12.41916307 | AA23: 11.01052008 | AE23: 7.172560782 | AG23: 4.040428669 | AH23: 5.434869294 | AJ23: 1.520440056 | AK23: 5.410232534 | AR23: 2.660770099 | AS23: 74 | AT23: 4.814513022 | AU23: 363.8976885
A24: 18 | B24: Collège Monod | U24: 1.909365386 | V24: 1.874649652 | W24: 1.213008598 | X24: 3.857603643 | Y24: 15.0467036 | Z24: 0.9373248259 | AA24: 10.17220609 | AB24: 2.477215611 | AE24: 3.818730772 | AF24: 2.175932632 | AH24: 2.175932632 | AK24: 2.254043034 | AN24: 1.132600831 | AQ24: 0.9546826931 | AS24: 50 | AT24: 31.50082048 | AU24: 382.396868
A25: 19 | B25: Métiers | X25: 7.137194091 | Y25: 3.816568388 | Z25: 5.053296123 | AA25: 12.10053216 | AF25: 1.117044406 | AI25: 1.349761991 | AN25: 3.425602846 | AS25: 34 | AT25: 9.909084366 | AU25: 406.4877837
A26: 20 | B26: Creully | X26: 6.253235084 | Y26: 1.472042157 | Z26: 1.366896289 | AA26: 5.90782647 | AS26: 15 | AT26: 6.759001068 | AU26: 414.7287826
A27: 21 | B27: Jardin des plantes | AF27: 1.682242991 | AG27: 1.962616822 | AI27: 1.355140187 | AS27: 5 | AT27: 5.732111238 | AU27: 413.9966714
A28: 22 | B28: Place de la Mare | AF28: 1.205774764 | AI28: 1.205774764 | AJ28: 2.99364769 | AK28: 1.140437215 | AL28: 1.496823845 | AM28: 7.118228953 | AN28: 1.436950891 | AO28: 4.94801917 | AQ28: 1.069159889 | AR28: 4.385182816 | AS28: 27 | AT28: 94.81354649 | AU28: 346.1831249
A29: 23 | B29: Château Quatrans | Z29: 1.11667088 | AA29: 2.033130567 | AF29: 1.098576676 | AI29: 3.874098337 | AJ29: 0.8947683335 | AK29: 4.879090819 | AM29: 1.877443731 | AN29: 0.8308563097 | AO29: 3.040934093 | AR29: 8.354430252 | AS29: 28 | AT29: 117.7446382 | AU29: 256.4384867
A30: 24 | B30: Bellivet | AA30: 1.515752638 | AG30: 1.413853301 | AH30: 1.515752638 | AI30: 3.660537721 | AJ30: 2.591894098 | AK30: 11.28613284 | AM30: 1.089756798 | AO30: 2.598433093 | AP30: 2.560220842 | AQ30: 3.922614977 | AR30: 16.84505105 | AS30: 49 | AT30: 41.47962559 | AU30: 263.9588611
A31: 25 | B31: Théâtre | AF31: 1.469661666 | AH31: 4.541259124 | AI31: 14.6824853 | AJ31: 7.695472751 | AK31: 20.54575737 | AL31: 5.714453693 | AN31: 4.300874843 | AO31: 4.32198014 | AP31: 1.695763461 | AQ31: 11.73459911 | AR31: 13.29769255 | AS31: 90 | AT31: 86.09704453 | AU31: 267.8618166
A32: 26 | B32: Université | AT32: 4.893702756 | AU32: 262.9681138
A33: 27 | B33: Vaugueux | AT33: 2.772417659 | AU33: 260.1956961
A34: 28 | B34: Tour Leroy | AU34: 260.1956961
A35: 29 | B35: Bernières | AT35: 10.99129155 | AU35: 249.2044046
A36: 30 | B36: Théâtre | AT36: 10.82476373 | AU36: 238.3796409
A37: 31 | B37: Espace Gardin | AH37: 0.7028631952 | AJ37: 0.4706127481 | AK37: 0.7028631952 | AN37: 0.6952233778 | AR37: 5.428437484 | AS37: 8 | AT37: 9.929683504 | AU37: 236.4499574
A38: 32 | B38: Hôtel de Ville | AI38: 2.531263697 | AJ38: 1.047419461 | AK38: 15.08994402 | AL38: 2.710968016 | AM38: 2.535857642 | AN38: 9.874776663 | AO38: 2.936583288 | AP38: 5.408493215 | AQ38: 7.20170153 | AR38: 5.662992465 | AS38: 55 | AT38: 20.30051848 | AU38: 271.1494389
A39: 33 | B39: Lycée Malherbe | AJ39: 2.013199206 | AK39: 16.22276745 | AL39: 2.159209331 | AO39: 3.254768745 | AP39: 8.840477934 | AQ39: 13.98849803 | AR39: 7.521079304 | AS39: 54 | AT39: 32.60593834 | AU39: 292.5435005
A40: 34 | B40: Zenith | AK40: 4.648181085 | AL40: 2.844069768 | AN40: 1.093872988 | AO40: 4.223501177 | AP40: 2.844069768 | AQ40: 1.346305215 | AS40: 17 | AT40: 19.22745434 | AU40: 290.3160462
A41: 35 | B41: Long Cours | AN41: 2 | AS41: 2 | AT41: 86.49596168 | AU41: 205.8200845
A42: 36 | B42: Louvigny Église | AR42: 4 | AS42: 4 | AT42: 14.92552465 | AU42: 194.8945599
A43: 37 | B43: Louvigny Mairie | AT43: 15.05735873 | AU43: 179.8372011
A44: 38 | B44: Louvigny Centre | AR44: 2 | AS44: 2 | AT44: 24.79075875 | AU44: 157.0464424
A45: 39 | B45: Louvigny École | AR45: 1 | AS45: 1 | AT45: 25.32421971 | AU45: 132.7222227
A46: 40 | B46: Chardonnerets | AT46: 21.34902522 | AU46: 111.3731975
A47: 41 | B47: Maison Moisson | AT47: 40.21756144 | AU47: 71.15563602
A48: 42 | B48: LOUVIGNY Michelet | AT48: 71.15563602 | AU48: 0
A49: TOTAL DESCENTES | E49: 0.7666527018 | M49: 1.142259414 | O49: 5.277260317 | P49: 8.381333245 | R49: 4.720292794 | S49: 4.814513022 | T49: 31.50082048 | U49: 9.909084366 | V49: 6.759001068 | W49: 5.732111238 | X49: 94.81354649 | Y49: 117.7446382 | Z49: 41.47962559 | AA49: 86.09704453 | AB49: 4.893702756 | AC49: 2.772417659 | AE49: 10.99129155 | AF49: 10.82476373 | AG49: 9.929683504 | AH49: 20.30051848 | AI49: 32.60593834 | AJ49: 19.22745434 | AK49: 86.49596168 | AL49: 14.92552465 | AM49: 15.05735873 | AN49: 24.79075875 | AO49: 25.32421971 | AP49: 21.34902522 | AQ49: 40.21756144 | AR49: 71.15563602 | AS49: 830 | AT49: 830

Sheet Sens (Tous)-22-1. JOB
A1: SENS | B1: (Tous)
A2: LIGNE | B2: 22
C5: 1 | D5: 2 | E5: 3 | F5: 4 | G5: 5 | H5: 6 | I5: 7 | J5: 8 | K5: 9 | L5: 10 | M5: 11 | N5: 12 | O5: 13 | P5: 14 | Q5: 15 | R5: 16 | S5: 17 | T5: 18 | U5: 19 | V5: 20 | W5: 21 | X5: 22 | Y5: 23 | Z5: 25 | AA5: 26 | AB5: 27 | AC5: 29 | AD5: 30 | AE5: TOTAL MONTEES | AF5: TOTAL DESCENTES
C6: LION-SUR-MER - Plage | D6: Galante | E6: Mitterrand | F6: Lion Stade | G6: Bas Lion | H6: Hermanville Plage | I6: Minotaure | J6: Canardière | K6: Hermanville Mairie | L6: Croix Rose | M6: Grande Cour | N6: Périers Mairie | O6: Rue du Home | P6: Biéville Stade | Q6: BIÉVILLE-BEUVILLE - Château | R6: Clos Bosquin | S6: Biéville Centre | T6: Outreval | U6: Carrefour de Lebisey | V6: Harris | W6: Cité U Lebisey | X6: Lycée D. d’Urville | Y6: Rue de Lebisey | Z6: Pigacière | AA6: Reine Mathilde | AB6: Vaugueux | AC6: Copernic | AD6: CAEN - Calvaire Saint-Pierre
A7: 1 | B7: LION-SUR-MER - Plage | V7: 0.2373595506 | AC7: 0.2879213483 | AD7: 0.4747191011 | AE7: 1 | AF7: 9.441516325
A8: 2 | B8: Galante | U8: 2.829015544 | V8: 3.170984456 | AE8: 6 | AF8: 5.53186837
A9: 3 | B9: Mitterrand | AF9: 9.192314362
A10: 4 | B10: Lion Stade | K10: 1.176276771 | U10: 1.176276771 | V10: 1.245469522 | AD10: 2.401976936 | AE10: 6 | AF10: 13.58061237
A11: 5 | B11: Bas Lion | M11: 2.058444651 | U11: 1.067341671 | V11: 5.482669607 | W11: 1.683115711 | AC11: 1.683115711 | AD11: 14.02531265 | AE11: 26 | AF11: 25.8127879
A12: 6 | B12: Hermanville Plage | C12: 1 | K12: 0.3444360333 | V12: 3.063688382 | W12: 1.073829986 | AD12: 5.518045598 | AE12: 11 | AF12: 24.94294639
A13: 7 | B13: Minotaure | D13: 1 | W13: 1.01297097 | AD13: 2.98702903 | AE13: 5 | AF13: 4.748558585
A14: 8 | B14: Canardière | G14: 1 | V14: 0.7438016529 | AC14: 1.220709772 | AD14: 7.035488576 | AE14: 10 | AF14: 14.2205604
A15: 9 | B15: Hermanville Mairie | C15: 1.058823529 | H15: 0.9411764706 | V15: 4.369244911 | W15: 6.799586728 | AC15: 0.8298728158 | AD15: 16.00129555 | AE15: 30 | AF15: 25.59458594
A16: 10 | B16: Croix Rose | AD16: 11 | AE16: 11 | AF16: 16.53050096
A17: 11 | B17: Grande Cour | F17: 1 | W17: 1.731593025 | AD17: 8.268406975 | AE17: 11 | AF17: 26.02508691
A18: 12 | B18: Périers Mairie | W18: 1 | AE18: 1 | AF18: 1.18315024
A19: 13 | B19: Rue du Home | U19: 1.130002616 | V19: 0.5336123463 | W19: 2.216543592 | AD19: 8.119841446 | AE19: 12 | AF19: 15.99128619
A20: 14 | B20: Biéville Stade | U20: 3 | W20: 6 | AE20: 9 | AF20: 7.073910506
A21: 15 | B21: BIÉVILLE-BEUVILLE - Château | S21: 0.7708779443 | U21: 0.7708779443 | W21: 0.7280513919 | AD21: 1.730192719 | AE21: 4 | AF21: 20.76224237
A22: 16 | B22: Clos Bosquin | C22: 1.000347343 | F22: 0.8909343522 | M22: 1.108718305 | U22: 2.540098677 | V22: 4.501535821 | W22: 16.17771121 | AA22: 0.9769610296 | AC22: 1.953922059 | AD22: 9.849771201 | AE22: 39 | AF22: 57.08024344
A23: 17 | B23: Biéville Centre | V23: 6.111111111 | W23: 4.49382716 | AC23: 1.555555556 | AD23: 4.839506173 | AE23: 17 | AF23: 38.29475717
A24: 18 | B24: Outreval | W24: 3.851097179 | AC24: 1.574451411 | AD24: 1.574451411 | AE24: 7 | AF24: 43.42241243
A25: 19 | B25: Carrefour de Lebisey | F25: 2.474847946 | G25: 1.312635544 | H25: 1.706426207 | M25: 0.6581929656 | Q25: 2.535261793 | R25: 1.312635544 | AE25: 10 | AF25: 24.16923802
A26: 20 | B26: Harris | D26: 4.53186837 | E26: 2.306208038 | F26: 2.234139037 | G26: 6.878350262 | H26: 13.60832317 | I26: 3.459312058 | J26: 4.540347076 | K26: 12.51117861 | L26: 4.612416077 | M26: 3.459312058 | O26: 1.081035018 | R26: 0.5837589097 | S26: 3.876455742 | T26: 1.164191558 | U26: 1.153104019 | AD26: 8 | AE26: 74 | AF26: 31.7245471
A27: 21 | B27: Cité U Lebisey | C27: 2.486394677 | G27: 7.358507285 | H27: 2.087415066 | K27: 0.9887755577 | L27: 2.944353883 | M27: 1.387755169 | N27: 1.18315024 | O27: 12.25383607 | P27: 5.910680556 | Q27: 3.988539085 | R27: 35.24394845 | S27: 25.70620221 | T27: 36.09989737 | U27: 3.360544379 | Y27: 12 | AE27: 153 | AF27: 46.76832696
A28: 22 | B28: Lycée D. d’Urville | C28: 2 | AE28: 2
A29: 23 | B29: Rue de Lebisey | AF29: 12
A30: 25 | B30: Pigacière | S30: 1 | AE30: 1
A31: 26 | B31: Reine Mathilde | AF31: 0.9769610296
A32: 27 | B32: Vaugueux
A33: 29 | B33: Copernic | E33: 1.830606092 | G33: 0.677938203 | H33: 0.7760608377 | J33: 0.6143814965 | K33: 1.355876406 | O33: 0.6945182134 | Q33: 1.355876406 | R33: 2.383549438 | S33: 0.9830103944 | U33: 1.552121675 | V33: 0.7760608377 | AE33: 13 | AF33: 9.105548672
A34: 30 | B34: CAEN - Calvaire Saint-Pierre | C34: 1.895950776 | E34: 5.055500232 | F34: 6.980691032 | G34: 8.585356609 | H34: 5.823544641 | I34: 1.289246528 | J34: 9.06583183 | K34: 9.218042559 | L34: 8.973731004 | M34: 17.35266376 | O34: 1.96189689 | P34: 1.16322995 | Q34: 12.88256509 | R34: 17.5563511 | S34: 5.958210877 | T34: 6.158323499 | U34: 5.589854727 | V34: 1.489008902 | AE34: 127 | AF34: 101.8260374
A35: TOTAL DESCENTES | C35: 9.441516325 | D35: 5.53186837 | E35: 9.192314362 | F35: 13.58061237 | G35: 25.8127879 | H35: 24.94294639 | I35: 4.748558585 | J35: 14.2205604 | K35: 25.59458594 | L35: 16.53050096 | M35: 26.02508691 | N35: 1.18315024 | O35: 15.99128619 | P35: 7.073910506 | Q35: 20.76224237 | R35: 57.08024344 | S35: 38.29475717 | T35: 43.42241243 | U35: 24.16923802 | V35: 31.7245471 | W35: 46.76832696 | Y35: 12 | AA35: 0.9769610296 | AC35: 9.105548672 | AD35: 101.8260374 | AE35: 586 | AF35: 586

Sheet Sens 2-22-1. JOB
A1: SENS | B1: 2
A2: LIGNE | B2: 22
C5: 30 | D5: 29 | E5: 27 | F5: 25 | G5: 23 | H5: 22 | I5: 21 | J5: 20 | K5: 19 | L5: 18 | M5: 17 | N5: 16 | O5: 15 | P5: 14 | Q5: 13 | R5: 12 | S5: 11 | T5: 10 | U5: 9 | V5: 8 | W5: 7 | X5: 6 | Y5: 5 | Z5: 4 | AA5: 3 | AB5: 2 | AC5: 1 | AD5: TOTAL MONTEES | AE5: TOTAL DESCENTES | AF5: CHARGE
C6: CAEN - Calvaire Saint-Pierre | D6: Copernic | E6: Vaugueux | F6: Pigacière | G6: Rue de Lebisey | H6: Lycée D. d’Urville | I6: Cité U Lebisey | J6: Harris | K6: Carrefour de Lebisey | L6: Outreval | M6: Biéville Centre | N6: Clos Bosquin | O6: BIÉVILLE-BEUVILLE - Château | P6: Biéville Stade | Q6: Rue du Home | R6: Périers Mairie | S6: Grande Cour | T6: Croix Rose | U6: Hermanville Mairie | V6: Canardière | W6: Minotaure | X6: Hermanville Plage | Y6: Bas Lion | Z6: Lion Stade | AA6: Mitterrand | AB6: Galante | AC6: LION-SUR-MER - Plage
A7: 30 | B7: CAEN - Calvaire Saint-Pierre | J7: 1.489008902 | K7: 5.589854727 | L7: 6.158323499 | M7: 5.958210877 | N7: 17.5563511 | O7: 12.88256509 | P7: 1.16322995 | Q7: 1.96189689 | S7: 17.35266376 | T7: 8.973731004 | U7: 9.218042559 | V7: 9.06583183 | W7: 1.289246528 | X7: 5.823544641 | Y7: 8.585356609 | Z7: 6.980691032 | AA7: 5.055500232 | AC7: 1.895950776 | AD7: 127 | AF7: =AF6+AD7-AE7 -> 127
A8: 29 | B8: Copernic | J8: 0.7760608377 | K8: 1.552121675 | M8: 0.9830103944 | N8: 2.383549438 | O8: 1.355876406 | Q8: 0.6945182134 | U8: 1.355876406 | V8: 0.6143814965 | X8: 0.7760608377 | Y8: 0.677938203 | AA8: 1.830606092 | AD8: 13 | AF8: =AF7+AD8-AE8 -> 140
A9: 27 | B9: Vaugueux | AF9: 140
A10: 25 | B10: Pigacière | M10: 1 | AD10: 1 | AF10: 141
A11: 23 | B11: Rue de Lebisey | AF11: 141
A12: 22 | B12: Lycée D. d’Urville | AC12: 2 | AD12: 2 | AF12: 143
A13: 21 | B13: Cité U Lebisey | K13: 3.360544379 | L13: 36.09989737 | M13: 25.70620221 | N13: 35.24394845 | O13: 3.988539085 | P13: 5.910680556 | Q13: 12.25383607 | R13: 1.18315024 | S13: 1.387755169 | T13: 2.944353883 | U13: 0.9887755577 | X13: 2.087415066 | Y13: 7.358507285 | AC13: 2.486394677 | AD13: 141 | AF13: 284
A14: 20 | B14: Harris | K14: 1.153104019 | L14: 1.164191558 | M14: 3.876455742 | N14: 0.5837589097 | Q14: 1.081035018 | S14: 3.459312058 | T14: 4.612416077 | U14: 12.51117861 | V14: 4.540347076 | W14: 3.459312058 | X14: 13.60832317 | Y14: 6.878350262 | Z14: 2.234139037 | AA14: 2.306208038 | AB14: 4.53186837 | AD14: 66 | AE14: 2.265069739 | AF14: 347.7349303
A15: 19 | B15: Carrefour de Lebisey | N15: 1.312635544 | O15: 2.535261793 | S15: 0.6581929656 | X15: 1.706426207 | Y15: 1.312635544 | Z15: 2.474847946 | AD15: 10 | AE15: 11.6556248 | AF15: 346.0793055
A16: 18 | B16: Outreval | AE16: 43.42241243 | AF16: 302.656893
A17: 17 | B17: Biéville Centre | AE17: 37.52387923 | AF17: 265.1330138
A18: 16 | B18: Clos Bosquin | S18: 1.108718305 | Z18: 0.8909343522 | AC18: 1.000347343 | AD18: 3 | AE18: 57.08024344 | AF18: 211.0527704
A19: 15 | B19: BIÉVILLE-BEUVILLE - Château | AE19: 20.76224237 | AF19: 190.290528
A20: 14 | B20: Biéville Stade | AE20: 7.073910506 | AF20: 183.2166175
A21: 13 | B21: Rue du Home | AE21: 15.99128619 | AF21: 167.2253313
A22: 12 | B22: Périers Mairie | AE22: 1.18315024 | AF22: 166.0421811
A23: 11 | B23: Grande Cour | Z23: 1 | AD23: 1 | AE23: 23.96664226 | AF23: 143.0755388
A24: 10 | B24: Croix Rose | AE24: 16.53050096 | AF24: 126.5450378
A25: 9 | B25: Hermanville Mairie | X25: 0.9411764706 | AC25: 1.058823529 | AD25: 2 | AE25: 24.07387313 | AF25: 104.4711647
A26: 8 | B26: Canardière | Y26: 1 | AD26: 1 | AE26: 14.2205604 | AF26: 91.2506043
A27: 7 | B27: Minotaure | AB27: 1 | AD27: 1 | AE27: 4.748558585 | AF27: 87.50204572
A28: 6 | B28: Hermanville Plage | AC28: 1 | AD28: 1 | AE28: 24.94294639 | AF28: 63.55909933
A29: 5 | B29: Bas Lion | AE29: 25.8127879 | AF29: 37.74631142
A30: 4 | B30: Lion Stade | AE30: 13.58061237 | AF30: 24.16569906
A31: 3 | B31: Mitterrand | AE31: 9.192314362 | AF31: 14.9733847
A32: 2 | B32: Galante | AE32: 5.53186837 | AF32: 9.441516325
A33: 1 | B33: LION-SUR-MER - Plage | AE33: 9.441516325 | AF33: -2.309263891e-14
A34: TOTAL DESCENTES | J34: 2.265069739 | K34: 11.6556248 | L34: 43.42241243 | M34: 37.52387923 | N34: 57.08024344 | O34: 20.76224237 | P34: 7.073910506 | Q34: 15.99128619 | R34: 1.18315024 | S34: 23.96664226 | T34: 16.53050096 | U34: 24.07387313 | V34: 14.2205604 | W34: 4.748558585 | X34: 24.94294639 | Y34: 25.8127879 | Z34: 13.58061237 | AA34: 9.192314362 | AB34: 5.53186837 | AC34: 9.441516325 | AD34: 369 | AE34: 369

Sheet Sens 1-22-1. JOB
A1: SENS | B1: 1
A2: LIGNE | B2: 22
C5: 1 | D5: 2 | E5: 3 | F5: 4 | G5: 5 | H5: 6 | I5: 7 | J5: 8 | K5: 9 | L5: 10 | M5: 11 | N5: 12 | O5: 13 | P5: 14 | Q5: 15 | R5: 16 | S5: 17 | T5: 18 | U5: 19 | V5: 20 | W5: 21 | X5: 22 | Y5: 23 | Z5: 25 | AA5: 26 | AB5: 27 | AC5: 29 | AD5: 30 | AE5: TOTAL MONTEES | AF5: TOTAL DESCENTES | AG5: CHARGE
C6: LION-SUR-MER - Plage | D6: Galante | E6: Mitterrand | F6: Lion Stade | G6: Bas Lion | H6: Hermanville Plage | I6: Minotaure | J6: Canardière | K6: Hermanville Mairie | L6: Croix Rose | M6: Grande Cour | N6: Périers Mairie | O6: Rue du Home | P6: Biéville Stade | Q6: BIÉVILLE-BEUVILLE - Château | R6: Clos Bosquin | S6: Biéville Centre | T6: Outreval | U6: Carrefour de Lebisey | V6: Harris | W6: Cité U Lebisey | X6: Lycée D. d’Urville | Y6: Rue de Lebisey | Z6: Pigacière | AA6: Reine Mathilde | AB6: Vaugueux | AC6: Copernic | AD6: CAEN - Calvaire Saint-Pierre
A7: 1 | B7: LION-SUR-MER - Plage | V7: 0.2373595506 | AC7: 0.2879213483 | AD7: 0.4747191011 | AE7: 1 | AG7: =AG6+AE7-AF7 -> 1
A8: 2 | B8: Galante | U8: 2.829015544 | V8: 3.170984456 | AE8: 6 | AG8: =AG7+AE8-AF8 -> 7
A9: 3 | B9: Mitterrand | AG9: 7
A10: 4 | B10: Lion Stade | K10: 1.176276771 | U10: 1.176276771 | V10: 1.245469522 | AD10: 2.401976936 | AE10: 6 | AG10: 13
A11: 5 | B11: Bas Lion | M11: 2.058444651 | U11: 1.067341671 | V11: 5.482669607 | W11: 1.683115711 | AC11: 1.683115711 | AD11: 14.02531265 | AE11: 26 | AG11: 39
A12: 6 | B12: Hermanville Plage | K12: 0.3444360333 | V12: 3.063688382 | W12: 1.073829986 | AD12: 5.518045598 | AE12: 10 | AG12: 49
A13: 7 | B13: Minotaure | W13: 1.01297097 | AD13: 2.98702903 | AE13: 4 | AG13: 53
A14: 8 | B14: Canardière | V14: 0.7438016529 | AC14: 1.220709772 | AD14: 7.035488576 | AE14: 9 | AG14: 62
A15: 9 | B15: Hermanville Mairie | V15: 4.369244911 | W15: 6.799586728 | AC15: 0.8298728158 | AD15: 16.00129555 | AE15: 28 | AF15: 1.520712804 | AG15: 88.4792872
A16: 10 | B16: Croix Rose | AD16: 11 | AE16: 11 | AG16: 99.4792872
A17: 11 | B17: Grande Cour | W17: 1.731593025 | AD17: 8.268406975 | AE17: 10 | AF17: 2.058444651 | AG17: 107.4208425
A18: 12 | B18: Périers Mairie | W18: 1 | AE18: 1 | AG18: 108.4208425
A19: 13 | B19: Rue du Home | U19: 1.130002616 | V19: 0.5336123463 | W19: 2.216543592 | AD19: 8.119841446 | AE19: 12 | AG19: 120.4208425
A20: 14 | B20: Biéville Stade | U20: 3 | W20: 6 | AE20: 9 | AG20: 129.4208425
A21: 15 | B21: BIÉVILLE-BEUVILLE - Château | S21: 0.7708779443 | U21: 0.7708779443 | W21: 0.7280513919 | AD21: 1.730192719 | AE21: 4 | AG21: 133.4208425
A22: 16 | B22: Clos Bosquin | U22: 2.540098677 | V22: 4.501535821 | W22: 16.17771121 | AA22: 0.9769610296 | AC22: 1.953922059 | AD22: 9.849771201 | AE22: 36 | AG22: 169.4208425
A23: 17 | B23: Biéville Centre | V23: 6.111111111 | W23: 4.49382716 | AC23: 1.555555556 | AD23: 4.839506173 | AE23: 17 | AF23: 0.7708779443 | AG23: 185.6499646
A24: 18 | B24: Outreval | W24: 3.851097179 | AC24: 1.574451411 | AD24: 1.574451411 | AE24: 7 | AG24: 192.6499646
A25: 19 | B25: Carrefour de Lebisey | AF25: 12.51361322 | AG25: 180.1363514
A26: 20 | B26: Harris | AD26: 8 | AE26: 8 | AF26: 29.45947736 | AG26: 158.676874
A27: 21 | B27: Cité U Lebisey | Y27: 12 | AE27: 12 | AF27: 46.76832696 | AG27: 123.9085471
A28: 22 | B28: Lycée D. d’Urville | AG28: 123.9085471
A29: 23 | B29: Rue de Lebisey | AF29: 12 | AG29: 111.9085471
A30: 25 | B30: Pigacière | AG30: 111.9085471
A31: 26 | B31: Reine Mathilde | AF31: 0.9769610296 | AG31: 110.931586
A32: 27 | B32: Vaugueux | AG32: 110.931586
A33: 29 | B33: Copernic | AF33: 9.105548672 | AG33: 101.8260374
A34: 30 | B34: CAEN - Calvaire Saint-Pierre | AF34: 101.8260374 | AG34: 0
A35: TOTAL DESCENTES | K35: 1.520712804 | M35: 2.058444651 | S35: 0.7708779443 | U35: 12.51361322 | V35: 29.45947736 | W35: 46.76832696 | Y35: 12 | AA35: 0.9769610296 | AC35: 9.105548672 | AD35: 101.8260374 | AE35: 217 | AF35: 217

Sheet Sens (Tous)-21-1. JOB
A1: SENS | B1: (Tous)
A2: LIGNE | B2: 21
C5: 1 | D5: 2 | E5: 3 | F5: 4 | G5: 5 | H5: 6 | I5: 7 | J5: 8 | K5: 9 | L5: 10 | M5: 11 | N5: 12 | O5: 13 | P5: 15 | Q5: 16 | R5: 17 | S5: 18 | T5: 19 | U5: 20 | V5: 21 | W5: 22 | X5: 23 | Y5: 24 | Z5: 25 | AA5: 26 | AB5: 27 | AC5: 28 | AD5: 29 | AE5: 30 | AF5: 31 | AG5: 32 | AH5: 33 | AI5: 34 | AJ5: 35 | AK5: 36 | AL5: 37 | AM5: 38 | AN5: 39 | AO5: 40 | AP5: 41 | AQ5: 42 | AR5: 43 | AS5: 44 | AT5: 45 | AU5: 46 | AV5: 47 | AW5: 48 | AX5: 49 | AY5: 50 | AZ5: 51 | BA5: 52 | BB5: 53 | BC5: 54 | BD5: 55 | BE5: 56 | BF5: 57 | BG5: 58 | BH5: 59 | BI5: 60 | BJ5: 61 | BK5: 62 | BL5: 63 | BM5: 64 | BN5: 65 | BO5: 66 | BP5: TOTAL MONTEES | BQ5: TOTAL DESCENTES
C6: SAINT-GERMAIN - Ardenne | D6: Abbaye | E6: Crématorium | F6: Camus | G6: Saint-Norbert | H6: Isigny | I6: Coty | J6: Molière | K6: Le Méridien | L6: Stockholm | M6: 13 Acres | N6: Clos des Roses | O6: Bernard Palissy | P6: Detolle | Q6: Tournière | R6: Sanchez | S6: Damozanne | T6: Haie Vigné | U6: Square Poppa | V6: Rue de Maltot | W6: Pont Créon | X6: Rue du Blanc | Y6: Zenith | Z6: Saint-Ouen | AA6: Lycée Malherbes | AB6: Hôtel de Ville | AC6: Espace Gardin | AD6: Théâtre | AE6: Saint-Jean Église | AF6: Place du 36ème | AG6: Quai Meslin | AH6: Vaucelles | AI6: Barbeux | AJ6: Carrières | AK6: Lechesne | AL6: Lefrançois | AM6: Lyautey | AN6: Armand Marie | AO6: Lycée Fresnel | AP6: Rostand Fresnel | AQ6: Aviation | AR6: Collège de Normandie | AS6: Claude Monet | AT6: Liberté | AU6: Guérinière | AV6: Genève | AW6: Monument | AX6: Clos Joli | AY6: Place Centrale | AZ6: La Fresnaye | BA6: Industrie | BB6: Charlotte Corday | BC6: Nicolas Copernic | BD6: 19 MARS | BE6: Paul Langevin | BF6: Route de Paris | BG6: Charles de Coulomb | BH6: Robert Bosch | BI6: Mondeville ZI | BJ6: Mondeville C. Commercial | BK6: Tampleu | BL6: Mondevillage | BM6: Philippe Lebon | BN6: Leroy Merlin | BO6: MONDEVILLE Village Oxylane
A7: 1 | B7: SAINT-GERMAIN - Ardenne | F7: 2.68462587 | G7: 1.932930627 | I7: 1.398242641 | J7: 6.009584726 | L7: 2.935190952 | U7: 1.058725695 | Z7: 0.5293628477 | AA7: 4.784992005 | AB7: 3.712335431 | AD7: 8.326577781 | AE7: 1.424238138 | AG7: 3.35471701 | AH7: 0.5293628477 | AJ7: 0.8948752901 | AM7: 0.8948752901 | AP7: 0.5293628477 | BP7: 41 | BQ7: 42.13403818
A8: 2 | B8: Abbaye | BQ8: 4.287291984
A9: 3 | B9: Crématorium | BQ9: 2.507390836
A10: 4 | B10: Camus | G10: 0.5192307692 | AB10: 0.4807692308 | BP10: 1 | BQ10: 14.49548566
A11: 5 | B11: Saint-Norbert | I11: 0.7590550553 | J11: 0.4087219529 | AA11: 1.964293011 | AB11: 0.9036369706 | AD11: 0.7835407023 | AH11: 1.180752308 | BP11: 6 | BQ11: 5.473108679
A12: 6 | B12: Isigny | C12: 3.093061303 | D12: 0.9069386969 | J12: 1.428571429 | AC12: 1.571428571 | BP12: 7 | BQ12: 2.678454378
A13: 7 | B13: Coty | C13: 0.3607730852 | F13: 0.6392269148 | J13: 2.184370366 | T13: 1.292162752 | W13: 1.092185183 | AA13: 1.092185183 | AB13: 2.184370366 | AD13: 4.886341537 | AN13: 1.092185183 | BJ13: 1.176199428 | BP13: 16 | BQ13: 17.22571074
A14: 8 | B14: Molière | C14: 7.885766674 | F14: 5.114233326 | L14: 1.131069848 | S14: 0.9500986723 | AA14: 2.492877945 | AB14: 1.131069848 | AD14: 2.411788937 | AE14: 1.131069848 | AN14: 1.068861006 | AO14: 1.04510854 | AP14: 2.643198721 | AQ14: 2.016535958 | AT14: 1.447769405 | BA14: 1.068861006 | BJ14: 0.5115915928 | BN14: 0.9500986723 | BP14: 33 | BQ14: 37.38139885
A15: 9 | B15: Le Méridien | I15: 3 | Y15: 0.4905647479 | AB15: 0.4978216229 | AD15: 3.095151829 | AE15: 1.583134602 | AP15: 1.408801327 | AR15: 0.924525871 | BP15: 11 | BQ15: 2.692355852
A16: 10 | B16: Stockholm | C16: 2.738515901 | F16: 2.738515901 | J16: 2.522968198 | AN16: 1 | BP16: 9 | BQ16: 12.67534941
A17: 11 | B17: 13 Acres
A18: 12 | B18: Clos des Roses | BQ18: 3.215346208
A19: 13 | B19: Bernard Palissy | BQ19: 3.133999872
A20: 15 | B20: Detolle
A21: 16 | B21: Tournière | BQ21: 1.274952193
A22: 17 | B22: Sanchez | J22: 1.838819523 | L22: 2.161180477 | BP22: 4 | BQ22: 5.315104002
A23: 18 | B23: Damozanne | I23: 0.6242038217 | J23: 1.375796178 | AA23: 0.6259596487 | AB23: 1.058169882 | AD23: 0.5614778968 | AE23: 1.092304395 | AF23: 0.5697837828 | AY23: 1.092304395 | BP23: 7 | BQ23: 12.44442538
A24: 19 | B24: Haie Vigné | C24: 1.217533574 | I24: 3.043833936 | K24: 0.6528052355 | L24: 2.085827255 | Y24: 1.916926272 | AG24: 1.03219107 | AH24: 1.916926272 | AR24: 1.133956386 | BP24: 13 | BQ24: 9.026575123
A25: 20 | B25: Square Poppa | J25: 2 | AF25: 2 | BP25: 4 | BQ25: 7.924820438
A26: 21 | B26: Rue de Maltot | BQ26: 2.265483182
A27: 22 | B27: Pont Créon | J27: 3 | AD27: 0.2301745636 | AF27: 0.7698254364 | BP27: 4 | BQ27: 2.011407845
A28: 23 | B28: Rue du Blanc | BQ28: 2.666385609
A29: 24 | B29: Zenith | AC29: 1.943710957 | AD29: 3.374886634 | AE29: 1.346293303 | AF29: 1.868930052 | AG29: 1.574428392 | AH29: 0.8835049804 | AP29: 4.281601059 | AX29: 1.352303541 | BO29: 1.374341081 | BP29: 18 | BQ29: 5.649839561
A30: 25 | B30: Saint-Ouen | BQ30: 9.371758407
A31: 26 | B31: Lycée Malherbes | C31: 3.342103731 | D31: 0.9405829837 | J31: 2.610355301 | N31: 0.9405829837 | S31: 1.083187501 | U31: 1.083187501 | AB31: 0.9848425525 | AD31: 7.346808892 | AE31: 0.928024713 | AF31: 1.969418355 | AI31: 1.450038614 | AN31: 0.928024713 | BB31: 1.450038614 | BE31: 0.9848425525 | BI31: 0.957960994 | BP31: 27 | BQ31: 40.04712046
A32: 27 | B32: Hôtel de Ville | AA32: 12 | AD32: 1.582473979 | AI32: 2.635808221 | AO32: 3.085824259 | AP32: 1.162338282 | AS32: 1.207496449 | AU32: 2.123577985 | AX32: 1.110896733 | BA32: 0.5457920458 | BJ32: 0.5457920458 | BP32: 26 | BQ32: 26.35487537
A33: 28 | B33: Espace Gardin | N33: 0.9747420404 | R33: 2.254135876 | U33: 0.9747420404 | AA33: 1.796380043 | AE33: 2.514072378 | AF33: 0.9222819864 | AN33: 0.4647492952 | AO33: 1.634147046 | BL33: 0.4647492952 | BP33: 12 | BQ33: 17.7770048
A34: 29 | B34: Théâtre | C34: 11.67333447 | F34: 1.284089551 | H34: 1.411087419 | I34: 4.10626439 | J34: 8.477163666 | L34: 4.362080883 | N34: 1.300021184 | R34: 1.22921393 | S34: 4.374688891 | T34: 6.851562452 | U34: 2.415610296 | W34: 0.9192226616 | Y34: 1.300021184 | Z34: 1.734136369 | AA34: 6.709604875 | AB34: 3.320698368 | AC34: 3.531199409 | AE34: 1.283484249 | AF34: 1.283484249 | AI34: 4.103563391 | AJ34: 0.981487955 | AK34: 1.060006991 | AL34: 2.483765437 | AM34: 0.981487955 | AN34: 3.246460159 | AO34: 2.944463865 | AR34: 1.060006991 | AU34: 0.981487955 | AY34: 1.502277482 | BJ34: 1.168438042 | BK34: 1.079636751 | BL34: 0.5284935143 | BO34: 3.311455014 | BP34: 93 | BQ34: 65.8891372
A35: 30 | B35: Saint-Jean Église | C35: 2.527737704 | O35: 0.6633603935 | Q35: 0.4646579715 | R35: 0.2684566988 | T35: 0.2684566988 | AA35: 0.4108554695 | AB35: 1.396475064 | AG35: 2.983080202 | AI35: 1.311557365 | AJ35: 0.7516054968 | AK35: 3.033733073 | AL35: 1.270571197 | AM35: 3.206679688 | AO35: 1.34836127 | AP35: 1.311557365 | AT35: 1.311557365 | AV35: 1.311557365 | BL35: 2.889168418 | BO35: 1.270571197 | BP35: 28 | BQ35: 35.85877444
A36: 31 | B36: Place du 36ème | C36: 3.719342894 | S36: 2.295890675 | AB36: 0.9847905535 | AD36: 1.999975877 | AG36: 0.8907582826 | AH36: 4.064084665 | AI36: 2.106099294 | AK36: 2.329675508 | AL36: 0.8907582826 | AM36: 0.9194924208 | AW36: 0.8907582826 | AZ36: 0.9620189453 | BJ36: 0.8907582826 | BL36: 2.055596037 | BP36: 25 | BQ36: 19.49910463
A37: 32 | B37: Quai Meslin | C37: 4.469768298 | E37: 2.507390836 | I37: 1.679332752 | AD37: 0.6796126678 | AE37: 0.663895446 | AI37: 6.742413519 | AJ37: 3.209754335 | AK37: 3.039168735 | AM37: 1.519584367 | AN37: 1.78385991 | BC37: 0.8989090624 | BJ37: 0.8063100725 | BP37: 28 | BQ37: 22.14600763
A38: 33 | B38: Vaucelles | U38: 1.101276175 | V38: 0.5422697275 | Z38: 4.271914643 | AA38: 0.5422697275 | AG38: 0.5422697275 | AI38: 1.333632781 | AJ38: 3.417434002 | AL38: 1.333632781 | AO38: 4.477020764 | AP38: 0.7889095327 | AY38: 2.083801221 | BL38: 1.565568917 | BP38: 22 | BQ38: 36.16942258
A39: 34 | B39: Barbeux | Z39: 2.836344548 | AA39: 1.948991249 | AB39: 0.7191465035 | AC39: 2.244658652 | AD39: 6.385707962 | AE39: 2.620492435 | AG39: 2.244658652 | AO39: 1 | BP39: 20 | BQ39: 20.41623653
A40: 35 | B40: Carrières | J40: 0.8606584988 | AA40: 0.895298005 | AC40: 0.8606584988 | AD40: 2.361148645 | AE40: 0.895298005 | AF40: 1.62969187 | AG40: 0.4972464772 | AO40: 0.9472535467 | AP40: 2.07493634 | BJ40: 0.9778101128 | BP40: 12 | BQ40: 17.23637241
A41: 36 | B41: Lechesne | AE41: 3.243243243 | AG41: 2.756756757 | AO41: 3.011686625 | AR41: 0.7990189006 | AV41: 1.505843313 | BD41: 0.8907805511 | BJ41: 1.79267061 | BP41: 14 | BQ41: 15.28874887
A42: 37 | B42: Lefrançois | S42: 2 | AO42: 0.6514643987 | AP42: 0.6514643987 | AU42: 2.20257011 | AX42: 1.189387859 | BJ42: 2.305113234 | BP42: 9 | BQ42: 12.48823099
A43: 38 | B43: Lyautey | O43: 2.470639479 | AA43: 1.441832158 | AB43: 1.277337418 | AC43: 2.624304131 | AE43: 4.774092827 | AH43: 1.411793988 | AO43: 1.728556905 | AU43: 0.8642784526 | BC43: 0.51126331 | BE43: 1.130210284 | BJ43: 2.765691048 | BP43: 21 | BQ43: 10.83125307
A44: 39 | B44: Armand Marie | H44: 1.267366958 | I44: 2.614778146 | V44: 0.8345036636 | X44: 2.666385609 | AB44: 2.110888607 | AC44: 1.267366958 | AD44: 1.708519811 | AF44: 2.863804636 | AG44: 2.666385609 | AS44: 5.653464035 | AU44: 0.4290445086 | BA44: 0.8963965626 | BE44: 1.268141616 | BL44: 1.752953278 | BP44: 28 | BQ44: 19.80149717
A45: 40 | B45: Lycée Fresnel | J45: 1.047023324 | R45: 1.563297498 | U45: 0.4139227417 | AA45: 0.4139227417 | AB45: 0.423722049 | AC45: 1.418547729 | AD45: 3.390409611 | AE45: 2.160200569 | AF45: 1.97103474 | AH45: 2.879493795 | AJ45: 3.378510382 | AK45: 2.894995366 | AL45: 1.621197405 | AM45: 0.423722049 | AP45: 0.8318614848 | AR45: 1.29978357 | AV45: 3.802795359 | BB45: 3.906132189 | BE45: 0.9150476332 | BF45: 0.8318614848 | BH45: 2.251772604 | BJ45: 1.32394856 | BK45: 0.9150476332 | BL45: 3.258026512 | BO45: 1.66372297 | BP45: 45 | BQ45: 38.17282673
A46: 41 | B46: Rostand Fresnel | G46: 3.020947283 | K46: 2.039550616 | AA46: 0.6383219498 | AD46: 6.165981775 | AE46: 4.230190285 | AG46: 0.9694243218 | AH46: 1.306867477 | AJ46: 2.42275073 | AL46: 2.205965562 | AQ46: 1.122628931 | AU46: 2.007778666 | AW46: 8.44124082 | AX46: 1.087546777 | AY46: 9.153743595 | BA46: 1.087546777 | BB46: 3.611762309 | BC46: 1.422176555 | BD46: 3.262640332 | BE46: 4.805655418 | BF46: 2.258750999 | BJ46: 0.6433375303 | BL46: 1.797468804 | BM46: 1.087546777 | BO46: 2.210175709 | BP46: 67 | BQ46: 67.04352614
A47: 42 | B47: Aviation | J47: 1.355644801 | AC47: 0.6443551986 | BF47: 1.523572618 | BJ47: 0.8468847419 | BL47: 0.62954264 | BP47: 5 | BQ47: 4.744669476
A48: 43 | B48: Collège de Normandie | AD48: 2.651376147 | AE48: 1.605504587 | AP48: 3.137614679 | AQ48: 1.605504587 | AW48: 0.468908962 | AY48: 6.586922342 | BE48: 0.9720843481 | BH48: 0.9720843481 | BP48: 18 | BQ48: 16.13956995
A49: 44 | B49: Claude Monet | J49: 1.138951748 | AD49: 1.302024019 | AE49: 1.138951748 | AN49: 3.579562638 | AP49: 0.8405098464 | BF49: 1.61219783 | BJ49: 0.8986736552 | BK49: 1.671105059 | BL49: 0.8180234554 | BP49: 13 | BQ49: 8.819171518
A50: 45 | B50: Liberté | J50: 1.122769134 | S50: 0.5292266947 | AA50: 0.5292266947 | AB50: 2.411221624 | AC50: 0.8037405415 | AD50: 2.136257755 | AE50: 1.678455008 | AG50: 1.074787547 | AH50: 11.84750054 | AN50: 1.338686275 | AO50: 2.678021924 | AP50: 2.850106262 | BD50: 4 | BP50: 33 | BQ50: 23.08757539
A51: 46 | B51: Guérinière | AK51: 1 | AX51: 0.5371085624 | BA51: 2.965032761 | BC51: 5.62832226 | BF51: 6.149633156 | BH51: 1.122173246 | BJ51: 5.327168273 | BK51: 1.180125855 | BL51: 3.421641021 | BO51: 4.668794865 | BP51: 32 | BQ51: 13.88276773
A52: 47 | B52: Genève | S52: 0.5263879369 | AH52: 3.681582297 | AO52: 1.803975326 | AP52: 1.98805444 | AY52: 0.9955200939 | BB52: 1.168654023 | BF52: 0.9955200939 | BI52: 4.110534581 | BJ52: 3.539627001 | BL52: 2.190144207 | BP52: 21 | BQ52: 12.08777608
A53: 48 | B53: Monument | C53: 1.106100547 | AN53: 1.399085513 | AO53: 1.814562494 | AP53: 4.946413926 | AR53: 1.106100547 | AT53: 1.22865146 | AU53: 1.399085513 | AX53: 1.729690658 | BB53: 2.223887989 | BD53: 1.111943995 | BE53: 1.111943995 | BJ53: 2.052819682 | BL53: 0.6577696869 | BO53: 1.111943995 | BP53: 23 | BQ53: 14.94498472
A54: 49 | B54: Clos Joli | AB54: 0.8048636144 | AF54: 1.775434443 | AP54: 1.89379674 | AT54: 0.5259052026 | AY54: 0.6886388338 | AZ54: 1.91475945 | BE54: 0.3539814414 | BJ54: 0.6886388338 | BL54: 0.3539814414 | BP54: 9 | BQ54: 9.100194203
A55: 50 | B55: Place Centrale | S55: 0.684945011 | Y55: 0.8956973221 | AD55: 0.6021494602 | AE55: 0.6457092084 | AP55: 1.575708756 | AR55: 0.3304979424 | AT55: 3.2652923 | BD55: 1.08652289 | BF55: 1.420837625 | BJ55: 5.270301234 | BL55: 1.222338251 | BP55: 17 | BQ55: 27.2756819
A56: 51 | B56: La Fresnaye | AP56: 0.4490070607 | AR56: 0.7726155677 | AV56: 0.7783773716 | BJ56: 1 | BP56: 3 | BQ56: 3.876778395
A57: 52 | B57: Industrie | D57: 0.9553431881 | U57: 0.8773559891 | AB57: 0.8334881896 | AC57: 0.8670341539 | AP57: 0.8670341539 | AR57: 2.599744325 | BJ57: 1.097275199 | BL57: 0.902724801 | BP57: 9 | BQ57: 10.37852225
A58: 53 | B58: Charlotte Corday | AA58: 1.760109757 | AG58: 1.559303585 | AP58: 4.039214463 | AT58: 1.641372194 | BJ58: 2 | BP58: 11 | BQ58: 16.97800901
A59: 54 | B59: Nicolas Copernic | AO59: 0.7223809595 | AP59: 1.213810775 | AR59: 0.1526380898 | AW59: 0.4234647004 | BA59: 0.4877054754 | BH59: 1.045337696 | BI59: 0.6183687778 | BJ59: 3.099555971 | BL59: 1.236737556 | BP59: 9 | BQ59: 10.33573702
A60: 55 | B60: 19 MARS | AK60: 0.3842078678 | AP60: 2.608359579 | AR60: 3.682834627 | AT60: 1.31671238 | AW60: 0.7802740031 | BA60: 1.227611542 | BF60: 2.397433733 | BJ60: 3.588721931 | BL60: 2.013844336 | BP60: 18 | BQ60: 12.78277043
A61: 56 | B61: Paul Langevin | AL61: 1.717704344 | AO61: 1.717704344 | AP61: 12.80339288 | BA61: 0.7611984266 | BJ61: 5.379834867 | BL61: 0.6201651327 | BP61: 23 | BQ61: 20.04360294
A62: 57 | B62: Route de Paris | AD62: 0.9447371668 | AP62: 1.868891824 | AW62: 1.023465264 | AY62: 1.541413272 | BA62: 1.338377653 | BB62: 2.28311482 | BL62: 1.27520436 | BN62: 1.544050863 | BO62: 1.180744777 | BP62: 13 | BQ62: 17.18980754
A63: 58 | B63: Charles de Coulomb | AJ63: 1.933701657 | AK63: 1.546961326 | BE63: 2.519337017 | BJ63: 0.6035190616 | BL63: 1.207038123 | BN63: 1.189442815 | BP63: 9 | BQ63: 1.429930978
A64: 59 | B64: Robert Bosch | F64: 2.034794098 | AH64: 2.034794098 | AP64: 1.310284078 | AR64: 1.017397049 | AU64: 0.6027306761 | BP64: 7 | BQ64: 10.75430226
A65: 60 | B65: Mondeville ZI | BQ65: 5.686864353
A66: 61 | B66: Mondeville C. Commercial | Q66: 0.810294221 | V66: 0.8887097908 | Y66: 1.046630035 | AI66: 0.7331233428 | AL66: 0.9646359774 | AM66: 0.6283914367 | AN66: 0.8887097908 | AO66: 0.6482353768 | AP66: 6.310989024 | AS66: 1.958211034 | AT66: 10.6661523 | AV66: 4.689202668 | AW66: 1.041806856 | AX66: 2.093260071 | AY66: 3.631060665 | BB66: 2.334419065 | BD66: 2.430882663 | BE66: 4.958228924 | BG66: 1.429930978 | BH66: 0.8471257765 | BK66: 2.941548342 | BL66: 10.97418859 | BM66: 1.951443848 | BN66: 0.5618978788 | BO66: 6.570921342 | BP66: 72 | BQ66: 63.10596528
A67: 62 | B67: Tampleu | T67: 0.6143932196 | AM67: 0.6289385137 | AN67: 2.320431535 | BH67: 1.546954357 | BJ67: 5.889282375 | BP67: 11 | BQ67: 7.78746364
A68: 63 | B68: Mondevillage | D68: 1.484427115 | AD68: 2.962013553 | AH68: 4.432759312 | AM68: 1.628081352 | AO68: 5.898951307 | AP68: 1.094508472 | AR68: 1.260450079 | AU68: 2.968854231 | AW68: 1.87506583 | BC68: 1.87506583 | BH68: 2.968854231 | BJ68: 6.550968686 | BP68: 35 | BQ68: 42.04988172
A69: 64 | B69: Philippe Lebon | AZ69: 1 | BP69: 1 | BQ69: 3.038990625
A70: 65 | B70: Leroy Merlin | AJ70: 0.2462525618 | AO70: 1.015107782 | AT70: 1.159093104 | BJ70: 0.3650332092 | BL70: 0.2145133427 | BP70: 3 | BQ70: 4.245490229
A71: 66 | B71: MONDEVILLE Village Oxylane | AB71: 1.119227473 | AE71: 0.9001194493 | AF71: 1.87541508 | AN71: 0.6908811563 | AP71: 1.561797814 | AT71: 0.5250696788 | AU71: 0.303359635 | BE71: 1.024129714 | BP71: 8 | BQ71: 23.36267095
A72: TOTAL DESCENTES | C72: 42.13403818 | D72: 4.287291984 | E72: 2.507390836 | F72: 14.49548566 | G72: 5.473108679 | H72: 2.678454378 | I72: 17.22571074 | J72: 37.38139885 | K72: 2.692355852 | L72: 12.67534941 | N72: 3.215346208 | O72: 3.133999872 | Q72: 1.274952193 | R72: 5.315104002 | S72: 12.44442538 | T72: 9.026575123 | U72: 7.924820438 | V72: 2.265483182 | W72: 2.011407845 | X72: 2.666385609 | Y72: 5.649839561 | Z72: 9.371758407 | AA72: 40.04712046 | AB72: 26.35487537 | AC72: 17.7770048 | AD72: 65.8891372 | AE72: 35.85877444 | AF72: 19.49910463 | AG72: 22.14600763 | AH72: 36.16942258 | AI72: 20.41623653 | AJ72: 17.23637241 | AK72: 15.28874887 | AL72: 12.48823099 | AM72: 10.83125307 | AN72: 19.80149717 | AO72: 38.17282673 | AP72: 67.04352614 | AQ72: 4.744669476 | AR72: 16.13956995 | AS72: 8.819171518 | AT72: 23.08757539 | AU72: 13.88276773 | AV72: 12.08777608 | AW72: 14.94498472 | AX72: 9.100194203 | AY72: 27.2756819 | AZ72: 3.876778395 | BA72: 10.37852225 | BB72: 16.97800901 | BC72: 10.33573702 | BD72: 12.78277043 | BE72: 20.04360294 | BF72: 17.18980754 | BG72: 1.429930978 | BH72: 10.75430226 | BI72: 5.686864353 | BJ72: 63.10596528 | BK72: 7.78746364 | BL72: 42.04988172 | BM72: 3.038990625 | BN72: 4.245490229 | BO72: 23.36267095 | BP72: 1054 | BQ72: 1054

Sheet Sens 2-21-1. JOB
A1: SENS | B1: 2
A2: LIGNE | B2: 21
C5: 66 | D5: 65 | E5: 64 | F5: 63 | G5: 62 | H5: 61 | I5: 60 | J5: 59 | K5: 58 | L5: 57 | M5: 56 | N5: 55 | O5: 54 | P5: 53 | Q5: 52 | R5: 51 | S5: 50 | T5: 49 | U5: 48 | V5: 47 | W5: 46 | X5: 45 | Y5: 44 | Z5: 43 | AA5: 42 | AB5: 41 | AC5: 40 | AD5: 39 | AE5: 38 | AF5: 37 | AG5: 36 | AH5: 35 | AI5: 34 | AJ5: 33 | AK5: 32 | AL5: 31 | AM5: 30 | AN5: 29 | AO5: 28 | AP5: 27 | AQ5: 26 | AR5: 25 | AS5: 24 | AT5: 23 | AU5: 22 | AV5: 21 | AW5: 20 | AX5: 19 | AY5: 18 | AZ5: 17 | BA5: 16 | BB5: 15 | BC5: 13 | BD5: 12 | BE5: 11 | BF5: 10 | BG5: 9 | BH5: 8 | BI5: 7 | BJ5: 6 | BK5: 5 | BL5: 4 | BM5: 3 | BN5: 2 | BO5: 1 | BP5: TOTAL MONTEES | BQ5: TOTAL DESCENTES | BR5: CHARGE
C6: MONDEVILLE Village Oxylane | D6: Leroy Merlin | E6: Philippe Lebon | F6: Mondevillage | G6: Tampleu | H6: Mondeville C. Commercial | I6: Mondeville ZI | J6: Robert Bosch | K6: Charles de Coulomb | L6: Route de Paris | M6: Paul Langevin | N6: 19 MARS | O6: Nicolas Copernic | P6: Charlotte Corday | Q6: Industrie | R6: La Fresnaye | S6: Place Centrale | T6: Clos Joli | U6: Monument | V6: Genève | W6: Guérinière | X6: Liberté | Y6: Claude Monet | Z6: Collège de Normandie | AA6: Aviation | AB6: Rostand Fresnel | AC6: Lycée Fresnel | AD6: Armand Marie | AE6: Lyautey | AF6: Lefrançois | AG6: Lechesne | AH6: Carrières | AI6: Barbeux | AJ6: Vaucelles | AK6: Quai Meslin | AL6: Place du 36ème | AM6: Saint-Jean Église | AN6: Théâtre | AO6: Espace Gardin | AP6: Hôtel de Ville | AQ6: Lycée Malherbes | AR6: Saint-Ouen | AS6: Zenith | AT6: Rue du Blanc | AU6: Pont Créon | AV6: Rue de Maltot | AW6: Square Poppa | AX6: Haie Vigné | AY6: Damozanne | AZ6: Sanchez | BA6: Tournière | BB6: Detolle | BC6: Bernard Palissy | BD6: Clos des Roses | BE6: 13 Acres | BF6: Stockholm | BG6: Le Méridien | BH6: Molière | BI6: Coty | BJ6: Isigny | BK6: Saint-Norbert | BL6: Camus | BM6: Crématorium | BN6: Abbaye | BO6: SAINT-GERMAIN - Ardenne
A7: 66 | B7: MONDEVILLE Village Oxylane | M7: 1.024129714 | W7: 0.303359635 | X7: 0.5250696788 | AB7: 1.561797814 | AD7: 0.6908811563 | AL7: 1.87541508 | AM7: 0.9001194493 | AP7: 1.119227473 | BP7: 8 | BR7: =BR6+BP7-BQ7 -> 8
A8: 65 | B8: Leroy Merlin | F8: 0.2145133427 | H8: 0.3650332092 | X8: 1.159093104 | AC8: 1.015107782 | AH8: 0.2462525618 | BP8: 3 | BR8: 11
A9: 64 | B9: Philippe Lebon | R9: 1 | BP9: 1 | BR9: 12
A10: 63 | B10: Mondevillage | H10: 6.550968686 | J10: 2.968854231 | O10: 1.87506583 | U10: 1.87506583 | W10: 2.968854231 | Z10: 1.260450079 | AB10: 1.094508472 | AC10: 5.898951307 | AE10: 1.628081352 | AJ10: 4.432759312 | AN10: 2.962013553 | BN10: 1.484427115 | BP10: 35 | BQ10: 0.2145133427 | BR10: 46.78548666
A11: 62 | B11: Tampleu | H11: 5.889282375 | J11: 1.546954357 | AD11: 2.320431535 | AE11: 0.6289385137 | AX11: 0.6143932196 | BP11: 11 | BR11: 57.78548666
A12: 61 | B12: Mondeville C. Commercial | J12: 0.8471257765 | K12: 1.429930978 | M12: 4.958228924 | N12: 2.430882663 | P12: 2.334419065 | S12: 3.631060665 | T12: 2.093260071 | U12: 1.041806856 | V12: 4.689202668 | X12: 10.6661523 | Y12: 1.958211034 | AB12: 6.310989024 | AC12: 0.6482353768 | AD12: 0.8887097908 | AE12: 0.6283914367 | AF12: 0.9646359774 | AI12: 0.7331233428 | AS12: 1.046630035 | AV12: 0.8887097908 | BA12: 0.810294221 | BP12: 49 | BQ12: 12.80528427 | BR12: 93.98020239
A13: 60 | B13: Mondeville ZI | BR13: 93.98020239
A14: 59 | B14: Robert Bosch | W14: 0.6027306761 | Z14: 1.017397049 | AB14: 1.310284078 | AJ14: 2.034794098 | BL14: 2.034794098 | BP14: 7 | BQ14: 5.362934364 | BR14: 95.61726802
A15: 58 | B15: Charles de Coulomb | M15: 2.519337017 | AG15: 1.546961326 | AH15: 1.933701657 | BP15: 6 | BQ15: 1.429930978 | BR15: 100.187337
A16: 57 | B16: Route de Paris | P16: 2.28311482 | Q16: 1.338377653 | S16: 1.541413272 | U16: 1.023465264 | AB16: 1.868891824 | AN16: 0.9447371668 | BP16: 9 | BR16: 109.187337
A17: 56 | B17: Paul Langevin | Q17: 0.7611984266 | AB17: 12.80339288 | AC17: 1.717704344 | AF17: 1.717704344 | BP17: 17 | BQ17: 8.501695654 | BR17: 117.6856414
A18: 55 | B18: 19 MARS | Q18: 1.227611542 | U18: 0.7802740031 | X18: 1.31671238 | Z18: 3.682834627 | AB18: 2.608359579 | AG18: 0.3842078678 | BP18: 10 | BQ18: 2.430882663 | BR18: 125.2547587
A19: 54 | B19: Nicolas Copernic | Q19: 0.4877054754 | U19: 0.4234647004 | Z19: 0.1526380898 | AB19: 1.213810775 | AC19: 0.7223809595 | BP19: 3 | BQ19: 1.87506583 | BR19: 126.3796929
A20: 53 | B20: Charlotte Corday | X20: 1.641372194 | AB20: 4.039214463 | AK20: 1.559303585 | AQ20: 1.760109757 | BP20: 9 | BQ20: 4.617533885 | BR20: 130.762159
A21: 52 | B21: Industrie | Z21: 2.599744325 | AB21: 0.8670341539 | AO21: 0.8670341539 | AP21: 0.8334881896 | AW21: 0.8773559891 | BN21: 0.9553431881 | BP21: 7 | BQ21: 3.814893097 | BR21: 133.9472659
A22: 51 | B22: La Fresnaye | V22: 0.7783773716 | Z22: 0.7726155677 | AB22: 0.4490070607 | BP22: 2 | BQ22: 1 | BR22: 134.9472659
A23: 50 | B23: Place Centrale | X23: 3.2652923 | Z23: 0.3304979424 | AB23: 1.575708756 | AM23: 0.6457092084 | AN23: 0.6021494602 | AS23: 0.8956973221 | AY23: 0.684945011 | BP23: 8 | BQ23: 5.172473937 | BR23: 137.774792
A24: 49 | B24: Clos Joli | X24: 0.5259052026 | AB24: 1.89379674 | AL24: 1.775434443 | AP24: 0.8048636144 | BP24: 5 | BQ24: 2.093260071 | BR24: 140.6815319
A25: 48 | B25: Monument | W25: 1.399085513 | X25: 1.22865146 | Z25: 1.106100547 | AB25: 4.946413926 | AC25: 1.814562494 | AD25: 1.399085513 | BO25: 1.106100547 | BP25: 13 | BQ25: 5.144076653 | BR25: 148.5374553
A26: 47 | B26: Genève | AB26: 1.98805444 | AC26: 1.803975326 | AJ26: 3.681582297 | AY26: 0.5263879369 | BP26: 8 | BQ26: 5.46758004 | BR26: 151.0698752
A27: 46 | B27: Guérinière | AG27: 1 | BP27: 1 | BQ27: 5.274030055 | BR27: 146.7958452
A28: 45 | B28: Liberté | AB28: 2.850106262 | AC28: 2.678021924 | AD28: 1.338686275 | AJ28: 11.84750054 | AK28: 1.074787547 | AM28: 1.678455008 | AN28: 2.136257755 | AO28: 0.8037405415 | AP28: 2.411221624 | AQ28: 0.5292266947 | AY28: 0.5292266947 | BH28: 1.122769134 | BP28: 29 | BQ28: 20.32824862 | BR28: 155.4675965
A29: 44 | B29: Claude Monet | AB29: 0.8405098464 | AD29: 3.579562638 | AM29: 1.138951748 | AN29: 1.302024019 | BH29: 1.138951748 | BP29: 8 | BQ29: 1.958211034 | BR29: 161.5093855
A30: 43 | B30: Collège de Normandie | AA30: 1.605504587 | AB30: 3.137614679 | AM30: 1.605504587 | AN30: 2.651376147 | BP30: 9 | BQ30: 10.92227823 | BR30: 159.5871073
A31: 42 | B31: Aviation | AO31: 0.6443551986 | BH31: 1.355644801 | BP31: 2 | BQ31: 1.605504587 | BR31: 159.9816027
A32: 41 | B32: Rostand Fresnel | AF32: 2.205965562 | AH32: 2.42275073 | AJ32: 1.306867477 | AK32: 0.9694243218 | AM32: 4.230190285 | AN32: 6.165981775 | AQ32: 0.6383219498 | BG32: 2.039550616 | BK32: 3.020947283 | BP32: 23 | BQ32: 51.35949478 | BR32: 131.6221079
A33: 40 | B33: Lycée Fresnel | AE33: 0.423722049 | AF33: 1.621197405 | AG33: 2.894995366 | AH33: 3.378510382 | AJ33: 2.879493795 | AL33: 1.97103474 | AM33: 2.160200569 | AN33: 3.390409611 | AO33: 1.418547729 | AP33: 0.423722049 | AQ33: 0.4139227417 | AW33: 0.4139227417 | AZ33: 1.563297498 | BH33: 1.047023324 | BP33: 24 | BQ33: 16.29893951 | BR33: 139.3231684
A34: 39 | B34: Armand Marie | AK34: 2.666385609 | AL34: 2.863804636 | AN34: 1.708519811 | AO34: 1.267366958 | AP34: 2.110888607 | AT34: 2.666385609 | AV34: 0.8345036636 | BI34: 2.614778146 | BJ34: 1.267366958 | BP34: 18 | BQ34: 10.21735691 | BR34: 147.1058115
A35: 38 | B35: Lyautey | AJ35: 1.411793988 | AM35: 4.774092827 | AO35: 2.624304131 | AP35: 1.277337418 | AQ35: 1.441832158 | BC35: 2.470639479 | BP35: 14 | BQ35: 3.309133352 | BR35: 157.7966781
A36: 37 | B36: Lefrançois | AY36: 2 | BP36: 2 | BQ36: 6.509503289 | BR36: 153.2871748
A37: 36 | B37: Lechesne | AK37: 2.756756757 | AM37: 3.243243243 | BP37: 6 | BQ37: 5.82616456 | BR37: 153.4610103
A38: 35 | B38: Carrières | AK38: 0.4972464772 | AL38: 1.62969187 | AM38: 0.895298005 | AN38: 2.361148645 | AO38: 0.8606584988 | AQ38: 0.895298005 | BH38: 0.8606584988 | BP38: 8 | BQ38: 7.981215331 | BR38: 153.479795
A39: 34 | B39: Barbeux | AK39: 2.244658652 | AM39: 2.620492435 | AN39: 6.385707962 | AO39: 2.244658652 | AP39: 0.7191465035 | AQ39: 1.948991249 | AR39: 2.836344548 | BP39: 19 | BQ39: 0.7331233428 | BR39: 171.7466716
A40: 33 | B40: Vaucelles | AK40: 0.5422697275 | AQ40: 0.5422697275 | AR40: 4.271914643 | AV40: 0.5422697275 | AW40: 1.101276175 | BP40: 7 | BQ40: 27.59479151 | BR40: 151.1518801
A41: 32 | B41: Quai Meslin | AM41: 0.663895446 | AN41: 0.6796126678 | BI41: 1.679332752 | BM41: 2.507390836 | BO41: 4.469768298 | BP41: 10 | BQ41: 12.31083268 | BR41: 148.8410474
A42: 31 | B42: Place du 36ème | AN42: 1.999975877 | AP42: 0.9847905535 | AY42: 2.295890675 | BO42: 3.719342894 | BP42: 9 | BQ42: 10.11538077 | BR42: 147.7256667
A43: 30 | B43: Saint-Jean Église | AP43: 1.396475064 | AQ43: 0.4108554695 | AX43: 0.2684566988 | AZ43: 0.2684566988 | BA43: 0.4646579715 | BC43: 0.6633603935 | BO43: 2.527737704 | BP43: 6 | BQ43: 24.55615281 | BR43: 129.1695138
A44: 29 | B44: Théâtre | AO44: 3.531199409 | AP44: 3.320698368 | AQ44: 6.709604875 | AR44: 1.734136369 | AS44: 1.300021184 | AU44: 0.9192226616 | AW44: 2.415610296 | AX44: 6.851562452 | AY44: 4.374688891 | AZ44: 1.22921393 | BD44: 1.300021184 | BF44: 4.362080883 | BH44: 8.477163666 | BI44: 4.10626439 | BJ44: 1.411087419 | BL44: 1.284089551 | BO44: 11.67333447 | BP44: 65 | BQ44: 33.28991445 | BR44: 160.8795994
A45: 28 | B45: Espace Gardin | AQ45: 1.796380043 | AW45: 0.9747420404 | AZ45: 2.254135876 | BD45: 0.9747420404 | BP45: 6 | BQ45: 14.26186527 | BR45: 152.6177341
A46: 27 | B46: Hôtel de Ville | AQ46: 12 | BP46: 12 | BQ46: 15.40185946 | BR46: 149.2158747
A47: 26 | B47: Lycée Malherbes | AW47: 1.083187501 | AY47: 1.083187501 | BD47: 0.9405829837 | BH47: 2.610355301 | BN47: 0.9405829837 | BO47: 3.342103731 | BP47: 10 | BQ47: 29.08681267 | BR47: 130.129062
A48: 25 | B48: Saint-Ouen | BQ48: 8.842395559 | BR48: 121.2866664
A49: 24 | B49: Zenith | BQ49: 3.242348541 | BR49: 118.0443179
A50: 23 | B50: Rue du Blanc | BQ50: 2.666385609 | BR50: 115.3779323
A51: 22 | B51: Pont Créon | BH51: 3 | BP51: 3 | BQ51: 0.9192226616 | BR51: 117.4587096
A52: 21 | B52: Rue de Maltot | BQ52: 2.265483182 | BR52: 115.1932264
A53: 20 | B53: Square Poppa | BH53: 2 | BP53: 2 | BQ53: 6.866094743 | BR53: 110.3271317
A54: 19 | B54: Haie Vigné | BF54: 2.085827255 | BG54: 0.6528052355 | BI54: 3.043833936 | BO54: 1.217533574 | BP54: 7 | BQ54: 7.734412371 | BR54: 109.5927193
A55: 18 | B55: Damozanne | BH55: 1.375796178 | BI55: 0.6242038217 | BP55: 2 | BQ55: 11.49432671 | BR55: 100.0983926
A56: 17 | B56: Sanchez | BF56: 2.161180477 | BH56: 1.838819523 | BP56: 4 | BQ56: 5.315104002 | BR56: 98.78328861
A57: 16 | B57: Tournière | BQ57: 1.274952193 | BR57: 97.50833642
A58: 15 | B58: Detolle | BR58: 97.50833642
A59: 13 | B59: Bernard Palissy | BQ59: 3.133999872 | BR59: 94.37433655
A60: 12 | B60: Clos des Roses | BQ60: 3.215346208 | BR60: 91.15899034
A61: 11 | B61: 13 Acres | BR61: 91.15899034
A62: 10 | B62: Stockholm | BH62: 2.522968198 | BL62: 2.738515901 | BO62: 2.738515901 | BP62: 8 | BQ62: 8.609088615 | BR62: 90.54990173
A63: 9 | B63: Le Méridien | BI63: 3 | BP63: 3 | BQ63: 2.692355852 | BR63: 90.85754587
A64: 8 | B64: Molière | BL64: 5.114233326 | BO64: 7.885766674 | BP64: 13 | BQ64: 27.35015037 | BR64: 76.5073955
A65: 7 | B65: Coty | BL65: 0.6392269148 | BO65: 0.3607730852 | BP65: 1 | BQ65: 15.06841304 | BR65: 62.43898246
A66: 6 | B66: Isigny | BN66: 0.9069386969 | BO66: 3.093061303 | BP66: 4 | BQ66: 2.678454378 | BR66: 63.76052808
A67: 5 | B67: Saint-Norbert | BQ67: 3.020947283 | BR67: 60.7395808
A68: 4 | B68: Camus | BQ68: 11.81085979 | BR68: 48.928721
A69: 3 | B69: Crématorium | BQ69: 2.507390836 | BR69: 46.42133017
A70: 2 | B70: Abbaye | BQ70: 4.287291984 | BR70: 42.13403818
A71: 1 | B71: SAINT-GERMAIN - Ardenne | BQ71: 42.13403818 | BR71: =BR70+BP71-BQ71 -> 0
A72: TOTAL DESCENTES | F72: 0.2145133427 | H72: 12.80528427 | J72: 5.362934364 | K72: 1.429930978 | M72: 8.501695654 | N72: 2.430882663 | O72: 1.87506583 | P72: 4.617533885 | Q72: 3.814893097 | R72: 1 | S72: 5.172473937 | T72: 2.093260071 | U72: 5.144076653 | V72: 5.46758004 | W72: 5.274030055 | X72: 20.32824862 | Y72: 1.958211034 | Z72: 10.92227823 | AA72: 1.605504587 | AB72: 51.35949478 | AC72: 16.29893951 | AD72: 10.21735691 | AE72: 3.309133352 | AF72: 6.509503289 | AG72: 5.82616456 | AH72: 7.981215331 | AI72: 0.7331233428 | AJ72: 27.59479151 | AK72: 12.31083268 | AL72: 10.11538077 | AM72: 24.55615281 | AN72: 33.28991445 | AO72: 14.26186527 | AP72: 15.40185946 | AQ72: 29.08681267 | AR72: 8.842395559 | AS72: 3.242348541 | AT72: 2.666385609 | AU72: 0.9192226616 | AV72: 2.265483182 | AW72: 6.866094743 | AX72: 7.734412371 | AY72: 11.49432671 | AZ72: 5.315104002 | BA72: 1.274952193 | BC72: 3.133999872 | BD72: 3.215346208 | BF72: 8.609088615 | BG72: 2.692355852 | BH72: 27.35015037 | BI72: 15.06841304 | BJ72: 2.678454378 | BK72: 3.020947283 | BL72: 11.81085979 | BM72: 2.507390836 | BN72: 4.287291984 | BO72: 42.13403818 | BP72: 546 | BQ72: 546

Sheet Sens 1-21-1. JOB
A1: SENS | B1: 1
A2: LIGNE | B2: 21
C5: 1 | D5: 4 | E5: 5 | F5: 6 | G5: 7 | H5: 8 | I5: 9 | J5: 10 | K5: 11 | L5: 15 | M5: 16 | N5: 17 | O5: 18 | P5: 19 | Q5: 20 | R5: 21 | S5: 22 | T5: 23 | U5: 24 | V5: 25 | W5: 26 | X5: 27 | Y5: 28 | Z5: 29 | AA5: 30 | AB5: 31 | AC5: 32 | AD5: 33 | AE5: 34 | AF5: 35 | AG5: 36 | AH5: 37 | AI5: 38 | AJ5: 39 | AK5: 40 | AL5: 41 | AM5: 42 | AN5: 43 | AO5: 44 | AP5: 45 | AQ5: 46 | AR5: 47 | AS5: 48 | AT5: 49 | AU5: 50 | AV5: 51 | AW5: 52 | AX5: 53 | AY5: 54 | AZ5: 55 | BA5: 56 | BB5: 57 | BC5: 58 | BD5: 59 | BE5: 60 | BF5: 61 | BG5: 62 | BH5: 63 | BI5: 64 | BJ5: 65 | BK5: 66 | BL5: TOTAL MONTEES | BM5: TOTAL DESCENTES | BN5: CHARGE
C6: SAINT-GERMAIN - Ardenne | D6: Camus | E6: Saint-Norbert | F6: Isigny | G6: Coty | H6: Molière | I6: Le Méridien | J6: Stockholm | K6: 13 Acres | L6: Detolle | M6: Tournière | N6: Sanchez | O6: Damozanne | P6: Haie Vigné | Q6: Square Poppa | R6: Rue de Maltot | S6: Pont Créon | T6: Rue du Blanc | U6: Zenith | V6: Saint-Ouen | W6: Lycée Malherbes | X6: Hôtel de Ville | Y6: Espace Gardin | Z6: Théâtre | AA6: Saint-Jean Église | AB6: Place du 36ème | AC6: Quai Meslin | AD6: Vaucelles | AE6: Barbeux | AF6: Carrières | AG6: Lechesne | AH6: Lefrançois | AI6: Lyautey | AJ6: Armand Marie | AK6: Lycée Fresnel | AL6: Rostand Fresnel | AM6: Aviation | AN6: Collège de Normandie | AO6: Claude Monet | AP6: Liberté | AQ6: Guérinière | AR6: Genève | AS6: Monument | AT6: Clos Joli | AU6: Place Centrale | AV6: La Fresnaye | AW6: Industrie | AX6: Charlotte Corday | AY6: Nicolas Copernic | AZ6: 19 MARS | BA6: Paul Langevin | BB6: Route de Paris | BC6: Charles de Coulomb | BD6: Robert Bosch | BE6: Mondeville ZI | BF6: Mondeville C. Commercial | BG6: Tampleu | BH6: Mondevillage | BI6: Philippe Lebon | BJ6: Leroy Merlin | BK6: MONDEVILLE Village Oxylane
A7: 1 | B7: SAINT-GERMAIN - Ardenne | D7: 2.68462587 | E7: 1.932930627 | G7: 1.398242641 | H7: 6.009584726 | J7: 2.935190952 | Q7: 1.058725695 | V7: 0.5293628477 | W7: 4.784992005 | X7: 3.712335431 | Z7: 8.326577781 | AA7: 1.424238138 | AC7: 3.35471701 | AD7: 0.5293628477 | AF7: 0.8948752901 | AI7: 0.8948752901 | AL7: 0.5293628477 | BL7: 41 | BN7: =BN6+BL7-BM7 -> 41
A8: 4 | B8: Camus | E8: 0.5192307692 | X8: 0.4807692308 | BL8: 1 | BM8: 2.68462587 | BN8: 39.31537413
A9: 5 | B9: Saint-Norbert | G9: 0.7590550553 | H9: 0.4087219529 | W9: 1.964293011 | X9: 0.9036369706 | Z9: 0.7835407023 | AD9: 1.180752308 | BL9: 6 | BM9: 2.452161396 | BN9: 42.86321273
A10: 6 | B10: Isigny | H10: 1.428571429 | Y10: 1.571428571 | BL10: 3 | BN10: 45.86321273
A11: 7 | B11: Coty | H11: 2.184370366 | P11: 1.292162752 | S11: 1.092185183 | W11: 1.092185183 | X11: 2.184370366 | Z11: 4.886341537 | AJ11: 1.092185183 | BF11: 1.176199428 | BL11: 15 | BM11: 2.157297696 | BN11: 58.70591504
A12: 8 | B12: Molière | J12: 1.131069848 | O12: 0.9500986723 | W12: 2.492877945 | X12: 1.131069848 | Z12: 2.411788937 | AA12: 1.131069848 | AJ12: 1.068861006 | AK12: 1.04510854 | AL12: 2.643198721 | AM12: 2.016535958 | AP12: 1.447769405 | AW12: 1.068861006 | BF12: 0.5115915928 | BJ12: 0.9500986723 | BL12: 20 | BM12: 10.03124847 | BN12: 68.67466656
A13: 9 | B13: Le Méridien | U13: 0.4905647479 | X13: 0.4978216229 | Z13: 3.095151829 | AA13: 1.583134602 | AL13: 1.408801327 | AN13: 0.924525871 | BL13: 8 | BN13: 76.67466656
A14: 10 | B14: Stockholm | AJ14: 1 | BL14: 1 | BM14: 4.0662608 | BN14: 73.60840576
A15: 11 | B15: 13 Acres | BN15: 73.60840576
A16: 15 | B16: Detolle | BN16: 73.60840576
A17: 16 | B17: Tournière | BN17: 73.60840576
A18: 17 | B18: Sanchez | BN18: 73.60840576
A19: 18 | B19: Damozanne | W19: 0.6259596487 | X19: 1.058169882 | Z19: 0.5614778968 | AA19: 1.092304395 | AB19: 0.5697837828 | AU19: 1.092304395 | BL19: 5 | BM19: 0.9500986723 | BN19: 77.65830709
A20: 19 | B20: Haie Vigné | U20: 1.916926272 | AC20: 1.03219107 | AD20: 1.916926272 | AN20: 1.133956386 | BL20: 6 | BM20: 1.292162752 | BN20: 82.36614434
A21: 20 | B21: Square Poppa | AB21: 2 | BL21: 2 | BM21: 1.058725695 | BN21: 83.30741864
A22: 21 | B22: Rue de Maltot | BN22: 83.30741864
A23: 22 | B23: Pont Créon | Z23: 0.2301745636 | AB23: 0.7698254364 | BL23: 1 | BM23: 1.092185183 | BN23: 83.21523346
A24: 23 | B24: Rue du Blanc | BN24: 83.21523346
A25: 24 | B25: Zenith | Y25: 1.943710957 | Z25: 3.374886634 | AA25: 1.346293303 | AB25: 1.868930052 | AC25: 1.574428392 | AD25: 0.8835049804 | AL25: 4.281601059 | AT25: 1.352303541 | BK25: 1.374341081 | BL25: 18 | BM25: 2.40749102 | BN25: 98.80774244
A26: 25 | B26: Saint-Ouen | BM26: 0.5293628477 | BN26: 98.27837959
A27: 26 | B27: Lycée Malherbes | X27: 0.9848425525 | Z27: 7.346808892 | AA27: 0.928024713 | AB27: 1.969418355 | AE27: 1.450038614 | AJ27: 0.928024713 | AX27: 1.450038614 | BA27: 0.9848425525 | BE27: 0.957960994 | BL27: 17 | BM27: 10.96030779 | BN27: 104.3180718
A28: 27 | B28: Hôtel de Ville | Z28: 1.582473979 | AE28: 2.635808221 | AK28: 3.085824259 | AL28: 1.162338282 | AO28: 1.207496449 | AQ28: 2.123577985 | AT28: 1.110896733 | AW28: 0.5457920458 | BF28: 0.5457920458 | BL28: 14 | BM28: 10.9530159 | BN28: 107.3650559
A29: 28 | B29: Espace Gardin | AA29: 2.514072378 | AB29: 0.9222819864 | AJ29: 0.4647492952 | AK29: 1.634147046 | BH29: 0.4647492952 | BL29: 6 | BM29: 3.515139528 | BN29: 109.8499164
A30: 29 | B30: Théâtre | AA30: 1.283484249 | AB30: 1.283484249 | AE30: 4.103563391 | AF30: 0.981487955 | AG30: 1.060006991 | AH30: 2.483765437 | AI30: 0.981487955 | AJ30: 3.246460159 | AK30: 2.944463865 | AN30: 1.060006991 | AQ30: 0.981487955 | AU30: 1.502277482 | BF30: 1.168438042 | BG30: 1.079636751 | BH30: 0.5284935143 | BK30: 3.311455014 | BL30: 28 | BM30: 32.59922275 | BN30: 105.2506936
A31: 30 | B31: Saint-Jean Église | AC31: 2.983080202 | AE31: 1.311557365 | AF31: 0.7516054968 | AG31: 3.033733073 | AH31: 1.270571197 | AI31: 3.206679688 | AK31: 1.34836127 | AL31: 1.311557365 | AP31: 1.311557365 | AR31: 1.311557365 | BH31: 2.889168418 | BK31: 1.270571197 | BL31: 22 | BM31: 11.30262163 | BN31: 115.948072
A32: 31 | B32: Place du 36ème | AC32: 0.8907582826 | AD32: 4.064084665 | AE32: 2.106099294 | AG32: 2.329675508 | AH32: 0.8907582826 | AI32: 0.9194924208 | AS32: 0.8907582826 | AV32: 0.9620189453 | BF32: 0.8907582826 | BH32: 2.055596037 | BL32: 16 | BM32: 9.383723862 | BN32: 122.5643481
A33: 32 | B33: Quai Meslin | AE33: 6.742413519 | AF33: 3.209754335 | AG33: 3.039168735 | AI33: 1.519584367 | AJ33: 1.78385991 | AY33: 0.8989090624 | BF33: 0.8063100725 | BL33: 18 | BM33: 9.835174956 | BN33: 130.7291732
A34: 33 | B34: Vaucelles | AE34: 1.333632781 | AF34: 3.417434002 | AH34: 1.333632781 | AK34: 4.477020764 | AL34: 0.7889095327 | AU34: 2.083801221 | BH34: 1.565568917 | BL34: 15 | BM34: 8.574631073 | BN34: 137.1545421
A35: 34 | B35: Barbeux | AK35: 1 | BL35: 1 | BM35: 19.68311318 | BN35: 118.4714289
A36: 35 | B36: Carrières | AK36: 0.9472535467 | AL36: 2.07493634 | BF36: 0.9778101128 | BL36: 4 | BM36: 9.255157079 | BN36: 113.2162718
A37: 36 | B37: Lechesne | AK37: 3.011686625 | AN37: 0.7990189006 | AR37: 1.505843313 | AZ37: 0.8907805511 | BF37: 1.79267061 | BL37: 8 | BM37: 9.462584308 | BN37: 111.7536875
A38: 37 | B38: Lefrançois | AK38: 0.6514643987 | AL38: 0.6514643987 | AQ38: 2.20257011 | AT38: 1.189387859 | BF38: 2.305113234 | BL38: 7 | BM38: 5.978727698 | BN38: 112.7749598
A39: 38 | B39: Lyautey | AK39: 1.728556905 | AQ39: 0.8642784526 | AY39: 0.51126331 | BA39: 1.130210284 | BF39: 2.765691048 | BL39: 7 | BM39: 7.522119721 | BN39: =BN38+BL39-BM39 -> 112.2528401
A40: 39 | B40: Armand Marie | AO40: 5.653464035 | AQ40: 0.4290445086 | AW40: 0.8963965626 | BA40: 1.268141616 | BH40: 1.752953278 | BL40: 10 | BM40: 9.584140266 | BN40: 112.6686998
A41: 40 | B41: Lycée Fresnel | AL41: 0.8318614848 | AN41: 1.29978357 | AR41: 3.802795359 | AX41: 3.906132189 | BA41: 0.9150476332 | BB41: 0.8318614848 | BD41: 2.251772604 | BF41: 1.32394856 | BG41: 0.9150476332 | BH41: 3.258026512 | BK41: 1.66372297 | BL41: 21 | BM41: 21.87388722 | BN41: 111.7948126
A42: 41 | B42: Rostand Fresnel | AM42: 1.122628931 | AQ42: 2.007778666 | AS42: 8.44124082 | AT42: 1.087546777 | AU42: 9.153743595 | AW42: 1.087546777 | AX42: 3.611762309 | AY42: 1.422176555 | AZ42: 3.262640332 | BA42: 4.805655418 | BB42: 2.258750999 | BF42: 0.6433375303 | BH42: 1.797468804 | BI42: 1.087546777 | BK42: 2.210175709 | BL42: 44 | BM42: 15.68403136 | BN42: 140.1107813
A43: 42 | B43: Aviation | BB43: 1.523572618 | BF43: 0.8468847419 | BH43: 0.62954264 | BL43: 3 | BM43: 3.139164889 | BN43: 139.9716164
A44: 43 | B44: Collège de Normandie | AS44: 0.468908962 | AU44: 6.586922342 | BA44: 0.9720843481 | BD44: 0.9720843481 | BL44: 9 | BM44: 5.217291719 | BN44: 143.7543247
A45: 44 | B45: Claude Monet | BB45: 1.61219783 | BF45: 0.8986736552 | BG45: 1.671105059 | BH45: 0.8180234554 | BL45: 5 | BM45: 6.860960484 | BN45: 141.8933642
A46: 45 | B46: Liberté | AZ46: 4 | BL46: 4 | BM46: 2.75932677 | BN46: 143.1340374
A47: 46 | B47: Guérinière | AT47: 0.5371085624 | AW47: 2.965032761 | AY47: 5.62832226 | BB47: 6.149633156 | BD47: 1.122173246 | BF47: 5.327168273 | BG47: 1.180125855 | BH47: 3.421641021 | BK47: 4.668794865 | BL47: 31 | BM47: 8.608737677 | BN47: 165.5252997
A48: 47 | B48: Genève | AU48: 0.9955200939 | AX48: 1.168654023 | BB48: 0.9955200939 | BE48: 4.110534581 | BF48: 3.539627001 | BH48: 2.190144207 | BL48: 13 | BM48: 6.620196036 | BN48: 171.9051037
A49: 48 | B49: Monument | AT49: 1.729690658 | AX49: 2.223887989 | AZ49: 1.111943995 | BA49: 1.111943995 | BF49: 2.052819682 | BH49: 0.6577696869 | BK49: 1.111943995 | BL49: 10 | BM49: 9.800908064 | BN49: 172.1041956
A50: 49 | B50: Clos Joli | AU50: 0.6886388338 | AV50: 1.91475945 | BA50: 0.3539814414 | BF50: 0.6886388338 | BH50: 0.3539814414 | BL50: 4 | BM50: 7.006934132 | BN50: 169.0972615
A51: 50 | B51: Place Centrale | AZ51: 1.08652289 | BB51: 1.420837625 | BF51: 5.270301234 | BH51: 1.222338251 | BL51: 9 | BM51: 22.10320796 | BN51: 155.9940535
A52: 51 | B52: La Fresnaye | BF52: 1 | BL52: 1 | BM52: 2.876778395 | BN52: 154.1172751
A53: 52 | B53: Industrie | BF53: 1.097275199 | BH53: 0.902724801 | BL53: 2 | BM53: 6.563629153 | BN53: 149.553646
A54: 53 | B54: Charlotte Corday | BF54: 2 | BL54: 2 | BM54: 12.36047512 | BN54: 139.1931709
A55: 54 | B55: Nicolas Copernic | BD55: 1.045337696 | BE55: 0.6183687778 | BF55: 3.099555971 | BH55: 1.236737556 | BL55: 6 | BM55: 8.460671188 | BN55: 136.7324997
A56: 55 | B56: 19 MARS | BB56: 2.397433733 | BF56: 3.588721931 | BH56: 2.013844336 | BL56: 8 | BM56: 10.35188777 | BN56: 134.3806119
A57: 56 | B57: Paul Langevin | BF57: 5.379834867 | BH57: 0.6201651327 | BL57: 6 | BM57: 11.54190729 | BN57: 128.8387046
A58: 57 | B58: Route de Paris | BH58: 1.27520436 | BJ58: 1.544050863 | BK58: 1.180744777 | BL58: 4 | BM58: 17.18980754 | BN58: 115.6488971
A59: 58 | B59: Charles de Coulomb | BF59: 0.6035190616 | BH59: 1.207038123 | BJ59: 1.189442815 | BL59: 3 | BN59: 118.6488971
A60: 59 | B60: Robert Bosch | BM60: 5.391367894 | BN60: 113.2575292
A61: 60 | B61: Mondeville ZI | BM61: 5.686864353 | BN61: 107.5706648
A62: 61 | B62: Mondeville C. Commercial | BG62: 2.941548342 | BH62: 10.97418859 | BI62: 1.951443848 | BJ62: 0.5618978788 | BK62: 6.570921342 | BL62: 23 | BM62: 50.30068101 | BN62: 80.26998382
A63: 62 | B63: Tampleu | BM63: 7.78746364 | BN63: 72.48252018
A64: 63 | B64: Mondevillage | BM64: 41.83536837 | BN64: 30.6471518
A65: 64 | B65: Philippe Lebon | BM65: 3.038990625 | BN65: 27.60816118
A66: 65 | B66: Leroy Merlin | BM66: 4.245490229 | BN66: 23.36267095
A67: 66 | B67: MONDEVILLE Village Oxylane | BM67: 23.36267095 | BN67: -9.592326933e-14
A68: TOTAL DESCENTES | D68: 2.68462587 | E68: 2.452161396 | G68: 2.157297696 | H68: 10.03124847 | J68: 4.0662608 | O68: 0.9500986723 | P68: 1.292162752 | Q68: 1.058725695 | S68: 1.092185183 | U68: 2.40749102 | V68: 0.5293628477 | W68: 10.96030779 | X68: 10.9530159 | Y68: 3.515139528 | Z68: 32.59922275 | AA68: 11.30262163 | AB68: 9.383723862 | AC68: 9.835174956 | AD68: 8.574631073 | AE68: 19.68311318 | AF68: 9.255157079 | AG68: 9.462584308 | AH68: 5.978727698 | AI68: 7.522119721 | AJ68: 9.584140266 | AK68: 21.87388722 | AL68: 15.68403136 | AM68: 3.139164889 | AN68: 5.217291719 | AO68: 6.860960484 | AP68: 2.75932677 | AQ68: 8.608737677 | AR68: 6.620196036 | AS68: 9.800908064 | AT68: 7.006934132 | AU68: 22.10320796 | AV68: 2.876778395 | AW68: 6.563629153 | AX68: 12.36047512 | AY68: 8.460671188 | AZ68: 10.35188777 | BA68: 11.54190729 | BB68: 17.18980754 | BD68: 5.391367894 | BE68: 5.686864353 | BF68: 50.30068101 | BG68: 7.78746364 | BH68: 41.83536837 | BI68: 3.038990625 | BJ68: 4.245490229 | BK68: 23.36267095 | BL68: 508 | BM68: 508

Sheet Sens (Tous)-20-1. JOB
A1: SENS | B1: (Tous)
A2: LIGNE | B2: 20
C5: 1 | D5: 2 | E5: 3 | F5: 4 | G5: 5 | H5: 6 | I5: 7 | J5: 8 | K5: 9 | L5: 10 | M5: 11 | N5: 12 | O5: 13 | P5: 14 | Q5: 15 | R5: 16 | S5: 17 | T5: 18 | U5: 19 | V5: 20 | W5: 21 | X5: 22 | Y5: 23 | Z5: 24 | AA5: 25 | AB5: 26 | AC5: 27 | AD5: 28 | AE5: 29 | AF5: 30 | AG5: 31 | AH5: 32 | AI5: 33 | AJ5: 34 | AK5: 35 | AL5: 36 | AM5: 37 | AN5: 38 | AO5: 39 | AP5: 40 | AQ5: 41 | AR5: 42 | AS5: 43 | AT5: 44 | AU5: 45 | AV5: 46 | AW5: 47 | AX5: 48 | AY5: 49 | AZ5: 50 | BA5: 51 | BB5: 52 | BC5: 53 | BD5: 54 | BE5: 55 | BF5: TOTAL MONTEES | BG5: TOTAL DESCENTES
C6: ROTS - Bonny | D6: Senestre | E6: Zone Commerciale | F6: Parc des Drapeaux | G6: Brunet | H6: AUTHIE - Jacques Cartier | I6: Authie Mairie | J6: Résidence aux Champs | K6: Calvaire | L6: Cussy | M6: Ardenne | N6: Chanterie | O6: Rue du Puits | P6: Rue de Villons | Q6: Cotonnière | R6: Cimetière Parc | S6: Bourgogne | T6: Touraine | U6: Rouge Gorge | V6: Tourterelles | W6: Champagne | X6: Chemin Vert Piscine | Y6: Gernez | Z6: Le Coutour | AA6: Les Florals | AB6: Thibout de la Fresnaye | AC6: Lycée de Gaulle | AD6: Saint-Nicolas | AE6: Place du Canada | AF6: Miséricorde | AG6: Château Quatrans | AH6: Bellivet | AI6: Bernières | AJ6: Place Courtonne | AK6: Quai de la Londe | AL6: Tourville | AM6: Fouquet | AN6: Hélène Keller | AO6: Pont de Calix | AP6: Saint-Jean Eudes | AQ6: Clémenceau | AR6: Cimetière Nord Est | AS6: CHR | AT6: Docteur Vincent | AU6: Docteur Auvray | AV6: La Hache | AW6: Vanier | AX6: Montcalm | AY6: Place Champlain | AZ6: Pierre Heuzé | BA6: Cavelier | BB6: Brest | BC6: Cité U Lebisey | BD6: Copernic | BE6: CAEN - Calvaire Saint-Pierre
A7: 1 | B7: ROTS - Bonny | U7: 0.5238095238 | AF7: 0.9523809524 | AH7: 0.5238095238 | BE7: 0.9803921569 | BF7: 2.980392157 | BG7: 11.36947696
A8: 2 | B8: Senestre | AN8: 1 | BF8: 1 | BG8: 4.046481086
A9: 3 | B9: Zone Commerciale | N9: 1.095066185 | AC9: 1.186626903 | AG9: 3.04714069 | AH9: 0.9427091508 | AI9: 0.7284570711 | BF9: 7 | BG9: 9.280782131
A10: 4 | B10: Parc des Drapeaux | N10: 1.001751313 | X10: 1.001751313 | AE10: 1.001751313 | AG10: 0.7740805604 | AH10: 0.9106830123 | AI10: 2.049036778 | AK10: 1.260945709 | BF10: 8 | BG10: 6.448989964
A11: 5 | B11: Brunet | V11: 0.9826589595 | W11: 1.213872832 | AE11: 1.213872832 | AG11: 0.5895953757 | BF11: 4 | BG11: 1.02460204
A12: 6 | B12: AUTHIE - Jacques Cartier | M12: 1.438549728 | X12: 1.438549728 | AC12: 1.438549728 | AG12: 1.459704871 | AH12: 3.022143078 | AI12: 1.202502868 | BF12: 10 | BG12: 31.14088404
A13: 7 | B13: Authie Mairie | S13: 0.9588029759 | V13: 1.78996345 | X13: 0.9588029759 | Z13: 0.6163733416 | AG13: 0.7244289151 | AH13: 2.161664891 | AT13: 1.78996345 | BF13: 9 | BG13: 31.05195706
A14: 8 | B14: Résidence aux Champs | O14: 1.200281736 | S14: 0.9519475836 | AC14: 3.596246427 | AG14: 1.047142342 | AH14: 1.002050088 | AI14: 1.002050088 | AO14: 1.200281736 | BF14: 10 | BG14: 6.813684321
A15: 9 | B15: Calvaire | BG15: 2.192333331
A16: 10 | B16: Cussy | AG16: 6 | BF16: 6 | BG16: 10.94802892
A17: 11 | B17: Ardenne | C17: 1 | V17: 2.23092529 | AC17: 4.47531016 | AF17: 4.805661423 | AG17: 7.907502914 | AH17: 2.29247171 | AI17: 1.144064251 | AK17: 1.144064251 | BF17: 25 | BG17: 22.98203101
A18: 12 | B18: Chanterie | S18: 3.46168033 | U18: 1.713703134 | V18: 2.159265949 | AC18: 1.313839069 | AG18: 3.238623997 | AI18: 4.112887521 | AU18: 2.056443761 | BF18: 18.05644376 | BG18: 32.61792644
A19: 13 | B19: Rue du Puits | AB19: 2.624073018 | AF19: 2.755276669 | AI19: 3.308613805 | AJ19: 1.312036509 | BF19: 10 | BG19: 7.237748252
A20: 14 | B20: Rue de Villons | T20: 1.190519934 | U20: 1.190519934 | V20: 2.381039868 | W20: 1.190519934 | AD20: 1.190519934 | AE20: 1.190519934 | AF20: 2.500091861 | AG20: 6.785963623 | AH20: 1.309571927 | AL20: 1.190519934 | AM20: 1.190519934 | AP20: 1.49917325 | AY20: 2.381039868 | AZ20: 1.190519934 | BF20: 26.38103987 | BG20: 10.38443512
A21: 15 | B21: Cotonnière | N21: 3 | S21: 5.860776609 | AD21: 1.465194152 | AE21: 1.245415029 | AG21: 5.745982196 | AH21: 7.217437861 | AI21: 1.465194152 | BF21: 26 | BG21: 23.16336098
A22: 16 | B22: Cimetière Parc | H22: 0.6237424547 | N22: 0.3762575453 | U22: 0.9805380447 | AG22: 2.246438355 | AH22: 0.8913982225 | AI22: 1.881625378 | BF22: 7 | BG22: 14.19158501
A23: 17 | B23: Bourgogne | H23: 1.3276884 | N23: 1.930567316 | Q23: 4.741744285 | X23: 0.2646351243 | AG23: 1.182036889 | BC23: 0.2646351243 | BE23: 0.2886928629 | BF23: 10 | BG23: 22.95311381
A24: 18 | B24: Touraine | Q24: 3 | AB24: 0.6940639269 | AG24: 0.6362252664 | AK24: 0.6697108067 | BF24: 5 | BG24: 2.47003342
A25: 19 | B25: Rouge Gorge | C25: 2.055537823 | N25: 2.114267475 | P25: 2.068305139 | R25: 1.761889563 | X25: 2.1783409 | AD25: 2.412931458 | AG25: 3.609822062 | AI25: 4.247323795 | AT25: 2.904454533 | AX25: 2.904454533 | BC25: 1.74267272 | BF25: 28 | BG25: 14.43077915
A26: 20 | B26: Tourterelles | F26: 3.438303557 | H26: 0.9389213558 | I26: 2.189213558 | N26: 0.7449657706 | R26: 4.688595759 | Y26: 3.03699926 | AG26: 4.800629429 | AH26: 2.069658755 | AI26: 2.116696454 | AL26: 0.7937611701 | AQ26: 1.307371339 | AR26: 1.439353589 | AS26: 0.6684304591 | AT26: 1.439353589 | BE26: 1.327745957 | BF26: 31 | BG26: 39.01992096
A27: 21 | B27: Champagne | V27: 2 | Y27: 0.6568323128 | AB27: 2.030208967 | AE27: 0.6914024345 | AG27: 1.2497099 | AH27: 1.543666513 | AI27: 0.8281798726 | BF27: 9 | BG27: 17.51473065
A28: 22 | B28: Chemin Vert Piscine | C28: 0.9205781451 | F28: 0.9005655767 | M28: 1.394815371 | S28: 1.35379139 | U28: 1.84115629 | V28: 1.589093227 | Y28: 1.591098804 | AB28: 1.612435378 | AF28: 1.261905948 | AG28: 6.309529739 | AH28: 1.261905948 | AI28: 2.598041657 | AQ28: 1.261905948 | BC28: 2.10317658 | BF28: 26 | BG28: 45.98096395
A29: 23 | B29: Gernez | V29: 1.558411215 | W29: 0.441588785 | AG29: 2.896551724 | AZ29: 3.103448276 | BF29: 8 | BG29: 10.10762642
A30: 24 | B30: Le Coutour | E30: 1.690821256 | V30: 1.739130435 | X30: 1.570048309 | AA30: 1.112616316 | AG30: 1.811282823 | AH30: 2.443624163 | AI30: 0.7500568612 | AV30: 0.8824198368 | BF30: 12 | BG30: 13.11266526
A31: 25 | B31: Les Florals | N31: 5 | AB31: 0.1219773165 | AF31: 0.5068835152 | AG31: 0.3711391683 | BF31: 6 | BG31: 4.441957216
A32: 26 | B32: Thibout de la Fresnaye | N32: 5.845804389 | S32: 2.322433878 | U32: 2.322433878 | V32: 4.787315995 | W32: 6.718703078 | X32: 6.003308782 | AE32: 5.892936322 | AF32: 1.598066187 | AG32: 8.620640829 | AH32: 1.609903714 | AQ32: 1.278452949 | BF32: 47 | BG32: 32.37436872
A33: 27 | B33: Lycée de Gaulle | C33: 3.477021862 | E33: 0.7662622096 | G33: 1.02460204 | H33: 4.871457659 | I33: 16.76177156 | J33: 0.8588873119 | L33: 1.874428058 | M33: 3.154649558 | N33: 3.51939581 | O33: 0.6567961797 | R33: 0.6567961797 | S33: 0.7881554156 | V33: 2.040759558 | W33: 1.360506372 | X33: 3.668951768 | AA33: 1.360506372 | AB33: 1.159052082 | AF33: 2.792236468 | AG33: 6.531596818 | AH33: 2.46373806 | AP33: 1.551242482 | AZ33: 4.722164615 | BF33: 66.06097844 | BG33: 38.42115812
A34: 28 | B34: Saint-Nicolas | H34: 7.433033033 | V34: 2.943543544 | AB34: 2.623423423 | AF34: 0.701754386 | AI34: 0.701754386 | AR34: 0.5964912281 | BF34: 15 | BG34: 9.990970579
A35: 29 | B35: Place du Canada | H35: 2.6 | M35: 2.085416667 | N35: 2.275 | Q35: 2.464583333 | Y35: 2.6 | Z35: 2.975 | AG35: 3.060902064 | AH35: 1.852119256 | AN35: 0.69565956 | AZ35: 1.39131912 | BF35: 22 | BG35: 18.70208031
A36: 30 | B36: Miséricorde | C36: 1.986176272 | D36: 1.884119784 | E36: 3.093096645 | H36: 1.184303864 | I36: 4.140808612 | J36: 1.616574775 | L36: 5.181329406 | M36: 1.616574775 | R36: 0.8882278982 | V36: 5.14835731 | W36: 1.899820782 | X36: 1.884119784 | Y36: 1.103121744 | Z36: 1.184303864 | AB36: 7.06544919 | AC36: 5.902026537 | AD36: 2.206243489 | AH36: 1 | BF36: 48.98465473 | BG36: 22.38165641
A37: 31 | B37: Château Quatrans | E37: 1.959255026 | H37: 4.190406668 | I37: 3.595555927 | M37: 6.248664724 | N37: 4.336812539 | O37: 3.499648339 | P37: 3.582637762 | R37: 1.119574301 | T37: 1.279513487 | U37: 1.119574301 | V37: 3.195148735 | W37: 3.727098962 | X37: 13.70593479 | Y37: 1.119574301 | Z37: 1.528649526 | AB37: 8.07336101 | AC37: 8.280459338 | AD37: 1.033453201 | AE37: 1.212872159 | AF37: 1.191804901 | AM37: 1.777503784 | AN37: 1.707743038 | AP37: 0.7534160464 | AQ37: 0.7534160464 | AR37: 0.7534160464 | AV37: 2.382555939 | AW37: 0.828757651 | AZ37: 1.043191449 | BF37: 84 | BG37: 89.87663439
A38: 32 | B38: Bellivet | C38: 1.205783332 | D38: 1.446939998 | F38: 2.110120831 | H38: 6.016739145 | I38: 2.690323025 | J38: 1.881021998 | K38: 2.192333331 | L38: 1.283575805 | M38: 1.248847022 | N38: 1.378038093 | O38: 1.881021998 | P38: 1.306265276 | Q38: 8.877436235 | R38: 1.205783332 | S38: 1.576793588 | U38: 1.576793588 | V38: 1.646358011 | X38: 8.263780708 | Z38: 3.639273329 | AA38: 1.646358011 | AB38: 2.830969562 | AC38: 6.982413017 | AD38: 1.113030768 | AL38: 2.418530676 | AM38: 3.172262727 | AN38: 1.106424591 | AO38: 1.086667009 | AP38: 3.571827211 | AQ38: 1.404308134 | AR38: 1.014222541 | AT38: 1.115644796 | AU38: 1.278802335 | AV38: 1.278802335 | AW38: 5.215326169 | AZ38: 3.236291928 | BA38: 1.086667009 | BD38: 1.014222541 | BF38: 92 | BG38: 62.37000739
A39: 33 | B39: Bernières | C39: 0.7243795273 | J39: 0.8425297493 | M39: 3.086398992 | P39: 1.738998663 | Q39: 0.7404768501 | R39: 0.5289120358 | S39: 1.088936544 | V39: 0.9626199051 | W39: 0.9626199051 | X39: 1.121934621 | Z39: 1.079862073 | AB39: 1.964464371 | AD39: 0.569597577 | AF39: 0.8638896585 | AH39: 0.7243795273 | AK39: 1.134357382 | AL39: 1.058733557 | AM39: 7.39137373 | AN39: 10.68307261 | AO39: 1.058733557 | AP39: 7.550695229 | AT39: 1.352826211 | AV39: 2.329213825 | AW39: 1.058733557 | AX39: 1.154982062 | AZ39: 6.227278283 | BF39: 58 | BG39: 98.94654824
A40: 34 | B40: Place Courtonne | AM40: 2.234866199 | AN40: 4.436866719 | AO40: 5.945700182 | AP40: 4.436866719 | AQ40: 1.774746687 | AR40: 2.234866199 | BE40: 1.936087295 | BF40: 23 | BG40: 2.292538935
A41: 35 | B41: Quai de la Londe | L41: 2.608695652 | R41: 3.130434783 | AE41: 3.652173913 | AG41: 2.608695652 | BE41: 6 | BF41: 18 | BG41: 10.01894128
A42: 36 | B42: Tourville | X42: 1.792360316 | AH42: 6.838244247 | AI42: 7.369395437 | AQ42: 7 | BF42: 23 | BG42: 6.690637399
A43: 37 | B43: Fouquet | S43: 2.366863905 | AG43: 2.863905325 | AI43: 5.467455621 | AK43: 1.301775148 | AP43: 0.9958506224 | AR43: 1.004149378 | BF43: 14 | BG43: 30.60589595
A44: 38 | B44: Hélène Keller | S44: 2.222931591 | AF44: 1.222612375 | AG44: 1.222612375 | AH44: 1.324496739 | AI44: 11.57210631 | AM44: 1.435240614 | AO44: 0.9316249028 | AS44: 1.552708171 | AY44: 1.91805127 | AZ44: 3.50065115 | BA44: 3.043308016 | BC44: 0.9806577924 | BE44: 4.072998698 | BF44: 35 | BG44: 32.03888
A45: 39 | B45: Pont de Calix | E45: 1.05592569 | H45: 1.183565059 | Z45: 1.062484234 | AG45: 0.829655899 | AH45: 1.235781164 | AI45: 10.65208553 | AJ45: 0.9805024261 | AY45: 1.3839566 | BB45: 6.25636674 | BE45: 1.35967666 | BF45: 26 | BG45: 18.22430744
A46: 40 | B46: Saint-Jean Eudes | AC46: 1.099571612 | AE46: 1.603541933 | AH46: 1.480192554 | AI46: 14.8166939 | AR46: 0.7247324002 | AZ46: 1.089467007 | BB46: 0.8975014244 | BC46: 1.755407198 | BE46: 3.532891971 | BF46: 27 | BG46: 27.19882854
A47: 41 | B47: Clémenceau | AF47: 1.229092063 | AH47: 2.848102987 | AI47: 10.46462082 | AL47: 1.229092063 | AM47: 1.229092063 | AS47: 1.059292035 | AT47: 1.059292035 | AX47: 1.353539823 | AY47: 2.412831858 | BE47: 1.115044248 | BF47: 24 | BG47: 19.44179399
A48: 42 | B48: Cimetière Nord Est | AC48: 1.785852922 | AH48: 1.785852922 | AI48: 2.806340306 | AK48: 2.668967005 | AP48: 1.166271296 | AQ48: 2.786715549 | BF48: 13 | BG48: 11.22919912
A49: 43 | B49: CHR | R49: 0.2113711628 | AA49: 0.3224765176 | AI49: 0.2959196279 | AO49: 0.8335292688 | AQ49: 0.3367034228 | BB49: 1.860115772 | BC49: 5.497131609 | BD49: 3.720231543 | BE49: 6.642752619 | BF49: 19.72023154 | BG49: 12.83972308
A50: 44 | B50: Docteur Vincent | H50: 0.7710264004 | Z50: 1.026718894 | AC50: 1.202254705 | AY50: 0.3209700428 | BE50: 0.6790299572 | BF50: 4 | BG50: 10.44245368
A51: 45 | B51: Docteur Auvray | P51: 0.91273227 | X51: 1.659513218 | AH51: 3.482424661 | AM51: 0.945329851 | BE51: 4 | BF51: 11 | BG51: 7.260590253
A52: 46 | B52: La Hache | I52: 1.674284376 | AE52: 0.9975944409 | AH52: 4.266849338 | AR52: 0.9802664978 | AU52: 1.081005347 | AY52: 0.9674838147 | BA52: 0.5804902888 | BB52: 0.4934167455 | BC52: 0.6110424093 | BD52: 0.725612861 | BE52: 0.6219538808 | BF52: 13 | BG52: 10.03563156
A53: 47 | B53: Vanier | D53: 0.7154213037 | E53: 0.7154213037 | X53: 0.4689316108 | AG53: 0.5470868793 | AH53: 2.379827925 | AI53: 3.54806883 | AN53: 0.6252421477 | BF53: 9 | BG53: 7.102817376
A54: 48 | B54: Montcalm | Q54: 1.581125227 | U54: 3.162250454 | AH54: 1.485299456 | AI54: 1.60907441 | AP54: 1.581125227 | AR54: 1.581125227 | BF54: 11 | BG54: 7.426199268
A55: 49 | B55: Place Champlain | AM55: 4.785925926 | AN55: 4.583703704 | AS55: 3.63037037 | BF55: 13 | BG55: 19.1133526
A56: 50 | B56: Pierre Heuzé | M56: 2.708114176 | Q56: 1.237995052 | AI56: 2.208302509 | AN56: 3.171039676 | AP56: 0.674548586 | BF56: 10 | BG56: 25.50433176
A57: 51 | B57: Cavelier | J57: 0.48 | Q57: 0.52 | BF57: 1 | BG57: 4.710465313
A58: 52 | B58: Brest | J58: 1.134670487 | V58: 1.865329513 | BC58: 2 | BF58: 5 | BG58: 11.04557459
A59: 53 | B59: Cité U Lebisey | AB59: 1.574890482 | AC59: 1.158007707 | AG59: 1.158007707 | AN59: 1.335844605 | AO59: 7.167770782 | AP59: 0.698540133 | AS59: 2.733619292 | AU59: 0.6015206701 | AV59: 0.6057271083 | AX59: 0.8581134035 | AY59: 4.10795811 | BF59: 22 | BG59: 14.95472343
A60: 54 | B60: Copernic | AM60: 4.691361556 | AV60: 1.563787185 | AY60: 4.744851259 | BF60: 11 | BG60: 5.460066946
A61: 55 | B61: CAEN - Calvaire Saint-Pierre | P61: 0.7754960133 | AK61: 1.83912098 | AM61: 1.752419563 | AN61: 2.693283357 | AP61: 2.719271735 | AQ61: 1.538173911 | AR61: 0.9005760155 | AS61: 3.195302754 | AT61: 0.7809190624 | AU61: 2.24281814 | AV61: 0.9931253293 | AX61: 1.155109446 | AY61: 0.8762097813 | BB61: 1.538173911 | BF61: 23 | BG61: 32.55726631
A62: TOTAL DESCENTES | C62: 11.36947696 | D62: 4.046481086 | E62: 9.280782131 | F62: 6.448989964 | G62: 1.02460204 | H62: 31.14088404 | I62: 31.05195706 | J62: 6.813684321 | K62: 2.192333331 | L62: 10.94802892 | M62: 22.98203101 | N62: 32.61792644 | O62: 7.237748252 | P62: 10.38443512 | Q62: 23.16336098 | R62: 14.19158501 | S62: 22.95311381 | T62: 2.47003342 | U62: 14.43077915 | V62: 39.01992096 | W62: 17.51473065 | X62: 45.98096395 | Y62: 10.10762642 | Z62: 13.11266526 | AA62: 4.441957216 | AB62: 32.37436872 | AC62: 38.42115812 | AD62: 9.990970579 | AE62: 18.70208031 | AF62: 22.38165641 | AG62: 89.87663439 | AH62: 62.37000739 | AI62: 98.94654824 | AJ62: 2.292538935 | AK62: 10.01894128 | AL62: 6.690637399 | AM62: 30.60589595 | AN62: 32.03888 | AO62: 18.22430744 | AP62: 27.19882854 | AQ62: 19.44179399 | AR62: 11.22919912 | AS62: 12.83972308 | AT62: 10.44245368 | AU62: 7.260590253 | AV62: 10.03563156 | AW62: 7.102817376 | AX62: 7.426199268 | AY62: 19.1133526 | AZ62: 25.50433176 | BA62: 4.710465313 | BB62: 11.04557459 | BC62: 14.95472343 | BD62: 5.460066946 | BE62: 32.55726631 | BF62: 1094.183741 | BG62: 1094.183741

Sheet Sens 2-20-1. JOB
A1: SENS | B1: 2
A2: LIGNE | B2: 20
C5: 55 | D5: 54 | E5: 53 | F5: 52 | G5: 51 | H5: 50 | I5: 49 | J5: 48 | K5: 47 | L5: 46 | M5: 45 | N5: 44 | O5: 43 | P5: 42 | Q5: 41 | R5: 40 | S5: 39 | T5: 38 | U5: 37 | V5: 36 | W5: 35 | X5: 34 | Y5: 33 | Z5: 32 | AA5: 31 | AB5: 30 | AC5: 29 | AD5: 28 | AE5: 27 | AF5: 26 | AG5: 25 | AH5: 24 | AI5: 23 | AJ5: 22 | AK5: 21 | AL5: 20 | AM5: 19 | AN5: 18 | AO5: 17 | AP5: 16 | AQ5: 15 | AR5: 14 | AS5: 13 | AT5: 12 | AU5: 11 | AV5: 10 | AW5: 9 | AX5: 8 | AY5: 7 | AZ5: 6 | BA5: 5 | BB5: 4 | BC5: 3 | BD5: 2 | BE5: 1 | BF5: TOTAL MONTEES | BG5: TOTAL DESCENTES | BH5: CHARGE
C6: CAEN - Calvaire Saint-Pierre | D6: Copernic | E6: Cité U Lebisey | F6: Brest | G6: Cavelier | H6: Pierre Heuzé | I6: Place Champlain | J6: Montcalm | K6: Vanier | L6: La Hache | M6: Docteur Auvray | N6: Docteur Vincent | O6: CHR | P6: Cimetière Nord Est | Q6: Clémenceau | R6: Saint-Jean Eudes | S6: Pont de Calix | T6: Hélène Keller | U6: Fouquet | V6: Tourville | W6: Quai de la Londe | X6: Place Courtonne | Y6: Bernières | Z6: Bellivet | AA6: Château Quatrans | AB6: Miséricorde | AC6: Place du Canada | AD6: Saint-Nicolas | AE6: Lycée de Gaulle | AF6: Thibout de la Fresnaye | AG6: Les Florals | AH6: Le Coutour | AI6: Gernez | AJ6: Chemin Vert Piscine | AK6: Champagne | AL6: Tourterelles | AM6: Rouge Gorge | AN6: Touraine | AO6: Bourgogne | AP6: Cimetière Parc | AQ6: Cotonnière | AR6: Rue de Villons | AS6: Rue du Puits | AT6: Chanterie | AU6: Ardenne | AV6: Cussy | AW6: Calvaire | AX6: Résidence aux Champs | AY6: Authie Mairie | AZ6: AUTHIE - Jacques Cartier | BA6: Brunet | BB6: Parc des Drapeaux | BC6: Zone Commerciale | BD6: Senestre | BE6: ROTS - Bonny
A7: 55 | B7: CAEN - Calvaire Saint-Pierre | F7: 1.538173911 | I7: 0.8762097813 | J7: 1.155109446 | L7: 0.9931253293 | M7: 2.24281814 | N7: 0.7809190624 | O7: 3.195302754 | P7: 0.9005760155 | Q7: 1.538173911 | R7: 2.719271735 | T7: 2.693283357 | U7: 1.752419563 | W7: 1.83912098 | AR7: 0.7754960133 | BF7: 23 | BH7: =BH6+BF7-BG7 -> 23
A8: 54 | B8: Copernic | I8: 4.744851259 | L8: 1.563787185 | U8: 4.691361556 | BF8: 11 | BH8: =BH7+BF8-BG8 -> 34
A9: 53 | B9: Cité U Lebisey | I9: 4.10795811 | J9: 0.8581134035 | L9: 0.6057271083 | M9: 0.6015206701 | O9: 2.733619292 | R9: 0.698540133 | S9: 7.167770782 | T9: 1.335844605 | AA9: 1.158007707 | AE9: 1.158007707 | AF9: 1.574890482 | BF9: 22 | BH9: 56
A10: 52 | B10: Brest | AL10: 1.865329513 | AX10: 1.134670487 | BF10: 3 | BG10: 1.538173911 | BH10: 57.46182609
A11: 51 | B11: Cavelier | AQ11: 0.52 | AX11: 0.48 | BF11: 1 | BH11: 58.46182609
A12: 50 | B12: Pierre Heuzé | R12: 0.674548586 | T12: 3.171039676 | Y12: 2.208302509 | AQ12: 1.237995052 | AU12: 2.708114176 | BF12: 10 | BH12: 68.46182609
A13: 49 | B13: Place Champlain | O13: 3.63037037 | T13: 4.583703704 | U13: 4.785925926 | BF13: 13 | BG13: 9.72901915 | BH13: 71.73280694
A14: 48 | B14: Montcalm | P14: 1.581125227 | R14: 1.581125227 | Y14: 1.60907441 | Z14: 1.485299456 | AM14: 3.162250454 | AQ14: 1.581125227 | BF14: 11 | BG14: 2.01322285 | BH14: 80.71958409
A15: 47 | B15: Vanier | T15: 0.6252421477 | Y15: 3.54806883 | Z15: 2.379827925 | AA15: 0.5470868793 | AJ15: 0.4689316108 | BC15: 0.7154213037 | BD15: 0.7154213037 | BF15: 9 | BH15: 89.71958409
A16: 46 | B16: La Hache | M16: 1.081005347 | P16: 0.9802664978 | Z16: 4.266849338 | AC16: 0.9975944409 | AY16: 1.674284376 | BF16: 9 | BG16: 3.162639623 | BH16: 95.55694447
A17: 45 | B17: Docteur Auvray | U17: 0.945329851 | Z17: 3.482424661 | AJ17: 1.659513218 | AR17: 0.91273227 | BF17: 7 | BG17: 3.925344158 | BH17: 98.63160031
A18: 44 | B18: Docteur Vincent | AE18: 1.202254705 | AH18: 1.026718894 | AZ18: 0.7710264004 | BF18: 3 | BG18: 0.7809190624 | BH18: 100.8506812
A19: 43 | B19: CHR | Q19: 0.3367034228 | S19: 0.8335292688 | Y19: 0.2959196279 | AG19: 0.3224765176 | AP19: 0.2113711628 | BF19: 2 | BG19: 9.559292417 | BH19: 93.29138883
A20: 42 | B20: Cimetière Nord Est | Q20: 2.786715549 | R20: 1.166271296 | W20: 2.668967005 | Y20: 2.806340306 | Z20: 1.785852922 | AE20: 1.785852922 | BF20: 13 | BG20: 3.46196774 | BH20: 102.8294211
A21: 41 | B21: Clémenceau | U21: 1.229092063 | V21: 1.229092063 | Y21: 10.46462082 | Z21: 2.848102987 | AB21: 1.229092063 | BF21: 17 | BG21: 4.661592882 | BH21: 115.1678282
A22: 40 | B22: Saint-Jean Eudes | Y22: 14.8166939 | Z22: 1.480192554 | AC22: 1.603541933 | AE22: 1.099571612 | BF22: 19 | BG22: 6.839756977 | BH22: 127.3280712
A23: 39 | B23: Pont de Calix | X23: 0.9805024261 | Y23: 10.65208553 | Z23: 1.235781164 | AA23: 0.829655899 | AH23: 1.062484234 | AZ23: 1.183565059 | BC23: 1.05592569 | BF23: 17 | BG23: 8.001300051 | BH23: 136.3267712
A24: 38 | B24: Hélène Keller | U24: 1.435240614 | Y24: 11.57210631 | Z24: 1.324496739 | AA24: 1.222612375 | AB24: 1.222612375 | AO24: 2.222931591 | BF24: 19 | BG24: 12.40911349 | BH24: 142.9176577
A25: 37 | B25: Fouquet | W25: 1.301775148 | Y25: 5.467455621 | AA25: 2.863905325 | AO25: 2.366863905 | BF25: 12 | BG25: 14.83936957 | BH25: 140.0782881
A26: 36 | B26: Tourville | Y26: 7.369395437 | Z26: 6.838244247 | AJ26: 1.792360316 | BF26: 16 | BG26: 1.229092063 | BH26: 154.8491961
A27: 35 | B27: Quai de la Londe | AA27: 2.608695652 | AC27: 3.652173913 | AP27: 3.130434783 | AV27: 2.608695652 | BF27: 12 | BG27: 5.809863133 | BH27: 161.0393329
A28: 34 | B28: Place Courtonne | BG28: 0.9805024261 | BH28: 160.0588305
A29: 33 | B29: Bernières | Z29: 0.7243795273 | AB29: 0.8638896585 | AD29: 0.569597577 | AF29: 1.964464371 | AH29: 1.079862073 | AJ29: 1.121934621 | AK29: 0.9626199051 | AL29: 0.9626199051 | AO29: 1.088936544 | AP29: 0.5289120358 | AQ29: 0.7404768501 | AR29: 1.738998663 | AU29: 3.086398992 | AX29: 0.8425297493 | BE29: 0.7243795273 | BF29: 17 | BG29: 70.8100633 | BH29: 106.2487672
A30: 32 | B30: Bellivet | AD30: 1.113030768 | AE30: 6.982413017 | AF30: 2.830969562 | AG30: 1.646358011 | AH30: 3.639273329 | AJ30: 8.263780708 | AL30: 1.646358011 | AM30: 1.576793588 | AO30: 1.576793588 | AP30: 1.205783332 | AQ30: 8.877436235 | AR30: 1.306265276 | AS30: 1.881021998 | AT30: 1.378038093 | AU30: 1.248847022 | AV30: 1.283575805 | AW30: 2.192333331 | AX30: 1.881021998 | AY30: 2.690323025 | AZ30: 6.016739145 | BB30: 2.110120831 | BD30: 1.446939998 | BE30: 1.205783332 | BF30: 64 | BG30: 27.85145152 | BH30: 142.3973157
A31: 31 | B31: Château Quatrans | AB31: 1.191804901 | AC31: 1.212872159 | AD31: 1.033453201 | AE31: 8.280459338 | AF31: 8.07336101 | AH31: 1.528649526 | AI31: 1.119574301 | AJ31: 13.70593479 | AK31: 3.727098962 | AL31: 3.195148735 | AM31: 1.119574301 | AN31: 1.279513487 | AP31: 1.119574301 | AR31: 3.582637762 | AS31: 3.499648339 | AT31: 4.336812539 | AU31: 6.248664724 | AY31: 3.595555927 | AZ31: 4.190406668 | BC31: 1.959255026 | BF31: 74 | BG31: 10.29094228 | BH31: 206.1063734
A32: 30 | B32: Miséricorde | AD32: 2.206243489 | AE32: 5.902026537 | AF32: 7.06544919 | AH32: 1.184303864 | AI32: 1.103121744 | AJ32: 1.884119784 | AK32: 1.899820782 | AL32: 5.14835731 | AP32: 0.8882278982 | AU32: 1.616574775 | AV32: 5.181329406 | AX32: 1.616574775 | AY32: 3.15615388 | AZ32: 1.184303864 | BC32: 3.093096645 | BD32: 1.884119784 | BE32: 1.986176272 | BF32: 47 | BG32: 4.507398997 | BH32: 248.5989744
A33: 29 | B33: Place du Canada | AH33: 2.975 | AI33: 2.6 | AQ33: 2.464583333 | AT33: 2.275 | AU33: 2.085416667 | AZ33: 2.6 | BF33: 15 | BG33: 7.466182447 | BH33: 256.1327919
A34: 28 | B34: Saint-Nicolas | AF34: 2.623423423 | AL34: 2.943543544 | AZ34: 7.433033033 | BF34: 13 | BG34: 4.922325035 | BH34: 264.2104669
A35: 27 | B35: Lycée de Gaulle | AA35: 1.060978444 | AF35: 1.159052082 | AG35: 1.360506372 | AJ35: 3.668951768 | AK35: 1.360506372 | AL35: 2.040759558 | AO35: 0.7881554156 | AP35: 0.6567961797 | AS35: 0.6567961797 | AT35: 3.51939581 | AU35: 3.154649558 | AV35: 1.874428058 | AX35: 0.8588873119 | AY35: 16.76177156 | AZ35: 4.871457659 | BA35: 1.02460204 | BC35: 0.7662622096 | BE35: 3.477021862 | BF35: 49.06097844 | BG35: 26.41058584 | BH35: 286.8608595
A36: 26 | B36: Thibout de la Fresnaye | AJ36: 6.003308782 | AK36: 6.718703078 | AL36: 4.787315995 | AM36: 2.322433878 | AO36: 2.322433878 | AT36: 5.845804389 | BF36: 28 | BG36: 25.29161012 | BH36: 289.5692494
A37: 25 | B37: Les Florals | AT37: 5 | BF37: 5 | BG37: 3.329340901 | BH37: 291.2399085
A38: 24 | B38: Le Coutour | AJ38: 1.570048309 | AL38: 1.739130435 | BC38: 1.690821256 | BF38: 5 | BG38: 12.49629192 | BH38: 283.7436166
A39: 23 | B39: Gernez | AK39: 0.441588785 | AL39: 1.558411215 | BF39: 2 | BG39: 4.822696045 | BH39: 280.9209205
A40: 22 | B40: Chemin Vert Piscine | AL40: 1.589093227 | AM40: 1.84115629 | AO40: 1.35379139 | AU40: 1.394815371 | BB40: 0.9005655767 | BE40: 0.9205781451 | BF40: 8 | BG40: 40.13888391 | BH40: 248.7820366
A41: 21 | B41: Champagne | AL41: 2 | BF41: 2 | BG41: 15.11033789 | BH41: 235.6716987
A42: 20 | B42: Tourterelles | AP42: 4.688595759 | AT42: 0.7449657706 | AY42: 2.189213558 | AZ42: 0.9389213558 | BB42: 3.438303557 | BF42: 12 | BG42: 29.47606745 | BH42: 218.1956313
A43: 19 | B43: Rouge Gorge | AP43: 1.761889563 | AR43: 2.068305139 | AT43: 2.114267475 | BE43: 2.055537823 | BF43: 8 | BG43: 10.02220851 | BH43: 216.1734228
A44: 18 | B44: Touraine | AQ44: 3 | BF44: 3 | BG44: 1.279513487 | BH44: 217.8939093
A45: 17 | B45: Bourgogne | AQ45: 4.741744285 | AT45: 1.930567316 | AZ45: 1.3276884 | BF45: 8 | BG45: 11.71990631 | BH45: 214.174003
A46: 16 | B46: Cimetière Parc | AT46: 0.3762575453 | AZ46: 0.6237424547 | BF46: 1 | BG46: 14.19158501 | BH46: 200.982418
A47: 15 | B47: Cotonnière | AT47: 3 | BF47: 3 | BG47: 23.16336098 | BH47: 180.819057
A48: 14 | B48: Rue de Villons | BG48: 10.38443512 | BH48: 170.4346219
A49: 13 | B49: Rue du Puits | BG49: 6.037466516 | BH49: 164.3971553
A50: 12 | B50: Chanterie | BG50: 30.52110894 | BH50: 133.8760464
A51: 11 | B51: Ardenne | BE51: 1 | BF51: 1 | BG51: 21.54348129 | BH51: 113.3325651
A52: 10 | B52: Cussy | BG52: 10.94802892 | BH52: 102.3845362
A53: 9 | B53: Calvaire | BG53: 2.192333331 | BH53: 100.1922029
A54: 8 | B54: Résidence aux Champs | BG54: 6.813684321 | BH54: 93.37851855
A55: 7 | B55: Authie Mairie | BG55: 30.06730233 | BH55: 63.31121622
A56: 6 | B56: AUTHIE - Jacques Cartier | BG56: 31.14088404 | BH56: 32.17033218
A57: 5 | B57: Brunet | BG57: 1.02460204 | BH57: 31.14573014
A58: 4 | B58: Parc des Drapeaux | BG58: 6.448989964 | BH58: 24.69674018
A59: 3 | B59: Zone Commerciale | BG59: 9.280782131 | BH59: 15.41595805
A60: 2 | B60: Senestre | BG60: 4.046481086 | BH60: 11.36947696
A61: 1 | B61: ROTS - Bonny | BG61: 11.36947696 | BH61: -1.172395514e-13
A62: TOTAL DESCENTES | F62: 1.538173911 | I62: 9.72901915 | J62: 2.01322285 | L62: 3.162639623 | M62: 3.925344158 | N62: 0.7809190624 | O62: 9.559292417 | P62: 3.46196774 | Q62: 4.661592882 | R62: 6.839756977 | S62: 8.001300051 | T62: 12.40911349 | U62: 14.83936957 | V62: 1.229092063 | W62: 5.809863133 | X62: 0.9805024261 | Y62: 70.8100633 | Z62: 27.85145152 | AA62: 10.29094228 | AB62: 4.507398997 | AC62: 7.466182447 | AD62: 4.922325035 | AE62: 26.41058584 | AF62: 25.29161012 | AG62: 3.329340901 | AH62: 12.49629192 | AI62: 4.822696045 | AJ62: 40.13888391 | AK62: 15.11033789 | AL62: 29.47606745 | AM62: 10.02220851 | AN62: 1.279513487 | AO62: 11.71990631 | AP62: 14.19158501 | AQ62: 23.16336098 | AR62: 10.38443512 | AS62: 6.037466516 | AT62: 30.52110894 | AU62: 21.54348129 | AV62: 10.94802892 | AW62: 2.192333331 | AX62: 6.813684321 | AY62: 30.06730233 | AZ62: 31.14088404 | BA62: 1.02460204 | BB62: 6.448989964 | BC62: 9.280782131 | BD62: 4.046481086 | BE62: 11.36947696 | BF62: 614.0609784 | BG62: 614.0609784

Sheet Sens 1-20-1. JOB
A1: SENS | B1: 1
A2: LIGNE | B2: 20
C5: 1 | D5: 2 | E5: 3 | F5: 4 | G5: 5 | H5: 6 | I5: 7 | J5: 8 | K5: 10 | L5: 11 | M5: 12 | N5: 13 | O5: 14 | P5: 15 | Q5: 16 | R5: 17 | S5: 18 | T5: 19 | U5: 20 | V5: 21 | W5: 22 | X5: 23 | Y5: 24 | Z5: 25 | AA5: 26 | AB5: 27 | AC5: 28 | AD5: 29 | AE5: 30 | AF5: 31 | AG5: 32 | AH5: 33 | AI5: 34 | AJ5: 35 | AK5: 36 | AL5: 37 | AM5: 38 | AN5: 39 | AO5: 40 | AP5: 41 | AQ5: 42 | AR5: 43 | AS5: 44 | AT5: 45 | AU5: 46 | AV5: 47 | AW5: 48 | AX5: 49 | AY5: 50 | AZ5: 51 | BA5: 52 | BB5: 53 | BC5: 54 | BD5: 55 | BE5: TOTAL MONTEES | BF5: TOTAL DESCENTES | BG5: CHARGE
C6: ROTS - Bonny | D6: Senestre | E6: Zone Commerciale | F6: Parc des Drapeaux | G6: Brunet | H6: AUTHIE - Jacques Cartier | I6: Authie Mairie | J6: Résidence aux Champs | K6: Cussy | L6: Ardenne | M6: Chanterie | N6: Rue du Puits | O6: Rue de Villons | P6: Cotonnière | Q6: Cimetière Parc | R6: Bourgogne | S6: Touraine | T6: Rouge Gorge | U6: Tourterelles | V6: Champagne | W6: Chemin Vert Piscine | X6: Gernez | Y6: Le Coutour | Z6: Les Florals | AA6: Thibout de la Fresnaye | AB6: Lycée de Gaulle | AC6: Saint-Nicolas | AD6: Place du Canada | AE6: Miséricorde | AF6: Château Quatrans | AG6: Bellivet | AH6: Bernières | AI6: Place Courtonne | AJ6: Quai de la Londe | AK6: Tourville | AL6: Fouquet | AM6: Hélène Keller | AN6: Pont de Calix | AO6: Saint-Jean Eudes | AP6: Clémenceau | AQ6: Cimetière Nord Est | AR6: CHR | AS6: Docteur Vincent | AT6: Docteur Auvray | AU6: La Hache | AV6: Vanier | AW6: Montcalm | AX6: Place Champlain | AY6: Pierre Heuzé | AZ6: Cavelier | BA6: Brest | BB6: Cité U Lebisey | BC6: Copernic | BD6: CAEN - Calvaire Saint-Pierre
A7: 1 | B7: ROTS - Bonny | T7: 0.5238095238 | AE7: 0.9523809524 | AG7: 0.5238095238 | BD7: 0.9803921569 | BE7: 2.980392157 | BG7: =BG6+BE7-BF7 -> 2.980392157
A8: 2 | B8: Senestre | AM8: 1 | BE8: 1 | BG8: =BG7+BE8-BF8 -> 3.980392157
A9: 3 | B9: Zone Commerciale | M9: 1.095066185 | AB9: 1.186626903 | AF9: 3.04714069 | AG9: 0.9427091508 | AH9: 0.7284570711 | BE9: 7 | BG9: 10.98039216
A10: 4 | B10: Parc des Drapeaux | M10: 1.001751313 | W10: 1.001751313 | AD10: 1.001751313 | AF10: 0.7740805604 | AG10: 0.9106830123 | AH10: 2.049036778 | AJ10: 1.260945709 | BE10: 8 | BG10: 18.98039216
A11: 5 | B11: Brunet | U11: 0.9826589595 | V11: 1.213872832 | AD11: 1.213872832 | AF11: 0.5895953757 | BE11: 4 | BG11: 22.98039216
A12: 6 | B12: AUTHIE - Jacques Cartier | L12: 1.438549728 | W12: 1.438549728 | AB12: 1.438549728 | AF12: 1.459704871 | AG12: 3.022143078 | AH12: 1.202502868 | BE12: 10 | BG12: 32.98039216
A13: 7 | B13: Authie Mairie | R13: 0.9588029759 | U13: 1.78996345 | W13: 0.9588029759 | Y13: 0.6163733416 | AF13: 0.7244289151 | AG13: 2.161664891 | AS13: 1.78996345 | BE13: 9 | BF13: 0.9846547315 | BG13: 40.99573743
A14: 8 | B14: Résidence aux Champs | N14: 1.200281736 | R14: 0.9519475836 | AB14: 3.596246427 | AF14: 1.047142342 | AG14: 1.002050088 | AH14: 1.002050088 | AN14: 1.200281736 | BE14: 10 | BG14: 50.99573743
A15: 10 | B15: Cussy | AF15: 6 | BE15: 6 | BG15: 56.99573743
A16: 11 | B16: Ardenne | U16: 2.23092529 | AB16: 4.47531016 | AE16: 4.805661423 | AF16: 7.907502914 | AG16: 2.29247171 | AH16: 1.144064251 | AJ16: 1.144064251 | BE16: 24 | BF16: 1.438549728 | BG16: 79.5571877
A17: 12 | B17: Chanterie | R17: 3.46168033 | T17: 1.713703134 | U17: 2.159265949 | AB17: 1.313839069 | AF17: 3.238623997 | AH17: 4.112887521 | AT17: 2.056443761 | BE17: 18.05644376 | BF17: 2.096817499 | BG17: 95.51681396
A18: 13 | B18: Rue du Puits | AA18: 2.624073018 | AE18: 2.755276669 | AH18: 3.308613805 | AI18: 1.312036509 | BE18: 10 | BF18: 1.200281736 | BG18: 104.3165322
A19: 14 | B19: Rue de Villons | S19: 1.190519934 | T19: 1.190519934 | U19: 2.381039868 | V19: 1.190519934 | AC19: 1.190519934 | AD19: 1.190519934 | AE19: 2.500091861 | AF19: 6.785963623 | AG19: 1.309571927 | AK19: 1.190519934 | AL19: 1.190519934 | AO19: 1.49917325 | AX19: 2.381039868 | AY19: 1.190519934 | BE19: 26.38103987 | BG19: 130.6975721
A20: 15 | B20: Cotonnière | R20: 5.860776609 | AC20: 1.465194152 | AD20: 1.245415029 | AF20: 5.745982196 | AG20: 7.217437861 | AH20: 1.465194152 | BE20: 23 | BG20: 153.6975721
A21: 16 | B21: Cimetière Parc | T21: 0.9805380447 | AF21: 2.246438355 | AG21: 0.8913982225 | AH21: 1.881625378 | BE21: 6 | BG21: 159.6975721
A22: 17 | B22: Bourgogne | W22: 0.2646351243 | AF22: 1.182036889 | BB22: 0.2646351243 | BD22: 0.2886928629 | BE22: 2 | BF22: 11.2332075 | BG22: 150.4643646
A23: 18 | B23: Touraine | AA23: 0.6940639269 | AF23: 0.6362252664 | AJ23: 0.6697108067 | BE23: 2 | BF23: 1.190519934 | BG23: 151.2738447
A24: 19 | B24: Rouge Gorge | W24: 2.1783409 | AC24: 2.412931458 | AF24: 3.609822062 | AH24: 4.247323795 | AS24: 2.904454533 | AW24: 2.904454533 | BB24: 1.74267272 | BE24: 20 | BF24: 4.408570636 | BG24: 166.865274
A25: 20 | B25: Tourterelles | X25: 3.03699926 | AF25: 4.800629429 | AG25: 2.069658755 | AH25: 2.116696454 | AK25: 0.7937611701 | AP25: 1.307371339 | AQ25: 1.439353589 | AR25: 0.6684304591 | AS25: 1.439353589 | BD25: 1.327745957 | BE25: 19 | BF25: 9.543853516 | BG25: 176.3214205
A26: 21 | B26: Champagne | X26: 0.6568323128 | AA26: 2.030208967 | AD26: 0.6914024345 | AF26: 1.2497099 | AG26: 1.543666513 | AH26: 0.8281798726 | BE26: 7 | BF26: 2.404392766 | BG26: 180.9170277
A27: 22 | B27: Chemin Vert Piscine | X27: 1.591098804 | AA27: 1.612435378 | AE27: 1.261905948 | AF27: 6.309529739 | AG27: 1.261905948 | AH27: 2.598041657 | AP27: 1.261905948 | BB27: 2.10317658 | BE27: 18 | BF27: 5.842080041 | BG27: 193.0749477
A28: 23 | B28: Gernez | AF28: 2.896551724 | AY28: 3.103448276 | BE28: 6 | BF28: 5.284930376 | BG28: 193.7900173
A29: 24 | B29: Le Coutour | Z29: 1.112616316 | AF29: 1.811282823 | AG29: 2.443624163 | AH29: 0.7500568612 | AU29: 0.8824198368 | BE29: 7 | BF29: 0.6163733416 | BG29: 200.173644
A30: 25 | B30: Les Florals | AA30: 0.1219773165 | AE30: 0.5068835152 | AF30: 0.3711391683 | BE30: 1 | BF30: 1.112616316 | BG30: 200.0610277
A31: 26 | B31: Thibout de la Fresnaye | AD31: 5.892936322 | AE31: 1.598066187 | AF31: 8.620640829 | AG31: 1.609903714 | AP31: 1.278452949 | BE31: 19 | BF31: 7.082758606 | BG31: 211.9782691
A32: 27 | B32: Lycée de Gaulle | AE32: 2.792236468 | AF32: 5.470618374 | AG32: 2.46373806 | AO32: 1.551242482 | AY32: 4.722164615 | BE32: 17 | BF32: 12.01057229 | BG32: 216.9676968
A33: 28 | B33: Saint-Nicolas | AE33: 0.701754386 | AH33: 0.701754386 | AQ33: 0.5964912281 | BE33: 2 | BF33: 5.068645544 | BG33: 213.8990512
A34: 29 | B34: Place du Canada | AF34: 3.060902064 | AG34: 1.852119256 | AM34: 0.69565956 | AY34: 1.39131912 | BE34: 7 | BF34: 11.23589787 | BG34: 209.6631534
A35: 30 | B35: Miséricorde | I35: 0.9846547315 | AG35: 1 | BE35: 1.984654731 | BF35: 17.87425741 | BG35: 193.7735507
A36: 31 | B36: Château Quatrans | AL36: 1.777503784 | AM36: 1.707743038 | AO36: 0.7534160464 | AP36: 0.7534160464 | AQ36: 0.7534160464 | AU36: 2.382555939 | AV36: 0.828757651 | AY36: 1.043191449 | BE36: 10 | BF36: 79.58569211 | BG36: 124.1878586
A37: 32 | B37: Bellivet | AK37: 2.418530676 | AL37: 3.172262727 | AM37: 1.106424591 | AN37: 1.086667009 | AO37: 3.571827211 | AP37: 1.404308134 | AQ37: 1.014222541 | AS37: 1.115644796 | AT37: 1.278802335 | AU37: 1.278802335 | AV37: 5.215326169 | AY37: 3.236291928 | AZ37: 1.086667009 | BC37: 1.014222541 | BE37: 28 | BF37: 34.51855587 | BG37: 117.6693027
A38: 33 | B38: Bernières | AJ38: 1.134357382 | AK38: 1.058733557 | AL38: 7.39137373 | AM38: 10.68307261 | AN38: 1.058733557 | AO38: 7.550695229 | AS38: 1.352826211 | AU38: 2.329213825 | AV38: 1.058733557 | AW38: 1.154982062 | AY38: 6.227278283 | BE38: 41 | BF38: 28.13648494 | BG38: 130.5328178
A39: 34 | B39: Place Courtonne | AL39: 2.234866199 | AM39: 4.436866719 | AN39: 5.945700182 | AO39: 4.436866719 | AP39: 1.774746687 | AQ39: 2.234866199 | BD39: 1.936087295 | BE39: 23 | BF39: 1.312036509 | BG39: 152.2207813
A40: 35 | B40: Quai de la Londe | BD40: 6 | BE40: 6 | BF40: 4.20907815 | BG40: 154.0117031
A41: 36 | B41: Tourville | AP41: 7 | BE41: 7 | BF41: 5.461545336 | BG41: 155.5501578
A42: 37 | B42: Fouquet | AO42: 0.9958506224 | AQ42: 1.004149378 | BE42: 2 | BF42: 15.76652637 | BG42: 141.7836314
A43: 38 | B43: Hélène Keller | AN43: 0.9316249028 | AR43: 1.552708171 | AX43: 1.91805127 | AY43: 3.50065115 | AZ43: 3.043308016 | BB43: 0.9806577924 | BD43: 4.072998698 | BE43: 16 | BF43: 19.62976651 | BG43: 138.1538649
A44: 39 | B44: Pont de Calix | AX44: 1.3839566 | BA44: 6.25636674 | BD44: 1.35967666 | BE44: 9 | BF44: 10.22300739 | BG44: 136.9308575
A45: 40 | B45: Saint-Jean Eudes | AQ45: 0.7247324002 | AY45: 1.089467007 | BA45: 0.8975014244 | BB45: 1.755407198 | BD45: 3.532891971 | BE45: 8 | BF45: 20.35907156 | BG45: 124.5717859
A46: 41 | B46: Clémenceau | AR46: 1.059292035 | AS46: 1.059292035 | AW46: 1.353539823 | AX46: 2.412831858 | BD46: 1.115044248 | BE46: 7 | BF46: 14.7802011 | BG46: 116.7915848
A47: 42 | B47: Cimetière Nord Est | BF47: 7.767231381 | BG47: 109.0243535
A48: 43 | B48: CHR | BA48: 1.860115772 | BB48: 5.497131609 | BC48: 3.720231543 | BD48: 6.642752619 | BE48: 17.72023154 | BF48: 3.280430666 | BG48: 123.4641543
A49: 44 | B49: Docteur Vincent | AX49: 0.3209700428 | BD49: 0.6790299572 | BE49: 1 | BF49: 9.661534614 | BG49: 114.8026197
A50: 45 | B50: Docteur Auvray | BD50: 4 | BE50: 4 | BF50: 3.335246095 | BG50: 115.4673736
A51: 46 | B51: La Hache | AX51: 0.9674838147 | AZ51: 0.5804902888 | BA51: 0.4934167455 | BB51: 0.6110424093 | BC51: 0.725612861 | BD51: 0.6219538808 | BE51: 4 | BF51: 6.872991935 | BG51: 112.5943817
A52: 47 | B52: Vanier | BF52: 7.102817376 | BG52: 105.4915643
A53: 48 | B53: Montcalm | BF53: 5.412976418 | BG53: 100.0785879
A54: 49 | B54: Place Champlain | BF54: 9.384333454 | BG54: 90.69425444
A55: 50 | B55: Pierre Heuzé | BF55: 25.50433176 | BG55: 65.18992268
A56: 51 | B56: Cavelier | BF56: 4.710465313 | BG56: 60.47945737
A57: 52 | B57: Brest | BB57: 2 | BE57: 2 | BF57: 9.507400681 | BG57: 52.97205668
A58: 53 | B58: Cité U Lebisey | BF58: 14.95472343 | BG58: 38.01733325
A59: 54 | B59: Copernic | BF59: 5.460066946 | BG59: 32.55726631
A60: 55 | B60: CAEN - Calvaire Saint-Pierre | BF60: 32.55726631 | BG60: 0
A61: TOTAL DESCENTES | I61: 0.9846547315 | L61: 1.438549728 | M61: 2.096817499 | N61: 1.200281736 | R61: 11.2332075 | S61: 1.190519934 | T61: 4.408570636 | U61: 9.543853516 | V61: 2.404392766 | W61: 5.842080041 | X61: 5.284930376 | Y61: 0.6163733416 | Z61: 1.112616316 | AA61: 7.082758606 | AB61: 12.01057229 | AC61: 5.068645544 | AD61: 11.23589787 | AE61: 17.87425741 | AF61: 79.58569211 | AG61: 34.51855587 | AH61: 28.13648494 | AI61: 1.312036509 | AJ61: 4.20907815 | AK61: 5.461545336 | AL61: 15.76652637 | AM61: 19.62976651 | AN61: 10.22300739 | AO61: 20.35907156 | AP61: 14.7802011 | AQ61: 7.767231381 | AR61: 3.280430666 | AS61: 9.661534614 | AT61: 3.335246095 | AU61: 6.872991935 | AV61: 7.102817376 | AW61: 5.412976418 | AX61: 9.384333454 | AY61: 25.50433176 | AZ61: 4.710465313 | BA61: 9.507400681 | BB61: 14.95472343 | BC61: 5.460066946 | BD61: 32.55726631 | BE61: 480.1227621 | BF61: 480.1227621

Sheet Sens (Tous)-12-1. JOB
A1: SENS | B1: (Tous)
A2: LIGNE | B2: 12
C5: 1 | D5: 2 | E5: 3 | F5: 4 | G5: 5 | H5: 6 | I5: 7 | J5: 8 | K5: 9 | L5: 10 | M5: 11 | N5: 12 | O5: 13 | P5: 14 | Q5: 15 | R5: 16 | S5: 17 | T5: 18 | U5: 19 | V5: 20 | W5: 21 | X5: 22 | Y5: 23 | Z5: 24 | AA5: 25 | AB5: 26 | AC5: 27 | AD5: 28 | AE5: 29 | AF5: 30 | AG5: 31 | AH5: 32 | AI5: 33 | AJ5: 34 | AK5: 35 | AL5: 36 | AM5: 37 | AN5: 38 | AO5: 39 | AP5: 40 | AQ5: 41 | AR5: 42 | AS5: 43 | AT5: TOTAL MONTEES | AU5: TOTAL DESCENTES
C6: LION - Haut Lion | D6: Bas Lion | E6: Hermanville Plage | F6: Isaville | G6: Colleville Plage | H6: Riva Charmettes | I6: Colonel Dawson | J6: Avenue du Bois | K6: OUISTREHAM Riva Centre | L6: Général Leclerc | M6: Ouistreham Port | N6: Ouistreham Église | O6: Sacré Cœur | P6: Édouard Zarifian | Q6: Capucines | R6: Becquet | S6: Piéplu | T6: Colleville Stade | U6: Sieurcas | V6: Saint-Aubin Mairie | W6: Bénouville Église | X6: Pegasus Bridge | Y6: Bénouville Château | Z6: Lynton Lynmouth | AA6: Blainville Parc | AB6: Hérouville Saint-Clair | AC6: Valeuse | AD6: Allende | AE6: Laennec | AF6: Harris | AG6: Cité U Lebisey | AH6: Croix Guérin | AI6: Lycée Laplace | AJ6: Edimbourg | AK6: Délivrande | AL6: CHR | AM6: Reiner Mathilde | AN6: Université | AO6: Château Quatrans | AP6: Vaugueux | AQ6: Tour Leroy | AR6: Saint-Jean Eglise | AS6: CAEN - Gare SNCF
A7: 1 | B7: LION - Haut Lion | D7: 0.943620178 | AS7: 2.056379822 | AT7: 3 | AU7: 17.35155529
A8: 2 | B8: Bas Lion | O8: 2.159217658 | AB8: 0.9908098343 | AD8: 2.972429503 | AL8: 0.8775430053 | AT8: 7 | AU8: 8.673987931
A9: 3 | B9: Hermanville Plage | Y9: 0.7335640138 | AD9: 1.467128028 | AS9: 0.7993079585 | AT9: 3 | AU9: 14.36939234
A10: 4 | B10: Isaville | L10: 0.5214446953 | AD10: 0.4785553047 | AT10: 1 | AU10: 6.662120994
A11: 5 | B11: Colleville Plage | AB11: 2.526315789 | AS11: 3.473684211 | AT11: 6 | AU11: 4.013213216
A12: 6 | B12: Riva Charmettes | K12: 0.9371568029 | AD12: 6.208663819 | AG12: 0.8541793777 | AT12: 8 | AU12: 4.162590938
A13: 7 | B13: Colonel Dawson | AB13: 3.35089568 | AD13: 3.35089568 | AG13: 8.298208641 | AT13: 15 | AU13: 5.360926702
A14: 8 | B14: Avenue du Bois | AD14: 11 | AT14: 11 | AU14: 13.90951659
A15: 9 | B15: OUISTREHAM Riva Centre | C15: 8.460628533 | D15: 2.861540168 | E15: 6.677629409 | G15: 1.00020189 | O15: 0.7635146949 | W15: 2.511937376 | AD15: 21.33231491 | AF15: 1.137481076 | AG15: 1.036766606 | AL15: 1.36853192 | AS15: 3.849453421 | AT15: 51 | AU15: 31.54340133
A16: 10 | B16: Général Leclerc | C16: 4.130638084 | E16: 1.032659521 | F16: 3.329436731 | I16: 1.507265664 | Q16: 2.785908553 | R16: 1.392954277 | S16: 12.53658849 | T16: 5.571817106 | U16: 2.785908553 | AA16: 4.17886283 | AB16: 1.27838228 | AD16: 3.885700597 | AG16: 2.110536783 | AL16: 1.157780178 | AO16: 2.315560356 | AT16: 50 | AU16: 13.68936854
A17: 11 | B17: Ouistreham Port | AD17: 2.25 | AS17: 0.75 | AT17: 3 | AU17: 9.3269982
A18: 12 | B18: Ouistreham Église | V18: 0.8579556474 | AA18: 1.278178822 | AB18: 1.278178822 | AD18: 6.005689532 | AG18: 2.330013477 | AN18: 1.249983701 | AT18: 13 | AU18: 24.79400309
A19: 13 | B19: Sacré Cœur | AB19: 0.9654478845 | AD19: 4.827239422 | AG19: 3.241864809 | AM19: 0.9654478845 | AT19: 10 | AU19: 28.52966599
A20: 14 | B20: Édouard Zarifian | AB20: 1.509953881 | AD20: 9.121776182 | AF20: 1.321209645 | AG20: 2.752520095 | AH20: 1.321209645 | AM20: 2.953292149 | AN20: 4.000130642 | AQ20: 3.019907761 | AT20: 26 | AU20: 12.5339216
A21: 15 | B21: Capucines | AB21: 1.193711697 | AD21: 2.387423395 | AG21: 6.418864908 | AT21: 10 | AU21: 8.181228979
A22: 16 | B22: Becquet | H22: 0.4785145889 | K22: 0.2392572944 | P22: 0.2822281167 | V22: 0.9795285691 | AD22: 6.154537923 | AE22: 1.459297664 | AN22: 1.427107275 | AQ22: 0.9795285691 | AT22: 12 | AU22: 11.45541555
A23: 17 | B23: Piéplu | AG23: 9.128510966 | AH23: 2.190842632 | AO23: 1.680646402 | AT23: 13 | AU23: 28.51402225
A24: 18 | B24: Colleville Stade | AD24: 4.538736591 | AM24: 1.134684148 | AN24: 5.057210965 | AS24: 2.269368296 | AT24: 13 | AU24: 23.61275429
A25: 19 | B25: Sieurcas | AN25: 4 | AT25: 4 | AU25: 4.641468668
A26: 20 | B26: Saint-Aubin Mairie | AD26: 2.817939037 | AG26: 2.739662952 | AM26: 1.469748596 | AN26: 2.972649415 | AT26: 10 | AU26: 14.66412061
A27: 21 | B27: Bénouville Église | AB27: 1.495901639 | AH27: 1.004098361 | AM27: 1.004098361 | AR27: 1.495901639 | AT27: 5 | AU27: 9.965281245
A28: 22 | B28: Pegasus Bridge | AB28: 1.202009807 | AD28: 0.8068285005 | AF28: 1.202009807 | AG28: 0.8068285005 | AN28: 1.175494885 | AO28: 0.8068285005 | AT28: 6 | AU28: 16.56902119
A29: 23 | B29: Bénouville Château | AG29: 5.89254766 | AR29: 2.10745234 | AT29: 8 | AU29: 15.55492838
A30: 24 | B30: Lynton Lynmouth | AU30: 1.757899056
A31: 25 | B31: Blainville Parc | K31: 1.500883615 | O31: 1.749558192 | W31: 1.749558192 | AR31: 1 | AT31: 6 | AU31: 5.457041651
A32: 26 | B32: Hérouville Saint-Clair | J32: 2.186910135 | R32: 1.87997538 | U32: 1.855560115 | X32: 1.855560115 | Y32: 3.464095199 | Z32: 1.757899056 | AT32: 13 | AU32: 20.82330708
A33: 27 | B33: Valeuse | H33: 1.352459016 | K33: 1.352459016 | P33: 1.147540984 | S33: 1.147540984 | AT33: 5 | AU33: 0.6339622642
A34: 28 | B34: Allende | C34: 1.23795788 | D34: 1.666342132 | F34: 3.332684263 | H34: 1.23795788 | I34: 1.666342132 | J34: 8.284515783 | K34: 4.142257891 | L34: 6.222508535 | M34: 1.666342132 | N34: 15.50922137 | O34: 10.85268578 | R34: 3.75743814 | S34: 6.140672561 | T34: 3.773774827 | V34: 3.741101452 | W34: 2.499513197 | X34: 3.72113439 | Y34: 2.515849885 | AB34: 5.03169977 | AT34: 87 | AU34: 89.60585842
A35: 29 | B35: Laennec | AU35: 1.459297664
A36: 30 | B36: Harris | K36: 0.7886792453 | L36: 0.7886792453 | N36: 0.7886792453 | AC36: 0.6339622642 | AT36: 3 | AU36: 3.660700528
A37: 31 | B37: Cité U Lebisey | J37: 1.343424668 | K37: 2.686849336 | L37: 2.423306698 | O37: 1.343424668 | T37: 1.048120794 | X37: 1.154873837 | AT37: 10 | AU37: 45.61050477
A38: 32 | B38: Croix Guérin | AU38: 4.516150638
A39: 33 | B39: Lycée Laplace | O39: 1.06882859 | P39: 0.9827928524 | Q39: 0.9827928524 | S39: 0.9827928524 | T39: 0.9827928524 | AT39: 5
A40: 34 | B40: Edimbourg | V40: 1 | AT40: 1
A41: 35 | B41: Délivrande | Q41: 1.004347826 | S41: 0.9913043478 | T41: 1.004347826 | AT41: 3
A42: 36 | B42: CHR | T42: 3 | AN42: 2 | AT42: 5 | AU42: 3.403855103
A43: 37 | B43: Reiner Mathilde | C43: 1.066035016 | E43: 1.145681311 | G43: 1.965678324 | M43: 1.145681311 | S43: 2.291362621 | X43: 3.111359634 | Y43: 3.274201783 | AT43: 14 | AU43: 7.527271137
A44: 38 | B44: Université | AS44: 1 | AT44: 1 | AU44: 21.88257688
A45: 39 | B45: Château Quatrans | AU45: 4.803035259
A46: 40 | B46: Vaugueux | Y46: 1 | AT46: 1
A47: 41 | B47: Tour Leroy | C47: 2.456295778 | D47: 1.047333001 | E47: 5.513422104 | G47: 1.047333001 | J47: 2.094666003 | K47: 8.99423823 | L47: 1.135988162 | M47: 3.507411262 | N47: 4.189332006 | O47: 6.081091165 | P47: 5.800970815 | Q47: 1.220860841 | R47: 1.135988162 | S47: 3.33010094 | T47: 8.231900883 | V47: 7.106883331 | W47: 1.047333001 | X47: 4.49163381 | Y47: 4.567217504 | AT47: 73 | AU47: 4.978087944
A48: 42 | B48: Saint-Jean Eglise | AU48: 4.603353979
A49: 43 | B49: CAEN - Gare SNCF | D49: 2.155152452 | H49: 1.093659453 | I49: 2.187318906 | K49: 10.9016199 | L49: 2.597441201 | M49: 3.007563496 | N49: 4.306770467 | O49: 4.511345245 | P49: 4.320388832 | Q49: 2.187318906 | R49: 3.289059587 | S49: 1.093659453 | V49: 0.9786516139 | W49: 2.156939477 | X49: 2.2344594 | AQ49: 0.9786516139 | AT49: 48 | AU49: 14.19819371
A50: TOTAL DESCENTES | C50: 17.35155529 | D50: 8.673987931 | E50: 14.36939234 | F50: 6.662120994 | G50: 4.013213216 | H50: 4.162590938 | I50: 5.360926702 | J50: 13.90951659 | K50: 31.54340133 | L50: 13.68936854 | M50: 9.3269982 | N50: 24.79400309 | O50: 28.52966599 | P50: 12.5339216 | Q50: 8.181228979 | R50: 11.45541555 | S50: 28.51402225 | T50: 23.61275429 | U50: 4.641468668 | V50: 14.66412061 | W50: 9.965281245 | X50: 16.56902119 | Y50: 15.55492838 | Z50: 1.757899056 | AA50: 5.457041651 | AB50: 20.82330708 | AC50: 0.6339622642 | AD50: 89.60585842 | AE50: 1.459297664 | AF50: 3.660700528 | AG50: 45.61050477 | AH50: 4.516150638 | AL50: 3.403855103 | AM50: 7.527271137 | AN50: 21.88257688 | AO50: 4.803035259 | AQ50: 4.978087944 | AR50: 4.603353979 | AS50: 14.19819371 | AT50: 563 | AU50: 563

Sheet Sens 2-12-1. JOB
A1: SENS | B1: 2
A2: LIGNE | B2: 12
C5: 43 | D5: 41 | E5: 40 | F5: 38 | G5: 37 | H5: 36 | I5: 35 | J5: 34 | K5: 33 | L5: 31 | M5: 30 | N5: 28 | O5: 27 | P5: 26 | Q5: 25 | R5: 24 | S5: 23 | T5: 22 | U5: 21 | V5: 20 | W5: 19 | X5: 18 | Y5: 17 | Z5: 16 | AA5: 15 | AB5: 14 | AC5: 13 | AD5: 12 | AE5: 11 | AF5: 10 | AG5: 9 | AH5: 8 | AI5: 7 | AJ5: 6 | AK5: 5 | AL5: 4 | AM5: 3 | AN5: 2 | AO5: 1 | AP5: TOTAL MONTEES | AQ5: TOTAL DESCENTES | AR5: CHARGE
C6: CAEN - Gare SNCF | D6: Tour Leroy | E6: Vaugueux | F6: Université | G6: Reiner Mathilde | H6: CHR | I6: Délivrande | J6: Edimbourg | K6: Lycée Laplace | L6: Cité U Lebisey | M6: Harris | N6: Allende | O6: Valeuse | P6: Hérouville Saint-Clair | Q6: Blainville Parc | R6: Lynton Lynmouth | S6: Bénouville Château | T6: Pegasus Bridge | U6: Bénouville Église | V6: Saint-Aubin Mairie | W6: Sieurcas | X6: Colleville Stade | Y6: Piéplu | Z6: Becquet | AA6: Capucines | AB6: Édouard Zarifian | AC6: Sacré Cœur | AD6: Ouistreham Église | AE6: Ouistreham Port | AF6: Général Leclerc | AG6: OUISTREHAM Riva Centre | AH6: Avenue du Bois | AI6: Colonel Dawson | AJ6: Riva Charmettes | AK6: Colleville Plage | AL6: Isaville | AM6: Hermanville Plage | AN6: Bas Lion | AO6: LION - Haut Lion
A7: 43 | B7: CAEN - Gare SNCF | D7: 0.9786516139 | T7: 2.2344594 | U7: 2.156939477 | V7: 0.9786516139 | Y7: 1.093659453 | Z7: 3.289059587 | AA7: 2.187318906 | AB7: 4.320388832 | AC7: 4.511345245 | AD7: 4.306770467 | AE7: 3.007563496 | AF7: 2.597441201 | AG7: 10.9016199 | AI7: 2.187318906 | AJ7: 1.093659453 | AN7: 2.155152452 | AP7: 48 | AR7: =AR6+AP7-AQ7 -> 48
